{"text_format":"1","workbook":"xlsx","n_sheets":9,"sheets":["Instruktion och Projektinfo","Input - Mängder A1-A3, A4, A5","Underlag rörmaterial","Kommentarer","Resultat - enskilt scenario","Stödtabeller","Emissionsfaktorer","Hjalpflik","Versionshistorik"],"not_rendered":{"charts":4,"images":1,"macros":1,"external_links":0,"defined_names":12,"comments":2,"pivot_tables":0},"unopened":[],"bounds":{"document_bytes":16777216,"sheet_cells":100000,"rows_first":2000,"rows_last":500,"rows_between":2000,"halvings":0,"cell_chars":16384,"cell_head_chars":4096},"cells_cut":0,"cells_raw":0,"read":"whole","date_system":"1900"}

{"sheet":"Instruktion och Projektinfo","index":0,"n_rows":48,"n_cols":16,"rows_kept":48,"cut":false,"hidden":false,"merged":[[36,0,36,10],[42,0,42,10],[32,11,32,16],[33,11,33,16],[13,0,13,10],[25,0,25,10],[32,0,32,10],[33,0,33,10],[26,11,26,16],[27,11,27,16],[28,11,28,16],[29,11,29,16],[30,11,30,16],[31,11,31,16],[19,11,19,16],[20,11,20,16],[21,11,21,16],[23,11,23,16],[24,11,24,16],[25,11,25,16],[11,11,11,16],[12,11,12,16],[13,11,13,16],[14,11,14,16],[16,11,16,16],[17,11,17,16],[18,11,18,16],[22,11,22,16],[15,11,15,16],[0,11,0,16],[1,11,1,16],[5,15,6,15],[5,16,6,16],[10,11,10,16],[1,0,1,10],[2,0,2,10],[3,0,3,10],[4,0,4,10],[5,0,5,10],[6,0,6,10],[14,0,14,10],[16,0,16,10],[17,0,17,10],[19,0,19,10],[7,0,7,10],[8,0,8,10],[9,0,9,10],[10,0,10,10],[11,0,11,10],[20,0,20,10],[21,0,21,10],[23,0,23,10],[26,0,26,10],[27,0,27,10],[44,0,44,10],[45,0,45,10],[46,0,46,10],[47,0,47,10],[18,0,18,10],[35,0,35,10],[41,0,41,10],[37,0,37,10],[38,0,38,10],[39,0,39,10],[40,0,40,10],[43,0,43,10],[28,0,28,10],[29,0,29,10],[30,0,30,10],[34,0,34,10]]}
[]
["Så här gör du för att fylla i excelverktyget och beräkna utsläppen av växthusgaser för ditt projekt",null,null,null,null,null,null,null,null,null,null,"Här anger du information om ditt projekt. Fetmarkerad information bör alltid fyllas, övrig information är frivilligt."]
[null,null,null,null,null,null,null,null,null,null,null,"Projektnamn:",null,"Organisation:",null,"Kontaktperson:"]
["OBS - läs nedan punkter noga då de är viktiga för att verktyget ska fungera optimalt"]
["Alla rader som läggs till i flik \"Input - Mängder A1-A3, A4, A5\" förs automatiskt över till flikarna \"Kommentarer\" och \"Resultat - enskilt scenario\".",null,null,null,null,null,null,null,null,null,null,"Datum:","202X-XX-XX","Typ av projekt:"]
["Använd inte filterfunktionen på tabellerna i kommande flikar, det kan skapa problem med beräkningarna i verktyget.",null,null,null,null,null,null,null,null,null,null,null,null,null,null,"Ingår återställning av håtdjorda ytor i projektet (JA/NEJ)?:"]
["Lägg inte till rader ovanför tabellerna i denna eller kommande flikar. Använd istället knappen \"lägg till 10 rader till tabell(erna)\", i fliken Input.",null,null,null,null,null,null,null,null,null,null,"Projektskede:",null,"Placering:"]
["Skapa inte nya kolumner i tabellerna i denna eller kommande flikar. Använd istället fliken \"Kommentarer\" för mer utförlig information."]
["Börja med att fylla i data i  fliken \"Input - Mängder A1-A3, A4 och A5\" överst, rad för rad.",null,null,null,null,null,null,null,null,null,null,"Storlek (m ledning): ",null,"Storlek (MSEK): ",null,"Storlek (arbetsområde, m²): "]
["Ta inte bort rader om något blir fel, eller behöver ändras. Ta istället bort siffror/text/data och ersätt med rätt information."]
["Lämna inga tomma rader mellan anläggningsdelarna i fliken \"Input - Mängder A1-A3, A4, A5\", då kan resultat och diagram visa fel.",null,null,null,null,null,null,null,null,null,null,"Kommentar avseende omfattning och avgränsning (ange vad som ingår och inte ingår i beräkningen)"]
["Byt inte namn på flikar, tabellernas kolumnnamn eller dylikt - det kan förstöra koppling mellan tabellerna och göra så att resultatet blir fel."]
[]
["Instruktion flik \"Input - Mängder A1-A3, A4 och A5"]
["- Klimatberäkningen startas genom att data fylla i data i kolumnerna för modulerna A1-A3, A4 och A5."]
["- Glöm inte ange ett namn på ditt scenario, detta namn kan sen bytas när ett nytt scenario skapas."]
["- Vid behov av fler rader, klicka på knappen \"Lägg till 10 rader till tabellen\"."]
["- Varje post/anläggningsdel registreras som en rad i tabellen."]
["- För en rad är det möjligt att ange klimatpåverkan för alla moduler (A1-A3, A4 och A5) eller för endast någon/några av dem. "]
["- Fyll i kolumnerna \"Anläggningsdel\", \"Kategori\" och \"Kommentar\". Informationen i dessa kolumner överförs automatiskt till övriga flikar."]
["- Under Anläggningsdel fyller du i ett lämpligt namn på aktuell post som ska klimatberäknas."]
["- Under Kategori fyller du i önskad kategori för posten och resultatet redovisas sedan uppdelat efter valda kategorierier."]
["-  Val av kategori är frivilligt och kan väljas helt fritt. Lämnas cellent tom kommer posten att kategoriseras som \"kategori saknas\"."]
["- Under Kommentar kan du skriva kort beskrivning eller förtydligande (Tex. AMA-kod). Mer plats att skriva finns i fliken ”Kommentarer”."]
[]
["A1-A3 (Produktskedet)"]
["- Indata för A1-A3 skriv in i kolumnerna F-L"]
["- Ange mängd och enhet för varje post/anläggningsdel som ska beräknas."]
["- Ange emissionsfaktor och FU/DU för posten."]
["- Om enheten för mängd och FU/DU för emissionsfaktorns inte är samma, kommer kollum K att rödmarkeras."]
["- Ange eventuell omräkningsfaktor som ett värde (ej formel) i kolumn K (rödmarkerad cell)."]
[]
["För modul A4 (Transporter) finns 2 alternativ för indata. För varje rad väljs endast ett av alternativen, för att beräkningen ska bli korrekt."]
["A4 - Alt 1 - Med alternativ 1 anges emissionsfaktor för A4 från en EPD, och beräkningen baseras på mängd som angivits för A1-A3."]
["- Skriv in emissionsfaktor för A4 från aktuell EPD som nyttjats för A1-A3. DU/FU fylls i automatiskt (det är samma som för A1-A3)."]
[]
["A4 - Alt 2 - Med alternativ 2 anges projektspecifik data för transporter, som drivmedel, körsträcka, bränsleförbrukning etc."]
["- Välj typ drivmedel för transporterna från listan, emissionsfaktor och DU/FU anges automatiskt."]
["- Ange total sträcka (km) för Transporterna (avser alla transporter som behövs för den aktuella posten/anläggningsdelen, och ska räknas med tur/retur)."]
["- Ange bränsleförbrukning per km och enhet för förbrukningen."]
["- Om enheten inte är samma som för emissionsfaktorn, fyll i omräkningsfaktorn i rödmarkerad cell i kolumn X."]
[]
["A5.2 (Transporter och arbeten inom arbetsplatsen)"]
["- Välj typ av fordon/maskin från listan eller välj fritt. Observera att detta val inte påverkar beräkningarna."]
["- Välj typ av drivmedel från listan, emissionsfaktor och DU/FU anges automatiskt."]
["- Ange förbrukad mängd och enhet."]
["- Om enheten inte är samma som för emissionsfaktorn, fyll i omräkningsfaktorn i rödmarkerad cell i kolumn AH."]
["- I kolumn AI kan du t.ex. ange om A5 avser annat inom Modul A5 än A5.2 (arbetsplatsens fordon och maskiner)."]

{"sheet":"Input - Mängder A1-A3, A4, A5","index":1,"n_rows":56,"n_cols":90,"rows_kept":56,"cut":false,"hidden":false,"merged":[[5,13,5,15],[5,27,5,35],[5,5,5,11],[5,17,5,25],[1,1,1,3]]}
[]
[null,"I denna flik anger du all indata till ditt VA-projekt."]
[]
[null,"Varning - lägg inte till rader ovan för tabellen, varken in denna flik eller följande flikar, gäller även kolumner varken i flikarna eller tabellerna."]
[null,null,null,null,null,null,null,null,null,null,null,null,null,null,null,null,null,null,null,null,null,null,null,null,null,null,null,null,null,null,null,null,null,null,null,null,null,null,null,null,null,null,null,null,null,null,null,null,null,null,null,null,null,null,null,null,null,null,null,null,null,null,null,null,null,null,null,null,null,null,null,null,null,null,null,null,null,"Gör förklaringar vad varje kolumn vad som händer"]
[null,{"$f":"'Instruktion och Projektinfo'!M3","v":0},"Scenarionamn:",null,null,"A1 - A3 (Produktskede)",null,null,null,null,null,null,null,"A4 Alternativ 1 - Transporter till (och från) Byggarbetsplats\nAnvänd endast ett av alternativen 1 eller 2\n(Alternativ 1 - Använd emissionsfaktor för A4 från EPD.)",null,null,null,"A4 Alternativ 2 (A4) - Transporter till (och från) Byggarbetsplats\nAnvänd endast ett av alternativen 1 eller 2.\nAlternativ 2 - För alternativ 2 används schablon för emissionsfaktor.",null,null,null,null,null,null,null,null,null,"A5.2 - Arbetsplatsens fordon, maskiner (transporter inom arbetsplatsen och arbetsmoment)"]
[null,"Anläggningsdel\n","Kategori\n(egen kategorisering)","Kommentar","A1A3","Mängd A1A3","Enhet Mängd (A1A3)","EF A1A3 [kg CO₂-ekv.]","FU/DU (EF A1A3)","*Omräkningsfaktorn (A1A3) behöver vara denna enhet (fylls i automatisk):","Omräkning till FU/DU (Skriv in värde, ej formel)","Kommentar till omräkning A1A3\n(Endast text)","A4 - alternativ 1","EPD - EF A4","*DU/FU (EPD - ED A4) [kg CO₂-ekv.] (Fylls i automatiskt)","Kommentar till A4 alternativ 1","A4 - Alternativ 2","Drivmedel (A4) (endast förval ur lista)","*EF (A4)\n[kg CO₂-ekv.]","*DU/FU (EF A4) för valt drivmedel (schablon)","Sträcka - totalt [km], (tur och retur, alla transporter)","(Bränsle-) Förbrukning per km","Enhet (bränsleförbrukning per km)","*Omräkningsfaktorn behöver vara av denna enhet (fylls i automatiskt);","Omräkningsfaktor (A4), (vid behov, värde eller formel)","Kommentar till A4.2 Alternativ 2"," A5.2","A5.2 Typ av fordon/maskin (behöver ej anges).","Drivmedel (A5.2)","Mängd (A5.2)","Enhet för mängd (A5.2)","*EF (A5.2)\n[kg CO₂-ekv.]","*DU/FU (EF A5.2)","*Omräkningsfaktorn (A5.5) behöver vara av denna enhet;","Omräkningsfaktor (A5.2) (ange värde), (vid behov)","Kommentar tiil A5",null,null,null,null,null,null,null,null,null,null,null,null,null,null,null,null,null,null,null,null,null,null,null,null,null,null,null,null,null,null,null,null,null,null,null,null,null,null,"Finns anläggningsdel-namn.","True/False A1A3 Enhet","True/False A1A3 om A1A3 kan beräknas","Utsläpp A1A3 [kg]","TRUE/FALSE - om Al1 är ifyllt","True/False A4 - Alt 2","True/False A4 Enhet - Alt2","A4 - Resultat alt 1 [kg]","A4 - Alt 2 - beräkning utsläpp","Utsläpp A2 [kg] (alt1 och alt2)","A4 - Alt 2 TRUE/FALSE auto","Utsläpp A5[kg]","True/False A5","True/False A5 Enhet","TRUE/FALSE om kategori saknas.","Kategorier"]
[null,null,null,null,null,null,null,null,null,{"$f":"IF(ISBLANK(InputA1A3[[#This Row],[Anläggningsdel\n]]),\"\",IF(OR(KontrollTabell[[#This Row],[True/False A1A3 Enhet]]=TRUE,KontrollTabell[[#This Row],[True/False A1A3 Enhet]]=\"Värde Behövs\",KontrollTabell[[#This Row],[True/False A1A3 Enhet]]=\"\"), \"\", InputA1A3[[#This Row],[FU/DU (EF A1A3)]] & \"/\" & InputA1A3[[#This Row],[Enhet Mängd (A1A3)]]))","v":""},null,null,null,null,{"$f":"IF(ISBLANK(InputA1A3[[#This Row],[EPD - EF A4]]),\"\",InputA1A3[[#This Row],[FU/DU (EF A1A3)]])","v":""},null,null,null,null,{"$f":"IFERROR(INDEX(TabellEFDrivmedel[],MATCH(InputA1A3[[#This Row],[Drivmedel (A4) (endast förval ur lista)]],TabellEFDrivmedel[Drivmedel],0),4),\"\")","v":""},null,null,null,{"$f":"IF(InputA1A3[[#This Row],[*DU/FU (EF A4) för valt drivmedel (schablon)]]=\"\",\"\",IF(OR(InputA1A3[[#This Row],[*DU/FU (EF A4) för valt drivmedel (schablon)]]=InputA1A3[[#This Row],[Enhet (bränsleförbrukning per km)]],KontrollTabell[[#This Row],[True/False A4 - Alt 2]]=\"Värde Behövs\"),\"\",InputA1A3[[#This Row],[Enhet (bränsleförbrukning per km)]]& \"/\" & InputA1A3[[#This Row],[*DU/FU (EF A4) för valt drivmedel (schablon)]]))","v":""},null,null,null,null,null,null,null,{"$f":"IFERROR(INDEX(TabellEFDrivmedel[],MATCH(InputA1A3[[#This Row],[Drivmedel (A5.2)]],TabellEFDrivmedel[Drivmedel],0),2),\"\")","v":""},{"$f":"IFERROR(INDEX(TabellEFDrivmedel[],MATCH(InputA1A3[[#This Row],[Drivmedel (A5.2)]],TabellEFDrivmedel[Drivmedel],0),4),\"\")","v":""},{"$f":"IF(OR(KontrollTabell[[#This Row],[True/False A5 Enhet]]=TRUE,KontrollTabell[[#This Row],[True/False A5 Enhet]]=\"\"), \"\", InputA1A3[[#This Row],[*DU/FU (EF A5.2)]] & \"/\" & InputA1A3[[#This Row],[Enhet för mängd (A5.2)]])","v":""},null,null,null,null,null,null,null,null,null,null,null,null,null,null,null,null,null,null,null,null,null,null,null,null,null,null,null,null,null,null,null,null,null,null,null,null,null,null,null,null,{"$f":"IF(ISBLANK(InputA1A3[[#This Row],[Anläggningsdel\n]]),FALSE,TRUE)","v":false},{"$f":"IF(ISBLANK(InputA1A3[[#This Row],[Anläggningsdel\n]]),\"\",IF(ISBLANK(InputA1A3[[#This Row],[Enhet Mängd (A1A3)]]),\"\",IF(ISBLANK(InputA1A3[[#This Row],[FU/DU (EF A1A3)]]),\"Värde Behövs\",IF(InputA1A3[[#This Row],[Enhet Mängd (A1A3)]] = InputA1A3[[#This Row],[FU/DU (EF A1A3)]], TRUE, FALSE))))","v":""},{"$f":"IF(KontrollTabell[[#This Row],[Finns anläggningsdel-namn.]]=FALSE,\"\",(IF(KontrollTabell[[#This Row],[True/False A1A3 Enhet]]=TRUE,TRUE,IF(OR(KontrollTabell[[#This Row],[True/False A1A3 Enhet]]=\"Värde Behövs\",(KontrollTabell[[#This Row],[True/False A1A3 Enhet]]=\"\")),\"\",IF(ISBLANK(InputA1A3[[#This Row],[Omräkning till FU/DU (Skriv in värde, ej formel)]]),FALSE,TRUE)))))","v":""},{"$f":"IF(KontrollTabell[[#This Row],[Finns anläggningsdel-namn.]]=FALSE,,IF(KontrollTabell[[#This Row],[True/False A1A3 Enhet]]=TRUE,InputA1A3[[#This Row],[Mängd A1A3]]*InputA1A3[[#This Row],[EF A1A3 '[kg CO₂-ekv.']]],IF(KontrollTabell[[#This Row],[True/False A1A3 om A1A3 kan beräknas]]=TRUE,InputA1A3[[#This Row],[Mängd A1A3]]*InputA1A3[[#This Row],[EF A1A3 '[kg CO₂-ekv.']]]*InputA1A3[[#This Row],[Omräkning till FU/DU (Skriv in värde, ej formel)]],0)))","v":0},{"$f":"IF(ISBLANK(InputA1A3[[#This Row],[Anläggningsdel\n]]),\"\",IF(ISBLANK(InputA1A3[[#This Row],[EPD - EF A4]]),FALSE,TRUE))","v":""},{"$f":"IF(InputA1A3[[#This Row],[*DU/FU (EF A4) för valt drivmedel (schablon)]]=\"\",\"\",IF(InputA1A3[[#This Row],[Enhet (bränsleförbrukning per km)]]=\"\",\"Värde Behövs\",IF(OR(InputA1A3[[#This Row],[Enhet (bränsleförbrukning per km)]]=InputA1A3[[#This Row],[*DU/FU (EF A4) för valt drivmedel (schablon)]],AND(InputA1A3[[#This Row],[Enhet (bränsleförbrukning per km)]]<>InputA1A3[[#This Row],[*DU/FU (EF A4) för valt drivmedel (schablon)]],ISNUMBER(InputA1A3[[#This Row],[Omräkningsfaktor (A4), (vid behov, värde eller formel)]]))),TRUE(),FALSE())))","v":""},{"$f":"IF(KontrollTabell[[#This Row],[Finns anläggningsdel-namn.]]=FALSE,\"\",(IF(InputA1A3[[#This Row],[Enhet (bränsleförbrukning per km)]] =InputA1A3[[#This Row],[*DU/FU (EF A4) för valt drivmedel (schablon)]],TRUE,IF(KontrollTabell[[#This Row],[True/False A4 - Alt 2]]=\"Värde Behövs\",\"\",IF(ISBLANK(InputA1A3[[#This Row],[Omräkningsfaktor (A4), (vid behov, värde eller formel)]]),FALSE,TRUE)))))","v":""},{"$f":"IF(ISBLANK(InputA1A3[[#This Row],[EPD - EF A4]]),\"\",IF(ISBLANK(InputA1A3[[#This Row],[Omräkning till FU/DU (Skriv in värde, ej formel)]]),InputA1A3[[#This Row],[EPD - EF A4]]*InputA1A3[[#This Row],[Mängd A1A3]],InputA1A3[[#This Row],[Mängd A1A3]]*InputA1A3[[#This Row],[Omräkning till FU/DU (Skriv in värde, ej formel)]]*InputA1A3[[#This Row],[EPD - EF A4]]))","v":""},{"$f":"IFERROR(IF(KontrollTabell[[#This Row],[True/False A4 - Alt 2]]=\"\",\"\",IF(KontrollTabell[[#This Row],[True/False A4 Enhet - Alt2]]=TRUE,\nIF(ISNUMBER(InputA1A3[[#This Row],[Omräkningsfaktor (A4), (vid behov, värde eller formel)]]),InputA1A3[[#This Row],[Sträcka - totalt '[km'], (tur och retur, alla transporter)]]*InputA1A3[[#This Row],[(Bränsle-) Förbrukning per km]]/InputA1A3[[#This Row],[Omräkningsfaktor (A4), (vid behov, värde eller formel)]]*InputA1A3[[#This Row],[*EF (A4)\n'[kg CO₂-ekv.']]],\nInputA1A3[[#This Row],[Sträcka - totalt '[km'], (tur och retur, alla transporter)]]*InputA1A3[[#This Row],[(Bränsle-) Förbrukning per km]]*InputA1A3[[#This Row],[*EF (A4)\n'[kg CO₂-ekv.']]]),\"Sen då\")),0)","v":""},{"$f":"SUM(KontrollTabell[[#This Row],[A4 - Resultat alt 1 '[kg']]:[A4 - Alt 2 - beräkning utsläpp]])","v":0},{"$f":"IF(KontrollTabell[[#This Row],[Finns anläggningsdel-namn.]]=FALSE,\"\",IF(ISBLANK(InputA1A3[[#This Row],[EPD - EF A4]]),FALSE,TRUE))","v":""},{"$f":"IFERROR(IF(KontrollTabell[[#This Row],[True/False A5]]=FALSE(),\"Enheter\",IF(ISBLANK(InputA1A3[[#This Row],[Omräkningsfaktor (A5.2) (ange värde), (vid behov)]]),InputA1A3[[#This Row],[Mängd (A5.2)]]*InputA1A3[[#This Row],[*EF (A5.2)\n'[kg CO₂-ekv.']]],InputA1A3[[#This Row],[Mängd (A5.2)]]*InputA1A3[[#This Row],[*EF (A5.2)\n'[kg CO₂-ekv.']]]*InputA1A3[[#This Row],[Omräkningsfaktor (A5.2) (ange värde), (vid behov)]])),0)","v":0},{"$f":"IF(InputA1A3[[#This Row],[*DU/FU (EF A5.2)]]=\"\",\"\",IF(InputA1A3[[#This Row],[Enhet för mängd (A5.2)]]=\"\",\"Värde Behövs\",IF(OR(InputA1A3[[#This Row],[Enhet för mängd (A5.2)]]=InputA1A3[[#This Row],[*DU/FU (EF A5.2)]],AND(InputA1A3[[#This Row],[Enhet för mängd (A5.2)]]<>InputA1A3[[#This Row],[*DU/FU (EF A5.2)]],ISNUMBER(InputA1A3[[#This Row],[Omräkningsfaktor (A5.2) (ange värde), (vid behov)]]))),TRUE,FALSE)))","v":""},{"$f":"IF(OR(KontrollTabell[[#This Row],[Finns anläggningsdel-namn.]]=FALSE,KontrollTabell[[#This Row],[True/False A5]]=\"Värde Behövs\"),\"\",IF(InputA1A3[[#This Row],[Enhet för mängd (A5.2)]] = InputA1A3[[#This Row],[*DU/FU (EF A5.2)]], TRUE, FALSE))","v":""},{"$f":"IF(KontrollTabell[[#This Row],[Finns anläggningsdel-namn.]]=FALSE,\"\",IF(OR(ISBLANK(InputA1A3[[#This Row],[Kategori\n(egen kategorisering)]])=FALSE,ISBLANK(InputA1A3[[#This Row],[Anläggningsdel\n]]))=FALSE,TRUE,FALSE))","v":""},{"$f":"IF(ISBLANK(InputA1A3[[#This Row],[Anläggningsdel\n]]),\"\",IF(KontrollTabell[[#This Row],[TRUE/FALSE om kategori saknas.]] =FALSE,InputA1A3[[#This Row],[Kategori\n(egen kategorisering)]],\"Kategori saknas\"))","v":""}]
[null,null,null,null,null,null,null,null,null,{"$f":"IF(ISBLANK(InputA1A3[[#This Row],[Anläggningsdel\n]]),\"\",IF(OR(KontrollTabell[[#This Row],[True/False A1A3 Enhet]]=TRUE,KontrollTabell[[#This Row],[True/False A1A3 Enhet]]=\"Värde Behövs\",KontrollTabell[[#This Row],[True/False A1A3 Enhet]]=\"\"), \"\", InputA1A3[[#This Row],[FU/DU (EF A1A3)]] & \"/\" & InputA1A3[[#This Row],[Enhet Mängd (A1A3)]]))","v":""},null,null,null,null,{"$f":"IF(ISBLANK(InputA1A3[[#This Row],[EPD - EF A4]]),\"\",InputA1A3[[#This Row],[FU/DU (EF A1A3)]])","v":""},null,null,null,null,{"$f":"IFERROR(INDEX(TabellEFDrivmedel[],MATCH(InputA1A3[[#This Row],[Drivmedel (A4) (endast förval ur lista)]],TabellEFDrivmedel[Drivmedel],0),4),\"\")","v":""},null,null,null,{"$f":"IF(InputA1A3[[#This Row],[*DU/FU (EF A4) för valt drivmedel (schablon)]]=\"\",\"\",IF(OR(InputA1A3[[#This Row],[*DU/FU (EF A4) för valt drivmedel (schablon)]]=InputA1A3[[#This Row],[Enhet (bränsleförbrukning per km)]],KontrollTabell[[#This Row],[True/False A4 - Alt 2]]=\"Värde Behövs\"),\"\",InputA1A3[[#This Row],[Enhet (bränsleförbrukning per km)]]& \"/\" & InputA1A3[[#This Row],[*DU/FU (EF A4) för valt drivmedel (schablon)]]))","v":""},null,null,null,null,null,null,null,{"$f":"IFERROR(INDEX(TabellEFDrivmedel[],MATCH(InputA1A3[[#This Row],[Drivmedel (A5.2)]],TabellEFDrivmedel[Drivmedel],0),2),\"\")","v":""},{"$f":"IFERROR(INDEX(TabellEFDrivmedel[],MATCH(InputA1A3[[#This Row],[Drivmedel (A5.2)]],TabellEFDrivmedel[Drivmedel],0),4),\"\")","v":""},{"$f":"IF(OR(KontrollTabell[[#This Row],[True/False A5 Enhet]]=TRUE,KontrollTabell[[#This Row],[True/False A5 Enhet]]=\"\"), \"\", InputA1A3[[#This Row],[*DU/FU (EF A5.2)]] & \"/\" & InputA1A3[[#This Row],[Enhet för mängd (A5.2)]])","v":""},null,null,null,null,null,null,null,null,null,null,null,null,null,null,null,null,null,null,null,null,null,null,null,null,null,null,null,null,null,null,null,null,null,null,null,null,null,null,null,null,{"$f":"IF(ISBLANK(InputA1A3[[#This Row],[Anläggningsdel\n]]),FALSE,TRUE)","v":false},{"$f":"IF(ISBLANK(InputA1A3[[#This Row],[Anläggningsdel\n]]),\"\",IF(ISBLANK(InputA1A3[[#This Row],[Enhet Mängd (A1A3)]]),\"\",IF(ISBLANK(InputA1A3[[#This Row],[FU/DU (EF A1A3)]]),\"Värde Behövs\",IF(InputA1A3[[#This Row],[Enhet Mängd (A1A3)]] = InputA1A3[[#This Row],[FU/DU (EF A1A3)]], TRUE, FALSE))))","v":""},{"$f":"IF(KontrollTabell[[#This Row],[Finns anläggningsdel-namn.]]=FALSE,\"\",(IF(KontrollTabell[[#This Row],[True/False A1A3 Enhet]]=TRUE,TRUE,IF(OR(KontrollTabell[[#This Row],[True/False A1A3 Enhet]]=\"Värde Behövs\",(KontrollTabell[[#This Row],[True/False A1A3 Enhet]]=\"\")),\"\",IF(ISBLANK(InputA1A3[[#This Row],[Omräkning till FU/DU (Skriv in värde, ej formel)]]),FALSE,TRUE)))))","v":""},{"$f":"IF(KontrollTabell[[#This Row],[Finns anläggningsdel-namn.]]=FALSE,,IF(KontrollTabell[[#This Row],[True/False A1A3 Enhet]]=TRUE,InputA1A3[[#This Row],[Mängd A1A3]]*InputA1A3[[#This Row],[EF A1A3 '[kg CO₂-ekv.']]],IF(KontrollTabell[[#This Row],[True/False A1A3 om A1A3 kan beräknas]]=TRUE,InputA1A3[[#This Row],[Mängd A1A3]]*InputA1A3[[#This Row],[EF A1A3 '[kg CO₂-ekv.']]]*InputA1A3[[#This Row],[Omräkning till FU/DU (Skriv in värde, ej formel)]],0)))","v":0},{"$f":"IF(ISBLANK(InputA1A3[[#This Row],[Anläggningsdel\n]]),\"\",IF(ISBLANK(InputA1A3[[#This Row],[EPD - EF A4]]),FALSE,TRUE))","v":""},{"$f":"IF(InputA1A3[[#This Row],[*DU/FU (EF A4) för valt drivmedel (schablon)]]=\"\",\"\",IF(InputA1A3[[#This Row],[Enhet (bränsleförbrukning per km)]]=\"\",\"Värde Behövs\",IF(OR(InputA1A3[[#This Row],[Enhet (bränsleförbrukning per km)]]=InputA1A3[[#This Row],[*DU/FU (EF A4) för valt drivmedel (schablon)]],AND(InputA1A3[[#This Row],[Enhet (bränsleförbrukning per km)]]<>InputA1A3[[#This Row],[*DU/FU (EF A4) för valt drivmedel (schablon)]],ISNUMBER(InputA1A3[[#This Row],[Omräkningsfaktor (A4), (vid behov, värde eller formel)]]))),TRUE(),FALSE())))","v":""},{"$f":"IF(KontrollTabell[[#This Row],[Finns anläggningsdel-namn.]]=FALSE,\"\",(IF(InputA1A3[[#This Row],[Enhet (bränsleförbrukning per km)]] =InputA1A3[[#This Row],[*DU/FU (EF A4) för valt drivmedel (schablon)]],TRUE,IF(KontrollTabell[[#This Row],[True/False A4 - Alt 2]]=\"Värde Behövs\",\"\",IF(ISBLANK(InputA1A3[[#This Row],[Omräkningsfaktor (A4), (vid behov, värde eller formel)]]),FALSE,TRUE)))))","v":""},{"$f":"IF(ISBLANK(InputA1A3[[#This Row],[EPD - EF A4]]),\"\",IF(ISBLANK(InputA1A3[[#This Row],[Omräkning till FU/DU (Skriv in värde, ej formel)]]),InputA1A3[[#This Row],[EPD - EF A4]]*InputA1A3[[#This Row],[Mängd A1A3]],InputA1A3[[#This Row],[Mängd A1A3]]*InputA1A3[[#This Row],[Omräkning till FU/DU (Skriv in värde, ej formel)]]*InputA1A3[[#This Row],[EPD - EF A4]]))","v":""},{"$f":"IFERROR(IF(KontrollTabell[[#This Row],[True/False A4 - Alt 2]]=\"\",\"\",IF(KontrollTabell[[#This Row],[True/False A4 Enhet - Alt2]]=TRUE,\nIF(ISNUMBER(InputA1A3[[#This Row],[Omräkningsfaktor (A4), (vid behov, värde eller formel)]]),InputA1A3[[#This Row],[Sträcka - totalt '[km'], (tur och retur, alla transporter)]]*InputA1A3[[#This Row],[(Bränsle-) Förbrukning per km]]/InputA1A3[[#This Row],[Omräkningsfaktor (A4), (vid behov, värde eller formel)]]*InputA1A3[[#This Row],[*EF (A4)\n'[kg CO₂-ekv.']]],\nInputA1A3[[#This Row],[Sträcka - totalt '[km'], (tur och retur, alla transporter)]]*InputA1A3[[#This Row],[(Bränsle-) Förbrukning per km]]*InputA1A3[[#This Row],[*EF (A4)\n'[kg CO₂-ekv.']]]),\"Sen då\")),0)","v":""},{"$f":"SUM(KontrollTabell[[#This Row],[A4 - Resultat alt 1 '[kg']]:[A4 - Alt 2 - beräkning utsläpp]])","v":0},{"$f":"IF(KontrollTabell[[#This Row],[Finns anläggningsdel-namn.]]=FALSE,\"\",IF(ISBLANK(InputA1A3[[#This Row],[EPD - EF A4]]),FALSE,TRUE))","v":""},{"$f":"IFERROR(IF(KontrollTabell[[#This Row],[True/False A5]]=FALSE(),\"Enheter\",IF(ISBLANK(InputA1A3[[#This Row],[Omräkningsfaktor (A5.2) (ange värde), (vid behov)]]),InputA1A3[[#This Row],[Mängd (A5.2)]]*InputA1A3[[#This Row],[*EF (A5.2)\n'[kg CO₂-ekv.']]],InputA1A3[[#This Row],[Mängd (A5.2)]]*InputA1A3[[#This Row],[*EF (A5.2)\n'[kg CO₂-ekv.']]]*InputA1A3[[#This Row],[Omräkningsfaktor (A5.2) (ange värde), (vid behov)]])),0)","v":0},{"$f":"IF(InputA1A3[[#This Row],[*DU/FU (EF A5.2)]]=\"\",\"\",IF(InputA1A3[[#This Row],[Enhet för mängd (A5.2)]]=\"\",\"Värde Behövs\",IF(OR(InputA1A3[[#This Row],[Enhet för mängd (A5.2)]]=InputA1A3[[#This Row],[*DU/FU (EF A5.2)]],AND(InputA1A3[[#This Row],[Enhet för mängd (A5.2)]]<>InputA1A3[[#This Row],[*DU/FU (EF A5.2)]],ISNUMBER(InputA1A3[[#This Row],[Omräkningsfaktor (A5.2) (ange värde), (vid behov)]]))),TRUE,FALSE)))","v":""},{"$f":"IF(OR(KontrollTabell[[#This Row],[Finns anläggningsdel-namn.]]=FALSE,KontrollTabell[[#This Row],[True/False A5]]=\"Värde Behövs\"),\"\",IF(InputA1A3[[#This Row],[Enhet för mängd (A5.2)]] = InputA1A3[[#This Row],[*DU/FU (EF A5.2)]], TRUE, FALSE))","v":""},{"$f":"IF(KontrollTabell[[#This Row],[Finns anläggningsdel-namn.]]=FALSE,\"\",IF(OR(ISBLANK(InputA1A3[[#This Row],[Kategori\n(egen kategorisering)]])=FALSE,ISBLANK(InputA1A3[[#This Row],[Anläggningsdel\n]]))=FALSE,TRUE,FALSE))","v":""},{"$f":"IF(ISBLANK(InputA1A3[[#This Row],[Anläggningsdel\n]]),\"\",IF(KontrollTabell[[#This Row],[TRUE/FALSE om kategori saknas.]] =FALSE,InputA1A3[[#This Row],[Kategori\n(egen kategorisering)]],\"Kategori saknas\"))","v":""}]
[null,null,null,null,null,null,null,null,null,{"$f":"IF(ISBLANK(InputA1A3[[#This Row],[Anläggningsdel\n]]),\"\",IF(OR(KontrollTabell[[#This Row],[True/False A1A3 Enhet]]=TRUE,KontrollTabell[[#This Row],[True/False A1A3 Enhet]]=\"Värde Behövs\",KontrollTabell[[#This Row],[True/False A1A3 Enhet]]=\"\"), \"\", InputA1A3[[#This Row],[FU/DU (EF A1A3)]] & \"/\" & InputA1A3[[#This Row],[Enhet Mängd (A1A3)]]))","v":""},null,null,null,null,{"$f":"IF(ISBLANK(InputA1A3[[#This Row],[EPD - EF A4]]),\"\",InputA1A3[[#This Row],[FU/DU (EF A1A3)]])","v":""},null,null,null,null,{"$f":"IFERROR(INDEX(TabellEFDrivmedel[],MATCH(InputA1A3[[#This Row],[Drivmedel (A4) (endast förval ur lista)]],TabellEFDrivmedel[Drivmedel],0),4),\"\")","v":""},null,null,null,{"$f":"IF(InputA1A3[[#This Row],[*DU/FU (EF A4) för valt drivmedel (schablon)]]=\"\",\"\",IF(OR(InputA1A3[[#This Row],[*DU/FU (EF A4) för valt drivmedel (schablon)]]=InputA1A3[[#This Row],[Enhet (bränsleförbrukning per km)]],KontrollTabell[[#This Row],[True/False A4 - Alt 2]]=\"Värde Behövs\"),\"\",InputA1A3[[#This Row],[Enhet (bränsleförbrukning per km)]]& \"/\" & InputA1A3[[#This Row],[*DU/FU (EF A4) för valt drivmedel (schablon)]]))","v":""},null,null,null,null,null,null,null,{"$f":"IFERROR(INDEX(TabellEFDrivmedel[],MATCH(InputA1A3[[#This Row],[Drivmedel (A5.2)]],TabellEFDrivmedel[Drivmedel],0),2),\"\")","v":""},{"$f":"IFERROR(INDEX(TabellEFDrivmedel[],MATCH(InputA1A3[[#This Row],[Drivmedel (A5.2)]],TabellEFDrivmedel[Drivmedel],0),4),\"\")","v":""},{"$f":"IF(OR(KontrollTabell[[#This Row],[True/False A5 Enhet]]=TRUE,KontrollTabell[[#This Row],[True/False A5 Enhet]]=\"\"), \"\", InputA1A3[[#This Row],[*DU/FU (EF A5.2)]] & \"/\" & InputA1A3[[#This Row],[Enhet för mängd (A5.2)]])","v":""},null,null,null,null,null,null,null,null,null,null,null,null,null,null,null,null,null,null,null,null,null,null,null,null,null,null,null,null,null,null,null,null,null,null,null,null,null,null,null,null,{"$f":"IF(ISBLANK(InputA1A3[[#This Row],[Anläggningsdel\n]]),FALSE,TRUE)","v":false},{"$f":"IF(ISBLANK(InputA1A3[[#This Row],[Anläggningsdel\n]]),\"\",IF(ISBLANK(InputA1A3[[#This Row],[Enhet Mängd (A1A3)]]),\"\",IF(ISBLANK(InputA1A3[[#This Row],[FU/DU (EF A1A3)]]),\"Värde Behövs\",IF(InputA1A3[[#This Row],[Enhet Mängd (A1A3)]] = InputA1A3[[#This Row],[FU/DU (EF A1A3)]], TRUE, FALSE))))","v":""},{"$f":"IF(KontrollTabell[[#This Row],[Finns anläggningsdel-namn.]]=FALSE,\"\",(IF(KontrollTabell[[#This Row],[True/False A1A3 Enhet]]=TRUE,TRUE,IF(OR(KontrollTabell[[#This Row],[True/False A1A3 Enhet]]=\"Värde Behövs\",(KontrollTabell[[#This Row],[True/False A1A3 Enhet]]=\"\")),\"\",IF(ISBLANK(InputA1A3[[#This Row],[Omräkning till FU/DU (Skriv in värde, ej formel)]]),FALSE,TRUE)))))","v":""},{"$f":"IF(KontrollTabell[[#This Row],[Finns anläggningsdel-namn.]]=FALSE,,IF(KontrollTabell[[#This Row],[True/False A1A3 Enhet]]=TRUE,InputA1A3[[#This Row],[Mängd A1A3]]*InputA1A3[[#This Row],[EF A1A3 '[kg CO₂-ekv.']]],IF(KontrollTabell[[#This Row],[True/False A1A3 om A1A3 kan beräknas]]=TRUE,InputA1A3[[#This Row],[Mängd A1A3]]*InputA1A3[[#This Row],[EF A1A3 '[kg CO₂-ekv.']]]*InputA1A3[[#This Row],[Omräkning till FU/DU (Skriv in värde, ej formel)]],0)))","v":0},{"$f":"IF(ISBLANK(InputA1A3[[#This Row],[Anläggningsdel\n]]),\"\",IF(ISBLANK(InputA1A3[[#This Row],[EPD - EF A4]]),FALSE,TRUE))","v":""},{"$f":"IF(InputA1A3[[#This Row],[*DU/FU (EF A4) för valt drivmedel (schablon)]]=\"\",\"\",IF(InputA1A3[[#This Row],[Enhet (bränsleförbrukning per km)]]=\"\",\"Värde Behövs\",IF(OR(InputA1A3[[#This Row],[Enhet (bränsleförbrukning per km)]]=InputA1A3[[#This Row],[*DU/FU (EF A4) för valt drivmedel (schablon)]],AND(InputA1A3[[#This Row],[Enhet (bränsleförbrukning per km)]]<>InputA1A3[[#This Row],[*DU/FU (EF A4) för valt drivmedel (schablon)]],ISNUMBER(InputA1A3[[#This Row],[Omräkningsfaktor (A4), (vid behov, värde eller formel)]]))),TRUE(),FALSE())))","v":""},{"$f":"IF(KontrollTabell[[#This Row],[Finns anläggningsdel-namn.]]=FALSE,\"\",(IF(InputA1A3[[#This Row],[Enhet (bränsleförbrukning per km)]] =InputA1A3[[#This Row],[*DU/FU (EF A4) för valt drivmedel (schablon)]],TRUE,IF(KontrollTabell[[#This Row],[True/False A4 - Alt 2]]=\"Värde Behövs\",\"\",IF(ISBLANK(InputA1A3[[#This Row],[Omräkningsfaktor (A4), (vid behov, värde eller formel)]]),FALSE,TRUE)))))","v":""},{"$f":"IF(ISBLANK(InputA1A3[[#This Row],[EPD - EF A4]]),\"\",IF(ISBLANK(InputA1A3[[#This Row],[Omräkning till FU/DU (Skriv in värde, ej formel)]]),InputA1A3[[#This Row],[EPD - EF A4]]*InputA1A3[[#This Row],[Mängd A1A3]],InputA1A3[[#This Row],[Mängd A1A3]]*InputA1A3[[#This Row],[Omräkning till FU/DU (Skriv in värde, ej formel)]]*InputA1A3[[#This Row],[EPD - EF A4]]))","v":""},{"$f":"IFERROR(IF(KontrollTabell[[#This Row],[True/False A4 - Alt 2]]=\"\",\"\",IF(KontrollTabell[[#This Row],[True/False A4 Enhet - Alt2]]=TRUE,\nIF(ISNUMBER(InputA1A3[[#This Row],[Omräkningsfaktor (A4), (vid behov, värde eller formel)]]),InputA1A3[[#This Row],[Sträcka - totalt '[km'], (tur och retur, alla transporter)]]*InputA1A3[[#This Row],[(Bränsle-) Förbrukning per km]]/InputA1A3[[#This Row],[Omräkningsfaktor (A4), (vid behov, värde eller formel)]]*InputA1A3[[#This Row],[*EF (A4)\n'[kg CO₂-ekv.']]],\nInputA1A3[[#This Row],[Sträcka - totalt '[km'], (tur och retur, alla transporter)]]*InputA1A3[[#This Row],[(Bränsle-) Förbrukning per km]]*InputA1A3[[#This Row],[*EF (A4)\n'[kg CO₂-ekv.']]]),\"Sen då\")),0)","v":""},{"$f":"SUM(KontrollTabell[[#This Row],[A4 - Resultat alt 1 '[kg']]:[A4 - Alt 2 - beräkning utsläpp]])","v":0},{"$f":"IF(KontrollTabell[[#This Row],[Finns anläggningsdel-namn.]]=FALSE,\"\",IF(ISBLANK(InputA1A3[[#This Row],[EPD - EF A4]]),FALSE,TRUE))","v":""},{"$f":"IFERROR(IF(KontrollTabell[[#This Row],[True/False A5]]=FALSE(),\"Enheter\",IF(ISBLANK(InputA1A3[[#This Row],[Omräkningsfaktor (A5.2) (ange värde), (vid behov)]]),InputA1A3[[#This Row],[Mängd (A5.2)]]*InputA1A3[[#This Row],[*EF (A5.2)\n'[kg CO₂-ekv.']]],InputA1A3[[#This Row],[Mängd (A5.2)]]*InputA1A3[[#This Row],[*EF (A5.2)\n'[kg CO₂-ekv.']]]*InputA1A3[[#This Row],[Omräkningsfaktor (A5.2) (ange värde), (vid behov)]])),0)","v":0},{"$f":"IF(InputA1A3[[#This Row],[*DU/FU (EF A5.2)]]=\"\",\"\",IF(InputA1A3[[#This Row],[Enhet för mängd (A5.2)]]=\"\",\"Värde Behövs\",IF(OR(InputA1A3[[#This Row],[Enhet för mängd (A5.2)]]=InputA1A3[[#This Row],[*DU/FU (EF A5.2)]],AND(InputA1A3[[#This Row],[Enhet för mängd (A5.2)]]<>InputA1A3[[#This Row],[*DU/FU (EF A5.2)]],ISNUMBER(InputA1A3[[#This Row],[Omräkningsfaktor (A5.2) (ange värde), (vid behov)]]))),TRUE,FALSE)))","v":""},{"$f":"IF(OR(KontrollTabell[[#This Row],[Finns anläggningsdel-namn.]]=FALSE,KontrollTabell[[#This Row],[True/False A5]]=\"Värde Behövs\"),\"\",IF(InputA1A3[[#This Row],[Enhet för mängd (A5.2)]] = InputA1A3[[#This Row],[*DU/FU (EF A5.2)]], TRUE, FALSE))","v":""},{"$f":"IF(KontrollTabell[[#This Row],[Finns anläggningsdel-namn.]]=FALSE,\"\",IF(OR(ISBLANK(InputA1A3[[#This Row],[Kategori\n(egen kategorisering)]])=FALSE,ISBLANK(InputA1A3[[#This Row],[Anläggningsdel\n]]))=FALSE,TRUE,FALSE))","v":""},{"$f":"IF(ISBLANK(InputA1A3[[#This Row],[Anläggningsdel\n]]),\"\",IF(KontrollTabell[[#This Row],[TRUE/FALSE om kategori saknas.]] =FALSE,InputA1A3[[#This Row],[Kategori\n(egen kategorisering)]],\"Kategori saknas\"))","v":""}]
[null,null,null,null,null,null,null,null,null,{"$f":"IF(ISBLANK(InputA1A3[[#This Row],[Anläggningsdel\n]]),\"\",IF(OR(KontrollTabell[[#This Row],[True/False A1A3 Enhet]]=TRUE,KontrollTabell[[#This Row],[True/False A1A3 Enhet]]=\"Värde Behövs\",KontrollTabell[[#This Row],[True/False A1A3 Enhet]]=\"\"), \"\", InputA1A3[[#This Row],[FU/DU (EF A1A3)]] & \"/\" & InputA1A3[[#This Row],[Enhet Mängd (A1A3)]]))","v":""},null,null,null,null,{"$f":"IF(ISBLANK(InputA1A3[[#This Row],[EPD - EF A4]]),\"\",InputA1A3[[#This Row],[FU/DU (EF A1A3)]])","v":""},null,null,null,null,{"$f":"IFERROR(INDEX(TabellEFDrivmedel[],MATCH(InputA1A3[[#This Row],[Drivmedel (A4) (endast förval ur lista)]],TabellEFDrivmedel[Drivmedel],0),4),\"\")","v":""},null,null,null,{"$f":"IF(InputA1A3[[#This Row],[*DU/FU (EF A4) för valt drivmedel (schablon)]]=\"\",\"\",IF(OR(InputA1A3[[#This Row],[*DU/FU (EF A4) för valt drivmedel (schablon)]]=InputA1A3[[#This Row],[Enhet (bränsleförbrukning per km)]],KontrollTabell[[#This Row],[True/False A4 - Alt 2]]=\"Värde Behövs\"),\"\",InputA1A3[[#This Row],[Enhet (bränsleförbrukning per km)]]& \"/\" & InputA1A3[[#This Row],[*DU/FU (EF A4) för valt drivmedel (schablon)]]))","v":""},null,null,null,null,null,null,null,{"$f":"IFERROR(INDEX(TabellEFDrivmedel[],MATCH(InputA1A3[[#This Row],[Drivmedel (A5.2)]],TabellEFDrivmedel[Drivmedel],0),2),\"\")","v":""},{"$f":"IFERROR(INDEX(TabellEFDrivmedel[],MATCH(InputA1A3[[#This Row],[Drivmedel (A5.2)]],TabellEFDrivmedel[Drivmedel],0),4),\"\")","v":""},{"$f":"IF(OR(KontrollTabell[[#This Row],[True/False A5 Enhet]]=TRUE,KontrollTabell[[#This Row],[True/False A5 Enhet]]=\"\"), \"\", InputA1A3[[#This Row],[*DU/FU (EF A5.2)]] & \"/\" & InputA1A3[[#This Row],[Enhet för mängd (A5.2)]])","v":""},null,null,null,null,null,null,null,null,null,null,null,null,null,null,null,null,null,null,null,null,null,null,null,null,null,null,null,null,null,null,null,null,null,null,null,null,null,null,null,null,{"$f":"IF(ISBLANK(InputA1A3[[#This Row],[Anläggningsdel\n]]),FALSE,TRUE)","v":false},{"$f":"IF(ISBLANK(InputA1A3[[#This Row],[Anläggningsdel\n]]),\"\",IF(ISBLANK(InputA1A3[[#This Row],[Enhet Mängd (A1A3)]]),\"\",IF(ISBLANK(InputA1A3[[#This Row],[FU/DU (EF A1A3)]]),\"Värde Behövs\",IF(InputA1A3[[#This Row],[Enhet Mängd (A1A3)]] = InputA1A3[[#This Row],[FU/DU (EF A1A3)]], TRUE, FALSE))))","v":""},{"$f":"IF(KontrollTabell[[#This Row],[Finns anläggningsdel-namn.]]=FALSE,\"\",(IF(KontrollTabell[[#This Row],[True/False A1A3 Enhet]]=TRUE,TRUE,IF(OR(KontrollTabell[[#This Row],[True/False A1A3 Enhet]]=\"Värde Behövs\",(KontrollTabell[[#This Row],[True/False A1A3 Enhet]]=\"\")),\"\",IF(ISBLANK(InputA1A3[[#This Row],[Omräkning till FU/DU (Skriv in värde, ej formel)]]),FALSE,TRUE)))))","v":""},{"$f":"IF(KontrollTabell[[#This Row],[Finns anläggningsdel-namn.]]=FALSE,,IF(KontrollTabell[[#This Row],[True/False A1A3 Enhet]]=TRUE,InputA1A3[[#This Row],[Mängd A1A3]]*InputA1A3[[#This Row],[EF A1A3 '[kg CO₂-ekv.']]],IF(KontrollTabell[[#This Row],[True/False A1A3 om A1A3 kan beräknas]]=TRUE,InputA1A3[[#This Row],[Mängd A1A3]]*InputA1A3[[#This Row],[EF A1A3 '[kg CO₂-ekv.']]]*InputA1A3[[#This Row],[Omräkning till FU/DU (Skriv in värde, ej formel)]],0)))","v":0},{"$f":"IF(ISBLANK(InputA1A3[[#This Row],[Anläggningsdel\n]]),\"\",IF(ISBLANK(InputA1A3[[#This Row],[EPD - EF A4]]),FALSE,TRUE))","v":""},{"$f":"IF(InputA1A3[[#This Row],[*DU/FU (EF A4) för valt drivmedel (schablon)]]=\"\",\"\",IF(InputA1A3[[#This Row],[Enhet (bränsleförbrukning per km)]]=\"\",\"Värde Behövs\",IF(OR(InputA1A3[[#This Row],[Enhet (bränsleförbrukning per km)]]=InputA1A3[[#This Row],[*DU/FU (EF A4) för valt drivmedel (schablon)]],AND(InputA1A3[[#This Row],[Enhet (bränsleförbrukning per km)]]<>InputA1A3[[#This Row],[*DU/FU (EF A4) för valt drivmedel (schablon)]],ISNUMBER(InputA1A3[[#This Row],[Omräkningsfaktor (A4), (vid behov, värde eller formel)]]))),TRUE(),FALSE())))","v":""},{"$f":"IF(KontrollTabell[[#This Row],[Finns anläggningsdel-namn.]]=FALSE,\"\",(IF(InputA1A3[[#This Row],[Enhet (bränsleförbrukning per km)]] =InputA1A3[[#This Row],[*DU/FU (EF A4) för valt drivmedel (schablon)]],TRUE,IF(KontrollTabell[[#This Row],[True/False A4 - Alt 2]]=\"Värde Behövs\",\"\",IF(ISBLANK(InputA1A3[[#This Row],[Omräkningsfaktor (A4), (vid behov, värde eller formel)]]),FALSE,TRUE)))))","v":""},{"$f":"IF(ISBLANK(InputA1A3[[#This Row],[EPD - EF A4]]),\"\",IF(ISBLANK(InputA1A3[[#This Row],[Omräkning till FU/DU (Skriv in värde, ej formel)]]),InputA1A3[[#This Row],[EPD - EF A4]]*InputA1A3[[#This Row],[Mängd A1A3]],InputA1A3[[#This Row],[Mängd A1A3]]*InputA1A3[[#This Row],[Omräkning till FU/DU (Skriv in värde, ej formel)]]*InputA1A3[[#This Row],[EPD - EF A4]]))","v":""},{"$f":"IFERROR(IF(KontrollTabell[[#This Row],[True/False A4 - Alt 2]]=\"\",\"\",IF(KontrollTabell[[#This Row],[True/False A4 Enhet - Alt2]]=TRUE,\nIF(ISNUMBER(InputA1A3[[#This Row],[Omräkningsfaktor (A4), (vid behov, värde eller formel)]]),InputA1A3[[#This Row],[Sträcka - totalt '[km'], (tur och retur, alla transporter)]]*InputA1A3[[#This Row],[(Bränsle-) Förbrukning per km]]/InputA1A3[[#This Row],[Omräkningsfaktor (A4), (vid behov, värde eller formel)]]*InputA1A3[[#This Row],[*EF (A4)\n'[kg CO₂-ekv.']]],\nInputA1A3[[#This Row],[Sträcka - totalt '[km'], (tur och retur, alla transporter)]]*InputA1A3[[#This Row],[(Bränsle-) Förbrukning per km]]*InputA1A3[[#This Row],[*EF (A4)\n'[kg CO₂-ekv.']]]),\"Sen då\")),0)","v":""},{"$f":"SUM(KontrollTabell[[#This Row],[A4 - Resultat alt 1 '[kg']]:[A4 - Alt 2 - beräkning utsläpp]])","v":0},{"$f":"IF(KontrollTabell[[#This Row],[Finns anläggningsdel-namn.]]=FALSE,\"\",IF(ISBLANK(InputA1A3[[#This Row],[EPD - EF A4]]),FALSE,TRUE))","v":""},{"$f":"IFERROR(IF(KontrollTabell[[#This Row],[True/False A5]]=FALSE(),\"Enheter\",IF(ISBLANK(InputA1A3[[#This Row],[Omräkningsfaktor (A5.2) (ange värde), (vid behov)]]),InputA1A3[[#This Row],[Mängd (A5.2)]]*InputA1A3[[#This Row],[*EF (A5.2)\n'[kg CO₂-ekv.']]],InputA1A3[[#This Row],[Mängd (A5.2)]]*InputA1A3[[#This Row],[*EF (A5.2)\n'[kg CO₂-ekv.']]]*InputA1A3[[#This Row],[Omräkningsfaktor (A5.2) (ange värde), (vid behov)]])),0)","v":0},{"$f":"IF(InputA1A3[[#This Row],[*DU/FU (EF A5.2)]]=\"\",\"\",IF(InputA1A3[[#This Row],[Enhet för mängd (A5.2)]]=\"\",\"Värde Behövs\",IF(OR(InputA1A3[[#This Row],[Enhet för mängd (A5.2)]]=InputA1A3[[#This Row],[*DU/FU (EF A5.2)]],AND(InputA1A3[[#This Row],[Enhet för mängd (A5.2)]]<>InputA1A3[[#This Row],[*DU/FU (EF A5.2)]],ISNUMBER(InputA1A3[[#This Row],[Omräkningsfaktor (A5.2) (ange värde), (vid behov)]]))),TRUE,FALSE)))","v":""},{"$f":"IF(OR(KontrollTabell[[#This Row],[Finns anläggningsdel-namn.]]=FALSE,KontrollTabell[[#This Row],[True/False A5]]=\"Värde Behövs\"),\"\",IF(InputA1A3[[#This Row],[Enhet för mängd (A5.2)]] = InputA1A3[[#This Row],[*DU/FU (EF A5.2)]], TRUE, FALSE))","v":""},{"$f":"IF(KontrollTabell[[#This Row],[Finns anläggningsdel-namn.]]=FALSE,\"\",IF(OR(ISBLANK(InputA1A3[[#This Row],[Kategori\n(egen kategorisering)]])=FALSE,ISBLANK(InputA1A3[[#This Row],[Anläggningsdel\n]]))=FALSE,TRUE,FALSE))","v":""},{"$f":"IF(ISBLANK(InputA1A3[[#This Row],[Anläggningsdel\n]]),\"\",IF(KontrollTabell[[#This Row],[TRUE/FALSE om kategori saknas.]] =FALSE,InputA1A3[[#This Row],[Kategori\n(egen kategorisering)]],\"Kategori saknas\"))","v":""}]
[null,null,null,null,null,null,null,null,null,{"$f":"IF(ISBLANK(InputA1A3[[#This Row],[Anläggningsdel\n]]),\"\",IF(OR(KontrollTabell[[#This Row],[True/False A1A3 Enhet]]=TRUE,KontrollTabell[[#This Row],[True/False A1A3 Enhet]]=\"Värde Behövs\",KontrollTabell[[#This Row],[True/False A1A3 Enhet]]=\"\"), \"\", InputA1A3[[#This Row],[FU/DU (EF A1A3)]] & \"/\" & InputA1A3[[#This Row],[Enhet Mängd (A1A3)]]))","v":""},null,null,null,null,{"$f":"IF(ISBLANK(InputA1A3[[#This Row],[EPD - EF A4]]),\"\",InputA1A3[[#This Row],[FU/DU (EF A1A3)]])","v":""},null,null,null,null,{"$f":"IFERROR(INDEX(TabellEFDrivmedel[],MATCH(InputA1A3[[#This Row],[Drivmedel (A4) (endast förval ur lista)]],TabellEFDrivmedel[Drivmedel],0),4),\"\")","v":""},null,null,null,{"$f":"IF(InputA1A3[[#This Row],[*DU/FU (EF A4) för valt drivmedel (schablon)]]=\"\",\"\",IF(OR(InputA1A3[[#This Row],[*DU/FU (EF A4) för valt drivmedel (schablon)]]=InputA1A3[[#This Row],[Enhet (bränsleförbrukning per km)]],KontrollTabell[[#This Row],[True/False A4 - Alt 2]]=\"Värde Behövs\"),\"\",InputA1A3[[#This Row],[Enhet (bränsleförbrukning per km)]]& \"/\" & InputA1A3[[#This Row],[*DU/FU (EF A4) för valt drivmedel (schablon)]]))","v":""},null,null,null,null,null,null,null,{"$f":"IFERROR(INDEX(TabellEFDrivmedel[],MATCH(InputA1A3[[#This Row],[Drivmedel (A5.2)]],TabellEFDrivmedel[Drivmedel],0),2),\"\")","v":""},{"$f":"IFERROR(INDEX(TabellEFDrivmedel[],MATCH(InputA1A3[[#This Row],[Drivmedel (A5.2)]],TabellEFDrivmedel[Drivmedel],0),4),\"\")","v":""},{"$f":"IF(OR(KontrollTabell[[#This Row],[True/False A5 Enhet]]=TRUE,KontrollTabell[[#This Row],[True/False A5 Enhet]]=\"\"), \"\", InputA1A3[[#This Row],[*DU/FU (EF A5.2)]] & \"/\" & InputA1A3[[#This Row],[Enhet för mängd (A5.2)]])","v":""},null,null,null,null,null,null,null,null,null,null,null,null,null,null,null,null,null,null,null,null,null,null,null,null,null,null,null,null,null,null,null,null,null,null,null,null,null,null,null,null,{"$f":"IF(ISBLANK(InputA1A3[[#This Row],[Anläggningsdel\n]]),FALSE,TRUE)","v":false},{"$f":"IF(ISBLANK(InputA1A3[[#This Row],[Anläggningsdel\n]]),\"\",IF(ISBLANK(InputA1A3[[#This Row],[Enhet Mängd (A1A3)]]),\"\",IF(ISBLANK(InputA1A3[[#This Row],[FU/DU (EF A1A3)]]),\"Värde Behövs\",IF(InputA1A3[[#This Row],[Enhet Mängd (A1A3)]] = InputA1A3[[#This Row],[FU/DU (EF A1A3)]], TRUE, FALSE))))","v":""},{"$f":"IF(KontrollTabell[[#This Row],[Finns anläggningsdel-namn.]]=FALSE,\"\",(IF(KontrollTabell[[#This Row],[True/False A1A3 Enhet]]=TRUE,TRUE,IF(OR(KontrollTabell[[#This Row],[True/False A1A3 Enhet]]=\"Värde Behövs\",(KontrollTabell[[#This Row],[True/False A1A3 Enhet]]=\"\")),\"\",IF(ISBLANK(InputA1A3[[#This Row],[Omräkning till FU/DU (Skriv in värde, ej formel)]]),FALSE,TRUE)))))","v":""},{"$f":"IF(KontrollTabell[[#This Row],[Finns anläggningsdel-namn.]]=FALSE,,IF(KontrollTabell[[#This Row],[True/False A1A3 Enhet]]=TRUE,InputA1A3[[#This Row],[Mängd A1A3]]*InputA1A3[[#This Row],[EF A1A3 '[kg CO₂-ekv.']]],IF(KontrollTabell[[#This Row],[True/False A1A3 om A1A3 kan beräknas]]=TRUE,InputA1A3[[#This Row],[Mängd A1A3]]*InputA1A3[[#This Row],[EF A1A3 '[kg CO₂-ekv.']]]*InputA1A3[[#This Row],[Omräkning till FU/DU (Skriv in värde, ej formel)]],0)))","v":0},{"$f":"IF(ISBLANK(InputA1A3[[#This Row],[Anläggningsdel\n]]),\"\",IF(ISBLANK(InputA1A3[[#This Row],[EPD - EF A4]]),FALSE,TRUE))","v":""},{"$f":"IF(InputA1A3[[#This Row],[*DU/FU (EF A4) för valt drivmedel (schablon)]]=\"\",\"\",IF(InputA1A3[[#This Row],[Enhet (bränsleförbrukning per km)]]=\"\",\"Värde Behövs\",IF(OR(InputA1A3[[#This Row],[Enhet (bränsleförbrukning per km)]]=InputA1A3[[#This Row],[*DU/FU (EF A4) för valt drivmedel (schablon)]],AND(InputA1A3[[#This Row],[Enhet (bränsleförbrukning per km)]]<>InputA1A3[[#This Row],[*DU/FU (EF A4) för valt drivmedel (schablon)]],ISNUMBER(InputA1A3[[#This Row],[Omräkningsfaktor (A4), (vid behov, värde eller formel)]]))),TRUE(),FALSE())))","v":""},{"$f":"IF(KontrollTabell[[#This Row],[Finns anläggningsdel-namn.]]=FALSE,\"\",(IF(InputA1A3[[#This Row],[Enhet (bränsleförbrukning per km)]] =InputA1A3[[#This Row],[*DU/FU (EF A4) för valt drivmedel (schablon)]],TRUE,IF(KontrollTabell[[#This Row],[True/False A4 - Alt 2]]=\"Värde Behövs\",\"\",IF(ISBLANK(InputA1A3[[#This Row],[Omräkningsfaktor (A4), (vid behov, värde eller formel)]]),FALSE,TRUE)))))","v":""},{"$f":"IF(ISBLANK(InputA1A3[[#This Row],[EPD - EF A4]]),\"\",IF(ISBLANK(InputA1A3[[#This Row],[Omräkning till FU/DU (Skriv in värde, ej formel)]]),InputA1A3[[#This Row],[EPD - EF A4]]*InputA1A3[[#This Row],[Mängd A1A3]],InputA1A3[[#This Row],[Mängd A1A3]]*InputA1A3[[#This Row],[Omräkning till FU/DU (Skriv in värde, ej formel)]]*InputA1A3[[#This Row],[EPD - EF A4]]))","v":""},{"$f":"IFERROR(IF(KontrollTabell[[#This Row],[True/False A4 - Alt 2]]=\"\",\"\",IF(KontrollTabell[[#This Row],[True/False A4 Enhet - Alt2]]=TRUE,\nIF(ISNUMBER(InputA1A3[[#This Row],[Omräkningsfaktor (A4), (vid behov, värde eller formel)]]),InputA1A3[[#This Row],[Sträcka - totalt '[km'], (tur och retur, alla transporter)]]*InputA1A3[[#This Row],[(Bränsle-) Förbrukning per km]]/InputA1A3[[#This Row],[Omräkningsfaktor (A4), (vid behov, värde eller formel)]]*InputA1A3[[#This Row],[*EF (A4)\n'[kg CO₂-ekv.']]],\nInputA1A3[[#This Row],[Sträcka - totalt '[km'], (tur och retur, alla transporter)]]*InputA1A3[[#This Row],[(Bränsle-) Förbrukning per km]]*InputA1A3[[#This Row],[*EF (A4)\n'[kg CO₂-ekv.']]]),\"Sen då\")),0)","v":""},{"$f":"SUM(KontrollTabell[[#This Row],[A4 - Resultat alt 1 '[kg']]:[A4 - Alt 2 - beräkning utsläpp]])","v":0},{"$f":"IF(KontrollTabell[[#This Row],[Finns anläggningsdel-namn.]]=FALSE,\"\",IF(ISBLANK(InputA1A3[[#This Row],[EPD - EF A4]]),FALSE,TRUE))","v":""},{"$f":"IFERROR(IF(KontrollTabell[[#This Row],[True/False A5]]=FALSE(),\"Enheter\",IF(ISBLANK(InputA1A3[[#This Row],[Omräkningsfaktor (A5.2) (ange värde), (vid behov)]]),InputA1A3[[#This Row],[Mängd (A5.2)]]*InputA1A3[[#This Row],[*EF (A5.2)\n'[kg CO₂-ekv.']]],InputA1A3[[#This Row],[Mängd (A5.2)]]*InputA1A3[[#This Row],[*EF (A5.2)\n'[kg CO₂-ekv.']]]*InputA1A3[[#This Row],[Omräkningsfaktor (A5.2) (ange värde), (vid behov)]])),0)","v":0},{"$f":"IF(InputA1A3[[#This Row],[*DU/FU (EF A5.2)]]=\"\",\"\",IF(InputA1A3[[#This Row],[Enhet för mängd (A5.2)]]=\"\",\"Värde Behövs\",IF(OR(InputA1A3[[#This Row],[Enhet för mängd (A5.2)]]=InputA1A3[[#This Row],[*DU/FU (EF A5.2)]],AND(InputA1A3[[#This Row],[Enhet för mängd (A5.2)]]<>InputA1A3[[#This Row],[*DU/FU (EF A5.2)]],ISNUMBER(InputA1A3[[#This Row],[Omräkningsfaktor (A5.2) (ange värde), (vid behov)]]))),TRUE,FALSE)))","v":""},{"$f":"IF(OR(KontrollTabell[[#This Row],[Finns anläggningsdel-namn.]]=FALSE,KontrollTabell[[#This Row],[True/False A5]]=\"Värde Behövs\"),\"\",IF(InputA1A3[[#This Row],[Enhet för mängd (A5.2)]] = InputA1A3[[#This Row],[*DU/FU (EF A5.2)]], TRUE, FALSE))","v":""},{"$f":"IF(KontrollTabell[[#This Row],[Finns anläggningsdel-namn.]]=FALSE,\"\",IF(OR(ISBLANK(InputA1A3[[#This Row],[Kategori\n(egen kategorisering)]])=FALSE,ISBLANK(InputA1A3[[#This Row],[Anläggningsdel\n]]))=FALSE,TRUE,FALSE))","v":""},{"$f":"IF(ISBLANK(InputA1A3[[#This Row],[Anläggningsdel\n]]),\"\",IF(KontrollTabell[[#This Row],[TRUE/FALSE om kategori saknas.]] =FALSE,InputA1A3[[#This Row],[Kategori\n(egen kategorisering)]],\"Kategori saknas\"))","v":""}]
[null,null,null,null,null,null,null,null,null,{"$f":"IF(ISBLANK(InputA1A3[[#This Row],[Anläggningsdel\n]]),\"\",IF(OR(KontrollTabell[[#This Row],[True/False A1A3 Enhet]]=TRUE,KontrollTabell[[#This Row],[True/False A1A3 Enhet]]=\"Värde Behövs\",KontrollTabell[[#This Row],[True/False A1A3 Enhet]]=\"\"), \"\", InputA1A3[[#This Row],[FU/DU (EF A1A3)]] & \"/\" & InputA1A3[[#This Row],[Enhet Mängd (A1A3)]]))","v":""},null,null,null,null,{"$f":"IF(ISBLANK(InputA1A3[[#This Row],[EPD - EF A4]]),\"\",InputA1A3[[#This Row],[FU/DU (EF A1A3)]])","v":""},null,null,null,null,{"$f":"IFERROR(INDEX(TabellEFDrivmedel[],MATCH(InputA1A3[[#This Row],[Drivmedel (A4) (endast förval ur lista)]],TabellEFDrivmedel[Drivmedel],0),4),\"\")","v":""},null,null,null,{"$f":"IF(InputA1A3[[#This Row],[*DU/FU (EF A4) för valt drivmedel (schablon)]]=\"\",\"\",IF(OR(InputA1A3[[#This Row],[*DU/FU (EF A4) för valt drivmedel (schablon)]]=InputA1A3[[#This Row],[Enhet (bränsleförbrukning per km)]],KontrollTabell[[#This Row],[True/False A4 - Alt 2]]=\"Värde Behövs\"),\"\",InputA1A3[[#This Row],[Enhet (bränsleförbrukning per km)]]& \"/\" & InputA1A3[[#This Row],[*DU/FU (EF A4) för valt drivmedel (schablon)]]))","v":""},null,null,null,null,null,null,null,{"$f":"IFERROR(INDEX(TabellEFDrivmedel[],MATCH(InputA1A3[[#This Row],[Drivmedel (A5.2)]],TabellEFDrivmedel[Drivmedel],0),2),\"\")","v":""},{"$f":"IFERROR(INDEX(TabellEFDrivmedel[],MATCH(InputA1A3[[#This Row],[Drivmedel (A5.2)]],TabellEFDrivmedel[Drivmedel],0),4),\"\")","v":""},{"$f":"IF(OR(KontrollTabell[[#This Row],[True/False A5 Enhet]]=TRUE,KontrollTabell[[#This Row],[True/False A5 Enhet]]=\"\"), \"\", InputA1A3[[#This Row],[*DU/FU (EF A5.2)]] & \"/\" & InputA1A3[[#This Row],[Enhet för mängd (A5.2)]])","v":""},null,null,null,null,null,null,null,null,null,null,null,null,null,null,null,null,null,null,null,null,null,null,null,null,null,null,null,null,null,null,null,null,null,null,null,null,null,null,null,null,{"$f":"IF(ISBLANK(InputA1A3[[#This Row],[Anläggningsdel\n]]),FALSE,TRUE)","v":false},{"$f":"IF(ISBLANK(InputA1A3[[#This Row],[Anläggningsdel\n]]),\"\",IF(ISBLANK(InputA1A3[[#This Row],[Enhet Mängd (A1A3)]]),\"\",IF(ISBLANK(InputA1A3[[#This Row],[FU/DU (EF A1A3)]]),\"Värde Behövs\",IF(InputA1A3[[#This Row],[Enhet Mängd (A1A3)]] = InputA1A3[[#This Row],[FU/DU (EF A1A3)]], TRUE, FALSE))))","v":""},{"$f":"IF(KontrollTabell[[#This Row],[Finns anläggningsdel-namn.]]=FALSE,\"\",(IF(KontrollTabell[[#This Row],[True/False A1A3 Enhet]]=TRUE,TRUE,IF(OR(KontrollTabell[[#This Row],[True/False A1A3 Enhet]]=\"Värde Behövs\",(KontrollTabell[[#This Row],[True/False A1A3 Enhet]]=\"\")),\"\",IF(ISBLANK(InputA1A3[[#This Row],[Omräkning till FU/DU (Skriv in värde, ej formel)]]),FALSE,TRUE)))))","v":""},{"$f":"IF(KontrollTabell[[#This Row],[Finns anläggningsdel-namn.]]=FALSE,,IF(KontrollTabell[[#This Row],[True/False A1A3 Enhet]]=TRUE,InputA1A3[[#This Row],[Mängd A1A3]]*InputA1A3[[#This Row],[EF A1A3 '[kg CO₂-ekv.']]],IF(KontrollTabell[[#This Row],[True/False A1A3 om A1A3 kan beräknas]]=TRUE,InputA1A3[[#This Row],[Mängd A1A3]]*InputA1A3[[#This Row],[EF A1A3 '[kg CO₂-ekv.']]]*InputA1A3[[#This Row],[Omräkning till FU/DU (Skriv in värde, ej formel)]],0)))","v":0},{"$f":"IF(ISBLANK(InputA1A3[[#This Row],[Anläggningsdel\n]]),\"\",IF(ISBLANK(InputA1A3[[#This Row],[EPD - EF A4]]),FALSE,TRUE))","v":""},{"$f":"IF(InputA1A3[[#This Row],[*DU/FU (EF A4) för valt drivmedel (schablon)]]=\"\",\"\",IF(InputA1A3[[#This Row],[Enhet (bränsleförbrukning per km)]]=\"\",\"Värde Behövs\",IF(OR(InputA1A3[[#This Row],[Enhet (bränsleförbrukning per km)]]=InputA1A3[[#This Row],[*DU/FU (EF A4) för valt drivmedel (schablon)]],AND(InputA1A3[[#This Row],[Enhet (bränsleförbrukning per km)]]<>InputA1A3[[#This Row],[*DU/FU (EF A4) för valt drivmedel (schablon)]],ISNUMBER(InputA1A3[[#This Row],[Omräkningsfaktor (A4), (vid behov, värde eller formel)]]))),TRUE(),FALSE())))","v":""},{"$f":"IF(KontrollTabell[[#This Row],[Finns anläggningsdel-namn.]]=FALSE,\"\",(IF(InputA1A3[[#This Row],[Enhet (bränsleförbrukning per km)]] =InputA1A3[[#This Row],[*DU/FU (EF A4) för valt drivmedel (schablon)]],TRUE,IF(KontrollTabell[[#This Row],[True/False A4 - Alt 2]]=\"Värde Behövs\",\"\",IF(ISBLANK(InputA1A3[[#This Row],[Omräkningsfaktor (A4), (vid behov, värde eller formel)]]),FALSE,TRUE)))))","v":""},{"$f":"IF(ISBLANK(InputA1A3[[#This Row],[EPD - EF A4]]),\"\",IF(ISBLANK(InputA1A3[[#This Row],[Omräkning till FU/DU (Skriv in värde, ej formel)]]),InputA1A3[[#This Row],[EPD - EF A4]]*InputA1A3[[#This Row],[Mängd A1A3]],InputA1A3[[#This Row],[Mängd A1A3]]*InputA1A3[[#This Row],[Omräkning till FU/DU (Skriv in värde, ej formel)]]*InputA1A3[[#This Row],[EPD - EF A4]]))","v":""},{"$f":"IFERROR(IF(KontrollTabell[[#This Row],[True/False A4 - Alt 2]]=\"\",\"\",IF(KontrollTabell[[#This Row],[True/False A4 Enhet - Alt2]]=TRUE,\nIF(ISNUMBER(InputA1A3[[#This Row],[Omräkningsfaktor (A4), (vid behov, värde eller formel)]]),InputA1A3[[#This Row],[Sträcka - totalt '[km'], (tur och retur, alla transporter)]]*InputA1A3[[#This Row],[(Bränsle-) Förbrukning per km]]/InputA1A3[[#This Row],[Omräkningsfaktor (A4), (vid behov, värde eller formel)]]*InputA1A3[[#This Row],[*EF (A4)\n'[kg CO₂-ekv.']]],\nInputA1A3[[#This Row],[Sträcka - totalt '[km'], (tur och retur, alla transporter)]]*InputA1A3[[#This Row],[(Bränsle-) Förbrukning per km]]*InputA1A3[[#This Row],[*EF (A4)\n'[kg CO₂-ekv.']]]),\"Sen då\")),0)","v":""},{"$f":"SUM(KontrollTabell[[#This Row],[A4 - Resultat alt 1 '[kg']]:[A4 - Alt 2 - beräkning utsläpp]])","v":0},{"$f":"IF(KontrollTabell[[#This Row],[Finns anläggningsdel-namn.]]=FALSE,\"\",IF(ISBLANK(InputA1A3[[#This Row],[EPD - EF A4]]),FALSE,TRUE))","v":""},{"$f":"IFERROR(IF(KontrollTabell[[#This Row],[True/False A5]]=FALSE(),\"Enheter\",IF(ISBLANK(InputA1A3[[#This Row],[Omräkningsfaktor (A5.2) (ange värde), (vid behov)]]),InputA1A3[[#This Row],[Mängd (A5.2)]]*InputA1A3[[#This Row],[*EF (A5.2)\n'[kg CO₂-ekv.']]],InputA1A3[[#This Row],[Mängd (A5.2)]]*InputA1A3[[#This Row],[*EF (A5.2)\n'[kg CO₂-ekv.']]]*InputA1A3[[#This Row],[Omräkningsfaktor (A5.2) (ange värde), (vid behov)]])),0)","v":0},{"$f":"IF(InputA1A3[[#This Row],[*DU/FU (EF A5.2)]]=\"\",\"\",IF(InputA1A3[[#This Row],[Enhet för mängd (A5.2)]]=\"\",\"Värde Behövs\",IF(OR(InputA1A3[[#This Row],[Enhet för mängd (A5.2)]]=InputA1A3[[#This Row],[*DU/FU (EF A5.2)]],AND(InputA1A3[[#This Row],[Enhet för mängd (A5.2)]]<>InputA1A3[[#This Row],[*DU/FU (EF A5.2)]],ISNUMBER(InputA1A3[[#This Row],[Omräkningsfaktor (A5.2) (ange värde), (vid behov)]]))),TRUE,FALSE)))","v":""},{"$f":"IF(OR(KontrollTabell[[#This Row],[Finns anläggningsdel-namn.]]=FALSE,KontrollTabell[[#This Row],[True/False A5]]=\"Värde Behövs\"),\"\",IF(InputA1A3[[#This Row],[Enhet för mängd (A5.2)]] = InputA1A3[[#This Row],[*DU/FU (EF A5.2)]], TRUE, FALSE))","v":""},{"$f":"IF(KontrollTabell[[#This Row],[Finns anläggningsdel-namn.]]=FALSE,\"\",IF(OR(ISBLANK(InputA1A3[[#This Row],[Kategori\n(egen kategorisering)]])=FALSE,ISBLANK(InputA1A3[[#This Row],[Anläggningsdel\n]]))=FALSE,TRUE,FALSE))","v":""},{"$f":"IF(ISBLANK(InputA1A3[[#This Row],[Anläggningsdel\n]]),\"\",IF(KontrollTabell[[#This Row],[TRUE/FALSE om kategori saknas.]] =FALSE,InputA1A3[[#This Row],[Kategori\n(egen kategorisering)]],\"Kategori saknas\"))","v":""}]
[null,null,null,null,null,null,null,null,null,{"$f":"IF(ISBLANK(InputA1A3[[#This Row],[Anläggningsdel\n]]),\"\",IF(OR(KontrollTabell[[#This Row],[True/False A1A3 Enhet]]=TRUE,KontrollTabell[[#This Row],[True/False A1A3 Enhet]]=\"Värde Behövs\",KontrollTabell[[#This Row],[True/False A1A3 Enhet]]=\"\"), \"\", InputA1A3[[#This Row],[FU/DU (EF A1A3)]] & \"/\" & InputA1A3[[#This Row],[Enhet Mängd (A1A3)]]))","v":""},null,null,null,null,{"$f":"IF(ISBLANK(InputA1A3[[#This Row],[EPD - EF A4]]),\"\",InputA1A3[[#This Row],[FU/DU (EF A1A3)]])","v":""},null,null,null,null,{"$f":"IFERROR(INDEX(TabellEFDrivmedel[],MATCH(InputA1A3[[#This Row],[Drivmedel (A4) (endast förval ur lista)]],TabellEFDrivmedel[Drivmedel],0),4),\"\")","v":""},null,null,null,{"$f":"IF(InputA1A3[[#This Row],[*DU/FU (EF A4) för valt drivmedel (schablon)]]=\"\",\"\",IF(OR(InputA1A3[[#This Row],[*DU/FU (EF A4) för valt drivmedel (schablon)]]=InputA1A3[[#This Row],[Enhet (bränsleförbrukning per km)]],KontrollTabell[[#This Row],[True/False A4 - Alt 2]]=\"Värde Behövs\"),\"\",InputA1A3[[#This Row],[Enhet (bränsleförbrukning per km)]]& \"/\" & InputA1A3[[#This Row],[*DU/FU (EF A4) för valt drivmedel (schablon)]]))","v":""},null,null,null,null,null,null,null,{"$f":"IFERROR(INDEX(TabellEFDrivmedel[],MATCH(InputA1A3[[#This Row],[Drivmedel (A5.2)]],TabellEFDrivmedel[Drivmedel],0),2),\"\")","v":""},{"$f":"IFERROR(INDEX(TabellEFDrivmedel[],MATCH(InputA1A3[[#This Row],[Drivmedel (A5.2)]],TabellEFDrivmedel[Drivmedel],0),4),\"\")","v":""},{"$f":"IF(OR(KontrollTabell[[#This Row],[True/False A5 Enhet]]=TRUE,KontrollTabell[[#This Row],[True/False A5 Enhet]]=\"\"), \"\", InputA1A3[[#This Row],[*DU/FU (EF A5.2)]] & \"/\" & InputA1A3[[#This Row],[Enhet för mängd (A5.2)]])","v":""},null,null,null,null,null,null,null,null,null,null,null,null,null,null,null,null,null,null,null,null,null,null,null,null,null,null,null,null,null,null,null,null,null,null,null,null,null,null,null,null,{"$f":"IF(ISBLANK(InputA1A3[[#This Row],[Anläggningsdel\n]]),FALSE,TRUE)","v":false},{"$f":"IF(ISBLANK(InputA1A3[[#This Row],[Anläggningsdel\n]]),\"\",IF(ISBLANK(InputA1A3[[#This Row],[Enhet Mängd (A1A3)]]),\"\",IF(ISBLANK(InputA1A3[[#This Row],[FU/DU (EF A1A3)]]),\"Värde Behövs\",IF(InputA1A3[[#This Row],[Enhet Mängd (A1A3)]] = InputA1A3[[#This Row],[FU/DU (EF A1A3)]], TRUE, FALSE))))","v":""},{"$f":"IF(KontrollTabell[[#This Row],[Finns anläggningsdel-namn.]]=FALSE,\"\",(IF(KontrollTabell[[#This Row],[True/False A1A3 Enhet]]=TRUE,TRUE,IF(OR(KontrollTabell[[#This Row],[True/False A1A3 Enhet]]=\"Värde Behövs\",(KontrollTabell[[#This Row],[True/False A1A3 Enhet]]=\"\")),\"\",IF(ISBLANK(InputA1A3[[#This Row],[Omräkning till FU/DU (Skriv in värde, ej formel)]]),FALSE,TRUE)))))","v":""},{"$f":"IF(KontrollTabell[[#This Row],[Finns anläggningsdel-namn.]]=FALSE,,IF(KontrollTabell[[#This Row],[True/False A1A3 Enhet]]=TRUE,InputA1A3[[#This Row],[Mängd A1A3]]*InputA1A3[[#This Row],[EF A1A3 '[kg CO₂-ekv.']]],IF(KontrollTabell[[#This Row],[True/False A1A3 om A1A3 kan beräknas]]=TRUE,InputA1A3[[#This Row],[Mängd A1A3]]*InputA1A3[[#This Row],[EF A1A3 '[kg CO₂-ekv.']]]*InputA1A3[[#This Row],[Omräkning till FU/DU (Skriv in värde, ej formel)]],0)))","v":0},{"$f":"IF(ISBLANK(InputA1A3[[#This Row],[Anläggningsdel\n]]),\"\",IF(ISBLANK(InputA1A3[[#This Row],[EPD - EF A4]]),FALSE,TRUE))","v":""},{"$f":"IF(InputA1A3[[#This Row],[*DU/FU (EF A4) för valt drivmedel (schablon)]]=\"\",\"\",IF(InputA1A3[[#This Row],[Enhet (bränsleförbrukning per km)]]=\"\",\"Värde Behövs\",IF(OR(InputA1A3[[#This Row],[Enhet (bränsleförbrukning per km)]]=InputA1A3[[#This Row],[*DU/FU (EF A4) för valt drivmedel (schablon)]],AND(InputA1A3[[#This Row],[Enhet (bränsleförbrukning per km)]]<>InputA1A3[[#This Row],[*DU/FU (EF A4) för valt drivmedel (schablon)]],ISNUMBER(InputA1A3[[#This Row],[Omräkningsfaktor (A4), (vid behov, värde eller formel)]]))),TRUE(),FALSE())))","v":""},{"$f":"IF(KontrollTabell[[#This Row],[Finns anläggningsdel-namn.]]=FALSE,\"\",(IF(InputA1A3[[#This Row],[Enhet (bränsleförbrukning per km)]] =InputA1A3[[#This Row],[*DU/FU (EF A4) för valt drivmedel (schablon)]],TRUE,IF(KontrollTabell[[#This Row],[True/False A4 - Alt 2]]=\"Värde Behövs\",\"\",IF(ISBLANK(InputA1A3[[#This Row],[Omräkningsfaktor (A4), (vid behov, värde eller formel)]]),FALSE,TRUE)))))","v":""},{"$f":"IF(ISBLANK(InputA1A3[[#This Row],[EPD - EF A4]]),\"\",IF(ISBLANK(InputA1A3[[#This Row],[Omräkning till FU/DU (Skriv in värde, ej formel)]]),InputA1A3[[#This Row],[EPD - EF A4]]*InputA1A3[[#This Row],[Mängd A1A3]],InputA1A3[[#This Row],[Mängd A1A3]]*InputA1A3[[#This Row],[Omräkning till FU/DU (Skriv in värde, ej formel)]]*InputA1A3[[#This Row],[EPD - EF A4]]))","v":""},{"$f":"IFERROR(IF(KontrollTabell[[#This Row],[True/False A4 - Alt 2]]=\"\",\"\",IF(KontrollTabell[[#This Row],[True/False A4 Enhet - Alt2]]=TRUE,\nIF(ISNUMBER(InputA1A3[[#This Row],[Omräkningsfaktor (A4), (vid behov, värde eller formel)]]),InputA1A3[[#This Row],[Sträcka - totalt '[km'], (tur och retur, alla transporter)]]*InputA1A3[[#This Row],[(Bränsle-) Förbrukning per km]]/InputA1A3[[#This Row],[Omräkningsfaktor (A4), (vid behov, värde eller formel)]]*InputA1A3[[#This Row],[*EF (A4)\n'[kg CO₂-ekv.']]],\nInputA1A3[[#This Row],[Sträcka - totalt '[km'], (tur och retur, alla transporter)]]*InputA1A3[[#This Row],[(Bränsle-) Förbrukning per km]]*InputA1A3[[#This Row],[*EF (A4)\n'[kg CO₂-ekv.']]]),\"Sen då\")),0)","v":""},{"$f":"SUM(KontrollTabell[[#This Row],[A4 - Resultat alt 1 '[kg']]:[A4 - Alt 2 - beräkning utsläpp]])","v":0},{"$f":"IF(KontrollTabell[[#This Row],[Finns anläggningsdel-namn.]]=FALSE,\"\",IF(ISBLANK(InputA1A3[[#This Row],[EPD - EF A4]]),FALSE,TRUE))","v":""},{"$f":"IFERROR(IF(KontrollTabell[[#This Row],[True/False A5]]=FALSE(),\"Enheter\",IF(ISBLANK(InputA1A3[[#This Row],[Omräkningsfaktor (A5.2) (ange värde), (vid behov)]]),InputA1A3[[#This Row],[Mängd (A5.2)]]*InputA1A3[[#This Row],[*EF (A5.2)\n'[kg CO₂-ekv.']]],InputA1A3[[#This Row],[Mängd (A5.2)]]*InputA1A3[[#This Row],[*EF (A5.2)\n'[kg CO₂-ekv.']]]*InputA1A3[[#This Row],[Omräkningsfaktor (A5.2) (ange värde), (vid behov)]])),0)","v":0},{"$f":"IF(InputA1A3[[#This Row],[*DU/FU (EF A5.2)]]=\"\",\"\",IF(InputA1A3[[#This Row],[Enhet för mängd (A5.2)]]=\"\",\"Värde Behövs\",IF(OR(InputA1A3[[#This Row],[Enhet för mängd (A5.2)]]=InputA1A3[[#This Row],[*DU/FU (EF A5.2)]],AND(InputA1A3[[#This Row],[Enhet för mängd (A5.2)]]<>InputA1A3[[#This Row],[*DU/FU (EF A5.2)]],ISNUMBER(InputA1A3[[#This Row],[Omräkningsfaktor (A5.2) (ange värde), (vid behov)]]))),TRUE,FALSE)))","v":""},{"$f":"IF(OR(KontrollTabell[[#This Row],[Finns anläggningsdel-namn.]]=FALSE,KontrollTabell[[#This Row],[True/False A5]]=\"Värde Behövs\"),\"\",IF(InputA1A3[[#This Row],[Enhet för mängd (A5.2)]] = InputA1A3[[#This Row],[*DU/FU (EF A5.2)]], TRUE, FALSE))","v":""},{"$f":"IF(KontrollTabell[[#This Row],[Finns anläggningsdel-namn.]]=FALSE,\"\",IF(OR(ISBLANK(InputA1A3[[#This Row],[Kategori\n(egen kategorisering)]])=FALSE,ISBLANK(InputA1A3[[#This Row],[Anläggningsdel\n]]))=FALSE,TRUE,FALSE))","v":""},{"$f":"IF(ISBLANK(InputA1A3[[#This Row],[Anläggningsdel\n]]),\"\",IF(KontrollTabell[[#This Row],[TRUE/FALSE om kategori saknas.]] =FALSE,InputA1A3[[#This Row],[Kategori\n(egen kategorisering)]],\"Kategori saknas\"))","v":""}]
[null,null,null,null,null,null,null,null,null,{"$f":"IF(ISBLANK(InputA1A3[[#This Row],[Anläggningsdel\n]]),\"\",IF(OR(KontrollTabell[[#This Row],[True/False A1A3 Enhet]]=TRUE,KontrollTabell[[#This Row],[True/False A1A3 Enhet]]=\"Värde Behövs\",KontrollTabell[[#This Row],[True/False A1A3 Enhet]]=\"\"), \"\", InputA1A3[[#This Row],[FU/DU (EF A1A3)]] & \"/\" & InputA1A3[[#This Row],[Enhet Mängd (A1A3)]]))","v":""},null,null,null,null,{"$f":"IF(ISBLANK(InputA1A3[[#This Row],[EPD - EF A4]]),\"\",InputA1A3[[#This Row],[FU/DU (EF A1A3)]])","v":""},null,null,null,null,{"$f":"IFERROR(INDEX(TabellEFDrivmedel[],MATCH(InputA1A3[[#This Row],[Drivmedel (A4) (endast förval ur lista)]],TabellEFDrivmedel[Drivmedel],0),4),\"\")","v":""},null,null,null,{"$f":"IF(InputA1A3[[#This Row],[*DU/FU (EF A4) för valt drivmedel (schablon)]]=\"\",\"\",IF(OR(InputA1A3[[#This Row],[*DU/FU (EF A4) för valt drivmedel (schablon)]]=InputA1A3[[#This Row],[Enhet (bränsleförbrukning per km)]],KontrollTabell[[#This Row],[True/False A4 - Alt 2]]=\"Värde Behövs\"),\"\",InputA1A3[[#This Row],[Enhet (bränsleförbrukning per km)]]& \"/\" & InputA1A3[[#This Row],[*DU/FU (EF A4) för valt drivmedel (schablon)]]))","v":""},null,null,null,null,null,null,null,{"$f":"IFERROR(INDEX(TabellEFDrivmedel[],MATCH(InputA1A3[[#This Row],[Drivmedel (A5.2)]],TabellEFDrivmedel[Drivmedel],0),2),\"\")","v":""},{"$f":"IFERROR(INDEX(TabellEFDrivmedel[],MATCH(InputA1A3[[#This Row],[Drivmedel (A5.2)]],TabellEFDrivmedel[Drivmedel],0),4),\"\")","v":""},{"$f":"IF(OR(KontrollTabell[[#This Row],[True/False A5 Enhet]]=TRUE,KontrollTabell[[#This Row],[True/False A5 Enhet]]=\"\"), \"\", InputA1A3[[#This Row],[*DU/FU (EF A5.2)]] & \"/\" & InputA1A3[[#This Row],[Enhet för mängd (A5.2)]])","v":""},null,null,null,null,null,null,null,null,null,null,null,null,null,null,null,null,null,null,null,null,null,null,null,null,null,null,null,null,null,null,null,null,null,null,null,null,null,null,null,null,{"$f":"IF(ISBLANK(InputA1A3[[#This Row],[Anläggningsdel\n]]),FALSE,TRUE)","v":false},{"$f":"IF(ISBLANK(InputA1A3[[#This Row],[Anläggningsdel\n]]),\"\",IF(ISBLANK(InputA1A3[[#This Row],[Enhet Mängd (A1A3)]]),\"\",IF(ISBLANK(InputA1A3[[#This Row],[FU/DU (EF A1A3)]]),\"Värde Behövs\",IF(InputA1A3[[#This Row],[Enhet Mängd (A1A3)]] = InputA1A3[[#This Row],[FU/DU (EF A1A3)]], TRUE, FALSE))))","v":""},{"$f":"IF(KontrollTabell[[#This Row],[Finns anläggningsdel-namn.]]=FALSE,\"\",(IF(KontrollTabell[[#This Row],[True/False A1A3 Enhet]]=TRUE,TRUE,IF(OR(KontrollTabell[[#This Row],[True/False A1A3 Enhet]]=\"Värde Behövs\",(KontrollTabell[[#This Row],[True/False A1A3 Enhet]]=\"\")),\"\",IF(ISBLANK(InputA1A3[[#This Row],[Omräkning till FU/DU (Skriv in värde, ej formel)]]),FALSE,TRUE)))))","v":""},{"$f":"IF(KontrollTabell[[#This Row],[Finns anläggningsdel-namn.]]=FALSE,,IF(KontrollTabell[[#This Row],[True/False A1A3 Enhet]]=TRUE,InputA1A3[[#This Row],[Mängd A1A3]]*InputA1A3[[#This Row],[EF A1A3 '[kg CO₂-ekv.']]],IF(KontrollTabell[[#This Row],[True/False A1A3 om A1A3 kan beräknas]]=TRUE,InputA1A3[[#This Row],[Mängd A1A3]]*InputA1A3[[#This Row],[EF A1A3 '[kg CO₂-ekv.']]]*InputA1A3[[#This Row],[Omräkning till FU/DU (Skriv in värde, ej formel)]],0)))","v":0},{"$f":"IF(ISBLANK(InputA1A3[[#This Row],[Anläggningsdel\n]]),\"\",IF(ISBLANK(InputA1A3[[#This Row],[EPD - EF A4]]),FALSE,TRUE))","v":""},{"$f":"IF(InputA1A3[[#This Row],[*DU/FU (EF A4) för valt drivmedel (schablon)]]=\"\",\"\",IF(InputA1A3[[#This Row],[Enhet (bränsleförbrukning per km)]]=\"\",\"Värde Behövs\",IF(OR(InputA1A3[[#This Row],[Enhet (bränsleförbrukning per km)]]=InputA1A3[[#This Row],[*DU/FU (EF A4) för valt drivmedel (schablon)]],AND(InputA1A3[[#This Row],[Enhet (bränsleförbrukning per km)]]<>InputA1A3[[#This Row],[*DU/FU (EF A4) för valt drivmedel (schablon)]],ISNUMBER(InputA1A3[[#This Row],[Omräkningsfaktor (A4), (vid behov, värde eller formel)]]))),TRUE(),FALSE())))","v":""},{"$f":"IF(KontrollTabell[[#This Row],[Finns anläggningsdel-namn.]]=FALSE,\"\",(IF(InputA1A3[[#This Row],[Enhet (bränsleförbrukning per km)]] =InputA1A3[[#This Row],[*DU/FU (EF A4) för valt drivmedel (schablon)]],TRUE,IF(KontrollTabell[[#This Row],[True/False A4 - Alt 2]]=\"Värde Behövs\",\"\",IF(ISBLANK(InputA1A3[[#This Row],[Omräkningsfaktor (A4), (vid behov, värde eller formel)]]),FALSE,TRUE)))))","v":""},{"$f":"IF(ISBLANK(InputA1A3[[#This Row],[EPD - EF A4]]),\"\",IF(ISBLANK(InputA1A3[[#This Row],[Omräkning till FU/DU (Skriv in värde, ej formel)]]),InputA1A3[[#This Row],[EPD - EF A4]]*InputA1A3[[#This Row],[Mängd A1A3]],InputA1A3[[#This Row],[Mängd A1A3]]*InputA1A3[[#This Row],[Omräkning till FU/DU (Skriv in värde, ej formel)]]*InputA1A3[[#This Row],[EPD - EF A4]]))","v":""},{"$f":"IFERROR(IF(KontrollTabell[[#This Row],[True/False A4 - Alt 2]]=\"\",\"\",IF(KontrollTabell[[#This Row],[True/False A4 Enhet - Alt2]]=TRUE,\nIF(ISNUMBER(InputA1A3[[#This Row],[Omräkningsfaktor (A4), (vid behov, värde eller formel)]]),InputA1A3[[#This Row],[Sträcka - totalt '[km'], (tur och retur, alla transporter)]]*InputA1A3[[#This Row],[(Bränsle-) Förbrukning per km]]/InputA1A3[[#This Row],[Omräkningsfaktor (A4), (vid behov, värde eller formel)]]*InputA1A3[[#This Row],[*EF (A4)\n'[kg CO₂-ekv.']]],\nInputA1A3[[#This Row],[Sträcka - totalt '[km'], (tur och retur, alla transporter)]]*InputA1A3[[#This Row],[(Bränsle-) Förbrukning per km]]*InputA1A3[[#This Row],[*EF (A4)\n'[kg CO₂-ekv.']]]),\"Sen då\")),0)","v":""},{"$f":"SUM(KontrollTabell[[#This Row],[A4 - Resultat alt 1 '[kg']]:[A4 - Alt 2 - beräkning utsläpp]])","v":0},{"$f":"IF(KontrollTabell[[#This Row],[Finns anläggningsdel-namn.]]=FALSE,\"\",IF(ISBLANK(InputA1A3[[#This Row],[EPD - EF A4]]),FALSE,TRUE))","v":""},{"$f":"IFERROR(IF(KontrollTabell[[#This Row],[True/False A5]]=FALSE(),\"Enheter\",IF(ISBLANK(InputA1A3[[#This Row],[Omräkningsfaktor (A5.2) (ange värde), (vid behov)]]),InputA1A3[[#This Row],[Mängd (A5.2)]]*InputA1A3[[#This Row],[*EF (A5.2)\n'[kg CO₂-ekv.']]],InputA1A3[[#This Row],[Mängd (A5.2)]]*InputA1A3[[#This Row],[*EF (A5.2)\n'[kg CO₂-ekv.']]]*InputA1A3[[#This Row],[Omräkningsfaktor (A5.2) (ange värde), (vid behov)]])),0)","v":0},{"$f":"IF(InputA1A3[[#This Row],[*DU/FU (EF A5.2)]]=\"\",\"\",IF(InputA1A3[[#This Row],[Enhet för mängd (A5.2)]]=\"\",\"Värde Behövs\",IF(OR(InputA1A3[[#This Row],[Enhet för mängd (A5.2)]]=InputA1A3[[#This Row],[*DU/FU (EF A5.2)]],AND(InputA1A3[[#This Row],[Enhet för mängd (A5.2)]]<>InputA1A3[[#This Row],[*DU/FU (EF A5.2)]],ISNUMBER(InputA1A3[[#This Row],[Omräkningsfaktor (A5.2) (ange värde), (vid behov)]]))),TRUE,FALSE)))","v":""},{"$f":"IF(OR(KontrollTabell[[#This Row],[Finns anläggningsdel-namn.]]=FALSE,KontrollTabell[[#This Row],[True/False A5]]=\"Värde Behövs\"),\"\",IF(InputA1A3[[#This Row],[Enhet för mängd (A5.2)]] = InputA1A3[[#This Row],[*DU/FU (EF A5.2)]], TRUE, FALSE))","v":""},{"$f":"IF(KontrollTabell[[#This Row],[Finns anläggningsdel-namn.]]=FALSE,\"\",IF(OR(ISBLANK(InputA1A3[[#This Row],[Kategori\n(egen kategorisering)]])=FALSE,ISBLANK(InputA1A3[[#This Row],[Anläggningsdel\n]]))=FALSE,TRUE,FALSE))","v":""},{"$f":"IF(ISBLANK(InputA1A3[[#This Row],[Anläggningsdel\n]]),\"\",IF(KontrollTabell[[#This Row],[TRUE/FALSE om kategori saknas.]] =FALSE,InputA1A3[[#This Row],[Kategori\n(egen kategorisering)]],\"Kategori saknas\"))","v":""}]
[null,null,null,null,null,null,null,null,null,{"$f":"IF(ISBLANK(InputA1A3[[#This Row],[Anläggningsdel\n]]),\"\",IF(OR(KontrollTabell[[#This Row],[True/False A1A3 Enhet]]=TRUE,KontrollTabell[[#This Row],[True/False A1A3 Enhet]]=\"Värde Behövs\",KontrollTabell[[#This Row],[True/False A1A3 Enhet]]=\"\"), \"\", InputA1A3[[#This Row],[FU/DU (EF A1A3)]] & \"/\" & InputA1A3[[#This Row],[Enhet Mängd (A1A3)]]))","v":""},null,null,null,null,{"$f":"IF(ISBLANK(InputA1A3[[#This Row],[EPD - EF A4]]),\"\",InputA1A3[[#This Row],[FU/DU (EF A1A3)]])","v":""},null,null,null,null,{"$f":"IFERROR(INDEX(TabellEFDrivmedel[],MATCH(InputA1A3[[#This Row],[Drivmedel (A4) (endast förval ur lista)]],TabellEFDrivmedel[Drivmedel],0),4),\"\")","v":""},null,null,null,{"$f":"IF(InputA1A3[[#This Row],[*DU/FU (EF A4) för valt drivmedel (schablon)]]=\"\",\"\",IF(OR(InputA1A3[[#This Row],[*DU/FU (EF A4) för valt drivmedel (schablon)]]=InputA1A3[[#This Row],[Enhet (bränsleförbrukning per km)]],KontrollTabell[[#This Row],[True/False A4 - Alt 2]]=\"Värde Behövs\"),\"\",InputA1A3[[#This Row],[Enhet (bränsleförbrukning per km)]]& \"/\" & InputA1A3[[#This Row],[*DU/FU (EF A4) för valt drivmedel (schablon)]]))","v":""},null,null,null,null,null,null,null,{"$f":"IFERROR(INDEX(TabellEFDrivmedel[],MATCH(InputA1A3[[#This Row],[Drivmedel (A5.2)]],TabellEFDrivmedel[Drivmedel],0),2),\"\")","v":""},{"$f":"IFERROR(INDEX(TabellEFDrivmedel[],MATCH(InputA1A3[[#This Row],[Drivmedel (A5.2)]],TabellEFDrivmedel[Drivmedel],0),4),\"\")","v":""},{"$f":"IF(OR(KontrollTabell[[#This Row],[True/False A5 Enhet]]=TRUE,KontrollTabell[[#This Row],[True/False A5 Enhet]]=\"\"), \"\", InputA1A3[[#This Row],[*DU/FU (EF A5.2)]] & \"/\" & InputA1A3[[#This Row],[Enhet för mängd (A5.2)]])","v":""},null,null,null,null,null,null,null,null,null,null,null,null,null,null,null,null,null,null,null,null,null,null,null,null,null,null,null,null,null,null,null,null,null,null,null,null,null,null,null,null,{"$f":"IF(ISBLANK(InputA1A3[[#This Row],[Anläggningsdel\n]]),FALSE,TRUE)","v":false},{"$f":"IF(ISBLANK(InputA1A3[[#This Row],[Anläggningsdel\n]]),\"\",IF(ISBLANK(InputA1A3[[#This Row],[Enhet Mängd (A1A3)]]),\"\",IF(ISBLANK(InputA1A3[[#This Row],[FU/DU (EF A1A3)]]),\"Värde Behövs\",IF(InputA1A3[[#This Row],[Enhet Mängd (A1A3)]] = InputA1A3[[#This Row],[FU/DU (EF A1A3)]], TRUE, FALSE))))","v":""},{"$f":"IF(KontrollTabell[[#This Row],[Finns anläggningsdel-namn.]]=FALSE,\"\",(IF(KontrollTabell[[#This Row],[True/False A1A3 Enhet]]=TRUE,TRUE,IF(OR(KontrollTabell[[#This Row],[True/False A1A3 Enhet]]=\"Värde Behövs\",(KontrollTabell[[#This Row],[True/False A1A3 Enhet]]=\"\")),\"\",IF(ISBLANK(InputA1A3[[#This Row],[Omräkning till FU/DU (Skriv in värde, ej formel)]]),FALSE,TRUE)))))","v":""},{"$f":"IF(KontrollTabell[[#This Row],[Finns anläggningsdel-namn.]]=FALSE,,IF(KontrollTabell[[#This Row],[True/False A1A3 Enhet]]=TRUE,InputA1A3[[#This Row],[Mängd A1A3]]*InputA1A3[[#This Row],[EF A1A3 '[kg CO₂-ekv.']]],IF(KontrollTabell[[#This Row],[True/False A1A3 om A1A3 kan beräknas]]=TRUE,InputA1A3[[#This Row],[Mängd A1A3]]*InputA1A3[[#This Row],[EF A1A3 '[kg CO₂-ekv.']]]*InputA1A3[[#This Row],[Omräkning till FU/DU (Skriv in värde, ej formel)]],0)))","v":0},{"$f":"IF(ISBLANK(InputA1A3[[#This Row],[Anläggningsdel\n]]),\"\",IF(ISBLANK(InputA1A3[[#This Row],[EPD - EF A4]]),FALSE,TRUE))","v":""},{"$f":"IF(InputA1A3[[#This Row],[*DU/FU (EF A4) för valt drivmedel (schablon)]]=\"\",\"\",IF(InputA1A3[[#This Row],[Enhet (bränsleförbrukning per km)]]=\"\",\"Värde Behövs\",IF(OR(InputA1A3[[#This Row],[Enhet (bränsleförbrukning per km)]]=InputA1A3[[#This Row],[*DU/FU (EF A4) för valt drivmedel (schablon)]],AND(InputA1A3[[#This Row],[Enhet (bränsleförbrukning per km)]]<>InputA1A3[[#This Row],[*DU/FU (EF A4) för valt drivmedel (schablon)]],ISNUMBER(InputA1A3[[#This Row],[Omräkningsfaktor (A4), (vid behov, värde eller formel)]]))),TRUE(),FALSE())))","v":""},{"$f":"IF(KontrollTabell[[#This Row],[Finns anläggningsdel-namn.]]=FALSE,\"\",(IF(InputA1A3[[#This Row],[Enhet (bränsleförbrukning per km)]] =InputA1A3[[#This Row],[*DU/FU (EF A4) för valt drivmedel (schablon)]],TRUE,IF(KontrollTabell[[#This Row],[True/False A4 - Alt 2]]=\"Värde Behövs\",\"\",IF(ISBLANK(InputA1A3[[#This Row],[Omräkningsfaktor (A4), (vid behov, värde eller formel)]]),FALSE,TRUE)))))","v":""},{"$f":"IF(ISBLANK(InputA1A3[[#This Row],[EPD - EF A4]]),\"\",IF(ISBLANK(InputA1A3[[#This Row],[Omräkning till FU/DU (Skriv in värde, ej formel)]]),InputA1A3[[#This Row],[EPD - EF A4]]*InputA1A3[[#This Row],[Mängd A1A3]],InputA1A3[[#This Row],[Mängd A1A3]]*InputA1A3[[#This Row],[Omräkning till FU/DU (Skriv in värde, ej formel)]]*InputA1A3[[#This Row],[EPD - EF A4]]))","v":""},{"$f":"IFERROR(IF(KontrollTabell[[#This Row],[True/False A4 - Alt 2]]=\"\",\"\",IF(KontrollTabell[[#This Row],[True/False A4 Enhet - Alt2]]=TRUE,\nIF(ISNUMBER(InputA1A3[[#This Row],[Omräkningsfaktor (A4), (vid behov, värde eller formel)]]),InputA1A3[[#This Row],[Sträcka - totalt '[km'], (tur och retur, alla transporter)]]*InputA1A3[[#This Row],[(Bränsle-) Förbrukning per km]]/InputA1A3[[#This Row],[Omräkningsfaktor (A4), (vid behov, värde eller formel)]]*InputA1A3[[#This Row],[*EF (A4)\n'[kg CO₂-ekv.']]],\nInputA1A3[[#This Row],[Sträcka - totalt '[km'], (tur och retur, alla transporter)]]*InputA1A3[[#This Row],[(Bränsle-) Förbrukning per km]]*InputA1A3[[#This Row],[*EF (A4)\n'[kg CO₂-ekv.']]]),\"Sen då\")),0)","v":""},{"$f":"SUM(KontrollTabell[[#This Row],[A4 - Resultat alt 1 '[kg']]:[A4 - Alt 2 - beräkning utsläpp]])","v":0},{"$f":"IF(KontrollTabell[[#This Row],[Finns anläggningsdel-namn.]]=FALSE,\"\",IF(ISBLANK(InputA1A3[[#This Row],[EPD - EF A4]]),FALSE,TRUE))","v":""},{"$f":"IFERROR(IF(KontrollTabell[[#This Row],[True/False A5]]=FALSE(),\"Enheter\",IF(ISBLANK(InputA1A3[[#This Row],[Omräkningsfaktor (A5.2) (ange värde), (vid behov)]]),InputA1A3[[#This Row],[Mängd (A5.2)]]*InputA1A3[[#This Row],[*EF (A5.2)\n'[kg CO₂-ekv.']]],InputA1A3[[#This Row],[Mängd (A5.2)]]*InputA1A3[[#This Row],[*EF (A5.2)\n'[kg CO₂-ekv.']]]*InputA1A3[[#This Row],[Omräkningsfaktor (A5.2) (ange värde), (vid behov)]])),0)","v":0},{"$f":"IF(InputA1A3[[#This Row],[*DU/FU (EF A5.2)]]=\"\",\"\",IF(InputA1A3[[#This Row],[Enhet för mängd (A5.2)]]=\"\",\"Värde Behövs\",IF(OR(InputA1A3[[#This Row],[Enhet för mängd (A5.2)]]=InputA1A3[[#This Row],[*DU/FU (EF A5.2)]],AND(InputA1A3[[#This Row],[Enhet för mängd (A5.2)]]<>InputA1A3[[#This Row],[*DU/FU (EF A5.2)]],ISNUMBER(InputA1A3[[#This Row],[Omräkningsfaktor (A5.2) (ange värde), (vid behov)]]))),TRUE,FALSE)))","v":""},{"$f":"IF(OR(KontrollTabell[[#This Row],[Finns anläggningsdel-namn.]]=FALSE,KontrollTabell[[#This Row],[True/False A5]]=\"Värde Behövs\"),\"\",IF(InputA1A3[[#This Row],[Enhet för mängd (A5.2)]] = InputA1A3[[#This Row],[*DU/FU (EF A5.2)]], TRUE, FALSE))","v":""},{"$f":"IF(KontrollTabell[[#This Row],[Finns anläggningsdel-namn.]]=FALSE,\"\",IF(OR(ISBLANK(InputA1A3[[#This Row],[Kategori\n(egen kategorisering)]])=FALSE,ISBLANK(InputA1A3[[#This Row],[Anläggningsdel\n]]))=FALSE,TRUE,FALSE))","v":""},{"$f":"IF(ISBLANK(InputA1A3[[#This Row],[Anläggningsdel\n]]),\"\",IF(KontrollTabell[[#This Row],[TRUE/FALSE om kategori saknas.]] =FALSE,InputA1A3[[#This Row],[Kategori\n(egen kategorisering)]],\"Kategori saknas\"))","v":""}]
[null,null,null,null,null,null,null,null,null,{"$f":"IF(ISBLANK(InputA1A3[[#This Row],[Anläggningsdel\n]]),\"\",IF(OR(KontrollTabell[[#This Row],[True/False A1A3 Enhet]]=TRUE,KontrollTabell[[#This Row],[True/False A1A3 Enhet]]=\"Värde Behövs\",KontrollTabell[[#This Row],[True/False A1A3 Enhet]]=\"\"), \"\", InputA1A3[[#This Row],[FU/DU (EF A1A3)]] & \"/\" & InputA1A3[[#This Row],[Enhet Mängd (A1A3)]]))","v":""},null,null,null,null,{"$f":"IF(ISBLANK(InputA1A3[[#This Row],[EPD - EF A4]]),\"\",InputA1A3[[#This Row],[FU/DU (EF A1A3)]])","v":""},null,null,null,null,{"$f":"IFERROR(INDEX(TabellEFDrivmedel[],MATCH(InputA1A3[[#This Row],[Drivmedel (A4) (endast förval ur lista)]],TabellEFDrivmedel[Drivmedel],0),4),\"\")","v":""},null,null,null,{"$f":"IF(InputA1A3[[#This Row],[*DU/FU (EF A4) för valt drivmedel (schablon)]]=\"\",\"\",IF(OR(InputA1A3[[#This Row],[*DU/FU (EF A4) för valt drivmedel (schablon)]]=InputA1A3[[#This Row],[Enhet (bränsleförbrukning per km)]],KontrollTabell[[#This Row],[True/False A4 - Alt 2]]=\"Värde Behövs\"),\"\",InputA1A3[[#This Row],[Enhet (bränsleförbrukning per km)]]& \"/\" & InputA1A3[[#This Row],[*DU/FU (EF A4) för valt drivmedel (schablon)]]))","v":""},null,null,null,null,null,null,null,{"$f":"IFERROR(INDEX(TabellEFDrivmedel[],MATCH(InputA1A3[[#This Row],[Drivmedel (A5.2)]],TabellEFDrivmedel[Drivmedel],0),2),\"\")","v":""},{"$f":"IFERROR(INDEX(TabellEFDrivmedel[],MATCH(InputA1A3[[#This Row],[Drivmedel (A5.2)]],TabellEFDrivmedel[Drivmedel],0),4),\"\")","v":""},{"$f":"IF(OR(KontrollTabell[[#This Row],[True/False A5 Enhet]]=TRUE,KontrollTabell[[#This Row],[True/False A5 Enhet]]=\"\"), \"\", InputA1A3[[#This Row],[*DU/FU (EF A5.2)]] & \"/\" & InputA1A3[[#This Row],[Enhet för mängd (A5.2)]])","v":""},null,null,null,null,null,null,null,null,null,null,null,null,null,null,null,null,null,null,null,null,null,null,null,null,null,null,null,null,null,null,null,null,null,null,null,null,null,null,null,null,{"$f":"IF(ISBLANK(InputA1A3[[#This Row],[Anläggningsdel\n]]),FALSE,TRUE)","v":false},{"$f":"IF(ISBLANK(InputA1A3[[#This Row],[Anläggningsdel\n]]),\"\",IF(ISBLANK(InputA1A3[[#This Row],[Enhet Mängd (A1A3)]]),\"\",IF(ISBLANK(InputA1A3[[#This Row],[FU/DU (EF A1A3)]]),\"Värde Behövs\",IF(InputA1A3[[#This Row],[Enhet Mängd (A1A3)]] = InputA1A3[[#This Row],[FU/DU (EF A1A3)]], TRUE, FALSE))))","v":""},{"$f":"IF(KontrollTabell[[#This Row],[Finns anläggningsdel-namn.]]=FALSE,\"\",(IF(KontrollTabell[[#This Row],[True/False A1A3 Enhet]]=TRUE,TRUE,IF(OR(KontrollTabell[[#This Row],[True/False A1A3 Enhet]]=\"Värde Behövs\",(KontrollTabell[[#This Row],[True/False A1A3 Enhet]]=\"\")),\"\",IF(ISBLANK(InputA1A3[[#This Row],[Omräkning till FU/DU (Skriv in värde, ej formel)]]),FALSE,TRUE)))))","v":""},{"$f":"IF(KontrollTabell[[#This Row],[Finns anläggningsdel-namn.]]=FALSE,,IF(KontrollTabell[[#This Row],[True/False A1A3 Enhet]]=TRUE,InputA1A3[[#This Row],[Mängd A1A3]]*InputA1A3[[#This Row],[EF A1A3 '[kg CO₂-ekv.']]],IF(KontrollTabell[[#This Row],[True/False A1A3 om A1A3 kan beräknas]]=TRUE,InputA1A3[[#This Row],[Mängd A1A3]]*InputA1A3[[#This Row],[EF A1A3 '[kg CO₂-ekv.']]]*InputA1A3[[#This Row],[Omräkning till FU/DU (Skriv in värde, ej formel)]],0)))","v":0},{"$f":"IF(ISBLANK(InputA1A3[[#This Row],[Anläggningsdel\n]]),\"\",IF(ISBLANK(InputA1A3[[#This Row],[EPD - EF A4]]),FALSE,TRUE))","v":""},{"$f":"IF(InputA1A3[[#This Row],[*DU/FU (EF A4) för valt drivmedel (schablon)]]=\"\",\"\",IF(InputA1A3[[#This Row],[Enhet (bränsleförbrukning per km)]]=\"\",\"Värde Behövs\",IF(OR(InputA1A3[[#This Row],[Enhet (bränsleförbrukning per km)]]=InputA1A3[[#This Row],[*DU/FU (EF A4) för valt drivmedel (schablon)]],AND(InputA1A3[[#This Row],[Enhet (bränsleförbrukning per km)]]<>InputA1A3[[#This Row],[*DU/FU (EF A4) för valt drivmedel (schablon)]],ISNUMBER(InputA1A3[[#This Row],[Omräkningsfaktor (A4), (vid behov, värde eller formel)]]))),TRUE(),FALSE())))","v":""},{"$f":"IF(KontrollTabell[[#This Row],[Finns anläggningsdel-namn.]]=FALSE,\"\",(IF(InputA1A3[[#This Row],[Enhet (bränsleförbrukning per km)]] =InputA1A3[[#This Row],[*DU/FU (EF A4) för valt drivmedel (schablon)]],TRUE,IF(KontrollTabell[[#This Row],[True/False A4 - Alt 2]]=\"Värde Behövs\",\"\",IF(ISBLANK(InputA1A3[[#This Row],[Omräkningsfaktor (A4), (vid behov, värde eller formel)]]),FALSE,TRUE)))))","v":""},{"$f":"IF(ISBLANK(InputA1A3[[#This Row],[EPD - EF A4]]),\"\",IF(ISBLANK(InputA1A3[[#This Row],[Omräkning till FU/DU (Skriv in värde, ej formel)]]),InputA1A3[[#This Row],[EPD - EF A4]]*InputA1A3[[#This Row],[Mängd A1A3]],InputA1A3[[#This Row],[Mängd A1A3]]*InputA1A3[[#This Row],[Omräkning till FU/DU (Skriv in värde, ej formel)]]*InputA1A3[[#This Row],[EPD - EF A4]]))","v":""},{"$f":"IFERROR(IF(KontrollTabell[[#This Row],[True/False A4 - Alt 2]]=\"\",\"\",IF(KontrollTabell[[#This Row],[True/False A4 Enhet - Alt2]]=TRUE,\nIF(ISNUMBER(InputA1A3[[#This Row],[Omräkningsfaktor (A4), (vid behov, värde eller formel)]]),InputA1A3[[#This Row],[Sträcka - totalt '[km'], (tur och retur, alla transporter)]]*InputA1A3[[#This Row],[(Bränsle-) Förbrukning per km]]/InputA1A3[[#This Row],[Omräkningsfaktor (A4), (vid behov, värde eller formel)]]*InputA1A3[[#This Row],[*EF (A4)\n'[kg CO₂-ekv.']]],\nInputA1A3[[#This Row],[Sträcka - totalt '[km'], (tur och retur, alla transporter)]]*InputA1A3[[#This Row],[(Bränsle-) Förbrukning per km]]*InputA1A3[[#This Row],[*EF (A4)\n'[kg CO₂-ekv.']]]),\"Sen då\")),0)","v":""},{"$f":"SUM(KontrollTabell[[#This Row],[A4 - Resultat alt 1 '[kg']]:[A4 - Alt 2 - beräkning utsläpp]])","v":0},{"$f":"IF(KontrollTabell[[#This Row],[Finns anläggningsdel-namn.]]=FALSE,\"\",IF(ISBLANK(InputA1A3[[#This Row],[EPD - EF A4]]),FALSE,TRUE))","v":""},{"$f":"IFERROR(IF(KontrollTabell[[#This Row],[True/False A5]]=FALSE(),\"Enheter\",IF(ISBLANK(InputA1A3[[#This Row],[Omräkningsfaktor (A5.2) (ange värde), (vid behov)]]),InputA1A3[[#This Row],[Mängd (A5.2)]]*InputA1A3[[#This Row],[*EF (A5.2)\n'[kg CO₂-ekv.']]],InputA1A3[[#This Row],[Mängd (A5.2)]]*InputA1A3[[#This Row],[*EF (A5.2)\n'[kg CO₂-ekv.']]]*InputA1A3[[#This Row],[Omräkningsfaktor (A5.2) (ange värde), (vid behov)]])),0)","v":0},{"$f":"IF(InputA1A3[[#This Row],[*DU/FU (EF A5.2)]]=\"\",\"\",IF(InputA1A3[[#This Row],[Enhet för mängd (A5.2)]]=\"\",\"Värde Behövs\",IF(OR(InputA1A3[[#This Row],[Enhet för mängd (A5.2)]]=InputA1A3[[#This Row],[*DU/FU (EF A5.2)]],AND(InputA1A3[[#This Row],[Enhet för mängd (A5.2)]]<>InputA1A3[[#This Row],[*DU/FU (EF A5.2)]],ISNUMBER(InputA1A3[[#This Row],[Omräkningsfaktor (A5.2) (ange värde), (vid behov)]]))),TRUE,FALSE)))","v":""},{"$f":"IF(OR(KontrollTabell[[#This Row],[Finns anläggningsdel-namn.]]=FALSE,KontrollTabell[[#This Row],[True/False A5]]=\"Värde Behövs\"),\"\",IF(InputA1A3[[#This Row],[Enhet för mängd (A5.2)]] = InputA1A3[[#This Row],[*DU/FU (EF A5.2)]], TRUE, FALSE))","v":""},{"$f":"IF(KontrollTabell[[#This Row],[Finns anläggningsdel-namn.]]=FALSE,\"\",IF(OR(ISBLANK(InputA1A3[[#This Row],[Kategori\n(egen kategorisering)]])=FALSE,ISBLANK(InputA1A3[[#This Row],[Anläggningsdel\n]]))=FALSE,TRUE,FALSE))","v":""},{"$f":"IF(ISBLANK(InputA1A3[[#This Row],[Anläggningsdel\n]]),\"\",IF(KontrollTabell[[#This Row],[TRUE/FALSE om kategori saknas.]] =FALSE,InputA1A3[[#This Row],[Kategori\n(egen kategorisering)]],\"Kategori saknas\"))","v":""}]
[null,null,null,null,null,null,null,null,null,{"$f":"IF(ISBLANK(InputA1A3[[#This Row],[Anläggningsdel\n]]),\"\",IF(OR(KontrollTabell[[#This Row],[True/False A1A3 Enhet]]=TRUE,KontrollTabell[[#This Row],[True/False A1A3 Enhet]]=\"Värde Behövs\",KontrollTabell[[#This Row],[True/False A1A3 Enhet]]=\"\"), \"\", InputA1A3[[#This Row],[FU/DU (EF A1A3)]] & \"/\" & InputA1A3[[#This Row],[Enhet Mängd (A1A3)]]))","v":""},null,null,null,null,{"$f":"IF(ISBLANK(InputA1A3[[#This Row],[EPD - EF A4]]),\"\",InputA1A3[[#This Row],[FU/DU (EF A1A3)]])","v":""},null,null,null,null,{"$f":"IFERROR(INDEX(TabellEFDrivmedel[],MATCH(InputA1A3[[#This Row],[Drivmedel (A4) (endast förval ur lista)]],TabellEFDrivmedel[Drivmedel],0),4),\"\")","v":""},null,null,null,{"$f":"IF(InputA1A3[[#This Row],[*DU/FU (EF A4) för valt drivmedel (schablon)]]=\"\",\"\",IF(OR(InputA1A3[[#This Row],[*DU/FU (EF A4) för valt drivmedel (schablon)]]=InputA1A3[[#This Row],[Enhet (bränsleförbrukning per km)]],KontrollTabell[[#This Row],[True/False A4 - Alt 2]]=\"Värde Behövs\"),\"\",InputA1A3[[#This Row],[Enhet (bränsleförbrukning per km)]]& \"/\" & InputA1A3[[#This Row],[*DU/FU (EF A4) för valt drivmedel (schablon)]]))","v":""},null,null,null,null,null,null,null,{"$f":"IFERROR(INDEX(TabellEFDrivmedel[],MATCH(InputA1A3[[#This Row],[Drivmedel (A5.2)]],TabellEFDrivmedel[Drivmedel],0),2),\"\")","v":""},{"$f":"IFERROR(INDEX(TabellEFDrivmedel[],MATCH(InputA1A3[[#This Row],[Drivmedel (A5.2)]],TabellEFDrivmedel[Drivmedel],0),4),\"\")","v":""},{"$f":"IF(OR(KontrollTabell[[#This Row],[True/False A5 Enhet]]=TRUE,KontrollTabell[[#This Row],[True/False A5 Enhet]]=\"\"), \"\", InputA1A3[[#This Row],[*DU/FU (EF A5.2)]] & \"/\" & InputA1A3[[#This Row],[Enhet för mängd (A5.2)]])","v":""},null,null,null,null,null,null,null,null,null,null,null,null,null,null,null,null,null,null,null,null,null,null,null,null,null,null,null,null,null,null,null,null,null,null,null,null,null,null,null,null,{"$f":"IF(ISBLANK(InputA1A3[[#This Row],[Anläggningsdel\n]]),FALSE,TRUE)","v":false},{"$f":"IF(ISBLANK(InputA1A3[[#This Row],[Anläggningsdel\n]]),\"\",IF(ISBLANK(InputA1A3[[#This Row],[Enhet Mängd (A1A3)]]),\"\",IF(ISBLANK(InputA1A3[[#This Row],[FU/DU (EF A1A3)]]),\"Värde Behövs\",IF(InputA1A3[[#This Row],[Enhet Mängd (A1A3)]] = InputA1A3[[#This Row],[FU/DU (EF A1A3)]], TRUE, FALSE))))","v":""},{"$f":"IF(KontrollTabell[[#This Row],[Finns anläggningsdel-namn.]]=FALSE,\"\",(IF(KontrollTabell[[#This Row],[True/False A1A3 Enhet]]=TRUE,TRUE,IF(OR(KontrollTabell[[#This Row],[True/False A1A3 Enhet]]=\"Värde Behövs\",(KontrollTabell[[#This Row],[True/False A1A3 Enhet]]=\"\")),\"\",IF(ISBLANK(InputA1A3[[#This Row],[Omräkning till FU/DU (Skriv in värde, ej formel)]]),FALSE,TRUE)))))","v":""},{"$f":"IF(KontrollTabell[[#This Row],[Finns anläggningsdel-namn.]]=FALSE,,IF(KontrollTabell[[#This Row],[True/False A1A3 Enhet]]=TRUE,InputA1A3[[#This Row],[Mängd A1A3]]*InputA1A3[[#This Row],[EF A1A3 '[kg CO₂-ekv.']]],IF(KontrollTabell[[#This Row],[True/False A1A3 om A1A3 kan beräknas]]=TRUE,InputA1A3[[#This Row],[Mängd A1A3]]*InputA1A3[[#This Row],[EF A1A3 '[kg CO₂-ekv.']]]*InputA1A3[[#This Row],[Omräkning till FU/DU (Skriv in värde, ej formel)]],0)))","v":0},{"$f":"IF(ISBLANK(InputA1A3[[#This Row],[Anläggningsdel\n]]),\"\",IF(ISBLANK(InputA1A3[[#This Row],[EPD - EF A4]]),FALSE,TRUE))","v":""},{"$f":"IF(InputA1A3[[#This Row],[*DU/FU (EF A4) för valt drivmedel (schablon)]]=\"\",\"\",IF(InputA1A3[[#This Row],[Enhet (bränsleförbrukning per km)]]=\"\",\"Värde Behövs\",IF(OR(InputA1A3[[#This Row],[Enhet (bränsleförbrukning per km)]]=InputA1A3[[#This Row],[*DU/FU (EF A4) för valt drivmedel (schablon)]],AND(InputA1A3[[#This Row],[Enhet (bränsleförbrukning per km)]]<>InputA1A3[[#This Row],[*DU/FU (EF A4) för valt drivmedel (schablon)]],ISNUMBER(InputA1A3[[#This Row],[Omräkningsfaktor (A4), (vid behov, värde eller formel)]]))),TRUE(),FALSE())))","v":""},{"$f":"IF(KontrollTabell[[#This Row],[Finns anläggningsdel-namn.]]=FALSE,\"\",(IF(InputA1A3[[#This Row],[Enhet (bränsleförbrukning per km)]] =InputA1A3[[#This Row],[*DU/FU (EF A4) för valt drivmedel (schablon)]],TRUE,IF(KontrollTabell[[#This Row],[True/False A4 - Alt 2]]=\"Värde Behövs\",\"\",IF(ISBLANK(InputA1A3[[#This Row],[Omräkningsfaktor (A4), (vid behov, värde eller formel)]]),FALSE,TRUE)))))","v":""},{"$f":"IF(ISBLANK(InputA1A3[[#This Row],[EPD - EF A4]]),\"\",IF(ISBLANK(InputA1A3[[#This Row],[Omräkning till FU/DU (Skriv in värde, ej formel)]]),InputA1A3[[#This Row],[EPD - EF A4]]*InputA1A3[[#This Row],[Mängd A1A3]],InputA1A3[[#This Row],[Mängd A1A3]]*InputA1A3[[#This Row],[Omräkning till FU/DU (Skriv in värde, ej formel)]]*InputA1A3[[#This Row],[EPD - EF A4]]))","v":""},{"$f":"IFERROR(IF(KontrollTabell[[#This Row],[True/False A4 - Alt 2]]=\"\",\"\",IF(KontrollTabell[[#This Row],[True/False A4 Enhet - Alt2]]=TRUE,\nIF(ISNUMBER(InputA1A3[[#This Row],[Omräkningsfaktor (A4), (vid behov, värde eller formel)]]),InputA1A3[[#This Row],[Sträcka - totalt '[km'], (tur och retur, alla transporter)]]*InputA1A3[[#This Row],[(Bränsle-) Förbrukning per km]]/InputA1A3[[#This Row],[Omräkningsfaktor (A4), (vid behov, värde eller formel)]]*InputA1A3[[#This Row],[*EF (A4)\n'[kg CO₂-ekv.']]],\nInputA1A3[[#This Row],[Sträcka - totalt '[km'], (tur och retur, alla transporter)]]*InputA1A3[[#This Row],[(Bränsle-) Förbrukning per km]]*InputA1A3[[#This Row],[*EF (A4)\n'[kg CO₂-ekv.']]]),\"Sen då\")),0)","v":""},{"$f":"SUM(KontrollTabell[[#This Row],[A4 - Resultat alt 1 '[kg']]:[A4 - Alt 2 - beräkning utsläpp]])","v":0},{"$f":"IF(KontrollTabell[[#This Row],[Finns anläggningsdel-namn.]]=FALSE,\"\",IF(ISBLANK(InputA1A3[[#This Row],[EPD - EF A4]]),FALSE,TRUE))","v":""},{"$f":"IFERROR(IF(KontrollTabell[[#This Row],[True/False A5]]=FALSE(),\"Enheter\",IF(ISBLANK(InputA1A3[[#This Row],[Omräkningsfaktor (A5.2) (ange värde), (vid behov)]]),InputA1A3[[#This Row],[Mängd (A5.2)]]*InputA1A3[[#This Row],[*EF (A5.2)\n'[kg CO₂-ekv.']]],InputA1A3[[#This Row],[Mängd (A5.2)]]*InputA1A3[[#This Row],[*EF (A5.2)\n'[kg CO₂-ekv.']]]*InputA1A3[[#This Row],[Omräkningsfaktor (A5.2) (ange värde), (vid behov)]])),0)","v":0},{"$f":"IF(InputA1A3[[#This Row],[*DU/FU (EF A5.2)]]=\"\",\"\",IF(InputA1A3[[#This Row],[Enhet för mängd (A5.2)]]=\"\",\"Värde Behövs\",IF(OR(InputA1A3[[#This Row],[Enhet för mängd (A5.2)]]=InputA1A3[[#This Row],[*DU/FU (EF A5.2)]],AND(InputA1A3[[#This Row],[Enhet för mängd (A5.2)]]<>InputA1A3[[#This Row],[*DU/FU (EF A5.2)]],ISNUMBER(InputA1A3[[#This Row],[Omräkningsfaktor (A5.2) (ange värde), (vid behov)]]))),TRUE,FALSE)))","v":""},{"$f":"IF(OR(KontrollTabell[[#This Row],[Finns anläggningsdel-namn.]]=FALSE,KontrollTabell[[#This Row],[True/False A5]]=\"Värde Behövs\"),\"\",IF(InputA1A3[[#This Row],[Enhet för mängd (A5.2)]] = InputA1A3[[#This Row],[*DU/FU (EF A5.2)]], TRUE, FALSE))","v":""},{"$f":"IF(KontrollTabell[[#This Row],[Finns anläggningsdel-namn.]]=FALSE,\"\",IF(OR(ISBLANK(InputA1A3[[#This Row],[Kategori\n(egen kategorisering)]])=FALSE,ISBLANK(InputA1A3[[#This Row],[Anläggningsdel\n]]))=FALSE,TRUE,FALSE))","v":""},{"$f":"IF(ISBLANK(InputA1A3[[#This Row],[Anläggningsdel\n]]),\"\",IF(KontrollTabell[[#This Row],[TRUE/FALSE om kategori saknas.]] =FALSE,InputA1A3[[#This Row],[Kategori\n(egen kategorisering)]],\"Kategori saknas\"))","v":""}]
[null,null,null,null,null,null,null,null,null,{"$f":"IF(ISBLANK(InputA1A3[[#This Row],[Anläggningsdel\n]]),\"\",IF(OR(KontrollTabell[[#This Row],[True/False A1A3 Enhet]]=TRUE,KontrollTabell[[#This Row],[True/False A1A3 Enhet]]=\"Värde Behövs\",KontrollTabell[[#This Row],[True/False A1A3 Enhet]]=\"\"), \"\", InputA1A3[[#This Row],[FU/DU (EF A1A3)]] & \"/\" & InputA1A3[[#This Row],[Enhet Mängd (A1A3)]]))","v":""},null,null,null,null,{"$f":"IF(ISBLANK(InputA1A3[[#This Row],[EPD - EF A4]]),\"\",InputA1A3[[#This Row],[FU/DU (EF A1A3)]])","v":""},null,null,null,null,{"$f":"IFERROR(INDEX(TabellEFDrivmedel[],MATCH(InputA1A3[[#This Row],[Drivmedel (A4) (endast förval ur lista)]],TabellEFDrivmedel[Drivmedel],0),4),\"\")","v":""},null,null,null,{"$f":"IF(InputA1A3[[#This Row],[*DU/FU (EF A4) för valt drivmedel (schablon)]]=\"\",\"\",IF(OR(InputA1A3[[#This Row],[*DU/FU (EF A4) för valt drivmedel (schablon)]]=InputA1A3[[#This Row],[Enhet (bränsleförbrukning per km)]],KontrollTabell[[#This Row],[True/False A4 - Alt 2]]=\"Värde Behövs\"),\"\",InputA1A3[[#This Row],[Enhet (bränsleförbrukning per km)]]& \"/\" & InputA1A3[[#This Row],[*DU/FU (EF A4) för valt drivmedel (schablon)]]))","v":""},null,null,null,null,null,null,null,{"$f":"IFERROR(INDEX(TabellEFDrivmedel[],MATCH(InputA1A3[[#This Row],[Drivmedel (A5.2)]],TabellEFDrivmedel[Drivmedel],0),2),\"\")","v":""},{"$f":"IFERROR(INDEX(TabellEFDrivmedel[],MATCH(InputA1A3[[#This Row],[Drivmedel (A5.2)]],TabellEFDrivmedel[Drivmedel],0),4),\"\")","v":""},{"$f":"IF(OR(KontrollTabell[[#This Row],[True/False A5 Enhet]]=TRUE,KontrollTabell[[#This Row],[True/False A5 Enhet]]=\"\"), \"\", InputA1A3[[#This Row],[*DU/FU (EF A5.2)]] & \"/\" & InputA1A3[[#This Row],[Enhet för mängd (A5.2)]])","v":""},null,null,null,null,null,null,null,null,null,null,null,null,null,null,null,null,null,null,null,null,null,null,null,null,null,null,null,null,null,null,null,null,null,null,null,null,null,null,null,null,{"$f":"IF(ISBLANK(InputA1A3[[#This Row],[Anläggningsdel\n]]),FALSE,TRUE)","v":false},{"$f":"IF(ISBLANK(InputA1A3[[#This Row],[Anläggningsdel\n]]),\"\",IF(ISBLANK(InputA1A3[[#This Row],[Enhet Mängd (A1A3)]]),\"\",IF(ISBLANK(InputA1A3[[#This Row],[FU/DU (EF A1A3)]]),\"Värde Behövs\",IF(InputA1A3[[#This Row],[Enhet Mängd (A1A3)]] = InputA1A3[[#This Row],[FU/DU (EF A1A3)]], TRUE, FALSE))))","v":""},{"$f":"IF(KontrollTabell[[#This Row],[Finns anläggningsdel-namn.]]=FALSE,\"\",(IF(KontrollTabell[[#This Row],[True/False A1A3 Enhet]]=TRUE,TRUE,IF(OR(KontrollTabell[[#This Row],[True/False A1A3 Enhet]]=\"Värde Behövs\",(KontrollTabell[[#This Row],[True/False A1A3 Enhet]]=\"\")),\"\",IF(ISBLANK(InputA1A3[[#This Row],[Omräkning till FU/DU (Skriv in värde, ej formel)]]),FALSE,TRUE)))))","v":""},{"$f":"IF(KontrollTabell[[#This Row],[Finns anläggningsdel-namn.]]=FALSE,,IF(KontrollTabell[[#This Row],[True/False A1A3 Enhet]]=TRUE,InputA1A3[[#This Row],[Mängd A1A3]]*InputA1A3[[#This Row],[EF A1A3 '[kg CO₂-ekv.']]],IF(KontrollTabell[[#This Row],[True/False A1A3 om A1A3 kan beräknas]]=TRUE,InputA1A3[[#This Row],[Mängd A1A3]]*InputA1A3[[#This Row],[EF A1A3 '[kg CO₂-ekv.']]]*InputA1A3[[#This Row],[Omräkning till FU/DU (Skriv in värde, ej formel)]],0)))","v":0},{"$f":"IF(ISBLANK(InputA1A3[[#This Row],[Anläggningsdel\n]]),\"\",IF(ISBLANK(InputA1A3[[#This Row],[EPD - EF A4]]),FALSE,TRUE))","v":""},{"$f":"IF(InputA1A3[[#This Row],[*DU/FU (EF A4) för valt drivmedel (schablon)]]=\"\",\"\",IF(InputA1A3[[#This Row],[Enhet (bränsleförbrukning per km)]]=\"\",\"Värde Behövs\",IF(OR(InputA1A3[[#This Row],[Enhet (bränsleförbrukning per km)]]=InputA1A3[[#This Row],[*DU/FU (EF A4) för valt drivmedel (schablon)]],AND(InputA1A3[[#This Row],[Enhet (bränsleförbrukning per km)]]<>InputA1A3[[#This Row],[*DU/FU (EF A4) för valt drivmedel (schablon)]],ISNUMBER(InputA1A3[[#This Row],[Omräkningsfaktor (A4), (vid behov, värde eller formel)]]))),TRUE(),FALSE())))","v":""},{"$f":"IF(KontrollTabell[[#This Row],[Finns anläggningsdel-namn.]]=FALSE,\"\",(IF(InputA1A3[[#This Row],[Enhet (bränsleförbrukning per km)]] =InputA1A3[[#This Row],[*DU/FU (EF A4) för valt drivmedel (schablon)]],TRUE,IF(KontrollTabell[[#This Row],[True/False A4 - Alt 2]]=\"Värde Behövs\",\"\",IF(ISBLANK(InputA1A3[[#This Row],[Omräkningsfaktor (A4), (vid behov, värde eller formel)]]),FALSE,TRUE)))))","v":""},{"$f":"IF(ISBLANK(InputA1A3[[#This Row],[EPD - EF A4]]),\"\",IF(ISBLANK(InputA1A3[[#This Row],[Omräkning till FU/DU (Skriv in värde, ej formel)]]),InputA1A3[[#This Row],[EPD - EF A4]]*InputA1A3[[#This Row],[Mängd A1A3]],InputA1A3[[#This Row],[Mängd A1A3]]*InputA1A3[[#This Row],[Omräkning till FU/DU (Skriv in värde, ej formel)]]*InputA1A3[[#This Row],[EPD - EF A4]]))","v":""},{"$f":"IFERROR(IF(KontrollTabell[[#This Row],[True/False A4 - Alt 2]]=\"\",\"\",IF(KontrollTabell[[#This Row],[True/False A4 Enhet - Alt2]]=TRUE,\nIF(ISNUMBER(InputA1A3[[#This Row],[Omräkningsfaktor (A4), (vid behov, värde eller formel)]]),InputA1A3[[#This Row],[Sträcka - totalt '[km'], (tur och retur, alla transporter)]]*InputA1A3[[#This Row],[(Bränsle-) Förbrukning per km]]/InputA1A3[[#This Row],[Omräkningsfaktor (A4), (vid behov, värde eller formel)]]*InputA1A3[[#This Row],[*EF (A4)\n'[kg CO₂-ekv.']]],\nInputA1A3[[#This Row],[Sträcka - totalt '[km'], (tur och retur, alla transporter)]]*InputA1A3[[#This Row],[(Bränsle-) Förbrukning per km]]*InputA1A3[[#This Row],[*EF (A4)\n'[kg CO₂-ekv.']]]),\"Sen då\")),0)","v":""},{"$f":"SUM(KontrollTabell[[#This Row],[A4 - Resultat alt 1 '[kg']]:[A4 - Alt 2 - beräkning utsläpp]])","v":0},{"$f":"IF(KontrollTabell[[#This Row],[Finns anläggningsdel-namn.]]=FALSE,\"\",IF(ISBLANK(InputA1A3[[#This Row],[EPD - EF A4]]),FALSE,TRUE))","v":""},{"$f":"IFERROR(IF(KontrollTabell[[#This Row],[True/False A5]]=FALSE(),\"Enheter\",IF(ISBLANK(InputA1A3[[#This Row],[Omräkningsfaktor (A5.2) (ange värde), (vid behov)]]),InputA1A3[[#This Row],[Mängd (A5.2)]]*InputA1A3[[#This Row],[*EF (A5.2)\n'[kg CO₂-ekv.']]],InputA1A3[[#This Row],[Mängd (A5.2)]]*InputA1A3[[#This Row],[*EF (A5.2)\n'[kg CO₂-ekv.']]]*InputA1A3[[#This Row],[Omräkningsfaktor (A5.2) (ange värde), (vid behov)]])),0)","v":0},{"$f":"IF(InputA1A3[[#This Row],[*DU/FU (EF A5.2)]]=\"\",\"\",IF(InputA1A3[[#This Row],[Enhet för mängd (A5.2)]]=\"\",\"Värde Behövs\",IF(OR(InputA1A3[[#This Row],[Enhet för mängd (A5.2)]]=InputA1A3[[#This Row],[*DU/FU (EF A5.2)]],AND(InputA1A3[[#This Row],[Enhet för mängd (A5.2)]]<>InputA1A3[[#This Row],[*DU/FU (EF A5.2)]],ISNUMBER(InputA1A3[[#This Row],[Omräkningsfaktor (A5.2) (ange värde), (vid behov)]]))),TRUE,FALSE)))","v":""},{"$f":"IF(OR(KontrollTabell[[#This Row],[Finns anläggningsdel-namn.]]=FALSE,KontrollTabell[[#This Row],[True/False A5]]=\"Värde Behövs\"),\"\",IF(InputA1A3[[#This Row],[Enhet för mängd (A5.2)]] = InputA1A3[[#This Row],[*DU/FU (EF A5.2)]], TRUE, FALSE))","v":""},{"$f":"IF(KontrollTabell[[#This Row],[Finns anläggningsdel-namn.]]=FALSE,\"\",IF(OR(ISBLANK(InputA1A3[[#This Row],[Kategori\n(egen kategorisering)]])=FALSE,ISBLANK(InputA1A3[[#This Row],[Anläggningsdel\n]]))=FALSE,TRUE,FALSE))","v":""},{"$f":"IF(ISBLANK(InputA1A3[[#This Row],[Anläggningsdel\n]]),\"\",IF(KontrollTabell[[#This Row],[TRUE/FALSE om kategori saknas.]] =FALSE,InputA1A3[[#This Row],[Kategori\n(egen kategorisering)]],\"Kategori saknas\"))","v":""}]
[null,null,null,null,null,null,null,null,null,{"$f":"IF(ISBLANK(InputA1A3[[#This Row],[Anläggningsdel\n]]),\"\",IF(OR(KontrollTabell[[#This Row],[True/False A1A3 Enhet]]=TRUE,KontrollTabell[[#This Row],[True/False A1A3 Enhet]]=\"Värde Behövs\",KontrollTabell[[#This Row],[True/False A1A3 Enhet]]=\"\"), \"\", InputA1A3[[#This Row],[FU/DU (EF A1A3)]] & \"/\" & InputA1A3[[#This Row],[Enhet Mängd (A1A3)]]))","v":""},null,null,null,null,{"$f":"IF(ISBLANK(InputA1A3[[#This Row],[EPD - EF A4]]),\"\",InputA1A3[[#This Row],[FU/DU (EF A1A3)]])","v":""},null,null,null,null,{"$f":"IFERROR(INDEX(TabellEFDrivmedel[],MATCH(InputA1A3[[#This Row],[Drivmedel (A4) (endast förval ur lista)]],TabellEFDrivmedel[Drivmedel],0),4),\"\")","v":""},null,null,null,{"$f":"IF(InputA1A3[[#This Row],[*DU/FU (EF A4) för valt drivmedel (schablon)]]=\"\",\"\",IF(OR(InputA1A3[[#This Row],[*DU/FU (EF A4) för valt drivmedel (schablon)]]=InputA1A3[[#This Row],[Enhet (bränsleförbrukning per km)]],KontrollTabell[[#This Row],[True/False A4 - Alt 2]]=\"Värde Behövs\"),\"\",InputA1A3[[#This Row],[Enhet (bränsleförbrukning per km)]]& \"/\" & InputA1A3[[#This Row],[*DU/FU (EF A4) för valt drivmedel (schablon)]]))","v":""},null,null,null,null,null,null,null,{"$f":"IFERROR(INDEX(TabellEFDrivmedel[],MATCH(InputA1A3[[#This Row],[Drivmedel (A5.2)]],TabellEFDrivmedel[Drivmedel],0),2),\"\")","v":""},{"$f":"IFERROR(INDEX(TabellEFDrivmedel[],MATCH(InputA1A3[[#This Row],[Drivmedel (A5.2)]],TabellEFDrivmedel[Drivmedel],0),4),\"\")","v":""},{"$f":"IF(OR(KontrollTabell[[#This Row],[True/False A5 Enhet]]=TRUE,KontrollTabell[[#This Row],[True/False A5 Enhet]]=\"\"), \"\", InputA1A3[[#This Row],[*DU/FU (EF A5.2)]] & \"/\" & InputA1A3[[#This Row],[Enhet för mängd (A5.2)]])","v":""},null,null,null,null,null,null,null,null,null,null,null,null,null,null,null,null,null,null,null,null,null,null,null,null,null,null,null,null,null,null,null,null,null,null,null,null,null,null,null,null,{"$f":"IF(ISBLANK(InputA1A3[[#This Row],[Anläggningsdel\n]]),FALSE,TRUE)","v":false},{"$f":"IF(ISBLANK(InputA1A3[[#This Row],[Anläggningsdel\n]]),\"\",IF(ISBLANK(InputA1A3[[#This Row],[Enhet Mängd (A1A3)]]),\"\",IF(ISBLANK(InputA1A3[[#This Row],[FU/DU (EF A1A3)]]),\"Värde Behövs\",IF(InputA1A3[[#This Row],[Enhet Mängd (A1A3)]] = InputA1A3[[#This Row],[FU/DU (EF A1A3)]], TRUE, FALSE))))","v":""},{"$f":"IF(KontrollTabell[[#This Row],[Finns anläggningsdel-namn.]]=FALSE,\"\",(IF(KontrollTabell[[#This Row],[True/False A1A3 Enhet]]=TRUE,TRUE,IF(OR(KontrollTabell[[#This Row],[True/False A1A3 Enhet]]=\"Värde Behövs\",(KontrollTabell[[#This Row],[True/False A1A3 Enhet]]=\"\")),\"\",IF(ISBLANK(InputA1A3[[#This Row],[Omräkning till FU/DU (Skriv in värde, ej formel)]]),FALSE,TRUE)))))","v":""},{"$f":"IF(KontrollTabell[[#This Row],[Finns anläggningsdel-namn.]]=FALSE,,IF(KontrollTabell[[#This Row],[True/False A1A3 Enhet]]=TRUE,InputA1A3[[#This Row],[Mängd A1A3]]*InputA1A3[[#This Row],[EF A1A3 '[kg CO₂-ekv.']]],IF(KontrollTabell[[#This Row],[True/False A1A3 om A1A3 kan beräknas]]=TRUE,InputA1A3[[#This Row],[Mängd A1A3]]*InputA1A3[[#This Row],[EF A1A3 '[kg CO₂-ekv.']]]*InputA1A3[[#This Row],[Omräkning till FU/DU (Skriv in värde, ej formel)]],0)))","v":0},{"$f":"IF(ISBLANK(InputA1A3[[#This Row],[Anläggningsdel\n]]),\"\",IF(ISBLANK(InputA1A3[[#This Row],[EPD - EF A4]]),FALSE,TRUE))","v":""},{"$f":"IF(InputA1A3[[#This Row],[*DU/FU (EF A4) för valt drivmedel (schablon)]]=\"\",\"\",IF(InputA1A3[[#This Row],[Enhet (bränsleförbrukning per km)]]=\"\",\"Värde Behövs\",IF(OR(InputA1A3[[#This Row],[Enhet (bränsleförbrukning per km)]]=InputA1A3[[#This Row],[*DU/FU (EF A4) för valt drivmedel (schablon)]],AND(InputA1A3[[#This Row],[Enhet (bränsleförbrukning per km)]]<>InputA1A3[[#This Row],[*DU/FU (EF A4) för valt drivmedel (schablon)]],ISNUMBER(InputA1A3[[#This Row],[Omräkningsfaktor (A4), (vid behov, värde eller formel)]]))),TRUE(),FALSE())))","v":""},{"$f":"IF(KontrollTabell[[#This Row],[Finns anläggningsdel-namn.]]=FALSE,\"\",(IF(InputA1A3[[#This Row],[Enhet (bränsleförbrukning per km)]] =InputA1A3[[#This Row],[*DU/FU (EF A4) för valt drivmedel (schablon)]],TRUE,IF(KontrollTabell[[#This Row],[True/False A4 - Alt 2]]=\"Värde Behövs\",\"\",IF(ISBLANK(InputA1A3[[#This Row],[Omräkningsfaktor (A4), (vid behov, värde eller formel)]]),FALSE,TRUE)))))","v":""},{"$f":"IF(ISBLANK(InputA1A3[[#This Row],[EPD - EF A4]]),\"\",IF(ISBLANK(InputA1A3[[#This Row],[Omräkning till FU/DU (Skriv in värde, ej formel)]]),InputA1A3[[#This Row],[EPD - EF A4]]*InputA1A3[[#This Row],[Mängd A1A3]],InputA1A3[[#This Row],[Mängd A1A3]]*InputA1A3[[#This Row],[Omräkning till FU/DU (Skriv in värde, ej formel)]]*InputA1A3[[#This Row],[EPD - EF A4]]))","v":""},{"$f":"IFERROR(IF(KontrollTabell[[#This Row],[True/False A4 - Alt 2]]=\"\",\"\",IF(KontrollTabell[[#This Row],[True/False A4 Enhet - Alt2]]=TRUE,\nIF(ISNUMBER(InputA1A3[[#This Row],[Omräkningsfaktor (A4), (vid behov, värde eller formel)]]),InputA1A3[[#This Row],[Sträcka - totalt '[km'], (tur och retur, alla transporter)]]*InputA1A3[[#This Row],[(Bränsle-) Förbrukning per km]]/InputA1A3[[#This Row],[Omräkningsfaktor (A4), (vid behov, värde eller formel)]]*InputA1A3[[#This Row],[*EF (A4)\n'[kg CO₂-ekv.']]],\nInputA1A3[[#This Row],[Sträcka - totalt '[km'], (tur och retur, alla transporter)]]*InputA1A3[[#This Row],[(Bränsle-) Förbrukning per km]]*InputA1A3[[#This Row],[*EF (A4)\n'[kg CO₂-ekv.']]]),\"Sen då\")),0)","v":""},{"$f":"SUM(KontrollTabell[[#This Row],[A4 - Resultat alt 1 '[kg']]:[A4 - Alt 2 - beräkning utsläpp]])","v":0},{"$f":"IF(KontrollTabell[[#This Row],[Finns anläggningsdel-namn.]]=FALSE,\"\",IF(ISBLANK(InputA1A3[[#This Row],[EPD - EF A4]]),FALSE,TRUE))","v":""},{"$f":"IFERROR(IF(KontrollTabell[[#This Row],[True/False A5]]=FALSE(),\"Enheter\",IF(ISBLANK(InputA1A3[[#This Row],[Omräkningsfaktor (A5.2) (ange värde), (vid behov)]]),InputA1A3[[#This Row],[Mängd (A5.2)]]*InputA1A3[[#This Row],[*EF (A5.2)\n'[kg CO₂-ekv.']]],InputA1A3[[#This Row],[Mängd (A5.2)]]*InputA1A3[[#This Row],[*EF (A5.2)\n'[kg CO₂-ekv.']]]*InputA1A3[[#This Row],[Omräkningsfaktor (A5.2) (ange värde), (vid behov)]])),0)","v":0},{"$f":"IF(InputA1A3[[#This Row],[*DU/FU (EF A5.2)]]=\"\",\"\",IF(InputA1A3[[#This Row],[Enhet för mängd (A5.2)]]=\"\",\"Värde Behövs\",IF(OR(InputA1A3[[#This Row],[Enhet för mängd (A5.2)]]=InputA1A3[[#This Row],[*DU/FU (EF A5.2)]],AND(InputA1A3[[#This Row],[Enhet för mängd (A5.2)]]<>InputA1A3[[#This Row],[*DU/FU (EF A5.2)]],ISNUMBER(InputA1A3[[#This Row],[Omräkningsfaktor (A5.2) (ange värde), (vid behov)]]))),TRUE,FALSE)))","v":""},{"$f":"IF(OR(KontrollTabell[[#This Row],[Finns anläggningsdel-namn.]]=FALSE,KontrollTabell[[#This Row],[True/False A5]]=\"Värde Behövs\"),\"\",IF(InputA1A3[[#This Row],[Enhet för mängd (A5.2)]] = InputA1A3[[#This Row],[*DU/FU (EF A5.2)]], TRUE, FALSE))","v":""},{"$f":"IF(KontrollTabell[[#This Row],[Finns anläggningsdel-namn.]]=FALSE,\"\",IF(OR(ISBLANK(InputA1A3[[#This Row],[Kategori\n(egen kategorisering)]])=FALSE,ISBLANK(InputA1A3[[#This Row],[Anläggningsdel\n]]))=FALSE,TRUE,FALSE))","v":""},{"$f":"IF(ISBLANK(InputA1A3[[#This Row],[Anläggningsdel\n]]),\"\",IF(KontrollTabell[[#This Row],[TRUE/FALSE om kategori saknas.]] =FALSE,InputA1A3[[#This Row],[Kategori\n(egen kategorisering)]],\"Kategori saknas\"))","v":""}]
[null,null,null,null,null,null,null,null,null,{"$f":"IF(ISBLANK(InputA1A3[[#This Row],[Anläggningsdel\n]]),\"\",IF(OR(KontrollTabell[[#This Row],[True/False A1A3 Enhet]]=TRUE,KontrollTabell[[#This Row],[True/False A1A3 Enhet]]=\"Värde Behövs\",KontrollTabell[[#This Row],[True/False A1A3 Enhet]]=\"\"), \"\", InputA1A3[[#This Row],[FU/DU (EF A1A3)]] & \"/\" & InputA1A3[[#This Row],[Enhet Mängd (A1A3)]]))","v":""},null,null,null,null,{"$f":"IF(ISBLANK(InputA1A3[[#This Row],[EPD - EF A4]]),\"\",InputA1A3[[#This Row],[FU/DU (EF A1A3)]])","v":""},null,null,null,null,{"$f":"IFERROR(INDEX(TabellEFDrivmedel[],MATCH(InputA1A3[[#This Row],[Drivmedel (A4) (endast förval ur lista)]],TabellEFDrivmedel[Drivmedel],0),4),\"\")","v":""},null,null,null,{"$f":"IF(InputA1A3[[#This Row],[*DU/FU (EF A4) för valt drivmedel (schablon)]]=\"\",\"\",IF(OR(InputA1A3[[#This Row],[*DU/FU (EF A4) för valt drivmedel (schablon)]]=InputA1A3[[#This Row],[Enhet (bränsleförbrukning per km)]],KontrollTabell[[#This Row],[True/False A4 - Alt 2]]=\"Värde Behövs\"),\"\",InputA1A3[[#This Row],[Enhet (bränsleförbrukning per km)]]& \"/\" & InputA1A3[[#This Row],[*DU/FU (EF A4) för valt drivmedel (schablon)]]))","v":""},null,null,null,null,null,null,null,{"$f":"IFERROR(INDEX(TabellEFDrivmedel[],MATCH(InputA1A3[[#This Row],[Drivmedel (A5.2)]],TabellEFDrivmedel[Drivmedel],0),2),\"\")","v":""},{"$f":"IFERROR(INDEX(TabellEFDrivmedel[],MATCH(InputA1A3[[#This Row],[Drivmedel (A5.2)]],TabellEFDrivmedel[Drivmedel],0),4),\"\")","v":""},{"$f":"IF(OR(KontrollTabell[[#This Row],[True/False A5 Enhet]]=TRUE,KontrollTabell[[#This Row],[True/False A5 Enhet]]=\"\"), \"\", InputA1A3[[#This Row],[*DU/FU (EF A5.2)]] & \"/\" & InputA1A3[[#This Row],[Enhet för mängd (A5.2)]])","v":""},null,null,null,null,null,null,null,null,null,null,null,null,null,null,null,null,null,null,null,null,null,null,null,null,null,null,null,null,null,null,null,null,null,null,null,null,null,null,null,null,{"$f":"IF(ISBLANK(InputA1A3[[#This Row],[Anläggningsdel\n]]),FALSE,TRUE)","v":false},{"$f":"IF(ISBLANK(InputA1A3[[#This Row],[Anläggningsdel\n]]),\"\",IF(ISBLANK(InputA1A3[[#This Row],[Enhet Mängd (A1A3)]]),\"\",IF(ISBLANK(InputA1A3[[#This Row],[FU/DU (EF A1A3)]]),\"Värde Behövs\",IF(InputA1A3[[#This Row],[Enhet Mängd (A1A3)]] = InputA1A3[[#This Row],[FU/DU (EF A1A3)]], TRUE, FALSE))))","v":""},{"$f":"IF(KontrollTabell[[#This Row],[Finns anläggningsdel-namn.]]=FALSE,\"\",(IF(KontrollTabell[[#This Row],[True/False A1A3 Enhet]]=TRUE,TRUE,IF(OR(KontrollTabell[[#This Row],[True/False A1A3 Enhet]]=\"Värde Behövs\",(KontrollTabell[[#This Row],[True/False A1A3 Enhet]]=\"\")),\"\",IF(ISBLANK(InputA1A3[[#This Row],[Omräkning till FU/DU (Skriv in värde, ej formel)]]),FALSE,TRUE)))))","v":""},{"$f":"IF(KontrollTabell[[#This Row],[Finns anläggningsdel-namn.]]=FALSE,,IF(KontrollTabell[[#This Row],[True/False A1A3 Enhet]]=TRUE,InputA1A3[[#This Row],[Mängd A1A3]]*InputA1A3[[#This Row],[EF A1A3 '[kg CO₂-ekv.']]],IF(KontrollTabell[[#This Row],[True/False A1A3 om A1A3 kan beräknas]]=TRUE,InputA1A3[[#This Row],[Mängd A1A3]]*InputA1A3[[#This Row],[EF A1A3 '[kg CO₂-ekv.']]]*InputA1A3[[#This Row],[Omräkning till FU/DU (Skriv in värde, ej formel)]],0)))","v":0},{"$f":"IF(ISBLANK(InputA1A3[[#This Row],[Anläggningsdel\n]]),\"\",IF(ISBLANK(InputA1A3[[#This Row],[EPD - EF A4]]),FALSE,TRUE))","v":""},{"$f":"IF(InputA1A3[[#This Row],[*DU/FU (EF A4) för valt drivmedel (schablon)]]=\"\",\"\",IF(InputA1A3[[#This Row],[Enhet (bränsleförbrukning per km)]]=\"\",\"Värde Behövs\",IF(OR(InputA1A3[[#This Row],[Enhet (bränsleförbrukning per km)]]=InputA1A3[[#This Row],[*DU/FU (EF A4) för valt drivmedel (schablon)]],AND(InputA1A3[[#This Row],[Enhet (bränsleförbrukning per km)]]<>InputA1A3[[#This Row],[*DU/FU (EF A4) för valt drivmedel (schablon)]],ISNUMBER(InputA1A3[[#This Row],[Omräkningsfaktor (A4), (vid behov, värde eller formel)]]))),TRUE(),FALSE())))","v":""},{"$f":"IF(KontrollTabell[[#This Row],[Finns anläggningsdel-namn.]]=FALSE,\"\",(IF(InputA1A3[[#This Row],[Enhet (bränsleförbrukning per km)]] =InputA1A3[[#This Row],[*DU/FU (EF A4) för valt drivmedel (schablon)]],TRUE,IF(KontrollTabell[[#This Row],[True/False A4 - Alt 2]]=\"Värde Behövs\",\"\",IF(ISBLANK(InputA1A3[[#This Row],[Omräkningsfaktor (A4), (vid behov, värde eller formel)]]),FALSE,TRUE)))))","v":""},{"$f":"IF(ISBLANK(InputA1A3[[#This Row],[EPD - EF A4]]),\"\",IF(ISBLANK(InputA1A3[[#This Row],[Omräkning till FU/DU (Skriv in värde, ej formel)]]),InputA1A3[[#This Row],[EPD - EF A4]]*InputA1A3[[#This Row],[Mängd A1A3]],InputA1A3[[#This Row],[Mängd A1A3]]*InputA1A3[[#This Row],[Omräkning till FU/DU (Skriv in värde, ej formel)]]*InputA1A3[[#This Row],[EPD - EF A4]]))","v":""},{"$f":"IFERROR(IF(KontrollTabell[[#This Row],[True/False A4 - Alt 2]]=\"\",\"\",IF(KontrollTabell[[#This Row],[True/False A4 Enhet - Alt2]]=TRUE,\nIF(ISNUMBER(InputA1A3[[#This Row],[Omräkningsfaktor (A4), (vid behov, värde eller formel)]]),InputA1A3[[#This Row],[Sträcka - totalt '[km'], (tur och retur, alla transporter)]]*InputA1A3[[#This Row],[(Bränsle-) Förbrukning per km]]/InputA1A3[[#This Row],[Omräkningsfaktor (A4), (vid behov, värde eller formel)]]*InputA1A3[[#This Row],[*EF (A4)\n'[kg CO₂-ekv.']]],\nInputA1A3[[#This Row],[Sträcka - totalt '[km'], (tur och retur, alla transporter)]]*InputA1A3[[#This Row],[(Bränsle-) Förbrukning per km]]*InputA1A3[[#This Row],[*EF (A4)\n'[kg CO₂-ekv.']]]),\"Sen då\")),0)","v":""},{"$f":"SUM(KontrollTabell[[#This Row],[A4 - Resultat alt 1 '[kg']]:[A4 - Alt 2 - beräkning utsläpp]])","v":0},{"$f":"IF(KontrollTabell[[#This Row],[Finns anläggningsdel-namn.]]=FALSE,\"\",IF(ISBLANK(InputA1A3[[#This Row],[EPD - EF A4]]),FALSE,TRUE))","v":""},{"$f":"IFERROR(IF(KontrollTabell[[#This Row],[True/False A5]]=FALSE(),\"Enheter\",IF(ISBLANK(InputA1A3[[#This Row],[Omräkningsfaktor (A5.2) (ange värde), (vid behov)]]),InputA1A3[[#This Row],[Mängd (A5.2)]]*InputA1A3[[#This Row],[*EF (A5.2)\n'[kg CO₂-ekv.']]],InputA1A3[[#This Row],[Mängd (A5.2)]]*InputA1A3[[#This Row],[*EF (A5.2)\n'[kg CO₂-ekv.']]]*InputA1A3[[#This Row],[Omräkningsfaktor (A5.2) (ange värde), (vid behov)]])),0)","v":0},{"$f":"IF(InputA1A3[[#This Row],[*DU/FU (EF A5.2)]]=\"\",\"\",IF(InputA1A3[[#This Row],[Enhet för mängd (A5.2)]]=\"\",\"Värde Behövs\",IF(OR(InputA1A3[[#This Row],[Enhet för mängd (A5.2)]]=InputA1A3[[#This Row],[*DU/FU (EF A5.2)]],AND(InputA1A3[[#This Row],[Enhet för mängd (A5.2)]]<>InputA1A3[[#This Row],[*DU/FU (EF A5.2)]],ISNUMBER(InputA1A3[[#This Row],[Omräkningsfaktor (A5.2) (ange värde), (vid behov)]]))),TRUE,FALSE)))","v":""},{"$f":"IF(OR(KontrollTabell[[#This Row],[Finns anläggningsdel-namn.]]=FALSE,KontrollTabell[[#This Row],[True/False A5]]=\"Värde Behövs\"),\"\",IF(InputA1A3[[#This Row],[Enhet för mängd (A5.2)]] = InputA1A3[[#This Row],[*DU/FU (EF A5.2)]], TRUE, FALSE))","v":""},{"$f":"IF(KontrollTabell[[#This Row],[Finns anläggningsdel-namn.]]=FALSE,\"\",IF(OR(ISBLANK(InputA1A3[[#This Row],[Kategori\n(egen kategorisering)]])=FALSE,ISBLANK(InputA1A3[[#This Row],[Anläggningsdel\n]]))=FALSE,TRUE,FALSE))","v":""},{"$f":"IF(ISBLANK(InputA1A3[[#This Row],[Anläggningsdel\n]]),\"\",IF(KontrollTabell[[#This Row],[TRUE/FALSE om kategori saknas.]] =FALSE,InputA1A3[[#This Row],[Kategori\n(egen kategorisering)]],\"Kategori saknas\"))","v":""}]
[null,null,null,null,null,null,null,null,null,{"$f":"IF(ISBLANK(InputA1A3[[#This Row],[Anläggningsdel\n]]),\"\",IF(OR(KontrollTabell[[#This Row],[True/False A1A3 Enhet]]=TRUE,KontrollTabell[[#This Row],[True/False A1A3 Enhet]]=\"Värde Behövs\",KontrollTabell[[#This Row],[True/False A1A3 Enhet]]=\"\"), \"\", InputA1A3[[#This Row],[FU/DU (EF A1A3)]] & \"/\" & InputA1A3[[#This Row],[Enhet Mängd (A1A3)]]))","v":""},null,null,null,null,{"$f":"IF(ISBLANK(InputA1A3[[#This Row],[EPD - EF A4]]),\"\",InputA1A3[[#This Row],[FU/DU (EF A1A3)]])","v":""},null,null,null,null,{"$f":"IFERROR(INDEX(TabellEFDrivmedel[],MATCH(InputA1A3[[#This Row],[Drivmedel (A4) (endast förval ur lista)]],TabellEFDrivmedel[Drivmedel],0),4),\"\")","v":""},null,null,null,{"$f":"IF(InputA1A3[[#This Row],[*DU/FU (EF A4) för valt drivmedel (schablon)]]=\"\",\"\",IF(OR(InputA1A3[[#This Row],[*DU/FU (EF A4) för valt drivmedel (schablon)]]=InputA1A3[[#This Row],[Enhet (bränsleförbrukning per km)]],KontrollTabell[[#This Row],[True/False A4 - Alt 2]]=\"Värde Behövs\"),\"\",InputA1A3[[#This Row],[Enhet (bränsleförbrukning per km)]]& \"/\" & InputA1A3[[#This Row],[*DU/FU (EF A4) för valt drivmedel (schablon)]]))","v":""},null,null,null,null,null,null,null,{"$f":"IFERROR(INDEX(TabellEFDrivmedel[],MATCH(InputA1A3[[#This Row],[Drivmedel (A5.2)]],TabellEFDrivmedel[Drivmedel],0),2),\"\")","v":""},{"$f":"IFERROR(INDEX(TabellEFDrivmedel[],MATCH(InputA1A3[[#This Row],[Drivmedel (A5.2)]],TabellEFDrivmedel[Drivmedel],0),4),\"\")","v":""},{"$f":"IF(OR(KontrollTabell[[#This Row],[True/False A5 Enhet]]=TRUE,KontrollTabell[[#This Row],[True/False A5 Enhet]]=\"\"), \"\", InputA1A3[[#This Row],[*DU/FU (EF A5.2)]] & \"/\" & InputA1A3[[#This Row],[Enhet för mängd (A5.2)]])","v":""},null,null,null,null,null,null,null,null,null,null,null,null,null,null,null,null,null,null,null,null,null,null,null,null,null,null,null,null,null,null,null,null,null,null,null,null,null,null,null,null,{"$f":"IF(ISBLANK(InputA1A3[[#This Row],[Anläggningsdel\n]]),FALSE,TRUE)","v":false},{"$f":"IF(ISBLANK(InputA1A3[[#This Row],[Anläggningsdel\n]]),\"\",IF(ISBLANK(InputA1A3[[#This Row],[Enhet Mängd (A1A3)]]),\"\",IF(ISBLANK(InputA1A3[[#This Row],[FU/DU (EF A1A3)]]),\"Värde Behövs\",IF(InputA1A3[[#This Row],[Enhet Mängd (A1A3)]] = InputA1A3[[#This Row],[FU/DU (EF A1A3)]], TRUE, FALSE))))","v":""},{"$f":"IF(KontrollTabell[[#This Row],[Finns anläggningsdel-namn.]]=FALSE,\"\",(IF(KontrollTabell[[#This Row],[True/False A1A3 Enhet]]=TRUE,TRUE,IF(OR(KontrollTabell[[#This Row],[True/False A1A3 Enhet]]=\"Värde Behövs\",(KontrollTabell[[#This Row],[True/False A1A3 Enhet]]=\"\")),\"\",IF(ISBLANK(InputA1A3[[#This Row],[Omräkning till FU/DU (Skriv in värde, ej formel)]]),FALSE,TRUE)))))","v":""},{"$f":"IF(KontrollTabell[[#This Row],[Finns anläggningsdel-namn.]]=FALSE,,IF(KontrollTabell[[#This Row],[True/False A1A3 Enhet]]=TRUE,InputA1A3[[#This Row],[Mängd A1A3]]*InputA1A3[[#This Row],[EF A1A3 '[kg CO₂-ekv.']]],IF(KontrollTabell[[#This Row],[True/False A1A3 om A1A3 kan beräknas]]=TRUE,InputA1A3[[#This Row],[Mängd A1A3]]*InputA1A3[[#This Row],[EF A1A3 '[kg CO₂-ekv.']]]*InputA1A3[[#This Row],[Omräkning till FU/DU (Skriv in värde, ej formel)]],0)))","v":0},{"$f":"IF(ISBLANK(InputA1A3[[#This Row],[Anläggningsdel\n]]),\"\",IF(ISBLANK(InputA1A3[[#This Row],[EPD - EF A4]]),FALSE,TRUE))","v":""},{"$f":"IF(InputA1A3[[#This Row],[*DU/FU (EF A4) för valt drivmedel (schablon)]]=\"\",\"\",IF(InputA1A3[[#This Row],[Enhet (bränsleförbrukning per km)]]=\"\",\"Värde Behövs\",IF(OR(InputA1A3[[#This Row],[Enhet (bränsleförbrukning per km)]]=InputA1A3[[#This Row],[*DU/FU (EF A4) för valt drivmedel (schablon)]],AND(InputA1A3[[#This Row],[Enhet (bränsleförbrukning per km)]]<>InputA1A3[[#This Row],[*DU/FU (EF A4) för valt drivmedel (schablon)]],ISNUMBER(InputA1A3[[#This Row],[Omräkningsfaktor (A4), (vid behov, värde eller formel)]]))),TRUE(),FALSE())))","v":""},{"$f":"IF(KontrollTabell[[#This Row],[Finns anläggningsdel-namn.]]=FALSE,\"\",(IF(InputA1A3[[#This Row],[Enhet (bränsleförbrukning per km)]] =InputA1A3[[#This Row],[*DU/FU (EF A4) för valt drivmedel (schablon)]],TRUE,IF(KontrollTabell[[#This Row],[True/False A4 - Alt 2]]=\"Värde Behövs\",\"\",IF(ISBLANK(InputA1A3[[#This Row],[Omräkningsfaktor (A4), (vid behov, värde eller formel)]]),FALSE,TRUE)))))","v":""},{"$f":"IF(ISBLANK(InputA1A3[[#This Row],[EPD - EF A4]]),\"\",IF(ISBLANK(InputA1A3[[#This Row],[Omräkning till FU/DU (Skriv in värde, ej formel)]]),InputA1A3[[#This Row],[EPD - EF A4]]*InputA1A3[[#This Row],[Mängd A1A3]],InputA1A3[[#This Row],[Mängd A1A3]]*InputA1A3[[#This Row],[Omräkning till FU/DU (Skriv in värde, ej formel)]]*InputA1A3[[#This Row],[EPD - EF A4]]))","v":""},{"$f":"IFERROR(IF(KontrollTabell[[#This Row],[True/False A4 - Alt 2]]=\"\",\"\",IF(KontrollTabell[[#This Row],[True/False A4 Enhet - Alt2]]=TRUE,\nIF(ISNUMBER(InputA1A3[[#This Row],[Omräkningsfaktor (A4), (vid behov, värde eller formel)]]),InputA1A3[[#This Row],[Sträcka - totalt '[km'], (tur och retur, alla transporter)]]*InputA1A3[[#This Row],[(Bränsle-) Förbrukning per km]]/InputA1A3[[#This Row],[Omräkningsfaktor (A4), (vid behov, värde eller formel)]]*InputA1A3[[#This Row],[*EF (A4)\n'[kg CO₂-ekv.']]],\nInputA1A3[[#This Row],[Sträcka - totalt '[km'], (tur och retur, alla transporter)]]*InputA1A3[[#This Row],[(Bränsle-) Förbrukning per km]]*InputA1A3[[#This Row],[*EF (A4)\n'[kg CO₂-ekv.']]]),\"Sen då\")),0)","v":""},{"$f":"SUM(KontrollTabell[[#This Row],[A4 - Resultat alt 1 '[kg']]:[A4 - Alt 2 - beräkning utsläpp]])","v":0},{"$f":"IF(KontrollTabell[[#This Row],[Finns anläggningsdel-namn.]]=FALSE,\"\",IF(ISBLANK(InputA1A3[[#This Row],[EPD - EF A4]]),FALSE,TRUE))","v":""},{"$f":"IFERROR(IF(KontrollTabell[[#This Row],[True/False A5]]=FALSE(),\"Enheter\",IF(ISBLANK(InputA1A3[[#This Row],[Omräkningsfaktor (A5.2) (ange värde), (vid behov)]]),InputA1A3[[#This Row],[Mängd (A5.2)]]*InputA1A3[[#This Row],[*EF (A5.2)\n'[kg CO₂-ekv.']]],InputA1A3[[#This Row],[Mängd (A5.2)]]*InputA1A3[[#This Row],[*EF (A5.2)\n'[kg CO₂-ekv.']]]*InputA1A3[[#This Row],[Omräkningsfaktor (A5.2) (ange värde), (vid behov)]])),0)","v":0},{"$f":"IF(InputA1A3[[#This Row],[*DU/FU (EF A5.2)]]=\"\",\"\",IF(InputA1A3[[#This Row],[Enhet för mängd (A5.2)]]=\"\",\"Värde Behövs\",IF(OR(InputA1A3[[#This Row],[Enhet för mängd (A5.2)]]=InputA1A3[[#This Row],[*DU/FU (EF A5.2)]],AND(InputA1A3[[#This Row],[Enhet för mängd (A5.2)]]<>InputA1A3[[#This Row],[*DU/FU (EF A5.2)]],ISNUMBER(InputA1A3[[#This Row],[Omräkningsfaktor (A5.2) (ange värde), (vid behov)]]))),TRUE,FALSE)))","v":""},{"$f":"IF(OR(KontrollTabell[[#This Row],[Finns anläggningsdel-namn.]]=FALSE,KontrollTabell[[#This Row],[True/False A5]]=\"Värde Behövs\"),\"\",IF(InputA1A3[[#This Row],[Enhet för mängd (A5.2)]] = InputA1A3[[#This Row],[*DU/FU (EF A5.2)]], TRUE, FALSE))","v":""},{"$f":"IF(KontrollTabell[[#This Row],[Finns anläggningsdel-namn.]]=FALSE,\"\",IF(OR(ISBLANK(InputA1A3[[#This Row],[Kategori\n(egen kategorisering)]])=FALSE,ISBLANK(InputA1A3[[#This Row],[Anläggningsdel\n]]))=FALSE,TRUE,FALSE))","v":""},{"$f":"IF(ISBLANK(InputA1A3[[#This Row],[Anläggningsdel\n]]),\"\",IF(KontrollTabell[[#This Row],[TRUE/FALSE om kategori saknas.]] =FALSE,InputA1A3[[#This Row],[Kategori\n(egen kategorisering)]],\"Kategori saknas\"))","v":""}]
[null,null,null,null,null,null,null,null,null,{"$f":"IF(ISBLANK(InputA1A3[[#This Row],[Anläggningsdel\n]]),\"\",IF(OR(KontrollTabell[[#This Row],[True/False A1A3 Enhet]]=TRUE,KontrollTabell[[#This Row],[True/False A1A3 Enhet]]=\"Värde Behövs\",KontrollTabell[[#This Row],[True/False A1A3 Enhet]]=\"\"), \"\", InputA1A3[[#This Row],[FU/DU (EF A1A3)]] & \"/\" & InputA1A3[[#This Row],[Enhet Mängd (A1A3)]]))","v":""},null,null,null,null,{"$f":"IF(ISBLANK(InputA1A3[[#This Row],[EPD - EF A4]]),\"\",InputA1A3[[#This Row],[FU/DU (EF A1A3)]])","v":""},null,null,null,null,{"$f":"IFERROR(INDEX(TabellEFDrivmedel[],MATCH(InputA1A3[[#This Row],[Drivmedel (A4) (endast förval ur lista)]],TabellEFDrivmedel[Drivmedel],0),4),\"\")","v":""},null,null,null,{"$f":"IF(InputA1A3[[#This Row],[*DU/FU (EF A4) för valt drivmedel (schablon)]]=\"\",\"\",IF(OR(InputA1A3[[#This Row],[*DU/FU (EF A4) för valt drivmedel (schablon)]]=InputA1A3[[#This Row],[Enhet (bränsleförbrukning per km)]],KontrollTabell[[#This Row],[True/False A4 - Alt 2]]=\"Värde Behövs\"),\"\",InputA1A3[[#This Row],[Enhet (bränsleförbrukning per km)]]& \"/\" & InputA1A3[[#This Row],[*DU/FU (EF A4) för valt drivmedel (schablon)]]))","v":""},null,null,null,null,null,null,null,{"$f":"IFERROR(INDEX(TabellEFDrivmedel[],MATCH(InputA1A3[[#This Row],[Drivmedel (A5.2)]],TabellEFDrivmedel[Drivmedel],0),2),\"\")","v":""},{"$f":"IFERROR(INDEX(TabellEFDrivmedel[],MATCH(InputA1A3[[#This Row],[Drivmedel (A5.2)]],TabellEFDrivmedel[Drivmedel],0),4),\"\")","v":""},{"$f":"IF(OR(KontrollTabell[[#This Row],[True/False A5 Enhet]]=TRUE,KontrollTabell[[#This Row],[True/False A5 Enhet]]=\"\"), \"\", InputA1A3[[#This Row],[*DU/FU (EF A5.2)]] & \"/\" & InputA1A3[[#This Row],[Enhet för mängd (A5.2)]])","v":""},null,null,null,null,null,null,null,null,null,null,null,null,null,null,null,null,null,null,null,null,null,null,null,null,null,null,null,null,null,null,null,null,null,null,null,null,null,null,null,null,{"$f":"IF(ISBLANK(InputA1A3[[#This Row],[Anläggningsdel\n]]),FALSE,TRUE)","v":false},{"$f":"IF(ISBLANK(InputA1A3[[#This Row],[Anläggningsdel\n]]),\"\",IF(ISBLANK(InputA1A3[[#This Row],[Enhet Mängd (A1A3)]]),\"\",IF(ISBLANK(InputA1A3[[#This Row],[FU/DU (EF A1A3)]]),\"Värde Behövs\",IF(InputA1A3[[#This Row],[Enhet Mängd (A1A3)]] = InputA1A3[[#This Row],[FU/DU (EF A1A3)]], TRUE, FALSE))))","v":""},{"$f":"IF(KontrollTabell[[#This Row],[Finns anläggningsdel-namn.]]=FALSE,\"\",(IF(KontrollTabell[[#This Row],[True/False A1A3 Enhet]]=TRUE,TRUE,IF(OR(KontrollTabell[[#This Row],[True/False A1A3 Enhet]]=\"Värde Behövs\",(KontrollTabell[[#This Row],[True/False A1A3 Enhet]]=\"\")),\"\",IF(ISBLANK(InputA1A3[[#This Row],[Omräkning till FU/DU (Skriv in värde, ej formel)]]),FALSE,TRUE)))))","v":""},{"$f":"IF(KontrollTabell[[#This Row],[Finns anläggningsdel-namn.]]=FALSE,,IF(KontrollTabell[[#This Row],[True/False A1A3 Enhet]]=TRUE,InputA1A3[[#This Row],[Mängd A1A3]]*InputA1A3[[#This Row],[EF A1A3 '[kg CO₂-ekv.']]],IF(KontrollTabell[[#This Row],[True/False A1A3 om A1A3 kan beräknas]]=TRUE,InputA1A3[[#This Row],[Mängd A1A3]]*InputA1A3[[#This Row],[EF A1A3 '[kg CO₂-ekv.']]]*InputA1A3[[#This Row],[Omräkning till FU/DU (Skriv in värde, ej formel)]],0)))","v":0},{"$f":"IF(ISBLANK(InputA1A3[[#This Row],[Anläggningsdel\n]]),\"\",IF(ISBLANK(InputA1A3[[#This Row],[EPD - EF A4]]),FALSE,TRUE))","v":""},{"$f":"IF(InputA1A3[[#This Row],[*DU/FU (EF A4) för valt drivmedel (schablon)]]=\"\",\"\",IF(InputA1A3[[#This Row],[Enhet (bränsleförbrukning per km)]]=\"\",\"Värde Behövs\",IF(OR(InputA1A3[[#This Row],[Enhet (bränsleförbrukning per km)]]=InputA1A3[[#This Row],[*DU/FU (EF A4) för valt drivmedel (schablon)]],AND(InputA1A3[[#This Row],[Enhet (bränsleförbrukning per km)]]<>InputA1A3[[#This Row],[*DU/FU (EF A4) för valt drivmedel (schablon)]],ISNUMBER(InputA1A3[[#This Row],[Omräkningsfaktor (A4), (vid behov, värde eller formel)]]))),TRUE(),FALSE())))","v":""},{"$f":"IF(KontrollTabell[[#This Row],[Finns anläggningsdel-namn.]]=FALSE,\"\",(IF(InputA1A3[[#This Row],[Enhet (bränsleförbrukning per km)]] =InputA1A3[[#This Row],[*DU/FU (EF A4) för valt drivmedel (schablon)]],TRUE,IF(KontrollTabell[[#This Row],[True/False A4 - Alt 2]]=\"Värde Behövs\",\"\",IF(ISBLANK(InputA1A3[[#This Row],[Omräkningsfaktor (A4), (vid behov, värde eller formel)]]),FALSE,TRUE)))))","v":""},{"$f":"IF(ISBLANK(InputA1A3[[#This Row],[EPD - EF A4]]),\"\",IF(ISBLANK(InputA1A3[[#This Row],[Omräkning till FU/DU (Skriv in värde, ej formel)]]),InputA1A3[[#This Row],[EPD - EF A4]]*InputA1A3[[#This Row],[Mängd A1A3]],InputA1A3[[#This Row],[Mängd A1A3]]*InputA1A3[[#This Row],[Omräkning till FU/DU (Skriv in värde, ej formel)]]*InputA1A3[[#This Row],[EPD - EF A4]]))","v":""},{"$f":"IFERROR(IF(KontrollTabell[[#This Row],[True/False A4 - Alt 2]]=\"\",\"\",IF(KontrollTabell[[#This Row],[True/False A4 Enhet - Alt2]]=TRUE,\nIF(ISNUMBER(InputA1A3[[#This Row],[Omräkningsfaktor (A4), (vid behov, värde eller formel)]]),InputA1A3[[#This Row],[Sträcka - totalt '[km'], (tur och retur, alla transporter)]]*InputA1A3[[#This Row],[(Bränsle-) Förbrukning per km]]/InputA1A3[[#This Row],[Omräkningsfaktor (A4), (vid behov, värde eller formel)]]*InputA1A3[[#This Row],[*EF (A4)\n'[kg CO₂-ekv.']]],\nInputA1A3[[#This Row],[Sträcka - totalt '[km'], (tur och retur, alla transporter)]]*InputA1A3[[#This Row],[(Bränsle-) Förbrukning per km]]*InputA1A3[[#This Row],[*EF (A4)\n'[kg CO₂-ekv.']]]),\"Sen då\")),0)","v":""},{"$f":"SUM(KontrollTabell[[#This Row],[A4 - Resultat alt 1 '[kg']]:[A4 - Alt 2 - beräkning utsläpp]])","v":0},{"$f":"IF(KontrollTabell[[#This Row],[Finns anläggningsdel-namn.]]=FALSE,\"\",IF(ISBLANK(InputA1A3[[#This Row],[EPD - EF A4]]),FALSE,TRUE))","v":""},{"$f":"IFERROR(IF(KontrollTabell[[#This Row],[True/False A5]]=FALSE(),\"Enheter\",IF(ISBLANK(InputA1A3[[#This Row],[Omräkningsfaktor (A5.2) (ange värde), (vid behov)]]),InputA1A3[[#This Row],[Mängd (A5.2)]]*InputA1A3[[#This Row],[*EF (A5.2)\n'[kg CO₂-ekv.']]],InputA1A3[[#This Row],[Mängd (A5.2)]]*InputA1A3[[#This Row],[*EF (A5.2)\n'[kg CO₂-ekv.']]]*InputA1A3[[#This Row],[Omräkningsfaktor (A5.2) (ange värde), (vid behov)]])),0)","v":0},{"$f":"IF(InputA1A3[[#This Row],[*DU/FU (EF A5.2)]]=\"\",\"\",IF(InputA1A3[[#This Row],[Enhet för mängd (A5.2)]]=\"\",\"Värde Behövs\",IF(OR(InputA1A3[[#This Row],[Enhet för mängd (A5.2)]]=InputA1A3[[#This Row],[*DU/FU (EF A5.2)]],AND(InputA1A3[[#This Row],[Enhet för mängd (A5.2)]]<>InputA1A3[[#This Row],[*DU/FU (EF A5.2)]],ISNUMBER(InputA1A3[[#This Row],[Omräkningsfaktor (A5.2) (ange värde), (vid behov)]]))),TRUE,FALSE)))","v":""},{"$f":"IF(OR(KontrollTabell[[#This Row],[Finns anläggningsdel-namn.]]=FALSE,KontrollTabell[[#This Row],[True/False A5]]=\"Värde Behövs\"),\"\",IF(InputA1A3[[#This Row],[Enhet för mängd (A5.2)]] = InputA1A3[[#This Row],[*DU/FU (EF A5.2)]], TRUE, FALSE))","v":""},{"$f":"IF(KontrollTabell[[#This Row],[Finns anläggningsdel-namn.]]=FALSE,\"\",IF(OR(ISBLANK(InputA1A3[[#This Row],[Kategori\n(egen kategorisering)]])=FALSE,ISBLANK(InputA1A3[[#This Row],[Anläggningsdel\n]]))=FALSE,TRUE,FALSE))","v":""},{"$f":"IF(ISBLANK(InputA1A3[[#This Row],[Anläggningsdel\n]]),\"\",IF(KontrollTabell[[#This Row],[TRUE/FALSE om kategori saknas.]] =FALSE,InputA1A3[[#This Row],[Kategori\n(egen kategorisering)]],\"Kategori saknas\"))","v":""}]
[null,null,null,null,null,null,null,null,null,{"$f":"IF(ISBLANK(InputA1A3[[#This Row],[Anläggningsdel\n]]),\"\",IF(OR(KontrollTabell[[#This Row],[True/False A1A3 Enhet]]=TRUE,KontrollTabell[[#This Row],[True/False A1A3 Enhet]]=\"Värde Behövs\",KontrollTabell[[#This Row],[True/False A1A3 Enhet]]=\"\"), \"\", InputA1A3[[#This Row],[FU/DU (EF A1A3)]] & \"/\" & InputA1A3[[#This Row],[Enhet Mängd (A1A3)]]))","v":""},null,null,null,null,{"$f":"IF(ISBLANK(InputA1A3[[#This Row],[EPD - EF A4]]),\"\",InputA1A3[[#This Row],[FU/DU (EF A1A3)]])","v":""},null,null,null,null,{"$f":"IFERROR(INDEX(TabellEFDrivmedel[],MATCH(InputA1A3[[#This Row],[Drivmedel (A4) (endast förval ur lista)]],TabellEFDrivmedel[Drivmedel],0),4),\"\")","v":""},null,null,null,{"$f":"IF(InputA1A3[[#This Row],[*DU/FU (EF A4) för valt drivmedel (schablon)]]=\"\",\"\",IF(OR(InputA1A3[[#This Row],[*DU/FU (EF A4) för valt drivmedel (schablon)]]=InputA1A3[[#This Row],[Enhet (bränsleförbrukning per km)]],KontrollTabell[[#This Row],[True/False A4 - Alt 2]]=\"Värde Behövs\"),\"\",InputA1A3[[#This Row],[Enhet (bränsleförbrukning per km)]]& \"/\" & InputA1A3[[#This Row],[*DU/FU (EF A4) för valt drivmedel (schablon)]]))","v":""},null,null,null,null,null,null,null,{"$f":"IFERROR(INDEX(TabellEFDrivmedel[],MATCH(InputA1A3[[#This Row],[Drivmedel (A5.2)]],TabellEFDrivmedel[Drivmedel],0),2),\"\")","v":""},{"$f":"IFERROR(INDEX(TabellEFDrivmedel[],MATCH(InputA1A3[[#This Row],[Drivmedel (A5.2)]],TabellEFDrivmedel[Drivmedel],0),4),\"\")","v":""},{"$f":"IF(OR(KontrollTabell[[#This Row],[True/False A5 Enhet]]=TRUE,KontrollTabell[[#This Row],[True/False A5 Enhet]]=\"\"), \"\", InputA1A3[[#This Row],[*DU/FU (EF A5.2)]] & \"/\" & InputA1A3[[#This Row],[Enhet för mängd (A5.2)]])","v":""},null,null,null,null,null,null,null,null,null,null,null,null,null,null,null,null,null,null,null,null,null,null,null,null,null,null,null,null,null,null,null,null,null,null,null,null,null,null,null,null,{"$f":"IF(ISBLANK(InputA1A3[[#This Row],[Anläggningsdel\n]]),FALSE,TRUE)","v":false},{"$f":"IF(ISBLANK(InputA1A3[[#This Row],[Anläggningsdel\n]]),\"\",IF(ISBLANK(InputA1A3[[#This Row],[Enhet Mängd (A1A3)]]),\"\",IF(ISBLANK(InputA1A3[[#This Row],[FU/DU (EF A1A3)]]),\"Värde Behövs\",IF(InputA1A3[[#This Row],[Enhet Mängd (A1A3)]] = InputA1A3[[#This Row],[FU/DU (EF A1A3)]], TRUE, FALSE))))","v":""},{"$f":"IF(KontrollTabell[[#This Row],[Finns anläggningsdel-namn.]]=FALSE,\"\",(IF(KontrollTabell[[#This Row],[True/False A1A3 Enhet]]=TRUE,TRUE,IF(OR(KontrollTabell[[#This Row],[True/False A1A3 Enhet]]=\"Värde Behövs\",(KontrollTabell[[#This Row],[True/False A1A3 Enhet]]=\"\")),\"\",IF(ISBLANK(InputA1A3[[#This Row],[Omräkning till FU/DU (Skriv in värde, ej formel)]]),FALSE,TRUE)))))","v":""},{"$f":"IF(KontrollTabell[[#This Row],[Finns anläggningsdel-namn.]]=FALSE,,IF(KontrollTabell[[#This Row],[True/False A1A3 Enhet]]=TRUE,InputA1A3[[#This Row],[Mängd A1A3]]*InputA1A3[[#This Row],[EF A1A3 '[kg CO₂-ekv.']]],IF(KontrollTabell[[#This Row],[True/False A1A3 om A1A3 kan beräknas]]=TRUE,InputA1A3[[#This Row],[Mängd A1A3]]*InputA1A3[[#This Row],[EF A1A3 '[kg CO₂-ekv.']]]*InputA1A3[[#This Row],[Omräkning till FU/DU (Skriv in värde, ej formel)]],0)))","v":0},{"$f":"IF(ISBLANK(InputA1A3[[#This Row],[Anläggningsdel\n]]),\"\",IF(ISBLANK(InputA1A3[[#This Row],[EPD - EF A4]]),FALSE,TRUE))","v":""},{"$f":"IF(InputA1A3[[#This Row],[*DU/FU (EF A4) för valt drivmedel (schablon)]]=\"\",\"\",IF(InputA1A3[[#This Row],[Enhet (bränsleförbrukning per km)]]=\"\",\"Värde Behövs\",IF(OR(InputA1A3[[#This Row],[Enhet (bränsleförbrukning per km)]]=InputA1A3[[#This Row],[*DU/FU (EF A4) för valt drivmedel (schablon)]],AND(InputA1A3[[#This Row],[Enhet (bränsleförbrukning per km)]]<>InputA1A3[[#This Row],[*DU/FU (EF A4) för valt drivmedel (schablon)]],ISNUMBER(InputA1A3[[#This Row],[Omräkningsfaktor (A4), (vid behov, värde eller formel)]]))),TRUE(),FALSE())))","v":""},{"$f":"IF(KontrollTabell[[#This Row],[Finns anläggningsdel-namn.]]=FALSE,\"\",(IF(InputA1A3[[#This Row],[Enhet (bränsleförbrukning per km)]] =InputA1A3[[#This Row],[*DU/FU (EF A4) för valt drivmedel (schablon)]],TRUE,IF(KontrollTabell[[#This Row],[True/False A4 - Alt 2]]=\"Värde Behövs\",\"\",IF(ISBLANK(InputA1A3[[#This Row],[Omräkningsfaktor (A4), (vid behov, värde eller formel)]]),FALSE,TRUE)))))","v":""},{"$f":"IF(ISBLANK(InputA1A3[[#This Row],[EPD - EF A4]]),\"\",IF(ISBLANK(InputA1A3[[#This Row],[Omräkning till FU/DU (Skriv in värde, ej formel)]]),InputA1A3[[#This Row],[EPD - EF A4]]*InputA1A3[[#This Row],[Mängd A1A3]],InputA1A3[[#This Row],[Mängd A1A3]]*InputA1A3[[#This Row],[Omräkning till FU/DU (Skriv in värde, ej formel)]]*InputA1A3[[#This Row],[EPD - EF A4]]))","v":""},{"$f":"IFERROR(IF(KontrollTabell[[#This Row],[True/False A4 - Alt 2]]=\"\",\"\",IF(KontrollTabell[[#This Row],[True/False A4 Enhet - Alt2]]=TRUE,\nIF(ISNUMBER(InputA1A3[[#This Row],[Omräkningsfaktor (A4), (vid behov, värde eller formel)]]),InputA1A3[[#This Row],[Sträcka - totalt '[km'], (tur och retur, alla transporter)]]*InputA1A3[[#This Row],[(Bränsle-) Förbrukning per km]]/InputA1A3[[#This Row],[Omräkningsfaktor (A4), (vid behov, värde eller formel)]]*InputA1A3[[#This Row],[*EF (A4)\n'[kg CO₂-ekv.']]],\nInputA1A3[[#This Row],[Sträcka - totalt '[km'], (tur och retur, alla transporter)]]*InputA1A3[[#This Row],[(Bränsle-) Förbrukning per km]]*InputA1A3[[#This Row],[*EF (A4)\n'[kg CO₂-ekv.']]]),\"Sen då\")),0)","v":""},{"$f":"SUM(KontrollTabell[[#This Row],[A4 - Resultat alt 1 '[kg']]:[A4 - Alt 2 - beräkning utsläpp]])","v":0},{"$f":"IF(KontrollTabell[[#This Row],[Finns anläggningsdel-namn.]]=FALSE,\"\",IF(ISBLANK(InputA1A3[[#This Row],[EPD - EF A4]]),FALSE,TRUE))","v":""},{"$f":"IFERROR(IF(KontrollTabell[[#This Row],[True/False A5]]=FALSE(),\"Enheter\",IF(ISBLANK(InputA1A3[[#This Row],[Omräkningsfaktor (A5.2) (ange värde), (vid behov)]]),InputA1A3[[#This Row],[Mängd (A5.2)]]*InputA1A3[[#This Row],[*EF (A5.2)\n'[kg CO₂-ekv.']]],InputA1A3[[#This Row],[Mängd (A5.2)]]*InputA1A3[[#This Row],[*EF (A5.2)\n'[kg CO₂-ekv.']]]*InputA1A3[[#This Row],[Omräkningsfaktor (A5.2) (ange värde), (vid behov)]])),0)","v":0},{"$f":"IF(InputA1A3[[#This Row],[*DU/FU (EF A5.2)]]=\"\",\"\",IF(InputA1A3[[#This Row],[Enhet för mängd (A5.2)]]=\"\",\"Värde Behövs\",IF(OR(InputA1A3[[#This Row],[Enhet för mängd (A5.2)]]=InputA1A3[[#This Row],[*DU/FU (EF A5.2)]],AND(InputA1A3[[#This Row],[Enhet för mängd (A5.2)]]<>InputA1A3[[#This Row],[*DU/FU (EF A5.2)]],ISNUMBER(InputA1A3[[#This Row],[Omräkningsfaktor (A5.2) (ange värde), (vid behov)]]))),TRUE,FALSE)))","v":""},{"$f":"IF(OR(KontrollTabell[[#This Row],[Finns anläggningsdel-namn.]]=FALSE,KontrollTabell[[#This Row],[True/False A5]]=\"Värde Behövs\"),\"\",IF(InputA1A3[[#This Row],[Enhet för mängd (A5.2)]] = InputA1A3[[#This Row],[*DU/FU (EF A5.2)]], TRUE, FALSE))","v":""},{"$f":"IF(KontrollTabell[[#This Row],[Finns anläggningsdel-namn.]]=FALSE,\"\",IF(OR(ISBLANK(InputA1A3[[#This Row],[Kategori\n(egen kategorisering)]])=FALSE,ISBLANK(InputA1A3[[#This Row],[Anläggningsdel\n]]))=FALSE,TRUE,FALSE))","v":""},{"$f":"IF(ISBLANK(InputA1A3[[#This Row],[Anläggningsdel\n]]),\"\",IF(KontrollTabell[[#This Row],[TRUE/FALSE om kategori saknas.]] =FALSE,InputA1A3[[#This Row],[Kategori\n(egen kategorisering)]],\"Kategori saknas\"))","v":""}]
[null,null,null,null,null,null,null,null,null,{"$f":"IF(ISBLANK(InputA1A3[[#This Row],[Anläggningsdel\n]]),\"\",IF(OR(KontrollTabell[[#This Row],[True/False A1A3 Enhet]]=TRUE,KontrollTabell[[#This Row],[True/False A1A3 Enhet]]=\"Värde Behövs\",KontrollTabell[[#This Row],[True/False A1A3 Enhet]]=\"\"), \"\", InputA1A3[[#This Row],[FU/DU (EF A1A3)]] & \"/\" & InputA1A3[[#This Row],[Enhet Mängd (A1A3)]]))","v":""},null,null,null,null,{"$f":"IF(ISBLANK(InputA1A3[[#This Row],[EPD - EF A4]]),\"\",InputA1A3[[#This Row],[FU/DU (EF A1A3)]])","v":""},null,null,null,null,{"$f":"IFERROR(INDEX(TabellEFDrivmedel[],MATCH(InputA1A3[[#This Row],[Drivmedel (A4) (endast förval ur lista)]],TabellEFDrivmedel[Drivmedel],0),4),\"\")","v":""},null,null,null,{"$f":"IF(InputA1A3[[#This Row],[*DU/FU (EF A4) för valt drivmedel (schablon)]]=\"\",\"\",IF(OR(InputA1A3[[#This Row],[*DU/FU (EF A4) för valt drivmedel (schablon)]]=InputA1A3[[#This Row],[Enhet (bränsleförbrukning per km)]],KontrollTabell[[#This Row],[True/False A4 - Alt 2]]=\"Värde Behövs\"),\"\",InputA1A3[[#This Row],[Enhet (bränsleförbrukning per km)]]& \"/\" & InputA1A3[[#This Row],[*DU/FU (EF A4) för valt drivmedel (schablon)]]))","v":""},null,null,null,null,null,null,null,{"$f":"IFERROR(INDEX(TabellEFDrivmedel[],MATCH(InputA1A3[[#This Row],[Drivmedel (A5.2)]],TabellEFDrivmedel[Drivmedel],0),2),\"\")","v":""},{"$f":"IFERROR(INDEX(TabellEFDrivmedel[],MATCH(InputA1A3[[#This Row],[Drivmedel (A5.2)]],TabellEFDrivmedel[Drivmedel],0),4),\"\")","v":""},{"$f":"IF(OR(KontrollTabell[[#This Row],[True/False A5 Enhet]]=TRUE,KontrollTabell[[#This Row],[True/False A5 Enhet]]=\"\"), \"\", InputA1A3[[#This Row],[*DU/FU (EF A5.2)]] & \"/\" & InputA1A3[[#This Row],[Enhet för mängd (A5.2)]])","v":""},null,null,null,null,null,null,null,null,null,null,null,null,null,null,null,null,null,null,null,null,null,null,null,null,null,null,null,null,null,null,null,null,null,null,null,null,null,null,null,null,{"$f":"IF(ISBLANK(InputA1A3[[#This Row],[Anläggningsdel\n]]),FALSE,TRUE)","v":false},{"$f":"IF(ISBLANK(InputA1A3[[#This Row],[Anläggningsdel\n]]),\"\",IF(ISBLANK(InputA1A3[[#This Row],[Enhet Mängd (A1A3)]]),\"\",IF(ISBLANK(InputA1A3[[#This Row],[FU/DU (EF A1A3)]]),\"Värde Behövs\",IF(InputA1A3[[#This Row],[Enhet Mängd (A1A3)]] = InputA1A3[[#This Row],[FU/DU (EF A1A3)]], TRUE, FALSE))))","v":""},{"$f":"IF(KontrollTabell[[#This Row],[Finns anläggningsdel-namn.]]=FALSE,\"\",(IF(KontrollTabell[[#This Row],[True/False A1A3 Enhet]]=TRUE,TRUE,IF(OR(KontrollTabell[[#This Row],[True/False A1A3 Enhet]]=\"Värde Behövs\",(KontrollTabell[[#This Row],[True/False A1A3 Enhet]]=\"\")),\"\",IF(ISBLANK(InputA1A3[[#This Row],[Omräkning till FU/DU (Skriv in värde, ej formel)]]),FALSE,TRUE)))))","v":""},{"$f":"IF(KontrollTabell[[#This Row],[Finns anläggningsdel-namn.]]=FALSE,,IF(KontrollTabell[[#This Row],[True/False A1A3 Enhet]]=TRUE,InputA1A3[[#This Row],[Mängd A1A3]]*InputA1A3[[#This Row],[EF A1A3 '[kg CO₂-ekv.']]],IF(KontrollTabell[[#This Row],[True/False A1A3 om A1A3 kan beräknas]]=TRUE,InputA1A3[[#This Row],[Mängd A1A3]]*InputA1A3[[#This Row],[EF A1A3 '[kg CO₂-ekv.']]]*InputA1A3[[#This Row],[Omräkning till FU/DU (Skriv in värde, ej formel)]],0)))","v":0},{"$f":"IF(ISBLANK(InputA1A3[[#This Row],[Anläggningsdel\n]]),\"\",IF(ISBLANK(InputA1A3[[#This Row],[EPD - EF A4]]),FALSE,TRUE))","v":""},{"$f":"IF(InputA1A3[[#This Row],[*DU/FU (EF A4) för valt drivmedel (schablon)]]=\"\",\"\",IF(InputA1A3[[#This Row],[Enhet (bränsleförbrukning per km)]]=\"\",\"Värde Behövs\",IF(OR(InputA1A3[[#This Row],[Enhet (bränsleförbrukning per km)]]=InputA1A3[[#This Row],[*DU/FU (EF A4) för valt drivmedel (schablon)]],AND(InputA1A3[[#This Row],[Enhet (bränsleförbrukning per km)]]<>InputA1A3[[#This Row],[*DU/FU (EF A4) för valt drivmedel (schablon)]],ISNUMBER(InputA1A3[[#This Row],[Omräkningsfaktor (A4), (vid behov, värde eller formel)]]))),TRUE(),FALSE())))","v":""},{"$f":"IF(KontrollTabell[[#This Row],[Finns anläggningsdel-namn.]]=FALSE,\"\",(IF(InputA1A3[[#This Row],[Enhet (bränsleförbrukning per km)]] =InputA1A3[[#This Row],[*DU/FU (EF A4) för valt drivmedel (schablon)]],TRUE,IF(KontrollTabell[[#This Row],[True/False A4 - Alt 2]]=\"Värde Behövs\",\"\",IF(ISBLANK(InputA1A3[[#This Row],[Omräkningsfaktor (A4), (vid behov, värde eller formel)]]),FALSE,TRUE)))))","v":""},{"$f":"IF(ISBLANK(InputA1A3[[#This Row],[EPD - EF A4]]),\"\",IF(ISBLANK(InputA1A3[[#This Row],[Omräkning till FU/DU (Skriv in värde, ej formel)]]),InputA1A3[[#This Row],[EPD - EF A4]]*InputA1A3[[#This Row],[Mängd A1A3]],InputA1A3[[#This Row],[Mängd A1A3]]*InputA1A3[[#This Row],[Omräkning till FU/DU (Skriv in värde, ej formel)]]*InputA1A3[[#This Row],[EPD - EF A4]]))","v":""},{"$f":"IFERROR(IF(KontrollTabell[[#This Row],[True/False A4 - Alt 2]]=\"\",\"\",IF(KontrollTabell[[#This Row],[True/False A4 Enhet - Alt2]]=TRUE,\nIF(ISNUMBER(InputA1A3[[#This Row],[Omräkningsfaktor (A4), (vid behov, värde eller formel)]]),InputA1A3[[#This Row],[Sträcka - totalt '[km'], (tur och retur, alla transporter)]]*InputA1A3[[#This Row],[(Bränsle-) Förbrukning per km]]/InputA1A3[[#This Row],[Omräkningsfaktor (A4), (vid behov, värde eller formel)]]*InputA1A3[[#This Row],[*EF (A4)\n'[kg CO₂-ekv.']]],\nInputA1A3[[#This Row],[Sträcka - totalt '[km'], (tur och retur, alla transporter)]]*InputA1A3[[#This Row],[(Bränsle-) Förbrukning per km]]*InputA1A3[[#This Row],[*EF (A4)\n'[kg CO₂-ekv.']]]),\"Sen då\")),0)","v":""},{"$f":"SUM(KontrollTabell[[#This Row],[A4 - Resultat alt 1 '[kg']]:[A4 - Alt 2 - beräkning utsläpp]])","v":0},{"$f":"IF(KontrollTabell[[#This Row],[Finns anläggningsdel-namn.]]=FALSE,\"\",IF(ISBLANK(InputA1A3[[#This Row],[EPD - EF A4]]),FALSE,TRUE))","v":""},{"$f":"IFERROR(IF(KontrollTabell[[#This Row],[True/False A5]]=FALSE(),\"Enheter\",IF(ISBLANK(InputA1A3[[#This Row],[Omräkningsfaktor (A5.2) (ange värde), (vid behov)]]),InputA1A3[[#This Row],[Mängd (A5.2)]]*InputA1A3[[#This Row],[*EF (A5.2)\n'[kg CO₂-ekv.']]],InputA1A3[[#This Row],[Mängd (A5.2)]]*InputA1A3[[#This Row],[*EF (A5.2)\n'[kg CO₂-ekv.']]]*InputA1A3[[#This Row],[Omräkningsfaktor (A5.2) (ange värde), (vid behov)]])),0)","v":0},{"$f":"IF(InputA1A3[[#This Row],[*DU/FU (EF A5.2)]]=\"\",\"\",IF(InputA1A3[[#This Row],[Enhet för mängd (A5.2)]]=\"\",\"Värde Behövs\",IF(OR(InputA1A3[[#This Row],[Enhet för mängd (A5.2)]]=InputA1A3[[#This Row],[*DU/FU (EF A5.2)]],AND(InputA1A3[[#This Row],[Enhet för mängd (A5.2)]]<>InputA1A3[[#This Row],[*DU/FU (EF A5.2)]],ISNUMBER(InputA1A3[[#This Row],[Omräkningsfaktor (A5.2) (ange värde), (vid behov)]]))),TRUE,FALSE)))","v":""},{"$f":"IF(OR(KontrollTabell[[#This Row],[Finns anläggningsdel-namn.]]=FALSE,KontrollTabell[[#This Row],[True/False A5]]=\"Värde Behövs\"),\"\",IF(InputA1A3[[#This Row],[Enhet för mängd (A5.2)]] = InputA1A3[[#This Row],[*DU/FU (EF A5.2)]], TRUE, FALSE))","v":""},{"$f":"IF(KontrollTabell[[#This Row],[Finns anläggningsdel-namn.]]=FALSE,\"\",IF(OR(ISBLANK(InputA1A3[[#This Row],[Kategori\n(egen kategorisering)]])=FALSE,ISBLANK(InputA1A3[[#This Row],[Anläggningsdel\n]]))=FALSE,TRUE,FALSE))","v":""},{"$f":"IF(ISBLANK(InputA1A3[[#This Row],[Anläggningsdel\n]]),\"\",IF(KontrollTabell[[#This Row],[TRUE/FALSE om kategori saknas.]] =FALSE,InputA1A3[[#This Row],[Kategori\n(egen kategorisering)]],\"Kategori saknas\"))","v":""}]
[null,null,null,null,null,null,null,null,null,{"$f":"IF(ISBLANK(InputA1A3[[#This Row],[Anläggningsdel\n]]),\"\",IF(OR(KontrollTabell[[#This Row],[True/False A1A3 Enhet]]=TRUE,KontrollTabell[[#This Row],[True/False A1A3 Enhet]]=\"Värde Behövs\",KontrollTabell[[#This Row],[True/False A1A3 Enhet]]=\"\"), \"\", InputA1A3[[#This Row],[FU/DU (EF A1A3)]] & \"/\" & InputA1A3[[#This Row],[Enhet Mängd (A1A3)]]))","v":""},null,null,null,null,{"$f":"IF(ISBLANK(InputA1A3[[#This Row],[EPD - EF A4]]),\"\",InputA1A3[[#This Row],[FU/DU (EF A1A3)]])","v":""},null,null,null,null,{"$f":"IFERROR(INDEX(TabellEFDrivmedel[],MATCH(InputA1A3[[#This Row],[Drivmedel (A4) (endast förval ur lista)]],TabellEFDrivmedel[Drivmedel],0),4),\"\")","v":""},null,null,null,{"$f":"IF(InputA1A3[[#This Row],[*DU/FU (EF A4) för valt drivmedel (schablon)]]=\"\",\"\",IF(OR(InputA1A3[[#This Row],[*DU/FU (EF A4) för valt drivmedel (schablon)]]=InputA1A3[[#This Row],[Enhet (bränsleförbrukning per km)]],KontrollTabell[[#This Row],[True/False A4 - Alt 2]]=\"Värde Behövs\"),\"\",InputA1A3[[#This Row],[Enhet (bränsleförbrukning per km)]]& \"/\" & InputA1A3[[#This Row],[*DU/FU (EF A4) för valt drivmedel (schablon)]]))","v":""},null,null,null,null,null,null,null,{"$f":"IFERROR(INDEX(TabellEFDrivmedel[],MATCH(InputA1A3[[#This Row],[Drivmedel (A5.2)]],TabellEFDrivmedel[Drivmedel],0),2),\"\")","v":""},{"$f":"IFERROR(INDEX(TabellEFDrivmedel[],MATCH(InputA1A3[[#This Row],[Drivmedel (A5.2)]],TabellEFDrivmedel[Drivmedel],0),4),\"\")","v":""},{"$f":"IF(OR(KontrollTabell[[#This Row],[True/False A5 Enhet]]=TRUE,KontrollTabell[[#This Row],[True/False A5 Enhet]]=\"\"), \"\", InputA1A3[[#This Row],[*DU/FU (EF A5.2)]] & \"/\" & InputA1A3[[#This Row],[Enhet för mängd (A5.2)]])","v":""},null,null,null,null,null,null,null,null,null,null,null,null,null,null,null,null,null,null,null,null,null,null,null,null,null,null,null,null,null,null,null,null,null,null,null,null,null,null,null,null,{"$f":"IF(ISBLANK(InputA1A3[[#This Row],[Anläggningsdel\n]]),FALSE,TRUE)","v":false},{"$f":"IF(ISBLANK(InputA1A3[[#This Row],[Anläggningsdel\n]]),\"\",IF(ISBLANK(InputA1A3[[#This Row],[Enhet Mängd (A1A3)]]),\"\",IF(ISBLANK(InputA1A3[[#This Row],[FU/DU (EF A1A3)]]),\"Värde Behövs\",IF(InputA1A3[[#This Row],[Enhet Mängd (A1A3)]] = InputA1A3[[#This Row],[FU/DU (EF A1A3)]], TRUE, FALSE))))","v":""},{"$f":"IF(KontrollTabell[[#This Row],[Finns anläggningsdel-namn.]]=FALSE,\"\",(IF(KontrollTabell[[#This Row],[True/False A1A3 Enhet]]=TRUE,TRUE,IF(OR(KontrollTabell[[#This Row],[True/False A1A3 Enhet]]=\"Värde Behövs\",(KontrollTabell[[#This Row],[True/False A1A3 Enhet]]=\"\")),\"\",IF(ISBLANK(InputA1A3[[#This Row],[Omräkning till FU/DU (Skriv in värde, ej formel)]]),FALSE,TRUE)))))","v":""},{"$f":"IF(KontrollTabell[[#This Row],[Finns anläggningsdel-namn.]]=FALSE,,IF(KontrollTabell[[#This Row],[True/False A1A3 Enhet]]=TRUE,InputA1A3[[#This Row],[Mängd A1A3]]*InputA1A3[[#This Row],[EF A1A3 '[kg CO₂-ekv.']]],IF(KontrollTabell[[#This Row],[True/False A1A3 om A1A3 kan beräknas]]=TRUE,InputA1A3[[#This Row],[Mängd A1A3]]*InputA1A3[[#This Row],[EF A1A3 '[kg CO₂-ekv.']]]*InputA1A3[[#This Row],[Omräkning till FU/DU (Skriv in värde, ej formel)]],0)))","v":0},{"$f":"IF(ISBLANK(InputA1A3[[#This Row],[Anläggningsdel\n]]),\"\",IF(ISBLANK(InputA1A3[[#This Row],[EPD - EF A4]]),FALSE,TRUE))","v":""},{"$f":"IF(InputA1A3[[#This Row],[*DU/FU (EF A4) för valt drivmedel (schablon)]]=\"\",\"\",IF(InputA1A3[[#This Row],[Enhet (bränsleförbrukning per km)]]=\"\",\"Värde Behövs\",IF(OR(InputA1A3[[#This Row],[Enhet (bränsleförbrukning per km)]]=InputA1A3[[#This Row],[*DU/FU (EF A4) för valt drivmedel (schablon)]],AND(InputA1A3[[#This Row],[Enhet (bränsleförbrukning per km)]]<>InputA1A3[[#This Row],[*DU/FU (EF A4) för valt drivmedel (schablon)]],ISNUMBER(InputA1A3[[#This Row],[Omräkningsfaktor (A4), (vid behov, värde eller formel)]]))),TRUE(),FALSE())))","v":""},{"$f":"IF(KontrollTabell[[#This Row],[Finns anläggningsdel-namn.]]=FALSE,\"\",(IF(InputA1A3[[#This Row],[Enhet (bränsleförbrukning per km)]] =InputA1A3[[#This Row],[*DU/FU (EF A4) för valt drivmedel (schablon)]],TRUE,IF(KontrollTabell[[#This Row],[True/False A4 - Alt 2]]=\"Värde Behövs\",\"\",IF(ISBLANK(InputA1A3[[#This Row],[Omräkningsfaktor (A4), (vid behov, värde eller formel)]]),FALSE,TRUE)))))","v":""},{"$f":"IF(ISBLANK(InputA1A3[[#This Row],[EPD - EF A4]]),\"\",IF(ISBLANK(InputA1A3[[#This Row],[Omräkning till FU/DU (Skriv in värde, ej formel)]]),InputA1A3[[#This Row],[EPD - EF A4]]*InputA1A3[[#This Row],[Mängd A1A3]],InputA1A3[[#This Row],[Mängd A1A3]]*InputA1A3[[#This Row],[Omräkning till FU/DU (Skriv in värde, ej formel)]]*InputA1A3[[#This Row],[EPD - EF A4]]))","v":""},{"$f":"IFERROR(IF(KontrollTabell[[#This Row],[True/False A4 - Alt 2]]=\"\",\"\",IF(KontrollTabell[[#This Row],[True/False A4 Enhet - Alt2]]=TRUE,\nIF(ISNUMBER(InputA1A3[[#This Row],[Omräkningsfaktor (A4), (vid behov, värde eller formel)]]),InputA1A3[[#This Row],[Sträcka - totalt '[km'], (tur och retur, alla transporter)]]*InputA1A3[[#This Row],[(Bränsle-) Förbrukning per km]]/InputA1A3[[#This Row],[Omräkningsfaktor (A4), (vid behov, värde eller formel)]]*InputA1A3[[#This Row],[*EF (A4)\n'[kg CO₂-ekv.']]],\nInputA1A3[[#This Row],[Sträcka - totalt '[km'], (tur och retur, alla transporter)]]*InputA1A3[[#This Row],[(Bränsle-) Förbrukning per km]]*InputA1A3[[#This Row],[*EF (A4)\n'[kg CO₂-ekv.']]]),\"Sen då\")),0)","v":""},{"$f":"SUM(KontrollTabell[[#This Row],[A4 - Resultat alt 1 '[kg']]:[A4 - Alt 2 - beräkning utsläpp]])","v":0},{"$f":"IF(KontrollTabell[[#This Row],[Finns anläggningsdel-namn.]]=FALSE,\"\",IF(ISBLANK(InputA1A3[[#This Row],[EPD - EF A4]]),FALSE,TRUE))","v":""},{"$f":"IFERROR(IF(KontrollTabell[[#This Row],[True/False A5]]=FALSE(),\"Enheter\",IF(ISBLANK(InputA1A3[[#This Row],[Omräkningsfaktor (A5.2) (ange värde), (vid behov)]]),InputA1A3[[#This Row],[Mängd (A5.2)]]*InputA1A3[[#This Row],[*EF (A5.2)\n'[kg CO₂-ekv.']]],InputA1A3[[#This Row],[Mängd (A5.2)]]*InputA1A3[[#This Row],[*EF (A5.2)\n'[kg CO₂-ekv.']]]*InputA1A3[[#This Row],[Omräkningsfaktor (A5.2) (ange värde), (vid behov)]])),0)","v":0},{"$f":"IF(InputA1A3[[#This Row],[*DU/FU (EF A5.2)]]=\"\",\"\",IF(InputA1A3[[#This Row],[Enhet för mängd (A5.2)]]=\"\",\"Värde Behövs\",IF(OR(InputA1A3[[#This Row],[Enhet för mängd (A5.2)]]=InputA1A3[[#This Row],[*DU/FU (EF A5.2)]],AND(InputA1A3[[#This Row],[Enhet för mängd (A5.2)]]<>InputA1A3[[#This Row],[*DU/FU (EF A5.2)]],ISNUMBER(InputA1A3[[#This Row],[Omräkningsfaktor (A5.2) (ange värde), (vid behov)]]))),TRUE,FALSE)))","v":""},{"$f":"IF(OR(KontrollTabell[[#This Row],[Finns anläggningsdel-namn.]]=FALSE,KontrollTabell[[#This Row],[True/False A5]]=\"Värde Behövs\"),\"\",IF(InputA1A3[[#This Row],[Enhet för mängd (A5.2)]] = InputA1A3[[#This Row],[*DU/FU (EF A5.2)]], TRUE, FALSE))","v":""},{"$f":"IF(KontrollTabell[[#This Row],[Finns anläggningsdel-namn.]]=FALSE,\"\",IF(OR(ISBLANK(InputA1A3[[#This Row],[Kategori\n(egen kategorisering)]])=FALSE,ISBLANK(InputA1A3[[#This Row],[Anläggningsdel\n]]))=FALSE,TRUE,FALSE))","v":""},{"$f":"IF(ISBLANK(InputA1A3[[#This Row],[Anläggningsdel\n]]),\"\",IF(KontrollTabell[[#This Row],[TRUE/FALSE om kategori saknas.]] =FALSE,InputA1A3[[#This Row],[Kategori\n(egen kategorisering)]],\"Kategori saknas\"))","v":""}]
[null,null,null,null,null,null,null,null,null,{"$f":"IF(ISBLANK(InputA1A3[[#This Row],[Anläggningsdel\n]]),\"\",IF(OR(KontrollTabell[[#This Row],[True/False A1A3 Enhet]]=TRUE,KontrollTabell[[#This Row],[True/False A1A3 Enhet]]=\"Värde Behövs\",KontrollTabell[[#This Row],[True/False A1A3 Enhet]]=\"\"), \"\", InputA1A3[[#This Row],[FU/DU (EF A1A3)]] & \"/\" & InputA1A3[[#This Row],[Enhet Mängd (A1A3)]]))","v":""},null,null,null,null,{"$f":"IF(ISBLANK(InputA1A3[[#This Row],[EPD - EF A4]]),\"\",InputA1A3[[#This Row],[FU/DU (EF A1A3)]])","v":""},null,null,null,null,{"$f":"IFERROR(INDEX(TabellEFDrivmedel[],MATCH(InputA1A3[[#This Row],[Drivmedel (A4) (endast förval ur lista)]],TabellEFDrivmedel[Drivmedel],0),4),\"\")","v":""},null,null,null,{"$f":"IF(InputA1A3[[#This Row],[*DU/FU (EF A4) för valt drivmedel (schablon)]]=\"\",\"\",IF(OR(InputA1A3[[#This Row],[*DU/FU (EF A4) för valt drivmedel (schablon)]]=InputA1A3[[#This Row],[Enhet (bränsleförbrukning per km)]],KontrollTabell[[#This Row],[True/False A4 - Alt 2]]=\"Värde Behövs\"),\"\",InputA1A3[[#This Row],[Enhet (bränsleförbrukning per km)]]& \"/\" & InputA1A3[[#This Row],[*DU/FU (EF A4) för valt drivmedel (schablon)]]))","v":""},null,null,null,null,null,null,null,{"$f":"IFERROR(INDEX(TabellEFDrivmedel[],MATCH(InputA1A3[[#This Row],[Drivmedel (A5.2)]],TabellEFDrivmedel[Drivmedel],0),2),\"\")","v":""},{"$f":"IFERROR(INDEX(TabellEFDrivmedel[],MATCH(InputA1A3[[#This Row],[Drivmedel (A5.2)]],TabellEFDrivmedel[Drivmedel],0),4),\"\")","v":""},{"$f":"IF(OR(KontrollTabell[[#This Row],[True/False A5 Enhet]]=TRUE,KontrollTabell[[#This Row],[True/False A5 Enhet]]=\"\"), \"\", InputA1A3[[#This Row],[*DU/FU (EF A5.2)]] & \"/\" & InputA1A3[[#This Row],[Enhet för mängd (A5.2)]])","v":""},null,null,null,null,null,null,null,null,null,null,null,null,null,null,null,null,null,null,null,null,null,null,null,null,null,null,null,null,null,null,null,null,null,null,null,null,null,null,null,null,{"$f":"IF(ISBLANK(InputA1A3[[#This Row],[Anläggningsdel\n]]),FALSE,TRUE)","v":false},{"$f":"IF(ISBLANK(InputA1A3[[#This Row],[Anläggningsdel\n]]),\"\",IF(ISBLANK(InputA1A3[[#This Row],[Enhet Mängd (A1A3)]]),\"\",IF(ISBLANK(InputA1A3[[#This Row],[FU/DU (EF A1A3)]]),\"Värde Behövs\",IF(InputA1A3[[#This Row],[Enhet Mängd (A1A3)]] = InputA1A3[[#This Row],[FU/DU (EF A1A3)]], TRUE, FALSE))))","v":""},{"$f":"IF(KontrollTabell[[#This Row],[Finns anläggningsdel-namn.]]=FALSE,\"\",(IF(KontrollTabell[[#This Row],[True/False A1A3 Enhet]]=TRUE,TRUE,IF(OR(KontrollTabell[[#This Row],[True/False A1A3 Enhet]]=\"Värde Behövs\",(KontrollTabell[[#This Row],[True/False A1A3 Enhet]]=\"\")),\"\",IF(ISBLANK(InputA1A3[[#This Row],[Omräkning till FU/DU (Skriv in värde, ej formel)]]),FALSE,TRUE)))))","v":""},{"$f":"IF(KontrollTabell[[#This Row],[Finns anläggningsdel-namn.]]=FALSE,,IF(KontrollTabell[[#This Row],[True/False A1A3 Enhet]]=TRUE,InputA1A3[[#This Row],[Mängd A1A3]]*InputA1A3[[#This Row],[EF A1A3 '[kg CO₂-ekv.']]],IF(KontrollTabell[[#This Row],[True/False A1A3 om A1A3 kan beräknas]]=TRUE,InputA1A3[[#This Row],[Mängd A1A3]]*InputA1A3[[#This Row],[EF A1A3 '[kg CO₂-ekv.']]]*InputA1A3[[#This Row],[Omräkning till FU/DU (Skriv in värde, ej formel)]],0)))","v":0},{"$f":"IF(ISBLANK(InputA1A3[[#This Row],[Anläggningsdel\n]]),\"\",IF(ISBLANK(InputA1A3[[#This Row],[EPD - EF A4]]),FALSE,TRUE))","v":""},{"$f":"IF(InputA1A3[[#This Row],[*DU/FU (EF A4) för valt drivmedel (schablon)]]=\"\",\"\",IF(InputA1A3[[#This Row],[Enhet (bränsleförbrukning per km)]]=\"\",\"Värde Behövs\",IF(OR(InputA1A3[[#This Row],[Enhet (bränsleförbrukning per km)]]=InputA1A3[[#This Row],[*DU/FU (EF A4) för valt drivmedel (schablon)]],AND(InputA1A3[[#This Row],[Enhet (bränsleförbrukning per km)]]<>InputA1A3[[#This Row],[*DU/FU (EF A4) för valt drivmedel (schablon)]],ISNUMBER(InputA1A3[[#This Row],[Omräkningsfaktor (A4), (vid behov, värde eller formel)]]))),TRUE(),FALSE())))","v":""},{"$f":"IF(KontrollTabell[[#This Row],[Finns anläggningsdel-namn.]]=FALSE,\"\",(IF(InputA1A3[[#This Row],[Enhet (bränsleförbrukning per km)]] =InputA1A3[[#This Row],[*DU/FU (EF A4) för valt drivmedel (schablon)]],TRUE,IF(KontrollTabell[[#This Row],[True/False A4 - Alt 2]]=\"Värde Behövs\",\"\",IF(ISBLANK(InputA1A3[[#This Row],[Omräkningsfaktor (A4), (vid behov, värde eller formel)]]),FALSE,TRUE)))))","v":""},{"$f":"IF(ISBLANK(InputA1A3[[#This Row],[EPD - EF A4]]),\"\",IF(ISBLANK(InputA1A3[[#This Row],[Omräkning till FU/DU (Skriv in värde, ej formel)]]),InputA1A3[[#This Row],[EPD - EF A4]]*InputA1A3[[#This Row],[Mängd A1A3]],InputA1A3[[#This Row],[Mängd A1A3]]*InputA1A3[[#This Row],[Omräkning till FU/DU (Skriv in värde, ej formel)]]*InputA1A3[[#This Row],[EPD - EF A4]]))","v":""},{"$f":"IFERROR(IF(KontrollTabell[[#This Row],[True/False A4 - Alt 2]]=\"\",\"\",IF(KontrollTabell[[#This Row],[True/False A4 Enhet - Alt2]]=TRUE,\nIF(ISNUMBER(InputA1A3[[#This Row],[Omräkningsfaktor (A4), (vid behov, värde eller formel)]]),InputA1A3[[#This Row],[Sträcka - totalt '[km'], (tur och retur, alla transporter)]]*InputA1A3[[#This Row],[(Bränsle-) Förbrukning per km]]/InputA1A3[[#This Row],[Omräkningsfaktor (A4), (vid behov, värde eller formel)]]*InputA1A3[[#This Row],[*EF (A4)\n'[kg CO₂-ekv.']]],\nInputA1A3[[#This Row],[Sträcka - totalt '[km'], (tur och retur, alla transporter)]]*InputA1A3[[#This Row],[(Bränsle-) Förbrukning per km]]*InputA1A3[[#This Row],[*EF (A4)\n'[kg CO₂-ekv.']]]),\"Sen då\")),0)","v":""},{"$f":"SUM(KontrollTabell[[#This Row],[A4 - Resultat alt 1 '[kg']]:[A4 - Alt 2 - beräkning utsläpp]])","v":0},{"$f":"IF(KontrollTabell[[#This Row],[Finns anläggningsdel-namn.]]=FALSE,\"\",IF(ISBLANK(InputA1A3[[#This Row],[EPD - EF A4]]),FALSE,TRUE))","v":""},{"$f":"IFERROR(IF(KontrollTabell[[#This Row],[True/False A5]]=FALSE(),\"Enheter\",IF(ISBLANK(InputA1A3[[#This Row],[Omräkningsfaktor (A5.2) (ange värde), (vid behov)]]),InputA1A3[[#This Row],[Mängd (A5.2)]]*InputA1A3[[#This Row],[*EF (A5.2)\n'[kg CO₂-ekv.']]],InputA1A3[[#This Row],[Mängd (A5.2)]]*InputA1A3[[#This Row],[*EF (A5.2)\n'[kg CO₂-ekv.']]]*InputA1A3[[#This Row],[Omräkningsfaktor (A5.2) (ange värde), (vid behov)]])),0)","v":0},{"$f":"IF(InputA1A3[[#This Row],[*DU/FU (EF A5.2)]]=\"\",\"\",IF(InputA1A3[[#This Row],[Enhet för mängd (A5.2)]]=\"\",\"Värde Behövs\",IF(OR(InputA1A3[[#This Row],[Enhet för mängd (A5.2)]]=InputA1A3[[#This Row],[*DU/FU (EF A5.2)]],AND(InputA1A3[[#This Row],[Enhet för mängd (A5.2)]]<>InputA1A3[[#This Row],[*DU/FU (EF A5.2)]],ISNUMBER(InputA1A3[[#This Row],[Omräkningsfaktor (A5.2) (ange värde), (vid behov)]]))),TRUE,FALSE)))","v":""},{"$f":"IF(OR(KontrollTabell[[#This Row],[Finns anläggningsdel-namn.]]=FALSE,KontrollTabell[[#This Row],[True/False A5]]=\"Värde Behövs\"),\"\",IF(InputA1A3[[#This Row],[Enhet för mängd (A5.2)]] = InputA1A3[[#This Row],[*DU/FU (EF A5.2)]], TRUE, FALSE))","v":""},{"$f":"IF(KontrollTabell[[#This Row],[Finns anläggningsdel-namn.]]=FALSE,\"\",IF(OR(ISBLANK(InputA1A3[[#This Row],[Kategori\n(egen kategorisering)]])=FALSE,ISBLANK(InputA1A3[[#This Row],[Anläggningsdel\n]]))=FALSE,TRUE,FALSE))","v":""},{"$f":"IF(ISBLANK(InputA1A3[[#This Row],[Anläggningsdel\n]]),\"\",IF(KontrollTabell[[#This Row],[TRUE/FALSE om kategori saknas.]] =FALSE,InputA1A3[[#This Row],[Kategori\n(egen kategorisering)]],\"Kategori saknas\"))","v":""}]
[null,null,null,null,null,null,null,null,null,{"$f":"IF(ISBLANK(InputA1A3[[#This Row],[Anläggningsdel\n]]),\"\",IF(OR(KontrollTabell[[#This Row],[True/False A1A3 Enhet]]=TRUE,KontrollTabell[[#This Row],[True/False A1A3 Enhet]]=\"Värde Behövs\",KontrollTabell[[#This Row],[True/False A1A3 Enhet]]=\"\"), \"\", InputA1A3[[#This Row],[FU/DU (EF A1A3)]] & \"/\" & InputA1A3[[#This Row],[Enhet Mängd (A1A3)]]))","v":""},null,null,null,null,{"$f":"IF(ISBLANK(InputA1A3[[#This Row],[EPD - EF A4]]),\"\",InputA1A3[[#This Row],[FU/DU (EF A1A3)]])","v":""},null,null,null,null,{"$f":"IFERROR(INDEX(TabellEFDrivmedel[],MATCH(InputA1A3[[#This Row],[Drivmedel (A4) (endast förval ur lista)]],TabellEFDrivmedel[Drivmedel],0),4),\"\")","v":""},null,null,null,{"$f":"IF(InputA1A3[[#This Row],[*DU/FU (EF A4) för valt drivmedel (schablon)]]=\"\",\"\",IF(OR(InputA1A3[[#This Row],[*DU/FU (EF A4) för valt drivmedel (schablon)]]=InputA1A3[[#This Row],[Enhet (bränsleförbrukning per km)]],KontrollTabell[[#This Row],[True/False A4 - Alt 2]]=\"Värde Behövs\"),\"\",InputA1A3[[#This Row],[Enhet (bränsleförbrukning per km)]]& \"/\" & InputA1A3[[#This Row],[*DU/FU (EF A4) för valt drivmedel (schablon)]]))","v":""},null,null,null,null,null,null,null,{"$f":"IFERROR(INDEX(TabellEFDrivmedel[],MATCH(InputA1A3[[#This Row],[Drivmedel (A5.2)]],TabellEFDrivmedel[Drivmedel],0),2),\"\")","v":""},{"$f":"IFERROR(INDEX(TabellEFDrivmedel[],MATCH(InputA1A3[[#This Row],[Drivmedel (A5.2)]],TabellEFDrivmedel[Drivmedel],0),4),\"\")","v":""},{"$f":"IF(OR(KontrollTabell[[#This Row],[True/False A5 Enhet]]=TRUE,KontrollTabell[[#This Row],[True/False A5 Enhet]]=\"\"), \"\", InputA1A3[[#This Row],[*DU/FU (EF A5.2)]] & \"/\" & InputA1A3[[#This Row],[Enhet för mängd (A5.2)]])","v":""},null,null,null,null,null,null,null,null,null,null,null,null,null,null,null,null,null,null,null,null,null,null,null,null,null,null,null,null,null,null,null,null,null,null,null,null,null,null,null,null,{"$f":"IF(ISBLANK(InputA1A3[[#This Row],[Anläggningsdel\n]]),FALSE,TRUE)","v":false},{"$f":"IF(ISBLANK(InputA1A3[[#This Row],[Anläggningsdel\n]]),\"\",IF(ISBLANK(InputA1A3[[#This Row],[Enhet Mängd (A1A3)]]),\"\",IF(ISBLANK(InputA1A3[[#This Row],[FU/DU (EF A1A3)]]),\"Värde Behövs\",IF(InputA1A3[[#This Row],[Enhet Mängd (A1A3)]] = InputA1A3[[#This Row],[FU/DU (EF A1A3)]], TRUE, FALSE))))","v":""},{"$f":"IF(KontrollTabell[[#This Row],[Finns anläggningsdel-namn.]]=FALSE,\"\",(IF(KontrollTabell[[#This Row],[True/False A1A3 Enhet]]=TRUE,TRUE,IF(OR(KontrollTabell[[#This Row],[True/False A1A3 Enhet]]=\"Värde Behövs\",(KontrollTabell[[#This Row],[True/False A1A3 Enhet]]=\"\")),\"\",IF(ISBLANK(InputA1A3[[#This Row],[Omräkning till FU/DU (Skriv in värde, ej formel)]]),FALSE,TRUE)))))","v":""},{"$f":"IF(KontrollTabell[[#This Row],[Finns anläggningsdel-namn.]]=FALSE,,IF(KontrollTabell[[#This Row],[True/False A1A3 Enhet]]=TRUE,InputA1A3[[#This Row],[Mängd A1A3]]*InputA1A3[[#This Row],[EF A1A3 '[kg CO₂-ekv.']]],IF(KontrollTabell[[#This Row],[True/False A1A3 om A1A3 kan beräknas]]=TRUE,InputA1A3[[#This Row],[Mängd A1A3]]*InputA1A3[[#This Row],[EF A1A3 '[kg CO₂-ekv.']]]*InputA1A3[[#This Row],[Omräkning till FU/DU (Skriv in värde, ej formel)]],0)))","v":0},{"$f":"IF(ISBLANK(InputA1A3[[#This Row],[Anläggningsdel\n]]),\"\",IF(ISBLANK(InputA1A3[[#This Row],[EPD - EF A4]]),FALSE,TRUE))","v":""},{"$f":"IF(InputA1A3[[#This Row],[*DU/FU (EF A4) för valt drivmedel (schablon)]]=\"\",\"\",IF(InputA1A3[[#This Row],[Enhet (bränsleförbrukning per km)]]=\"\",\"Värde Behövs\",IF(OR(InputA1A3[[#This Row],[Enhet (bränsleförbrukning per km)]]=InputA1A3[[#This Row],[*DU/FU (EF A4) för valt drivmedel (schablon)]],AND(InputA1A3[[#This Row],[Enhet (bränsleförbrukning per km)]]<>InputA1A3[[#This Row],[*DU/FU (EF A4) för valt drivmedel (schablon)]],ISNUMBER(InputA1A3[[#This Row],[Omräkningsfaktor (A4), (vid behov, värde eller formel)]]))),TRUE(),FALSE())))","v":""},{"$f":"IF(KontrollTabell[[#This Row],[Finns anläggningsdel-namn.]]=FALSE,\"\",(IF(InputA1A3[[#This Row],[Enhet (bränsleförbrukning per km)]] =InputA1A3[[#This Row],[*DU/FU (EF A4) för valt drivmedel (schablon)]],TRUE,IF(KontrollTabell[[#This Row],[True/False A4 - Alt 2]]=\"Värde Behövs\",\"\",IF(ISBLANK(InputA1A3[[#This Row],[Omräkningsfaktor (A4), (vid behov, värde eller formel)]]),FALSE,TRUE)))))","v":""},{"$f":"IF(ISBLANK(InputA1A3[[#This Row],[EPD - EF A4]]),\"\",IF(ISBLANK(InputA1A3[[#This Row],[Omräkning till FU/DU (Skriv in värde, ej formel)]]),InputA1A3[[#This Row],[EPD - EF A4]]*InputA1A3[[#This Row],[Mängd A1A3]],InputA1A3[[#This Row],[Mängd A1A3]]*InputA1A3[[#This Row],[Omräkning till FU/DU (Skriv in värde, ej formel)]]*InputA1A3[[#This Row],[EPD - EF A4]]))","v":""},{"$f":"IFERROR(IF(KontrollTabell[[#This Row],[True/False A4 - Alt 2]]=\"\",\"\",IF(KontrollTabell[[#This Row],[True/False A4 Enhet - Alt2]]=TRUE,\nIF(ISNUMBER(InputA1A3[[#This Row],[Omräkningsfaktor (A4), (vid behov, värde eller formel)]]),InputA1A3[[#This Row],[Sträcka - totalt '[km'], (tur och retur, alla transporter)]]*InputA1A3[[#This Row],[(Bränsle-) Förbrukning per km]]/InputA1A3[[#This Row],[Omräkningsfaktor (A4), (vid behov, värde eller formel)]]*InputA1A3[[#This Row],[*EF (A4)\n'[kg CO₂-ekv.']]],\nInputA1A3[[#This Row],[Sträcka - totalt '[km'], (tur och retur, alla transporter)]]*InputA1A3[[#This Row],[(Bränsle-) Förbrukning per km]]*InputA1A3[[#This Row],[*EF (A4)\n'[kg CO₂-ekv.']]]),\"Sen då\")),0)","v":""},{"$f":"SUM(KontrollTabell[[#This Row],[A4 - Resultat alt 1 '[kg']]:[A4 - Alt 2 - beräkning utsläpp]])","v":0},{"$f":"IF(KontrollTabell[[#This Row],[Finns anläggningsdel-namn.]]=FALSE,\"\",IF(ISBLANK(InputA1A3[[#This Row],[EPD - EF A4]]),FALSE,TRUE))","v":""},{"$f":"IFERROR(IF(KontrollTabell[[#This Row],[True/False A5]]=FALSE(),\"Enheter\",IF(ISBLANK(InputA1A3[[#This Row],[Omräkningsfaktor (A5.2) (ange värde), (vid behov)]]),InputA1A3[[#This Row],[Mängd (A5.2)]]*InputA1A3[[#This Row],[*EF (A5.2)\n'[kg CO₂-ekv.']]],InputA1A3[[#This Row],[Mängd (A5.2)]]*InputA1A3[[#This Row],[*EF (A5.2)\n'[kg CO₂-ekv.']]]*InputA1A3[[#This Row],[Omräkningsfaktor (A5.2) (ange värde), (vid behov)]])),0)","v":0},{"$f":"IF(InputA1A3[[#This Row],[*DU/FU (EF A5.2)]]=\"\",\"\",IF(InputA1A3[[#This Row],[Enhet för mängd (A5.2)]]=\"\",\"Värde Behövs\",IF(OR(InputA1A3[[#This Row],[Enhet för mängd (A5.2)]]=InputA1A3[[#This Row],[*DU/FU (EF A5.2)]],AND(InputA1A3[[#This Row],[Enhet för mängd (A5.2)]]<>InputA1A3[[#This Row],[*DU/FU (EF A5.2)]],ISNUMBER(InputA1A3[[#This Row],[Omräkningsfaktor (A5.2) (ange värde), (vid behov)]]))),TRUE,FALSE)))","v":""},{"$f":"IF(OR(KontrollTabell[[#This Row],[Finns anläggningsdel-namn.]]=FALSE,KontrollTabell[[#This Row],[True/False A5]]=\"Värde Behövs\"),\"\",IF(InputA1A3[[#This Row],[Enhet för mängd (A5.2)]] = InputA1A3[[#This Row],[*DU/FU (EF A5.2)]], TRUE, FALSE))","v":""},{"$f":"IF(KontrollTabell[[#This Row],[Finns anläggningsdel-namn.]]=FALSE,\"\",IF(OR(ISBLANK(InputA1A3[[#This Row],[Kategori\n(egen kategorisering)]])=FALSE,ISBLANK(InputA1A3[[#This Row],[Anläggningsdel\n]]))=FALSE,TRUE,FALSE))","v":""},{"$f":"IF(ISBLANK(InputA1A3[[#This Row],[Anläggningsdel\n]]),\"\",IF(KontrollTabell[[#This Row],[TRUE/FALSE om kategori saknas.]] =FALSE,InputA1A3[[#This Row],[Kategori\n(egen kategorisering)]],\"Kategori saknas\"))","v":""}]
[null,null,null,null,null,null,null,null,null,{"$f":"IF(ISBLANK(InputA1A3[[#This Row],[Anläggningsdel\n]]),\"\",IF(OR(KontrollTabell[[#This Row],[True/False A1A3 Enhet]]=TRUE,KontrollTabell[[#This Row],[True/False A1A3 Enhet]]=\"Värde Behövs\",KontrollTabell[[#This Row],[True/False A1A3 Enhet]]=\"\"), \"\", InputA1A3[[#This Row],[FU/DU (EF A1A3)]] & \"/\" & InputA1A3[[#This Row],[Enhet Mängd (A1A3)]]))","v":""},null,null,null,null,{"$f":"IF(ISBLANK(InputA1A3[[#This Row],[EPD - EF A4]]),\"\",InputA1A3[[#This Row],[FU/DU (EF A1A3)]])","v":""},null,null,null,null,{"$f":"IFERROR(INDEX(TabellEFDrivmedel[],MATCH(InputA1A3[[#This Row],[Drivmedel (A4) (endast förval ur lista)]],TabellEFDrivmedel[Drivmedel],0),4),\"\")","v":""},null,null,null,{"$f":"IF(InputA1A3[[#This Row],[*DU/FU (EF A4) för valt drivmedel (schablon)]]=\"\",\"\",IF(OR(InputA1A3[[#This Row],[*DU/FU (EF A4) för valt drivmedel (schablon)]]=InputA1A3[[#This Row],[Enhet (bränsleförbrukning per km)]],KontrollTabell[[#This Row],[True/False A4 - Alt 2]]=\"Värde Behövs\"),\"\",InputA1A3[[#This Row],[Enhet (bränsleförbrukning per km)]]& \"/\" & InputA1A3[[#This Row],[*DU/FU (EF A4) för valt drivmedel (schablon)]]))","v":""},null,null,null,null,null,null,null,{"$f":"IFERROR(INDEX(TabellEFDrivmedel[],MATCH(InputA1A3[[#This Row],[Drivmedel (A5.2)]],TabellEFDrivmedel[Drivmedel],0),2),\"\")","v":""},{"$f":"IFERROR(INDEX(TabellEFDrivmedel[],MATCH(InputA1A3[[#This Row],[Drivmedel (A5.2)]],TabellEFDrivmedel[Drivmedel],0),4),\"\")","v":""},{"$f":"IF(OR(KontrollTabell[[#This Row],[True/False A5 Enhet]]=TRUE,KontrollTabell[[#This Row],[True/False A5 Enhet]]=\"\"), \"\", InputA1A3[[#This Row],[*DU/FU (EF A5.2)]] & \"/\" & InputA1A3[[#This Row],[Enhet för mängd (A5.2)]])","v":""},null,null,null,null,null,null,null,null,null,null,null,null,null,null,null,null,null,null,null,null,null,null,null,null,null,null,null,null,null,null,null,null,null,null,null,null,null,null,null,null,{"$f":"IF(ISBLANK(InputA1A3[[#This Row],[Anläggningsdel\n]]),FALSE,TRUE)","v":false},{"$f":"IF(ISBLANK(InputA1A3[[#This Row],[Anläggningsdel\n]]),\"\",IF(ISBLANK(InputA1A3[[#This Row],[Enhet Mängd (A1A3)]]),\"\",IF(ISBLANK(InputA1A3[[#This Row],[FU/DU (EF A1A3)]]),\"Värde Behövs\",IF(InputA1A3[[#This Row],[Enhet Mängd (A1A3)]] = InputA1A3[[#This Row],[FU/DU (EF A1A3)]], TRUE, FALSE))))","v":""},{"$f":"IF(KontrollTabell[[#This Row],[Finns anläggningsdel-namn.]]=FALSE,\"\",(IF(KontrollTabell[[#This Row],[True/False A1A3 Enhet]]=TRUE,TRUE,IF(OR(KontrollTabell[[#This Row],[True/False A1A3 Enhet]]=\"Värde Behövs\",(KontrollTabell[[#This Row],[True/False A1A3 Enhet]]=\"\")),\"\",IF(ISBLANK(InputA1A3[[#This Row],[Omräkning till FU/DU (Skriv in värde, ej formel)]]),FALSE,TRUE)))))","v":""},{"$f":"IF(KontrollTabell[[#This Row],[Finns anläggningsdel-namn.]]=FALSE,,IF(KontrollTabell[[#This Row],[True/False A1A3 Enhet]]=TRUE,InputA1A3[[#This Row],[Mängd A1A3]]*InputA1A3[[#This Row],[EF A1A3 '[kg CO₂-ekv.']]],IF(KontrollTabell[[#This Row],[True/False A1A3 om A1A3 kan beräknas]]=TRUE,InputA1A3[[#This Row],[Mängd A1A3]]*InputA1A3[[#This Row],[EF A1A3 '[kg CO₂-ekv.']]]*InputA1A3[[#This Row],[Omräkning till FU/DU (Skriv in värde, ej formel)]],0)))","v":0},{"$f":"IF(ISBLANK(InputA1A3[[#This Row],[Anläggningsdel\n]]),\"\",IF(ISBLANK(InputA1A3[[#This Row],[EPD - EF A4]]),FALSE,TRUE))","v":""},{"$f":"IF(InputA1A3[[#This Row],[*DU/FU (EF A4) för valt drivmedel (schablon)]]=\"\",\"\",IF(InputA1A3[[#This Row],[Enhet (bränsleförbrukning per km)]]=\"\",\"Värde Behövs\",IF(OR(InputA1A3[[#This Row],[Enhet (bränsleförbrukning per km)]]=InputA1A3[[#This Row],[*DU/FU (EF A4) för valt drivmedel (schablon)]],AND(InputA1A3[[#This Row],[Enhet (bränsleförbrukning per km)]]<>InputA1A3[[#This Row],[*DU/FU (EF A4) för valt drivmedel (schablon)]],ISNUMBER(InputA1A3[[#This Row],[Omräkningsfaktor (A4), (vid behov, värde eller formel)]]))),TRUE(),FALSE())))","v":""},{"$f":"IF(KontrollTabell[[#This Row],[Finns anläggningsdel-namn.]]=FALSE,\"\",(IF(InputA1A3[[#This Row],[Enhet (bränsleförbrukning per km)]] =InputA1A3[[#This Row],[*DU/FU (EF A4) för valt drivmedel (schablon)]],TRUE,IF(KontrollTabell[[#This Row],[True/False A4 - Alt 2]]=\"Värde Behövs\",\"\",IF(ISBLANK(InputA1A3[[#This Row],[Omräkningsfaktor (A4), (vid behov, värde eller formel)]]),FALSE,TRUE)))))","v":""},{"$f":"IF(ISBLANK(InputA1A3[[#This Row],[EPD - EF A4]]),\"\",IF(ISBLANK(InputA1A3[[#This Row],[Omräkning till FU/DU (Skriv in värde, ej formel)]]),InputA1A3[[#This Row],[EPD - EF A4]]*InputA1A3[[#This Row],[Mängd A1A3]],InputA1A3[[#This Row],[Mängd A1A3]]*InputA1A3[[#This Row],[Omräkning till FU/DU (Skriv in värde, ej formel)]]*InputA1A3[[#This Row],[EPD - EF A4]]))","v":""},{"$f":"IFERROR(IF(KontrollTabell[[#This Row],[True/False A4 - Alt 2]]=\"\",\"\",IF(KontrollTabell[[#This Row],[True/False A4 Enhet - Alt2]]=TRUE,\nIF(ISNUMBER(InputA1A3[[#This Row],[Omräkningsfaktor (A4), (vid behov, värde eller formel)]]),InputA1A3[[#This Row],[Sträcka - totalt '[km'], (tur och retur, alla transporter)]]*InputA1A3[[#This Row],[(Bränsle-) Förbrukning per km]]/InputA1A3[[#This Row],[Omräkningsfaktor (A4), (vid behov, värde eller formel)]]*InputA1A3[[#This Row],[*EF (A4)\n'[kg CO₂-ekv.']]],\nInputA1A3[[#This Row],[Sträcka - totalt '[km'], (tur och retur, alla transporter)]]*InputA1A3[[#This Row],[(Bränsle-) Förbrukning per km]]*InputA1A3[[#This Row],[*EF (A4)\n'[kg CO₂-ekv.']]]),\"Sen då\")),0)","v":""},{"$f":"SUM(KontrollTabell[[#This Row],[A4 - Resultat alt 1 '[kg']]:[A4 - Alt 2 - beräkning utsläpp]])","v":0},{"$f":"IF(KontrollTabell[[#This Row],[Finns anläggningsdel-namn.]]=FALSE,\"\",IF(ISBLANK(InputA1A3[[#This Row],[EPD - EF A4]]),FALSE,TRUE))","v":""},{"$f":"IFERROR(IF(KontrollTabell[[#This Row],[True/False A5]]=FALSE(),\"Enheter\",IF(ISBLANK(InputA1A3[[#This Row],[Omräkningsfaktor (A5.2) (ange värde), (vid behov)]]),InputA1A3[[#This Row],[Mängd (A5.2)]]*InputA1A3[[#This Row],[*EF (A5.2)\n'[kg CO₂-ekv.']]],InputA1A3[[#This Row],[Mängd (A5.2)]]*InputA1A3[[#This Row],[*EF (A5.2)\n'[kg CO₂-ekv.']]]*InputA1A3[[#This Row],[Omräkningsfaktor (A5.2) (ange värde), (vid behov)]])),0)","v":0},{"$f":"IF(InputA1A3[[#This Row],[*DU/FU (EF A5.2)]]=\"\",\"\",IF(InputA1A3[[#This Row],[Enhet för mängd (A5.2)]]=\"\",\"Värde Behövs\",IF(OR(InputA1A3[[#This Row],[Enhet för mängd (A5.2)]]=InputA1A3[[#This Row],[*DU/FU (EF A5.2)]],AND(InputA1A3[[#This Row],[Enhet för mängd (A5.2)]]<>InputA1A3[[#This Row],[*DU/FU (EF A5.2)]],ISNUMBER(InputA1A3[[#This Row],[Omräkningsfaktor (A5.2) (ange värde), (vid behov)]]))),TRUE,FALSE)))","v":""},{"$f":"IF(OR(KontrollTabell[[#This Row],[Finns anläggningsdel-namn.]]=FALSE,KontrollTabell[[#This Row],[True/False A5]]=\"Värde Behövs\"),\"\",IF(InputA1A3[[#This Row],[Enhet för mängd (A5.2)]] = InputA1A3[[#This Row],[*DU/FU (EF A5.2)]], TRUE, FALSE))","v":""},{"$f":"IF(KontrollTabell[[#This Row],[Finns anläggningsdel-namn.]]=FALSE,\"\",IF(OR(ISBLANK(InputA1A3[[#This Row],[Kategori\n(egen kategorisering)]])=FALSE,ISBLANK(InputA1A3[[#This Row],[Anläggningsdel\n]]))=FALSE,TRUE,FALSE))","v":""},{"$f":"IF(ISBLANK(InputA1A3[[#This Row],[Anläggningsdel\n]]),\"\",IF(KontrollTabell[[#This Row],[TRUE/FALSE om kategori saknas.]] =FALSE,InputA1A3[[#This Row],[Kategori\n(egen kategorisering)]],\"Kategori saknas\"))","v":""}]
[null,null,null,null,null,null,null,null,null,{"$f":"IF(ISBLANK(InputA1A3[[#This Row],[Anläggningsdel\n]]),\"\",IF(OR(KontrollTabell[[#This Row],[True/False A1A3 Enhet]]=TRUE,KontrollTabell[[#This Row],[True/False A1A3 Enhet]]=\"Värde Behövs\",KontrollTabell[[#This Row],[True/False A1A3 Enhet]]=\"\"), \"\", InputA1A3[[#This Row],[FU/DU (EF A1A3)]] & \"/\" & InputA1A3[[#This Row],[Enhet Mängd (A1A3)]]))","v":""},null,null,null,null,{"$f":"IF(ISBLANK(InputA1A3[[#This Row],[EPD - EF A4]]),\"\",InputA1A3[[#This Row],[FU/DU (EF A1A3)]])","v":""},null,null,null,null,{"$f":"IFERROR(INDEX(TabellEFDrivmedel[],MATCH(InputA1A3[[#This Row],[Drivmedel (A4) (endast förval ur lista)]],TabellEFDrivmedel[Drivmedel],0),4),\"\")","v":""},null,null,null,{"$f":"IF(InputA1A3[[#This Row],[*DU/FU (EF A4) för valt drivmedel (schablon)]]=\"\",\"\",IF(OR(InputA1A3[[#This Row],[*DU/FU (EF A4) för valt drivmedel (schablon)]]=InputA1A3[[#This Row],[Enhet (bränsleförbrukning per km)]],KontrollTabell[[#This Row],[True/False A4 - Alt 2]]=\"Värde Behövs\"),\"\",InputA1A3[[#This Row],[Enhet (bränsleförbrukning per km)]]& \"/\" & InputA1A3[[#This Row],[*DU/FU (EF A4) för valt drivmedel (schablon)]]))","v":""},null,null,null,null,null,null,null,{"$f":"IFERROR(INDEX(TabellEFDrivmedel[],MATCH(InputA1A3[[#This Row],[Drivmedel (A5.2)]],TabellEFDrivmedel[Drivmedel],0),2),\"\")","v":""},{"$f":"IFERROR(INDEX(TabellEFDrivmedel[],MATCH(InputA1A3[[#This Row],[Drivmedel (A5.2)]],TabellEFDrivmedel[Drivmedel],0),4),\"\")","v":""},{"$f":"IF(OR(KontrollTabell[[#This Row],[True/False A5 Enhet]]=TRUE,KontrollTabell[[#This Row],[True/False A5 Enhet]]=\"\"), \"\", InputA1A3[[#This Row],[*DU/FU (EF A5.2)]] & \"/\" & InputA1A3[[#This Row],[Enhet för mängd (A5.2)]])","v":""},null,null,null,null,null,null,null,null,null,null,null,null,null,null,null,null,null,null,null,null,null,null,null,null,null,null,null,null,null,null,null,null,null,null,null,null,null,null,null,null,{"$f":"IF(ISBLANK(InputA1A3[[#This Row],[Anläggningsdel\n]]),FALSE,TRUE)","v":false},{"$f":"IF(ISBLANK(InputA1A3[[#This Row],[Anläggningsdel\n]]),\"\",IF(ISBLANK(InputA1A3[[#This Row],[Enhet Mängd (A1A3)]]),\"\",IF(ISBLANK(InputA1A3[[#This Row],[FU/DU (EF A1A3)]]),\"Värde Behövs\",IF(InputA1A3[[#This Row],[Enhet Mängd (A1A3)]] = InputA1A3[[#This Row],[FU/DU (EF A1A3)]], TRUE, FALSE))))","v":""},{"$f":"IF(KontrollTabell[[#This Row],[Finns anläggningsdel-namn.]]=FALSE,\"\",(IF(KontrollTabell[[#This Row],[True/False A1A3 Enhet]]=TRUE,TRUE,IF(OR(KontrollTabell[[#This Row],[True/False A1A3 Enhet]]=\"Värde Behövs\",(KontrollTabell[[#This Row],[True/False A1A3 Enhet]]=\"\")),\"\",IF(ISBLANK(InputA1A3[[#This Row],[Omräkning till FU/DU (Skriv in värde, ej formel)]]),FALSE,TRUE)))))","v":""},{"$f":"IF(KontrollTabell[[#This Row],[Finns anläggningsdel-namn.]]=FALSE,,IF(KontrollTabell[[#This Row],[True/False A1A3 Enhet]]=TRUE,InputA1A3[[#This Row],[Mängd A1A3]]*InputA1A3[[#This Row],[EF A1A3 '[kg CO₂-ekv.']]],IF(KontrollTabell[[#This Row],[True/False A1A3 om A1A3 kan beräknas]]=TRUE,InputA1A3[[#This Row],[Mängd A1A3]]*InputA1A3[[#This Row],[EF A1A3 '[kg CO₂-ekv.']]]*InputA1A3[[#This Row],[Omräkning till FU/DU (Skriv in värde, ej formel)]],0)))","v":0},{"$f":"IF(ISBLANK(InputA1A3[[#This Row],[Anläggningsdel\n]]),\"\",IF(ISBLANK(InputA1A3[[#This Row],[EPD - EF A4]]),FALSE,TRUE))","v":""},{"$f":"IF(InputA1A3[[#This Row],[*DU/FU (EF A4) för valt drivmedel (schablon)]]=\"\",\"\",IF(InputA1A3[[#This Row],[Enhet (bränsleförbrukning per km)]]=\"\",\"Värde Behövs\",IF(OR(InputA1A3[[#This Row],[Enhet (bränsleförbrukning per km)]]=InputA1A3[[#This Row],[*DU/FU (EF A4) för valt drivmedel (schablon)]],AND(InputA1A3[[#This Row],[Enhet (bränsleförbrukning per km)]]<>InputA1A3[[#This Row],[*DU/FU (EF A4) för valt drivmedel (schablon)]],ISNUMBER(InputA1A3[[#This Row],[Omräkningsfaktor (A4), (vid behov, värde eller formel)]]))),TRUE(),FALSE())))","v":""},{"$f":"IF(KontrollTabell[[#This Row],[Finns anläggningsdel-namn.]]=FALSE,\"\",(IF(InputA1A3[[#This Row],[Enhet (bränsleförbrukning per km)]] =InputA1A3[[#This Row],[*DU/FU (EF A4) för valt drivmedel (schablon)]],TRUE,IF(KontrollTabell[[#This Row],[True/False A4 - Alt 2]]=\"Värde Behövs\",\"\",IF(ISBLANK(InputA1A3[[#This Row],[Omräkningsfaktor (A4), (vid behov, värde eller formel)]]),FALSE,TRUE)))))","v":""},{"$f":"IF(ISBLANK(InputA1A3[[#This Row],[EPD - EF A4]]),\"\",IF(ISBLANK(InputA1A3[[#This Row],[Omräkning till FU/DU (Skriv in värde, ej formel)]]),InputA1A3[[#This Row],[EPD - EF A4]]*InputA1A3[[#This Row],[Mängd A1A3]],InputA1A3[[#This Row],[Mängd A1A3]]*InputA1A3[[#This Row],[Omräkning till FU/DU (Skriv in värde, ej formel)]]*InputA1A3[[#This Row],[EPD - EF A4]]))","v":""},{"$f":"IFERROR(IF(KontrollTabell[[#This Row],[True/False A4 - Alt 2]]=\"\",\"\",IF(KontrollTabell[[#This Row],[True/False A4 Enhet - Alt2]]=TRUE,\nIF(ISNUMBER(InputA1A3[[#This Row],[Omräkningsfaktor (A4), (vid behov, värde eller formel)]]),InputA1A3[[#This Row],[Sträcka - totalt '[km'], (tur och retur, alla transporter)]]*InputA1A3[[#This Row],[(Bränsle-) Förbrukning per km]]/InputA1A3[[#This Row],[Omräkningsfaktor (A4), (vid behov, värde eller formel)]]*InputA1A3[[#This Row],[*EF (A4)\n'[kg CO₂-ekv.']]],\nInputA1A3[[#This Row],[Sträcka - totalt '[km'], (tur och retur, alla transporter)]]*InputA1A3[[#This Row],[(Bränsle-) Förbrukning per km]]*InputA1A3[[#This Row],[*EF (A4)\n'[kg CO₂-ekv.']]]),\"Sen då\")),0)","v":""},{"$f":"SUM(KontrollTabell[[#This Row],[A4 - Resultat alt 1 '[kg']]:[A4 - Alt 2 - beräkning utsläpp]])","v":0},{"$f":"IF(KontrollTabell[[#This Row],[Finns anläggningsdel-namn.]]=FALSE,\"\",IF(ISBLANK(InputA1A3[[#This Row],[EPD - EF A4]]),FALSE,TRUE))","v":""},{"$f":"IFERROR(IF(KontrollTabell[[#This Row],[True/False A5]]=FALSE(),\"Enheter\",IF(ISBLANK(InputA1A3[[#This Row],[Omräkningsfaktor (A5.2) (ange värde), (vid behov)]]),InputA1A3[[#This Row],[Mängd (A5.2)]]*InputA1A3[[#This Row],[*EF (A5.2)\n'[kg CO₂-ekv.']]],InputA1A3[[#This Row],[Mängd (A5.2)]]*InputA1A3[[#This Row],[*EF (A5.2)\n'[kg CO₂-ekv.']]]*InputA1A3[[#This Row],[Omräkningsfaktor (A5.2) (ange värde), (vid behov)]])),0)","v":0},{"$f":"IF(InputA1A3[[#This Row],[*DU/FU (EF A5.2)]]=\"\",\"\",IF(InputA1A3[[#This Row],[Enhet för mängd (A5.2)]]=\"\",\"Värde Behövs\",IF(OR(InputA1A3[[#This Row],[Enhet för mängd (A5.2)]]=InputA1A3[[#This Row],[*DU/FU (EF A5.2)]],AND(InputA1A3[[#This Row],[Enhet för mängd (A5.2)]]<>InputA1A3[[#This Row],[*DU/FU (EF A5.2)]],ISNUMBER(InputA1A3[[#This Row],[Omräkningsfaktor (A5.2) (ange värde), (vid behov)]]))),TRUE,FALSE)))","v":""},{"$f":"IF(OR(KontrollTabell[[#This Row],[Finns anläggningsdel-namn.]]=FALSE,KontrollTabell[[#This Row],[True/False A5]]=\"Värde Behövs\"),\"\",IF(InputA1A3[[#This Row],[Enhet för mängd (A5.2)]] = InputA1A3[[#This Row],[*DU/FU (EF A5.2)]], TRUE, FALSE))","v":""},{"$f":"IF(KontrollTabell[[#This Row],[Finns anläggningsdel-namn.]]=FALSE,\"\",IF(OR(ISBLANK(InputA1A3[[#This Row],[Kategori\n(egen kategorisering)]])=FALSE,ISBLANK(InputA1A3[[#This Row],[Anläggningsdel\n]]))=FALSE,TRUE,FALSE))","v":""},{"$f":"IF(ISBLANK(InputA1A3[[#This Row],[Anläggningsdel\n]]),\"\",IF(KontrollTabell[[#This Row],[TRUE/FALSE om kategori saknas.]] =FALSE,InputA1A3[[#This Row],[Kategori\n(egen kategorisering)]],\"Kategori saknas\"))","v":""}]
[null,null,null,null,null,null,null,null,null,{"$f":"IF(ISBLANK(InputA1A3[[#This Row],[Anläggningsdel\n]]),\"\",IF(OR(KontrollTabell[[#This Row],[True/False A1A3 Enhet]]=TRUE,KontrollTabell[[#This Row],[True/False A1A3 Enhet]]=\"Värde Behövs\",KontrollTabell[[#This Row],[True/False A1A3 Enhet]]=\"\"), \"\", InputA1A3[[#This Row],[FU/DU (EF A1A3)]] & \"/\" & InputA1A3[[#This Row],[Enhet Mängd (A1A3)]]))","v":""},null,null,null,null,{"$f":"IF(ISBLANK(InputA1A3[[#This Row],[EPD - EF A4]]),\"\",InputA1A3[[#This Row],[FU/DU (EF A1A3)]])","v":""},null,null,null,null,{"$f":"IFERROR(INDEX(TabellEFDrivmedel[],MATCH(InputA1A3[[#This Row],[Drivmedel (A4) (endast förval ur lista)]],TabellEFDrivmedel[Drivmedel],0),4),\"\")","v":""},null,null,null,{"$f":"IF(InputA1A3[[#This Row],[*DU/FU (EF A4) för valt drivmedel (schablon)]]=\"\",\"\",IF(OR(InputA1A3[[#This Row],[*DU/FU (EF A4) för valt drivmedel (schablon)]]=InputA1A3[[#This Row],[Enhet (bränsleförbrukning per km)]],KontrollTabell[[#This Row],[True/False A4 - Alt 2]]=\"Värde Behövs\"),\"\",InputA1A3[[#This Row],[Enhet (bränsleförbrukning per km)]]& \"/\" & InputA1A3[[#This Row],[*DU/FU (EF A4) för valt drivmedel (schablon)]]))","v":""},null,null,null,null,null,null,null,{"$f":"IFERROR(INDEX(TabellEFDrivmedel[],MATCH(InputA1A3[[#This Row],[Drivmedel (A5.2)]],TabellEFDrivmedel[Drivmedel],0),2),\"\")","v":""},{"$f":"IFERROR(INDEX(TabellEFDrivmedel[],MATCH(InputA1A3[[#This Row],[Drivmedel (A5.2)]],TabellEFDrivmedel[Drivmedel],0),4),\"\")","v":""},{"$f":"IF(OR(KontrollTabell[[#This Row],[True/False A5 Enhet]]=TRUE,KontrollTabell[[#This Row],[True/False A5 Enhet]]=\"\"), \"\", InputA1A3[[#This Row],[*DU/FU (EF A5.2)]] & \"/\" & InputA1A3[[#This Row],[Enhet för mängd (A5.2)]])","v":""},null,null,null,null,null,null,null,null,null,null,null,null,null,null,null,null,null,null,null,null,null,null,null,null,null,null,null,null,null,null,null,null,null,null,null,null,null,null,null,null,{"$f":"IF(ISBLANK(InputA1A3[[#This Row],[Anläggningsdel\n]]),FALSE,TRUE)","v":false},{"$f":"IF(ISBLANK(InputA1A3[[#This Row],[Anläggningsdel\n]]),\"\",IF(ISBLANK(InputA1A3[[#This Row],[Enhet Mängd (A1A3)]]),\"\",IF(ISBLANK(InputA1A3[[#This Row],[FU/DU (EF A1A3)]]),\"Värde Behövs\",IF(InputA1A3[[#This Row],[Enhet Mängd (A1A3)]] = InputA1A3[[#This Row],[FU/DU (EF A1A3)]], TRUE, FALSE))))","v":""},{"$f":"IF(KontrollTabell[[#This Row],[Finns anläggningsdel-namn.]]=FALSE,\"\",(IF(KontrollTabell[[#This Row],[True/False A1A3 Enhet]]=TRUE,TRUE,IF(OR(KontrollTabell[[#This Row],[True/False A1A3 Enhet]]=\"Värde Behövs\",(KontrollTabell[[#This Row],[True/False A1A3 Enhet]]=\"\")),\"\",IF(ISBLANK(InputA1A3[[#This Row],[Omräkning till FU/DU (Skriv in värde, ej formel)]]),FALSE,TRUE)))))","v":""},{"$f":"IF(KontrollTabell[[#This Row],[Finns anläggningsdel-namn.]]=FALSE,,IF(KontrollTabell[[#This Row],[True/False A1A3 Enhet]]=TRUE,InputA1A3[[#This Row],[Mängd A1A3]]*InputA1A3[[#This Row],[EF A1A3 '[kg CO₂-ekv.']]],IF(KontrollTabell[[#This Row],[True/False A1A3 om A1A3 kan beräknas]]=TRUE,InputA1A3[[#This Row],[Mängd A1A3]]*InputA1A3[[#This Row],[EF A1A3 '[kg CO₂-ekv.']]]*InputA1A3[[#This Row],[Omräkning till FU/DU (Skriv in värde, ej formel)]],0)))","v":0},{"$f":"IF(ISBLANK(InputA1A3[[#This Row],[Anläggningsdel\n]]),\"\",IF(ISBLANK(InputA1A3[[#This Row],[EPD - EF A4]]),FALSE,TRUE))","v":""},{"$f":"IF(InputA1A3[[#This Row],[*DU/FU (EF A4) för valt drivmedel (schablon)]]=\"\",\"\",IF(InputA1A3[[#This Row],[Enhet (bränsleförbrukning per km)]]=\"\",\"Värde Behövs\",IF(OR(InputA1A3[[#This Row],[Enhet (bränsleförbrukning per km)]]=InputA1A3[[#This Row],[*DU/FU (EF A4) för valt drivmedel (schablon)]],AND(InputA1A3[[#This Row],[Enhet (bränsleförbrukning per km)]]<>InputA1A3[[#This Row],[*DU/FU (EF A4) för valt drivmedel (schablon)]],ISNUMBER(InputA1A3[[#This Row],[Omräkningsfaktor (A4), (vid behov, värde eller formel)]]))),TRUE(),FALSE())))","v":""},{"$f":"IF(KontrollTabell[[#This Row],[Finns anläggningsdel-namn.]]=FALSE,\"\",(IF(InputA1A3[[#This Row],[Enhet (bränsleförbrukning per km)]] =InputA1A3[[#This Row],[*DU/FU (EF A4) för valt drivmedel (schablon)]],TRUE,IF(KontrollTabell[[#This Row],[True/False A4 - Alt 2]]=\"Värde Behövs\",\"\",IF(ISBLANK(InputA1A3[[#This Row],[Omräkningsfaktor (A4), (vid behov, värde eller formel)]]),FALSE,TRUE)))))","v":""},{"$f":"IF(ISBLANK(InputA1A3[[#This Row],[EPD - EF A4]]),\"\",IF(ISBLANK(InputA1A3[[#This Row],[Omräkning till FU/DU (Skriv in värde, ej formel)]]),InputA1A3[[#This Row],[EPD - EF A4]]*InputA1A3[[#This Row],[Mängd A1A3]],InputA1A3[[#This Row],[Mängd A1A3]]*InputA1A3[[#This Row],[Omräkning till FU/DU (Skriv in värde, ej formel)]]*InputA1A3[[#This Row],[EPD - EF A4]]))","v":""},{"$f":"IFERROR(IF(KontrollTabell[[#This Row],[True/False A4 - Alt 2]]=\"\",\"\",IF(KontrollTabell[[#This Row],[True/False A4 Enhet - Alt2]]=TRUE,\nIF(ISNUMBER(InputA1A3[[#This Row],[Omräkningsfaktor (A4), (vid behov, värde eller formel)]]),InputA1A3[[#This Row],[Sträcka - totalt '[km'], (tur och retur, alla transporter)]]*InputA1A3[[#This Row],[(Bränsle-) Förbrukning per km]]/InputA1A3[[#This Row],[Omräkningsfaktor (A4), (vid behov, värde eller formel)]]*InputA1A3[[#This Row],[*EF (A4)\n'[kg CO₂-ekv.']]],\nInputA1A3[[#This Row],[Sträcka - totalt '[km'], (tur och retur, alla transporter)]]*InputA1A3[[#This Row],[(Bränsle-) Förbrukning per km]]*InputA1A3[[#This Row],[*EF (A4)\n'[kg CO₂-ekv.']]]),\"Sen då\")),0)","v":""},{"$f":"SUM(KontrollTabell[[#This Row],[A4 - Resultat alt 1 '[kg']]:[A4 - Alt 2 - beräkning utsläpp]])","v":0},{"$f":"IF(KontrollTabell[[#This Row],[Finns anläggningsdel-namn.]]=FALSE,\"\",IF(ISBLANK(InputA1A3[[#This Row],[EPD - EF A4]]),FALSE,TRUE))","v":""},{"$f":"IFERROR(IF(KontrollTabell[[#This Row],[True/False A5]]=FALSE(),\"Enheter\",IF(ISBLANK(InputA1A3[[#This Row],[Omräkningsfaktor (A5.2) (ange värde), (vid behov)]]),InputA1A3[[#This Row],[Mängd (A5.2)]]*InputA1A3[[#This Row],[*EF (A5.2)\n'[kg CO₂-ekv.']]],InputA1A3[[#This Row],[Mängd (A5.2)]]*InputA1A3[[#This Row],[*EF (A5.2)\n'[kg CO₂-ekv.']]]*InputA1A3[[#This Row],[Omräkningsfaktor (A5.2) (ange värde), (vid behov)]])),0)","v":0},{"$f":"IF(InputA1A3[[#This Row],[*DU/FU (EF A5.2)]]=\"\",\"\",IF(InputA1A3[[#This Row],[Enhet för mängd (A5.2)]]=\"\",\"Värde Behövs\",IF(OR(InputA1A3[[#This Row],[Enhet för mängd (A5.2)]]=InputA1A3[[#This Row],[*DU/FU (EF A5.2)]],AND(InputA1A3[[#This Row],[Enhet för mängd (A5.2)]]<>InputA1A3[[#This Row],[*DU/FU (EF A5.2)]],ISNUMBER(InputA1A3[[#This Row],[Omräkningsfaktor (A5.2) (ange värde), (vid behov)]]))),TRUE,FALSE)))","v":""},{"$f":"IF(OR(KontrollTabell[[#This Row],[Finns anläggningsdel-namn.]]=FALSE,KontrollTabell[[#This Row],[True/False A5]]=\"Värde Behövs\"),\"\",IF(InputA1A3[[#This Row],[Enhet för mängd (A5.2)]] = InputA1A3[[#This Row],[*DU/FU (EF A5.2)]], TRUE, FALSE))","v":""},{"$f":"IF(KontrollTabell[[#This Row],[Finns anläggningsdel-namn.]]=FALSE,\"\",IF(OR(ISBLANK(InputA1A3[[#This Row],[Kategori\n(egen kategorisering)]])=FALSE,ISBLANK(InputA1A3[[#This Row],[Anläggningsdel\n]]))=FALSE,TRUE,FALSE))","v":""},{"$f":"IF(ISBLANK(InputA1A3[[#This Row],[Anläggningsdel\n]]),\"\",IF(KontrollTabell[[#This Row],[TRUE/FALSE om kategori saknas.]] =FALSE,InputA1A3[[#This Row],[Kategori\n(egen kategorisering)]],\"Kategori saknas\"))","v":""}]
[null,null,null,null,null,null,null,null,null,{"$f":"IF(ISBLANK(InputA1A3[[#This Row],[Anläggningsdel\n]]),\"\",IF(OR(KontrollTabell[[#This Row],[True/False A1A3 Enhet]]=TRUE,KontrollTabell[[#This Row],[True/False A1A3 Enhet]]=\"Värde Behövs\",KontrollTabell[[#This Row],[True/False A1A3 Enhet]]=\"\"), \"\", InputA1A3[[#This Row],[FU/DU (EF A1A3)]] & \"/\" & InputA1A3[[#This Row],[Enhet Mängd (A1A3)]]))","v":""},null,null,null,null,{"$f":"IF(ISBLANK(InputA1A3[[#This Row],[EPD - EF A4]]),\"\",InputA1A3[[#This Row],[FU/DU (EF A1A3)]])","v":""},null,null,null,null,{"$f":"IFERROR(INDEX(TabellEFDrivmedel[],MATCH(InputA1A3[[#This Row],[Drivmedel (A4) (endast förval ur lista)]],TabellEFDrivmedel[Drivmedel],0),4),\"\")","v":""},null,null,null,{"$f":"IF(InputA1A3[[#This Row],[*DU/FU (EF A4) för valt drivmedel (schablon)]]=\"\",\"\",IF(OR(InputA1A3[[#This Row],[*DU/FU (EF A4) för valt drivmedel (schablon)]]=InputA1A3[[#This Row],[Enhet (bränsleförbrukning per km)]],KontrollTabell[[#This Row],[True/False A4 - Alt 2]]=\"Värde Behövs\"),\"\",InputA1A3[[#This Row],[Enhet (bränsleförbrukning per km)]]& \"/\" & InputA1A3[[#This Row],[*DU/FU (EF A4) för valt drivmedel (schablon)]]))","v":""},null,null,null,null,null,null,null,{"$f":"IFERROR(INDEX(TabellEFDrivmedel[],MATCH(InputA1A3[[#This Row],[Drivmedel (A5.2)]],TabellEFDrivmedel[Drivmedel],0),2),\"\")","v":""},{"$f":"IFERROR(INDEX(TabellEFDrivmedel[],MATCH(InputA1A3[[#This Row],[Drivmedel (A5.2)]],TabellEFDrivmedel[Drivmedel],0),4),\"\")","v":""},{"$f":"IF(OR(KontrollTabell[[#This Row],[True/False A5 Enhet]]=TRUE,KontrollTabell[[#This Row],[True/False A5 Enhet]]=\"\"), \"\", InputA1A3[[#This Row],[*DU/FU (EF A5.2)]] & \"/\" & InputA1A3[[#This Row],[Enhet för mängd (A5.2)]])","v":""},null,null,null,null,null,null,null,null,null,null,null,null,null,null,null,null,null,null,null,null,null,null,null,null,null,null,null,null,null,null,null,null,null,null,null,null,null,null,null,null,{"$f":"IF(ISBLANK(InputA1A3[[#This Row],[Anläggningsdel\n]]),FALSE,TRUE)","v":false},{"$f":"IF(ISBLANK(InputA1A3[[#This Row],[Anläggningsdel\n]]),\"\",IF(ISBLANK(InputA1A3[[#This Row],[Enhet Mängd (A1A3)]]),\"\",IF(ISBLANK(InputA1A3[[#This Row],[FU/DU (EF A1A3)]]),\"Värde Behövs\",IF(InputA1A3[[#This Row],[Enhet Mängd (A1A3)]] = InputA1A3[[#This Row],[FU/DU (EF A1A3)]], TRUE, FALSE))))","v":""},{"$f":"IF(KontrollTabell[[#This Row],[Finns anläggningsdel-namn.]]=FALSE,\"\",(IF(KontrollTabell[[#This Row],[True/False A1A3 Enhet]]=TRUE,TRUE,IF(OR(KontrollTabell[[#This Row],[True/False A1A3 Enhet]]=\"Värde Behövs\",(KontrollTabell[[#This Row],[True/False A1A3 Enhet]]=\"\")),\"\",IF(ISBLANK(InputA1A3[[#This Row],[Omräkning till FU/DU (Skriv in värde, ej formel)]]),FALSE,TRUE)))))","v":""},{"$f":"IF(KontrollTabell[[#This Row],[Finns anläggningsdel-namn.]]=FALSE,,IF(KontrollTabell[[#This Row],[True/False A1A3 Enhet]]=TRUE,InputA1A3[[#This Row],[Mängd A1A3]]*InputA1A3[[#This Row],[EF A1A3 '[kg CO₂-ekv.']]],IF(KontrollTabell[[#This Row],[True/False A1A3 om A1A3 kan beräknas]]=TRUE,InputA1A3[[#This Row],[Mängd A1A3]]*InputA1A3[[#This Row],[EF A1A3 '[kg CO₂-ekv.']]]*InputA1A3[[#This Row],[Omräkning till FU/DU (Skriv in värde, ej formel)]],0)))","v":0},{"$f":"IF(ISBLANK(InputA1A3[[#This Row],[Anläggningsdel\n]]),\"\",IF(ISBLANK(InputA1A3[[#This Row],[EPD - EF A4]]),FALSE,TRUE))","v":""},{"$f":"IF(InputA1A3[[#This Row],[*DU/FU (EF A4) för valt drivmedel (schablon)]]=\"\",\"\",IF(InputA1A3[[#This Row],[Enhet (bränsleförbrukning per km)]]=\"\",\"Värde Behövs\",IF(OR(InputA1A3[[#This Row],[Enhet (bränsleförbrukning per km)]]=InputA1A3[[#This Row],[*DU/FU (EF A4) för valt drivmedel (schablon)]],AND(InputA1A3[[#This Row],[Enhet (bränsleförbrukning per km)]]<>InputA1A3[[#This Row],[*DU/FU (EF A4) för valt drivmedel (schablon)]],ISNUMBER(InputA1A3[[#This Row],[Omräkningsfaktor (A4), (vid behov, värde eller formel)]]))),TRUE(),FALSE())))","v":""},{"$f":"IF(KontrollTabell[[#This Row],[Finns anläggningsdel-namn.]]=FALSE,\"\",(IF(InputA1A3[[#This Row],[Enhet (bränsleförbrukning per km)]] =InputA1A3[[#This Row],[*DU/FU (EF A4) för valt drivmedel (schablon)]],TRUE,IF(KontrollTabell[[#This Row],[True/False A4 - Alt 2]]=\"Värde Behövs\",\"\",IF(ISBLANK(InputA1A3[[#This Row],[Omräkningsfaktor (A4), (vid behov, värde eller formel)]]),FALSE,TRUE)))))","v":""},{"$f":"IF(ISBLANK(InputA1A3[[#This Row],[EPD - EF A4]]),\"\",IF(ISBLANK(InputA1A3[[#This Row],[Omräkning till FU/DU (Skriv in värde, ej formel)]]),InputA1A3[[#This Row],[EPD - EF A4]]*InputA1A3[[#This Row],[Mängd A1A3]],InputA1A3[[#This Row],[Mängd A1A3]]*InputA1A3[[#This Row],[Omräkning till FU/DU (Skriv in värde, ej formel)]]*InputA1A3[[#This Row],[EPD - EF A4]]))","v":""},{"$f":"IFERROR(IF(KontrollTabell[[#This Row],[True/False A4 - Alt 2]]=\"\",\"\",IF(KontrollTabell[[#This Row],[True/False A4 Enhet - Alt2]]=TRUE,\nIF(ISNUMBER(InputA1A3[[#This Row],[Omräkningsfaktor (A4), (vid behov, värde eller formel)]]),InputA1A3[[#This Row],[Sträcka - totalt '[km'], (tur och retur, alla transporter)]]*InputA1A3[[#This Row],[(Bränsle-) Förbrukning per km]]/InputA1A3[[#This Row],[Omräkningsfaktor (A4), (vid behov, värde eller formel)]]*InputA1A3[[#This Row],[*EF (A4)\n'[kg CO₂-ekv.']]],\nInputA1A3[[#This Row],[Sträcka - totalt '[km'], (tur och retur, alla transporter)]]*InputA1A3[[#This Row],[(Bränsle-) Förbrukning per km]]*InputA1A3[[#This Row],[*EF (A4)\n'[kg CO₂-ekv.']]]),\"Sen då\")),0)","v":""},{"$f":"SUM(KontrollTabell[[#This Row],[A4 - Resultat alt 1 '[kg']]:[A4 - Alt 2 - beräkning utsläpp]])","v":0},{"$f":"IF(KontrollTabell[[#This Row],[Finns anläggningsdel-namn.]]=FALSE,\"\",IF(ISBLANK(InputA1A3[[#This Row],[EPD - EF A4]]),FALSE,TRUE))","v":""},{"$f":"IFERROR(IF(KontrollTabell[[#This Row],[True/False A5]]=FALSE(),\"Enheter\",IF(ISBLANK(InputA1A3[[#This Row],[Omräkningsfaktor (A5.2) (ange värde), (vid behov)]]),InputA1A3[[#This Row],[Mängd (A5.2)]]*InputA1A3[[#This Row],[*EF (A5.2)\n'[kg CO₂-ekv.']]],InputA1A3[[#This Row],[Mängd (A5.2)]]*InputA1A3[[#This Row],[*EF (A5.2)\n'[kg CO₂-ekv.']]]*InputA1A3[[#This Row],[Omräkningsfaktor (A5.2) (ange värde), (vid behov)]])),0)","v":0},{"$f":"IF(InputA1A3[[#This Row],[*DU/FU (EF A5.2)]]=\"\",\"\",IF(InputA1A3[[#This Row],[Enhet för mängd (A5.2)]]=\"\",\"Värde Behövs\",IF(OR(InputA1A3[[#This Row],[Enhet för mängd (A5.2)]]=InputA1A3[[#This Row],[*DU/FU (EF A5.2)]],AND(InputA1A3[[#This Row],[Enhet för mängd (A5.2)]]<>InputA1A3[[#This Row],[*DU/FU (EF A5.2)]],ISNUMBER(InputA1A3[[#This Row],[Omräkningsfaktor (A5.2) (ange värde), (vid behov)]]))),TRUE,FALSE)))","v":""},{"$f":"IF(OR(KontrollTabell[[#This Row],[Finns anläggningsdel-namn.]]=FALSE,KontrollTabell[[#This Row],[True/False A5]]=\"Värde Behövs\"),\"\",IF(InputA1A3[[#This Row],[Enhet för mängd (A5.2)]] = InputA1A3[[#This Row],[*DU/FU (EF A5.2)]], TRUE, FALSE))","v":""},{"$f":"IF(KontrollTabell[[#This Row],[Finns anläggningsdel-namn.]]=FALSE,\"\",IF(OR(ISBLANK(InputA1A3[[#This Row],[Kategori\n(egen kategorisering)]])=FALSE,ISBLANK(InputA1A3[[#This Row],[Anläggningsdel\n]]))=FALSE,TRUE,FALSE))","v":""},{"$f":"IF(ISBLANK(InputA1A3[[#This Row],[Anläggningsdel\n]]),\"\",IF(KontrollTabell[[#This Row],[TRUE/FALSE om kategori saknas.]] =FALSE,InputA1A3[[#This Row],[Kategori\n(egen kategorisering)]],\"Kategori saknas\"))","v":""}]
[null,null,null,null,null,null,null,null,null,{"$f":"IF(ISBLANK(InputA1A3[[#This Row],[Anläggningsdel\n]]),\"\",IF(OR(KontrollTabell[[#This Row],[True/False A1A3 Enhet]]=TRUE,KontrollTabell[[#This Row],[True/False A1A3 Enhet]]=\"Värde Behövs\",KontrollTabell[[#This Row],[True/False A1A3 Enhet]]=\"\"), \"\", InputA1A3[[#This Row],[FU/DU (EF A1A3)]] & \"/\" & InputA1A3[[#This Row],[Enhet Mängd (A1A3)]]))","v":""},null,null,null,null,{"$f":"IF(ISBLANK(InputA1A3[[#This Row],[EPD - EF A4]]),\"\",InputA1A3[[#This Row],[FU/DU (EF A1A3)]])","v":""},null,null,null,null,{"$f":"IFERROR(INDEX(TabellEFDrivmedel[],MATCH(InputA1A3[[#This Row],[Drivmedel (A4) (endast förval ur lista)]],TabellEFDrivmedel[Drivmedel],0),4),\"\")","v":""},null,null,null,{"$f":"IF(InputA1A3[[#This Row],[*DU/FU (EF A4) för valt drivmedel (schablon)]]=\"\",\"\",IF(OR(InputA1A3[[#This Row],[*DU/FU (EF A4) för valt drivmedel (schablon)]]=InputA1A3[[#This Row],[Enhet (bränsleförbrukning per km)]],KontrollTabell[[#This Row],[True/False A4 - Alt 2]]=\"Värde Behövs\"),\"\",InputA1A3[[#This Row],[Enhet (bränsleförbrukning per km)]]& \"/\" & InputA1A3[[#This Row],[*DU/FU (EF A4) för valt drivmedel (schablon)]]))","v":""},null,null,null,null,null,null,null,{"$f":"IFERROR(INDEX(TabellEFDrivmedel[],MATCH(InputA1A3[[#This Row],[Drivmedel (A5.2)]],TabellEFDrivmedel[Drivmedel],0),2),\"\")","v":""},{"$f":"IFERROR(INDEX(TabellEFDrivmedel[],MATCH(InputA1A3[[#This Row],[Drivmedel (A5.2)]],TabellEFDrivmedel[Drivmedel],0),4),\"\")","v":""},{"$f":"IF(OR(KontrollTabell[[#This Row],[True/False A5 Enhet]]=TRUE,KontrollTabell[[#This Row],[True/False A5 Enhet]]=\"\"), \"\", InputA1A3[[#This Row],[*DU/FU (EF A5.2)]] & \"/\" & InputA1A3[[#This Row],[Enhet för mängd (A5.2)]])","v":""},null,null,null,null,null,null,null,null,null,null,null,null,null,null,null,null,null,null,null,null,null,null,null,null,null,null,null,null,null,null,null,null,null,null,null,null,null,null,null,null,{"$f":"IF(ISBLANK(InputA1A3[[#This Row],[Anläggningsdel\n]]),FALSE,TRUE)","v":false},{"$f":"IF(ISBLANK(InputA1A3[[#This Row],[Anläggningsdel\n]]),\"\",IF(ISBLANK(InputA1A3[[#This Row],[Enhet Mängd (A1A3)]]),\"\",IF(ISBLANK(InputA1A3[[#This Row],[FU/DU (EF A1A3)]]),\"Värde Behövs\",IF(InputA1A3[[#This Row],[Enhet Mängd (A1A3)]] = InputA1A3[[#This Row],[FU/DU (EF A1A3)]], TRUE, FALSE))))","v":""},{"$f":"IF(KontrollTabell[[#This Row],[Finns anläggningsdel-namn.]]=FALSE,\"\",(IF(KontrollTabell[[#This Row],[True/False A1A3 Enhet]]=TRUE,TRUE,IF(OR(KontrollTabell[[#This Row],[True/False A1A3 Enhet]]=\"Värde Behövs\",(KontrollTabell[[#This Row],[True/False A1A3 Enhet]]=\"\")),\"\",IF(ISBLANK(InputA1A3[[#This Row],[Omräkning till FU/DU (Skriv in värde, ej formel)]]),FALSE,TRUE)))))","v":""},{"$f":"IF(KontrollTabell[[#This Row],[Finns anläggningsdel-namn.]]=FALSE,,IF(KontrollTabell[[#This Row],[True/False A1A3 Enhet]]=TRUE,InputA1A3[[#This Row],[Mängd A1A3]]*InputA1A3[[#This Row],[EF A1A3 '[kg CO₂-ekv.']]],IF(KontrollTabell[[#This Row],[True/False A1A3 om A1A3 kan beräknas]]=TRUE,InputA1A3[[#This Row],[Mängd A1A3]]*InputA1A3[[#This Row],[EF A1A3 '[kg CO₂-ekv.']]]*InputA1A3[[#This Row],[Omräkning till FU/DU (Skriv in värde, ej formel)]],0)))","v":0},{"$f":"IF(ISBLANK(InputA1A3[[#This Row],[Anläggningsdel\n]]),\"\",IF(ISBLANK(InputA1A3[[#This Row],[EPD - EF A4]]),FALSE,TRUE))","v":""},{"$f":"IF(InputA1A3[[#This Row],[*DU/FU (EF A4) för valt drivmedel (schablon)]]=\"\",\"\",IF(InputA1A3[[#This Row],[Enhet (bränsleförbrukning per km)]]=\"\",\"Värde Behövs\",IF(OR(InputA1A3[[#This Row],[Enhet (bränsleförbrukning per km)]]=InputA1A3[[#This Row],[*DU/FU (EF A4) för valt drivmedel (schablon)]],AND(InputA1A3[[#This Row],[Enhet (bränsleförbrukning per km)]]<>InputA1A3[[#This Row],[*DU/FU (EF A4) för valt drivmedel (schablon)]],ISNUMBER(InputA1A3[[#This Row],[Omräkningsfaktor (A4), (vid behov, värde eller formel)]]))),TRUE(),FALSE())))","v":""},{"$f":"IF(KontrollTabell[[#This Row],[Finns anläggningsdel-namn.]]=FALSE,\"\",(IF(InputA1A3[[#This Row],[Enhet (bränsleförbrukning per km)]] =InputA1A3[[#This Row],[*DU/FU (EF A4) för valt drivmedel (schablon)]],TRUE,IF(KontrollTabell[[#This Row],[True/False A4 - Alt 2]]=\"Värde Behövs\",\"\",IF(ISBLANK(InputA1A3[[#This Row],[Omräkningsfaktor (A4), (vid behov, värde eller formel)]]),FALSE,TRUE)))))","v":""},{"$f":"IF(ISBLANK(InputA1A3[[#This Row],[EPD - EF A4]]),\"\",IF(ISBLANK(InputA1A3[[#This Row],[Omräkning till FU/DU (Skriv in värde, ej formel)]]),InputA1A3[[#This Row],[EPD - EF A4]]*InputA1A3[[#This Row],[Mängd A1A3]],InputA1A3[[#This Row],[Mängd A1A3]]*InputA1A3[[#This Row],[Omräkning till FU/DU (Skriv in värde, ej formel)]]*InputA1A3[[#This Row],[EPD - EF A4]]))","v":""},{"$f":"IFERROR(IF(KontrollTabell[[#This Row],[True/False A4 - Alt 2]]=\"\",\"\",IF(KontrollTabell[[#This Row],[True/False A4 Enhet - Alt2]]=TRUE,\nIF(ISNUMBER(InputA1A3[[#This Row],[Omräkningsfaktor (A4), (vid behov, värde eller formel)]]),InputA1A3[[#This Row],[Sträcka - totalt '[km'], (tur och retur, alla transporter)]]*InputA1A3[[#This Row],[(Bränsle-) Förbrukning per km]]/InputA1A3[[#This Row],[Omräkningsfaktor (A4), (vid behov, värde eller formel)]]*InputA1A3[[#This Row],[*EF (A4)\n'[kg CO₂-ekv.']]],\nInputA1A3[[#This Row],[Sträcka - totalt '[km'], (tur och retur, alla transporter)]]*InputA1A3[[#This Row],[(Bränsle-) Förbrukning per km]]*InputA1A3[[#This Row],[*EF (A4)\n'[kg CO₂-ekv.']]]),\"Sen då\")),0)","v":""},{"$f":"SUM(KontrollTabell[[#This Row],[A4 - Resultat alt 1 '[kg']]:[A4 - Alt 2 - beräkning utsläpp]])","v":0},{"$f":"IF(KontrollTabell[[#This Row],[Finns anläggningsdel-namn.]]=FALSE,\"\",IF(ISBLANK(InputA1A3[[#This Row],[EPD - EF A4]]),FALSE,TRUE))","v":""},{"$f":"IFERROR(IF(KontrollTabell[[#This Row],[True/False A5]]=FALSE(),\"Enheter\",IF(ISBLANK(InputA1A3[[#This Row],[Omräkningsfaktor (A5.2) (ange värde), (vid behov)]]),InputA1A3[[#This Row],[Mängd (A5.2)]]*InputA1A3[[#This Row],[*EF (A5.2)\n'[kg CO₂-ekv.']]],InputA1A3[[#This Row],[Mängd (A5.2)]]*InputA1A3[[#This Row],[*EF (A5.2)\n'[kg CO₂-ekv.']]]*InputA1A3[[#This Row],[Omräkningsfaktor (A5.2) (ange värde), (vid behov)]])),0)","v":0},{"$f":"IF(InputA1A3[[#This Row],[*DU/FU (EF A5.2)]]=\"\",\"\",IF(InputA1A3[[#This Row],[Enhet för mängd (A5.2)]]=\"\",\"Värde Behövs\",IF(OR(InputA1A3[[#This Row],[Enhet för mängd (A5.2)]]=InputA1A3[[#This Row],[*DU/FU (EF A5.2)]],AND(InputA1A3[[#This Row],[Enhet för mängd (A5.2)]]<>InputA1A3[[#This Row],[*DU/FU (EF A5.2)]],ISNUMBER(InputA1A3[[#This Row],[Omräkningsfaktor (A5.2) (ange värde), (vid behov)]]))),TRUE,FALSE)))","v":""},{"$f":"IF(OR(KontrollTabell[[#This Row],[Finns anläggningsdel-namn.]]=FALSE,KontrollTabell[[#This Row],[True/False A5]]=\"Värde Behövs\"),\"\",IF(InputA1A3[[#This Row],[Enhet för mängd (A5.2)]] = InputA1A3[[#This Row],[*DU/FU (EF A5.2)]], TRUE, FALSE))","v":""},{"$f":"IF(KontrollTabell[[#This Row],[Finns anläggningsdel-namn.]]=FALSE,\"\",IF(OR(ISBLANK(InputA1A3[[#This Row],[Kategori\n(egen kategorisering)]])=FALSE,ISBLANK(InputA1A3[[#This Row],[Anläggningsdel\n]]))=FALSE,TRUE,FALSE))","v":""},{"$f":"IF(ISBLANK(InputA1A3[[#This Row],[Anläggningsdel\n]]),\"\",IF(KontrollTabell[[#This Row],[TRUE/FALSE om kategori saknas.]] =FALSE,InputA1A3[[#This Row],[Kategori\n(egen kategorisering)]],\"Kategori saknas\"))","v":""}]
[null,null,null,null,null,null,null,null,null,{"$f":"IF(ISBLANK(InputA1A3[[#This Row],[Anläggningsdel\n]]),\"\",IF(OR(KontrollTabell[[#This Row],[True/False A1A3 Enhet]]=TRUE,KontrollTabell[[#This Row],[True/False A1A3 Enhet]]=\"Värde Behövs\",KontrollTabell[[#This Row],[True/False A1A3 Enhet]]=\"\"), \"\", InputA1A3[[#This Row],[FU/DU (EF A1A3)]] & \"/\" & InputA1A3[[#This Row],[Enhet Mängd (A1A3)]]))","v":""},null,null,null,null,{"$f":"IF(ISBLANK(InputA1A3[[#This Row],[EPD - EF A4]]),\"\",InputA1A3[[#This Row],[FU/DU (EF A1A3)]])","v":""},null,null,null,null,{"$f":"IFERROR(INDEX(TabellEFDrivmedel[],MATCH(InputA1A3[[#This Row],[Drivmedel (A4) (endast förval ur lista)]],TabellEFDrivmedel[Drivmedel],0),4),\"\")","v":""},null,null,null,{"$f":"IF(InputA1A3[[#This Row],[*DU/FU (EF A4) för valt drivmedel (schablon)]]=\"\",\"\",IF(OR(InputA1A3[[#This Row],[*DU/FU (EF A4) för valt drivmedel (schablon)]]=InputA1A3[[#This Row],[Enhet (bränsleförbrukning per km)]],KontrollTabell[[#This Row],[True/False A4 - Alt 2]]=\"Värde Behövs\"),\"\",InputA1A3[[#This Row],[Enhet (bränsleförbrukning per km)]]& \"/\" & InputA1A3[[#This Row],[*DU/FU (EF A4) för valt drivmedel (schablon)]]))","v":""},null,null,null,null,null,null,null,{"$f":"IFERROR(INDEX(TabellEFDrivmedel[],MATCH(InputA1A3[[#This Row],[Drivmedel (A5.2)]],TabellEFDrivmedel[Drivmedel],0),2),\"\")","v":""},{"$f":"IFERROR(INDEX(TabellEFDrivmedel[],MATCH(InputA1A3[[#This Row],[Drivmedel (A5.2)]],TabellEFDrivmedel[Drivmedel],0),4),\"\")","v":""},{"$f":"IF(OR(KontrollTabell[[#This Row],[True/False A5 Enhet]]=TRUE,KontrollTabell[[#This Row],[True/False A5 Enhet]]=\"\"), \"\", InputA1A3[[#This Row],[*DU/FU (EF A5.2)]] & \"/\" & InputA1A3[[#This Row],[Enhet för mängd (A5.2)]])","v":""},null,null,null,null,null,null,null,null,null,null,null,null,null,null,null,null,null,null,null,null,null,null,null,null,null,null,null,null,null,null,null,null,null,null,null,null,null,null,null,null,{"$f":"IF(ISBLANK(InputA1A3[[#This Row],[Anläggningsdel\n]]),FALSE,TRUE)","v":false},{"$f":"IF(ISBLANK(InputA1A3[[#This Row],[Anläggningsdel\n]]),\"\",IF(ISBLANK(InputA1A3[[#This Row],[Enhet Mängd (A1A3)]]),\"\",IF(ISBLANK(InputA1A3[[#This Row],[FU/DU (EF A1A3)]]),\"Värde Behövs\",IF(InputA1A3[[#This Row],[Enhet Mängd (A1A3)]] = InputA1A3[[#This Row],[FU/DU (EF A1A3)]], TRUE, FALSE))))","v":""},{"$f":"IF(KontrollTabell[[#This Row],[Finns anläggningsdel-namn.]]=FALSE,\"\",(IF(KontrollTabell[[#This Row],[True/False A1A3 Enhet]]=TRUE,TRUE,IF(OR(KontrollTabell[[#This Row],[True/False A1A3 Enhet]]=\"Värde Behövs\",(KontrollTabell[[#This Row],[True/False A1A3 Enhet]]=\"\")),\"\",IF(ISBLANK(InputA1A3[[#This Row],[Omräkning till FU/DU (Skriv in värde, ej formel)]]),FALSE,TRUE)))))","v":""},{"$f":"IF(KontrollTabell[[#This Row],[Finns anläggningsdel-namn.]]=FALSE,,IF(KontrollTabell[[#This Row],[True/False A1A3 Enhet]]=TRUE,InputA1A3[[#This Row],[Mängd A1A3]]*InputA1A3[[#This Row],[EF A1A3 '[kg CO₂-ekv.']]],IF(KontrollTabell[[#This Row],[True/False A1A3 om A1A3 kan beräknas]]=TRUE,InputA1A3[[#This Row],[Mängd A1A3]]*InputA1A3[[#This Row],[EF A1A3 '[kg CO₂-ekv.']]]*InputA1A3[[#This Row],[Omräkning till FU/DU (Skriv in värde, ej formel)]],0)))","v":0},{"$f":"IF(ISBLANK(InputA1A3[[#This Row],[Anläggningsdel\n]]),\"\",IF(ISBLANK(InputA1A3[[#This Row],[EPD - EF A4]]),FALSE,TRUE))","v":""},{"$f":"IF(InputA1A3[[#This Row],[*DU/FU (EF A4) för valt drivmedel (schablon)]]=\"\",\"\",IF(InputA1A3[[#This Row],[Enhet (bränsleförbrukning per km)]]=\"\",\"Värde Behövs\",IF(OR(InputA1A3[[#This Row],[Enhet (bränsleförbrukning per km)]]=InputA1A3[[#This Row],[*DU/FU (EF A4) för valt drivmedel (schablon)]],AND(InputA1A3[[#This Row],[Enhet (bränsleförbrukning per km)]]<>InputA1A3[[#This Row],[*DU/FU (EF A4) för valt drivmedel (schablon)]],ISNUMBER(InputA1A3[[#This Row],[Omräkningsfaktor (A4), (vid behov, värde eller formel)]]))),TRUE(),FALSE())))","v":""},{"$f":"IF(KontrollTabell[[#This Row],[Finns anläggningsdel-namn.]]=FALSE,\"\",(IF(InputA1A3[[#This Row],[Enhet (bränsleförbrukning per km)]] =InputA1A3[[#This Row],[*DU/FU (EF A4) för valt drivmedel (schablon)]],TRUE,IF(KontrollTabell[[#This Row],[True/False A4 - Alt 2]]=\"Värde Behövs\",\"\",IF(ISBLANK(InputA1A3[[#This Row],[Omräkningsfaktor (A4), (vid behov, värde eller formel)]]),FALSE,TRUE)))))","v":""},{"$f":"IF(ISBLANK(InputA1A3[[#This Row],[EPD - EF A4]]),\"\",IF(ISBLANK(InputA1A3[[#This Row],[Omräkning till FU/DU (Skriv in värde, ej formel)]]),InputA1A3[[#This Row],[EPD - EF A4]]*InputA1A3[[#This Row],[Mängd A1A3]],InputA1A3[[#This Row],[Mängd A1A3]]*InputA1A3[[#This Row],[Omräkning till FU/DU (Skriv in värde, ej formel)]]*InputA1A3[[#This Row],[EPD - EF A4]]))","v":""},{"$f":"IFERROR(IF(KontrollTabell[[#This Row],[True/False A4 - Alt 2]]=\"\",\"\",IF(KontrollTabell[[#This Row],[True/False A4 Enhet - Alt2]]=TRUE,\nIF(ISNUMBER(InputA1A3[[#This Row],[Omräkningsfaktor (A4), (vid behov, värde eller formel)]]),InputA1A3[[#This Row],[Sträcka - totalt '[km'], (tur och retur, alla transporter)]]*InputA1A3[[#This Row],[(Bränsle-) Förbrukning per km]]/InputA1A3[[#This Row],[Omräkningsfaktor (A4), (vid behov, värde eller formel)]]*InputA1A3[[#This Row],[*EF (A4)\n'[kg CO₂-ekv.']]],\nInputA1A3[[#This Row],[Sträcka - totalt '[km'], (tur och retur, alla transporter)]]*InputA1A3[[#This Row],[(Bränsle-) Förbrukning per km]]*InputA1A3[[#This Row],[*EF (A4)\n'[kg CO₂-ekv.']]]),\"Sen då\")),0)","v":""},{"$f":"SUM(KontrollTabell[[#This Row],[A4 - Resultat alt 1 '[kg']]:[A4 - Alt 2 - beräkning utsläpp]])","v":0},{"$f":"IF(KontrollTabell[[#This Row],[Finns anläggningsdel-namn.]]=FALSE,\"\",IF(ISBLANK(InputA1A3[[#This Row],[EPD - EF A4]]),FALSE,TRUE))","v":""},{"$f":"IFERROR(IF(KontrollTabell[[#This Row],[True/False A5]]=FALSE(),\"Enheter\",IF(ISBLANK(InputA1A3[[#This Row],[Omräkningsfaktor (A5.2) (ange värde), (vid behov)]]),InputA1A3[[#This Row],[Mängd (A5.2)]]*InputA1A3[[#This Row],[*EF (A5.2)\n'[kg CO₂-ekv.']]],InputA1A3[[#This Row],[Mängd (A5.2)]]*InputA1A3[[#This Row],[*EF (A5.2)\n'[kg CO₂-ekv.']]]*InputA1A3[[#This Row],[Omräkningsfaktor (A5.2) (ange värde), (vid behov)]])),0)","v":0},{"$f":"IF(InputA1A3[[#This Row],[*DU/FU (EF A5.2)]]=\"\",\"\",IF(InputA1A3[[#This Row],[Enhet för mängd (A5.2)]]=\"\",\"Värde Behövs\",IF(OR(InputA1A3[[#This Row],[Enhet för mängd (A5.2)]]=InputA1A3[[#This Row],[*DU/FU (EF A5.2)]],AND(InputA1A3[[#This Row],[Enhet för mängd (A5.2)]]<>InputA1A3[[#This Row],[*DU/FU (EF A5.2)]],ISNUMBER(InputA1A3[[#This Row],[Omräkningsfaktor (A5.2) (ange värde), (vid behov)]]))),TRUE,FALSE)))","v":""},{"$f":"IF(OR(KontrollTabell[[#This Row],[Finns anläggningsdel-namn.]]=FALSE,KontrollTabell[[#This Row],[True/False A5]]=\"Värde Behövs\"),\"\",IF(InputA1A3[[#This Row],[Enhet för mängd (A5.2)]] = InputA1A3[[#This Row],[*DU/FU (EF A5.2)]], TRUE, FALSE))","v":""},{"$f":"IF(KontrollTabell[[#This Row],[Finns anläggningsdel-namn.]]=FALSE,\"\",IF(OR(ISBLANK(InputA1A3[[#This Row],[Kategori\n(egen kategorisering)]])=FALSE,ISBLANK(InputA1A3[[#This Row],[Anläggningsdel\n]]))=FALSE,TRUE,FALSE))","v":""},{"$f":"IF(ISBLANK(InputA1A3[[#This Row],[Anläggningsdel\n]]),\"\",IF(KontrollTabell[[#This Row],[TRUE/FALSE om kategori saknas.]] =FALSE,InputA1A3[[#This Row],[Kategori\n(egen kategorisering)]],\"Kategori saknas\"))","v":""}]
[null,null,null,null,null,null,null,null,null,{"$f":"IF(ISBLANK(InputA1A3[[#This Row],[Anläggningsdel\n]]),\"\",IF(OR(KontrollTabell[[#This Row],[True/False A1A3 Enhet]]=TRUE,KontrollTabell[[#This Row],[True/False A1A3 Enhet]]=\"Värde Behövs\",KontrollTabell[[#This Row],[True/False A1A3 Enhet]]=\"\"), \"\", InputA1A3[[#This Row],[FU/DU (EF A1A3)]] & \"/\" & InputA1A3[[#This Row],[Enhet Mängd (A1A3)]]))","v":""},null,null,null,null,{"$f":"IF(ISBLANK(InputA1A3[[#This Row],[EPD - EF A4]]),\"\",InputA1A3[[#This Row],[FU/DU (EF A1A3)]])","v":""},null,null,null,null,{"$f":"IFERROR(INDEX(TabellEFDrivmedel[],MATCH(InputA1A3[[#This Row],[Drivmedel (A4) (endast förval ur lista)]],TabellEFDrivmedel[Drivmedel],0),4),\"\")","v":""},null,null,null,{"$f":"IF(InputA1A3[[#This Row],[*DU/FU (EF A4) för valt drivmedel (schablon)]]=\"\",\"\",IF(OR(InputA1A3[[#This Row],[*DU/FU (EF A4) för valt drivmedel (schablon)]]=InputA1A3[[#This Row],[Enhet (bränsleförbrukning per km)]],KontrollTabell[[#This Row],[True/False A4 - Alt 2]]=\"Värde Behövs\"),\"\",InputA1A3[[#This Row],[Enhet (bränsleförbrukning per km)]]& \"/\" & InputA1A3[[#This Row],[*DU/FU (EF A4) för valt drivmedel (schablon)]]))","v":""},null,null,null,null,null,null,null,{"$f":"IFERROR(INDEX(TabellEFDrivmedel[],MATCH(InputA1A3[[#This Row],[Drivmedel (A5.2)]],TabellEFDrivmedel[Drivmedel],0),2),\"\")","v":""},{"$f":"IFERROR(INDEX(TabellEFDrivmedel[],MATCH(InputA1A3[[#This Row],[Drivmedel (A5.2)]],TabellEFDrivmedel[Drivmedel],0),4),\"\")","v":""},{"$f":"IF(OR(KontrollTabell[[#This Row],[True/False A5 Enhet]]=TRUE,KontrollTabell[[#This Row],[True/False A5 Enhet]]=\"\"), \"\", InputA1A3[[#This Row],[*DU/FU (EF A5.2)]] & \"/\" & InputA1A3[[#This Row],[Enhet för mängd (A5.2)]])","v":""},null,null,null,null,null,null,null,null,null,null,null,null,null,null,null,null,null,null,null,null,null,null,null,null,null,null,null,null,null,null,null,null,null,null,null,null,null,null,null,null,{"$f":"IF(ISBLANK(InputA1A3[[#This Row],[Anläggningsdel\n]]),FALSE,TRUE)","v":false},{"$f":"IF(ISBLANK(InputA1A3[[#This Row],[Anläggningsdel\n]]),\"\",IF(ISBLANK(InputA1A3[[#This Row],[Enhet Mängd (A1A3)]]),\"\",IF(ISBLANK(InputA1A3[[#This Row],[FU/DU (EF A1A3)]]),\"Värde Behövs\",IF(InputA1A3[[#This Row],[Enhet Mängd (A1A3)]] = InputA1A3[[#This Row],[FU/DU (EF A1A3)]], TRUE, FALSE))))","v":""},{"$f":"IF(KontrollTabell[[#This Row],[Finns anläggningsdel-namn.]]=FALSE,\"\",(IF(KontrollTabell[[#This Row],[True/False A1A3 Enhet]]=TRUE,TRUE,IF(OR(KontrollTabell[[#This Row],[True/False A1A3 Enhet]]=\"Värde Behövs\",(KontrollTabell[[#This Row],[True/False A1A3 Enhet]]=\"\")),\"\",IF(ISBLANK(InputA1A3[[#This Row],[Omräkning till FU/DU (Skriv in värde, ej formel)]]),FALSE,TRUE)))))","v":""},{"$f":"IF(KontrollTabell[[#This Row],[Finns anläggningsdel-namn.]]=FALSE,,IF(KontrollTabell[[#This Row],[True/False A1A3 Enhet]]=TRUE,InputA1A3[[#This Row],[Mängd A1A3]]*InputA1A3[[#This Row],[EF A1A3 '[kg CO₂-ekv.']]],IF(KontrollTabell[[#This Row],[True/False A1A3 om A1A3 kan beräknas]]=TRUE,InputA1A3[[#This Row],[Mängd A1A3]]*InputA1A3[[#This Row],[EF A1A3 '[kg CO₂-ekv.']]]*InputA1A3[[#This Row],[Omräkning till FU/DU (Skriv in värde, ej formel)]],0)))","v":0},{"$f":"IF(ISBLANK(InputA1A3[[#This Row],[Anläggningsdel\n]]),\"\",IF(ISBLANK(InputA1A3[[#This Row],[EPD - EF A4]]),FALSE,TRUE))","v":""},{"$f":"IF(InputA1A3[[#This Row],[*DU/FU (EF A4) för valt drivmedel (schablon)]]=\"\",\"\",IF(InputA1A3[[#This Row],[Enhet (bränsleförbrukning per km)]]=\"\",\"Värde Behövs\",IF(OR(InputA1A3[[#This Row],[Enhet (bränsleförbrukning per km)]]=InputA1A3[[#This Row],[*DU/FU (EF A4) för valt drivmedel (schablon)]],AND(InputA1A3[[#This Row],[Enhet (bränsleförbrukning per km)]]<>InputA1A3[[#This Row],[*DU/FU (EF A4) för valt drivmedel (schablon)]],ISNUMBER(InputA1A3[[#This Row],[Omräkningsfaktor (A4), (vid behov, värde eller formel)]]))),TRUE(),FALSE())))","v":""},{"$f":"IF(KontrollTabell[[#This Row],[Finns anläggningsdel-namn.]]=FALSE,\"\",(IF(InputA1A3[[#This Row],[Enhet (bränsleförbrukning per km)]] =InputA1A3[[#This Row],[*DU/FU (EF A4) för valt drivmedel (schablon)]],TRUE,IF(KontrollTabell[[#This Row],[True/False A4 - Alt 2]]=\"Värde Behövs\",\"\",IF(ISBLANK(InputA1A3[[#This Row],[Omräkningsfaktor (A4), (vid behov, värde eller formel)]]),FALSE,TRUE)))))","v":""},{"$f":"IF(ISBLANK(InputA1A3[[#This Row],[EPD - EF A4]]),\"\",IF(ISBLANK(InputA1A3[[#This Row],[Omräkning till FU/DU (Skriv in värde, ej formel)]]),InputA1A3[[#This Row],[EPD - EF A4]]*InputA1A3[[#This Row],[Mängd A1A3]],InputA1A3[[#This Row],[Mängd A1A3]]*InputA1A3[[#This Row],[Omräkning till FU/DU (Skriv in värde, ej formel)]]*InputA1A3[[#This Row],[EPD - EF A4]]))","v":""},{"$f":"IFERROR(IF(KontrollTabell[[#This Row],[True/False A4 - Alt 2]]=\"\",\"\",IF(KontrollTabell[[#This Row],[True/False A4 Enhet - Alt2]]=TRUE,\nIF(ISNUMBER(InputA1A3[[#This Row],[Omräkningsfaktor (A4), (vid behov, värde eller formel)]]),InputA1A3[[#This Row],[Sträcka - totalt '[km'], (tur och retur, alla transporter)]]*InputA1A3[[#This Row],[(Bränsle-) Förbrukning per km]]/InputA1A3[[#This Row],[Omräkningsfaktor (A4), (vid behov, värde eller formel)]]*InputA1A3[[#This Row],[*EF (A4)\n'[kg CO₂-ekv.']]],\nInputA1A3[[#This Row],[Sträcka - totalt '[km'], (tur och retur, alla transporter)]]*InputA1A3[[#This Row],[(Bränsle-) Förbrukning per km]]*InputA1A3[[#This Row],[*EF (A4)\n'[kg CO₂-ekv.']]]),\"Sen då\")),0)","v":""},{"$f":"SUM(KontrollTabell[[#This Row],[A4 - Resultat alt 1 '[kg']]:[A4 - Alt 2 - beräkning utsläpp]])","v":0},{"$f":"IF(KontrollTabell[[#This Row],[Finns anläggningsdel-namn.]]=FALSE,\"\",IF(ISBLANK(InputA1A3[[#This Row],[EPD - EF A4]]),FALSE,TRUE))","v":""},{"$f":"IFERROR(IF(KontrollTabell[[#This Row],[True/False A5]]=FALSE(),\"Enheter\",IF(ISBLANK(InputA1A3[[#This Row],[Omräkningsfaktor (A5.2) (ange värde), (vid behov)]]),InputA1A3[[#This Row],[Mängd (A5.2)]]*InputA1A3[[#This Row],[*EF (A5.2)\n'[kg CO₂-ekv.']]],InputA1A3[[#This Row],[Mängd (A5.2)]]*InputA1A3[[#This Row],[*EF (A5.2)\n'[kg CO₂-ekv.']]]*InputA1A3[[#This Row],[Omräkningsfaktor (A5.2) (ange värde), (vid behov)]])),0)","v":0},{"$f":"IF(InputA1A3[[#This Row],[*DU/FU (EF A5.2)]]=\"\",\"\",IF(InputA1A3[[#This Row],[Enhet för mängd (A5.2)]]=\"\",\"Värde Behövs\",IF(OR(InputA1A3[[#This Row],[Enhet för mängd (A5.2)]]=InputA1A3[[#This Row],[*DU/FU (EF A5.2)]],AND(InputA1A3[[#This Row],[Enhet för mängd (A5.2)]]<>InputA1A3[[#This Row],[*DU/FU (EF A5.2)]],ISNUMBER(InputA1A3[[#This Row],[Omräkningsfaktor (A5.2) (ange värde), (vid behov)]]))),TRUE,FALSE)))","v":""},{"$f":"IF(OR(KontrollTabell[[#This Row],[Finns anläggningsdel-namn.]]=FALSE,KontrollTabell[[#This Row],[True/False A5]]=\"Värde Behövs\"),\"\",IF(InputA1A3[[#This Row],[Enhet för mängd (A5.2)]] = InputA1A3[[#This Row],[*DU/FU (EF A5.2)]], TRUE, FALSE))","v":""},{"$f":"IF(KontrollTabell[[#This Row],[Finns anläggningsdel-namn.]]=FALSE,\"\",IF(OR(ISBLANK(InputA1A3[[#This Row],[Kategori\n(egen kategorisering)]])=FALSE,ISBLANK(InputA1A3[[#This Row],[Anläggningsdel\n]]))=FALSE,TRUE,FALSE))","v":""},{"$f":"IF(ISBLANK(InputA1A3[[#This Row],[Anläggningsdel\n]]),\"\",IF(KontrollTabell[[#This Row],[TRUE/FALSE om kategori saknas.]] =FALSE,InputA1A3[[#This Row],[Kategori\n(egen kategorisering)]],\"Kategori saknas\"))","v":""}]
[null,null,null,null,null,null,null,null,null,{"$f":"IF(ISBLANK(InputA1A3[[#This Row],[Anläggningsdel\n]]),\"\",IF(OR(KontrollTabell[[#This Row],[True/False A1A3 Enhet]]=TRUE,KontrollTabell[[#This Row],[True/False A1A3 Enhet]]=\"Värde Behövs\",KontrollTabell[[#This Row],[True/False A1A3 Enhet]]=\"\"), \"\", InputA1A3[[#This Row],[FU/DU (EF A1A3)]] & \"/\" & InputA1A3[[#This Row],[Enhet Mängd (A1A3)]]))","v":""},null,null,null,null,{"$f":"IF(ISBLANK(InputA1A3[[#This Row],[EPD - EF A4]]),\"\",InputA1A3[[#This Row],[FU/DU (EF A1A3)]])","v":""},null,null,null,null,{"$f":"IFERROR(INDEX(TabellEFDrivmedel[],MATCH(InputA1A3[[#This Row],[Drivmedel (A4) (endast förval ur lista)]],TabellEFDrivmedel[Drivmedel],0),4),\"\")","v":""},null,null,null,{"$f":"IF(InputA1A3[[#This Row],[*DU/FU (EF A4) för valt drivmedel (schablon)]]=\"\",\"\",IF(OR(InputA1A3[[#This Row],[*DU/FU (EF A4) för valt drivmedel (schablon)]]=InputA1A3[[#This Row],[Enhet (bränsleförbrukning per km)]],KontrollTabell[[#This Row],[True/False A4 - Alt 2]]=\"Värde Behövs\"),\"\",InputA1A3[[#This Row],[Enhet (bränsleförbrukning per km)]]& \"/\" & InputA1A3[[#This Row],[*DU/FU (EF A4) för valt drivmedel (schablon)]]))","v":""},null,null,null,null,null,null,null,{"$f":"IFERROR(INDEX(TabellEFDrivmedel[],MATCH(InputA1A3[[#This Row],[Drivmedel (A5.2)]],TabellEFDrivmedel[Drivmedel],0),2),\"\")","v":""},{"$f":"IFERROR(INDEX(TabellEFDrivmedel[],MATCH(InputA1A3[[#This Row],[Drivmedel (A5.2)]],TabellEFDrivmedel[Drivmedel],0),4),\"\")","v":""},{"$f":"IF(OR(KontrollTabell[[#This Row],[True/False A5 Enhet]]=TRUE,KontrollTabell[[#This Row],[True/False A5 Enhet]]=\"\"), \"\", InputA1A3[[#This Row],[*DU/FU (EF A5.2)]] & \"/\" & InputA1A3[[#This Row],[Enhet för mängd (A5.2)]])","v":""},null,null,null,null,null,null,null,null,null,null,null,null,null,null,null,null,null,null,null,null,null,null,null,null,null,null,null,null,null,null,null,null,null,null,null,null,null,null,null,null,{"$f":"IF(ISBLANK(InputA1A3[[#This Row],[Anläggningsdel\n]]),FALSE,TRUE)","v":false},{"$f":"IF(ISBLANK(InputA1A3[[#This Row],[Anläggningsdel\n]]),\"\",IF(ISBLANK(InputA1A3[[#This Row],[Enhet Mängd (A1A3)]]),\"\",IF(ISBLANK(InputA1A3[[#This Row],[FU/DU (EF A1A3)]]),\"Värde Behövs\",IF(InputA1A3[[#This Row],[Enhet Mängd (A1A3)]] = InputA1A3[[#This Row],[FU/DU (EF A1A3)]], TRUE, FALSE))))","v":""},{"$f":"IF(KontrollTabell[[#This Row],[Finns anläggningsdel-namn.]]=FALSE,\"\",(IF(KontrollTabell[[#This Row],[True/False A1A3 Enhet]]=TRUE,TRUE,IF(OR(KontrollTabell[[#This Row],[True/False A1A3 Enhet]]=\"Värde Behövs\",(KontrollTabell[[#This Row],[True/False A1A3 Enhet]]=\"\")),\"\",IF(ISBLANK(InputA1A3[[#This Row],[Omräkning till FU/DU (Skriv in värde, ej formel)]]),FALSE,TRUE)))))","v":""},{"$f":"IF(KontrollTabell[[#This Row],[Finns anläggningsdel-namn.]]=FALSE,,IF(KontrollTabell[[#This Row],[True/False A1A3 Enhet]]=TRUE,InputA1A3[[#This Row],[Mängd A1A3]]*InputA1A3[[#This Row],[EF A1A3 '[kg CO₂-ekv.']]],IF(KontrollTabell[[#This Row],[True/False A1A3 om A1A3 kan beräknas]]=TRUE,InputA1A3[[#This Row],[Mängd A1A3]]*InputA1A3[[#This Row],[EF A1A3 '[kg CO₂-ekv.']]]*InputA1A3[[#This Row],[Omräkning till FU/DU (Skriv in värde, ej formel)]],0)))","v":0},{"$f":"IF(ISBLANK(InputA1A3[[#This Row],[Anläggningsdel\n]]),\"\",IF(ISBLANK(InputA1A3[[#This Row],[EPD - EF A4]]),FALSE,TRUE))","v":""},{"$f":"IF(InputA1A3[[#This Row],[*DU/FU (EF A4) för valt drivmedel (schablon)]]=\"\",\"\",IF(InputA1A3[[#This Row],[Enhet (bränsleförbrukning per km)]]=\"\",\"Värde Behövs\",IF(OR(InputA1A3[[#This Row],[Enhet (bränsleförbrukning per km)]]=InputA1A3[[#This Row],[*DU/FU (EF A4) för valt drivmedel (schablon)]],AND(InputA1A3[[#This Row],[Enhet (bränsleförbrukning per km)]]<>InputA1A3[[#This Row],[*DU/FU (EF A4) för valt drivmedel (schablon)]],ISNUMBER(InputA1A3[[#This Row],[Omräkningsfaktor (A4), (vid behov, värde eller formel)]]))),TRUE(),FALSE())))","v":""},{"$f":"IF(KontrollTabell[[#This Row],[Finns anläggningsdel-namn.]]=FALSE,\"\",(IF(InputA1A3[[#This Row],[Enhet (bränsleförbrukning per km)]] =InputA1A3[[#This Row],[*DU/FU (EF A4) för valt drivmedel (schablon)]],TRUE,IF(KontrollTabell[[#This Row],[True/False A4 - Alt 2]]=\"Värde Behövs\",\"\",IF(ISBLANK(InputA1A3[[#This Row],[Omräkningsfaktor (A4), (vid behov, värde eller formel)]]),FALSE,TRUE)))))","v":""},{"$f":"IF(ISBLANK(InputA1A3[[#This Row],[EPD - EF A4]]),\"\",IF(ISBLANK(InputA1A3[[#This Row],[Omräkning till FU/DU (Skriv in värde, ej formel)]]),InputA1A3[[#This Row],[EPD - EF A4]]*InputA1A3[[#This Row],[Mängd A1A3]],InputA1A3[[#This Row],[Mängd A1A3]]*InputA1A3[[#This Row],[Omräkning till FU/DU (Skriv in värde, ej formel)]]*InputA1A3[[#This Row],[EPD - EF A4]]))","v":""},{"$f":"IFERROR(IF(KontrollTabell[[#This Row],[True/False A4 - Alt 2]]=\"\",\"\",IF(KontrollTabell[[#This Row],[True/False A4 Enhet - Alt2]]=TRUE,\nIF(ISNUMBER(InputA1A3[[#This Row],[Omräkningsfaktor (A4), (vid behov, värde eller formel)]]),InputA1A3[[#This Row],[Sträcka - totalt '[km'], (tur och retur, alla transporter)]]*InputA1A3[[#This Row],[(Bränsle-) Förbrukning per km]]/InputA1A3[[#This Row],[Omräkningsfaktor (A4), (vid behov, värde eller formel)]]*InputA1A3[[#This Row],[*EF (A4)\n'[kg CO₂-ekv.']]],\nInputA1A3[[#This Row],[Sträcka - totalt '[km'], (tur och retur, alla transporter)]]*InputA1A3[[#This Row],[(Bränsle-) Förbrukning per km]]*InputA1A3[[#This Row],[*EF (A4)\n'[kg CO₂-ekv.']]]),\"Sen då\")),0)","v":""},{"$f":"SUM(KontrollTabell[[#This Row],[A4 - Resultat alt 1 '[kg']]:[A4 - Alt 2 - beräkning utsläpp]])","v":0},{"$f":"IF(KontrollTabell[[#This Row],[Finns anläggningsdel-namn.]]=FALSE,\"\",IF(ISBLANK(InputA1A3[[#This Row],[EPD - EF A4]]),FALSE,TRUE))","v":""},{"$f":"IFERROR(IF(KontrollTabell[[#This Row],[True/False A5]]=FALSE(),\"Enheter\",IF(ISBLANK(InputA1A3[[#This Row],[Omräkningsfaktor (A5.2) (ange värde), (vid behov)]]),InputA1A3[[#This Row],[Mängd (A5.2)]]*InputA1A3[[#This Row],[*EF (A5.2)\n'[kg CO₂-ekv.']]],InputA1A3[[#This Row],[Mängd (A5.2)]]*InputA1A3[[#This Row],[*EF (A5.2)\n'[kg CO₂-ekv.']]]*InputA1A3[[#This Row],[Omräkningsfaktor (A5.2) (ange värde), (vid behov)]])),0)","v":0},{"$f":"IF(InputA1A3[[#This Row],[*DU/FU (EF A5.2)]]=\"\",\"\",IF(InputA1A3[[#This Row],[Enhet för mängd (A5.2)]]=\"\",\"Värde Behövs\",IF(OR(InputA1A3[[#This Row],[Enhet för mängd (A5.2)]]=InputA1A3[[#This Row],[*DU/FU (EF A5.2)]],AND(InputA1A3[[#This Row],[Enhet för mängd (A5.2)]]<>InputA1A3[[#This Row],[*DU/FU (EF A5.2)]],ISNUMBER(InputA1A3[[#This Row],[Omräkningsfaktor (A5.2) (ange värde), (vid behov)]]))),TRUE,FALSE)))","v":""},{"$f":"IF(OR(KontrollTabell[[#This Row],[Finns anläggningsdel-namn.]]=FALSE,KontrollTabell[[#This Row],[True/False A5]]=\"Värde Behövs\"),\"\",IF(InputA1A3[[#This Row],[Enhet för mängd (A5.2)]] = InputA1A3[[#This Row],[*DU/FU (EF A5.2)]], TRUE, FALSE))","v":""},{"$f":"IF(KontrollTabell[[#This Row],[Finns anläggningsdel-namn.]]=FALSE,\"\",IF(OR(ISBLANK(InputA1A3[[#This Row],[Kategori\n(egen kategorisering)]])=FALSE,ISBLANK(InputA1A3[[#This Row],[Anläggningsdel\n]]))=FALSE,TRUE,FALSE))","v":""},{"$f":"IF(ISBLANK(InputA1A3[[#This Row],[Anläggningsdel\n]]),\"\",IF(KontrollTabell[[#This Row],[TRUE/FALSE om kategori saknas.]] =FALSE,InputA1A3[[#This Row],[Kategori\n(egen kategorisering)]],\"Kategori saknas\"))","v":""}]
[null,null,null,null,null,null,null,null,null,{"$f":"IF(ISBLANK(InputA1A3[[#This Row],[Anläggningsdel\n]]),\"\",IF(OR(KontrollTabell[[#This Row],[True/False A1A3 Enhet]]=TRUE,KontrollTabell[[#This Row],[True/False A1A3 Enhet]]=\"Värde Behövs\",KontrollTabell[[#This Row],[True/False A1A3 Enhet]]=\"\"), \"\", InputA1A3[[#This Row],[FU/DU (EF A1A3)]] & \"/\" & InputA1A3[[#This Row],[Enhet Mängd (A1A3)]]))","v":""},null,null,null,null,{"$f":"IF(ISBLANK(InputA1A3[[#This Row],[EPD - EF A4]]),\"\",InputA1A3[[#This Row],[FU/DU (EF A1A3)]])","v":""},null,null,null,null,{"$f":"IFERROR(INDEX(TabellEFDrivmedel[],MATCH(InputA1A3[[#This Row],[Drivmedel (A4) (endast förval ur lista)]],TabellEFDrivmedel[Drivmedel],0),4),\"\")","v":""},null,null,null,{"$f":"IF(InputA1A3[[#This Row],[*DU/FU (EF A4) för valt drivmedel (schablon)]]=\"\",\"\",IF(OR(InputA1A3[[#This Row],[*DU/FU (EF A4) för valt drivmedel (schablon)]]=InputA1A3[[#This Row],[Enhet (bränsleförbrukning per km)]],KontrollTabell[[#This Row],[True/False A4 - Alt 2]]=\"Värde Behövs\"),\"\",InputA1A3[[#This Row],[Enhet (bränsleförbrukning per km)]]& \"/\" & InputA1A3[[#This Row],[*DU/FU (EF A4) för valt drivmedel (schablon)]]))","v":""},null,null,null,null,null,null,null,{"$f":"IFERROR(INDEX(TabellEFDrivmedel[],MATCH(InputA1A3[[#This Row],[Drivmedel (A5.2)]],TabellEFDrivmedel[Drivmedel],0),2),\"\")","v":""},{"$f":"IFERROR(INDEX(TabellEFDrivmedel[],MATCH(InputA1A3[[#This Row],[Drivmedel (A5.2)]],TabellEFDrivmedel[Drivmedel],0),4),\"\")","v":""},{"$f":"IF(OR(KontrollTabell[[#This Row],[True/False A5 Enhet]]=TRUE,KontrollTabell[[#This Row],[True/False A5 Enhet]]=\"\"), \"\", InputA1A3[[#This Row],[*DU/FU (EF A5.2)]] & \"/\" & InputA1A3[[#This Row],[Enhet för mängd (A5.2)]])","v":""},null,null,null,null,null,null,null,null,null,null,null,null,null,null,null,null,null,null,null,null,null,null,null,null,null,null,null,null,null,null,null,null,null,null,null,null,null,null,null,null,{"$f":"IF(ISBLANK(InputA1A3[[#This Row],[Anläggningsdel\n]]),FALSE,TRUE)","v":false},{"$f":"IF(ISBLANK(InputA1A3[[#This Row],[Anläggningsdel\n]]),\"\",IF(ISBLANK(InputA1A3[[#This Row],[Enhet Mängd (A1A3)]]),\"\",IF(ISBLANK(InputA1A3[[#This Row],[FU/DU (EF A1A3)]]),\"Värde Behövs\",IF(InputA1A3[[#This Row],[Enhet Mängd (A1A3)]] = InputA1A3[[#This Row],[FU/DU (EF A1A3)]], TRUE, FALSE))))","v":""},{"$f":"IF(KontrollTabell[[#This Row],[Finns anläggningsdel-namn.]]=FALSE,\"\",(IF(KontrollTabell[[#This Row],[True/False A1A3 Enhet]]=TRUE,TRUE,IF(OR(KontrollTabell[[#This Row],[True/False A1A3 Enhet]]=\"Värde Behövs\",(KontrollTabell[[#This Row],[True/False A1A3 Enhet]]=\"\")),\"\",IF(ISBLANK(InputA1A3[[#This Row],[Omräkning till FU/DU (Skriv in värde, ej formel)]]),FALSE,TRUE)))))","v":""},{"$f":"IF(KontrollTabell[[#This Row],[Finns anläggningsdel-namn.]]=FALSE,,IF(KontrollTabell[[#This Row],[True/False A1A3 Enhet]]=TRUE,InputA1A3[[#This Row],[Mängd A1A3]]*InputA1A3[[#This Row],[EF A1A3 '[kg CO₂-ekv.']]],IF(KontrollTabell[[#This Row],[True/False A1A3 om A1A3 kan beräknas]]=TRUE,InputA1A3[[#This Row],[Mängd A1A3]]*InputA1A3[[#This Row],[EF A1A3 '[kg CO₂-ekv.']]]*InputA1A3[[#This Row],[Omräkning till FU/DU (Skriv in värde, ej formel)]],0)))","v":0},{"$f":"IF(ISBLANK(InputA1A3[[#This Row],[Anläggningsdel\n]]),\"\",IF(ISBLANK(InputA1A3[[#This Row],[EPD - EF A4]]),FALSE,TRUE))","v":""},{"$f":"IF(InputA1A3[[#This Row],[*DU/FU (EF A4) för valt drivmedel (schablon)]]=\"\",\"\",IF(InputA1A3[[#This Row],[Enhet (bränsleförbrukning per km)]]=\"\",\"Värde Behövs\",IF(OR(InputA1A3[[#This Row],[Enhet (bränsleförbrukning per km)]]=InputA1A3[[#This Row],[*DU/FU (EF A4) för valt drivmedel (schablon)]],AND(InputA1A3[[#This Row],[Enhet (bränsleförbrukning per km)]]<>InputA1A3[[#This Row],[*DU/FU (EF A4) för valt drivmedel (schablon)]],ISNUMBER(InputA1A3[[#This Row],[Omräkningsfaktor (A4), (vid behov, värde eller formel)]]))),TRUE(),FALSE())))","v":""},{"$f":"IF(KontrollTabell[[#This Row],[Finns anläggningsdel-namn.]]=FALSE,\"\",(IF(InputA1A3[[#This Row],[Enhet (bränsleförbrukning per km)]] =InputA1A3[[#This Row],[*DU/FU (EF A4) för valt drivmedel (schablon)]],TRUE,IF(KontrollTabell[[#This Row],[True/False A4 - Alt 2]]=\"Värde Behövs\",\"\",IF(ISBLANK(InputA1A3[[#This Row],[Omräkningsfaktor (A4), (vid behov, värde eller formel)]]),FALSE,TRUE)))))","v":""},{"$f":"IF(ISBLANK(InputA1A3[[#This Row],[EPD - EF A4]]),\"\",IF(ISBLANK(InputA1A3[[#This Row],[Omräkning till FU/DU (Skriv in värde, ej formel)]]),InputA1A3[[#This Row],[EPD - EF A4]]*InputA1A3[[#This Row],[Mängd A1A3]],InputA1A3[[#This Row],[Mängd A1A3]]*InputA1A3[[#This Row],[Omräkning till FU/DU (Skriv in värde, ej formel)]]*InputA1A3[[#This Row],[EPD - EF A4]]))","v":""},{"$f":"IFERROR(IF(KontrollTabell[[#This Row],[True/False A4 - Alt 2]]=\"\",\"\",IF(KontrollTabell[[#This Row],[True/False A4 Enhet - Alt2]]=TRUE,\nIF(ISNUMBER(InputA1A3[[#This Row],[Omräkningsfaktor (A4), (vid behov, värde eller formel)]]),InputA1A3[[#This Row],[Sträcka - totalt '[km'], (tur och retur, alla transporter)]]*InputA1A3[[#This Row],[(Bränsle-) Förbrukning per km]]/InputA1A3[[#This Row],[Omräkningsfaktor (A4), (vid behov, värde eller formel)]]*InputA1A3[[#This Row],[*EF (A4)\n'[kg CO₂-ekv.']]],\nInputA1A3[[#This Row],[Sträcka - totalt '[km'], (tur och retur, alla transporter)]]*InputA1A3[[#This Row],[(Bränsle-) Förbrukning per km]]*InputA1A3[[#This Row],[*EF (A4)\n'[kg CO₂-ekv.']]]),\"Sen då\")),0)","v":""},{"$f":"SUM(KontrollTabell[[#This Row],[A4 - Resultat alt 1 '[kg']]:[A4 - Alt 2 - beräkning utsläpp]])","v":0},{"$f":"IF(KontrollTabell[[#This Row],[Finns anläggningsdel-namn.]]=FALSE,\"\",IF(ISBLANK(InputA1A3[[#This Row],[EPD - EF A4]]),FALSE,TRUE))","v":""},{"$f":"IFERROR(IF(KontrollTabell[[#This Row],[True/False A5]]=FALSE(),\"Enheter\",IF(ISBLANK(InputA1A3[[#This Row],[Omräkningsfaktor (A5.2) (ange värde), (vid behov)]]),InputA1A3[[#This Row],[Mängd (A5.2)]]*InputA1A3[[#This Row],[*EF (A5.2)\n'[kg CO₂-ekv.']]],InputA1A3[[#This Row],[Mängd (A5.2)]]*InputA1A3[[#This Row],[*EF (A5.2)\n'[kg CO₂-ekv.']]]*InputA1A3[[#This Row],[Omräkningsfaktor (A5.2) (ange värde), (vid behov)]])),0)","v":0},{"$f":"IF(InputA1A3[[#This Row],[*DU/FU (EF A5.2)]]=\"\",\"\",IF(InputA1A3[[#This Row],[Enhet för mängd (A5.2)]]=\"\",\"Värde Behövs\",IF(OR(InputA1A3[[#This Row],[Enhet för mängd (A5.2)]]=InputA1A3[[#This Row],[*DU/FU (EF A5.2)]],AND(InputA1A3[[#This Row],[Enhet för mängd (A5.2)]]<>InputA1A3[[#This Row],[*DU/FU (EF A5.2)]],ISNUMBER(InputA1A3[[#This Row],[Omräkningsfaktor (A5.2) (ange värde), (vid behov)]]))),TRUE,FALSE)))","v":""},{"$f":"IF(OR(KontrollTabell[[#This Row],[Finns anläggningsdel-namn.]]=FALSE,KontrollTabell[[#This Row],[True/False A5]]=\"Värde Behövs\"),\"\",IF(InputA1A3[[#This Row],[Enhet för mängd (A5.2)]] = InputA1A3[[#This Row],[*DU/FU (EF A5.2)]], TRUE, FALSE))","v":""},{"$f":"IF(KontrollTabell[[#This Row],[Finns anläggningsdel-namn.]]=FALSE,\"\",IF(OR(ISBLANK(InputA1A3[[#This Row],[Kategori\n(egen kategorisering)]])=FALSE,ISBLANK(InputA1A3[[#This Row],[Anläggningsdel\n]]))=FALSE,TRUE,FALSE))","v":""},{"$f":"IF(ISBLANK(InputA1A3[[#This Row],[Anläggningsdel\n]]),\"\",IF(KontrollTabell[[#This Row],[TRUE/FALSE om kategori saknas.]] =FALSE,InputA1A3[[#This Row],[Kategori\n(egen kategorisering)]],\"Kategori saknas\"))","v":""}]
[null,null,null,null,null,null,null,null,null,{"$f":"IF(ISBLANK(InputA1A3[[#This Row],[Anläggningsdel\n]]),\"\",IF(OR(KontrollTabell[[#This Row],[True/False A1A3 Enhet]]=TRUE,KontrollTabell[[#This Row],[True/False A1A3 Enhet]]=\"Värde Behövs\",KontrollTabell[[#This Row],[True/False A1A3 Enhet]]=\"\"), \"\", InputA1A3[[#This Row],[FU/DU (EF A1A3)]] & \"/\" & InputA1A3[[#This Row],[Enhet Mängd (A1A3)]]))","v":""},null,null,null,null,{"$f":"IF(ISBLANK(InputA1A3[[#This Row],[EPD - EF A4]]),\"\",InputA1A3[[#This Row],[FU/DU (EF A1A3)]])","v":""},null,null,null,null,{"$f":"IFERROR(INDEX(TabellEFDrivmedel[],MATCH(InputA1A3[[#This Row],[Drivmedel (A4) (endast förval ur lista)]],TabellEFDrivmedel[Drivmedel],0),4),\"\")","v":""},null,null,null,{"$f":"IF(InputA1A3[[#This Row],[*DU/FU (EF A4) för valt drivmedel (schablon)]]=\"\",\"\",IF(OR(InputA1A3[[#This Row],[*DU/FU (EF A4) för valt drivmedel (schablon)]]=InputA1A3[[#This Row],[Enhet (bränsleförbrukning per km)]],KontrollTabell[[#This Row],[True/False A4 - Alt 2]]=\"Värde Behövs\"),\"\",InputA1A3[[#This Row],[Enhet (bränsleförbrukning per km)]]& \"/\" & InputA1A3[[#This Row],[*DU/FU (EF A4) för valt drivmedel (schablon)]]))","v":""},null,null,null,null,null,null,null,{"$f":"IFERROR(INDEX(TabellEFDrivmedel[],MATCH(InputA1A3[[#This Row],[Drivmedel (A5.2)]],TabellEFDrivmedel[Drivmedel],0),2),\"\")","v":""},{"$f":"IFERROR(INDEX(TabellEFDrivmedel[],MATCH(InputA1A3[[#This Row],[Drivmedel (A5.2)]],TabellEFDrivmedel[Drivmedel],0),4),\"\")","v":""},{"$f":"IF(OR(KontrollTabell[[#This Row],[True/False A5 Enhet]]=TRUE,KontrollTabell[[#This Row],[True/False A5 Enhet]]=\"\"), \"\", InputA1A3[[#This Row],[*DU/FU (EF A5.2)]] & \"/\" & InputA1A3[[#This Row],[Enhet för mängd (A5.2)]])","v":""},null,null,null,null,null,null,null,null,null,null,null,null,null,null,null,null,null,null,null,null,null,null,null,null,null,null,null,null,null,null,null,null,null,null,null,null,null,null,null,null,{"$f":"IF(ISBLANK(InputA1A3[[#This Row],[Anläggningsdel\n]]),FALSE,TRUE)","v":false},{"$f":"IF(ISBLANK(InputA1A3[[#This Row],[Anläggningsdel\n]]),\"\",IF(ISBLANK(InputA1A3[[#This Row],[Enhet Mängd (A1A3)]]),\"\",IF(ISBLANK(InputA1A3[[#This Row],[FU/DU (EF A1A3)]]),\"Värde Behövs\",IF(InputA1A3[[#This Row],[Enhet Mängd (A1A3)]] = InputA1A3[[#This Row],[FU/DU (EF A1A3)]], TRUE, FALSE))))","v":""},{"$f":"IF(KontrollTabell[[#This Row],[Finns anläggningsdel-namn.]]=FALSE,\"\",(IF(KontrollTabell[[#This Row],[True/False A1A3 Enhet]]=TRUE,TRUE,IF(OR(KontrollTabell[[#This Row],[True/False A1A3 Enhet]]=\"Värde Behövs\",(KontrollTabell[[#This Row],[True/False A1A3 Enhet]]=\"\")),\"\",IF(ISBLANK(InputA1A3[[#This Row],[Omräkning till FU/DU (Skriv in värde, ej formel)]]),FALSE,TRUE)))))","v":""},{"$f":"IF(KontrollTabell[[#This Row],[Finns anläggningsdel-namn.]]=FALSE,,IF(KontrollTabell[[#This Row],[True/False A1A3 Enhet]]=TRUE,InputA1A3[[#This Row],[Mängd A1A3]]*InputA1A3[[#This Row],[EF A1A3 '[kg CO₂-ekv.']]],IF(KontrollTabell[[#This Row],[True/False A1A3 om A1A3 kan beräknas]]=TRUE,InputA1A3[[#This Row],[Mängd A1A3]]*InputA1A3[[#This Row],[EF A1A3 '[kg CO₂-ekv.']]]*InputA1A3[[#This Row],[Omräkning till FU/DU (Skriv in värde, ej formel)]],0)))","v":0},{"$f":"IF(ISBLANK(InputA1A3[[#This Row],[Anläggningsdel\n]]),\"\",IF(ISBLANK(InputA1A3[[#This Row],[EPD - EF A4]]),FALSE,TRUE))","v":""},{"$f":"IF(InputA1A3[[#This Row],[*DU/FU (EF A4) för valt drivmedel (schablon)]]=\"\",\"\",IF(InputA1A3[[#This Row],[Enhet (bränsleförbrukning per km)]]=\"\",\"Värde Behövs\",IF(OR(InputA1A3[[#This Row],[Enhet (bränsleförbrukning per km)]]=InputA1A3[[#This Row],[*DU/FU (EF A4) för valt drivmedel (schablon)]],AND(InputA1A3[[#This Row],[Enhet (bränsleförbrukning per km)]]<>InputA1A3[[#This Row],[*DU/FU (EF A4) för valt drivmedel (schablon)]],ISNUMBER(InputA1A3[[#This Row],[Omräkningsfaktor (A4), (vid behov, värde eller formel)]]))),TRUE(),FALSE())))","v":""},{"$f":"IF(KontrollTabell[[#This Row],[Finns anläggningsdel-namn.]]=FALSE,\"\",(IF(InputA1A3[[#This Row],[Enhet (bränsleförbrukning per km)]] =InputA1A3[[#This Row],[*DU/FU (EF A4) för valt drivmedel (schablon)]],TRUE,IF(KontrollTabell[[#This Row],[True/False A4 - Alt 2]]=\"Värde Behövs\",\"\",IF(ISBLANK(InputA1A3[[#This Row],[Omräkningsfaktor (A4), (vid behov, värde eller formel)]]),FALSE,TRUE)))))","v":""},{"$f":"IF(ISBLANK(InputA1A3[[#This Row],[EPD - EF A4]]),\"\",IF(ISBLANK(InputA1A3[[#This Row],[Omräkning till FU/DU (Skriv in värde, ej formel)]]),InputA1A3[[#This Row],[EPD - EF A4]]*InputA1A3[[#This Row],[Mängd A1A3]],InputA1A3[[#This Row],[Mängd A1A3]]*InputA1A3[[#This Row],[Omräkning till FU/DU (Skriv in värde, ej formel)]]*InputA1A3[[#This Row],[EPD - EF A4]]))","v":""},{"$f":"IFERROR(IF(KontrollTabell[[#This Row],[True/False A4 - Alt 2]]=\"\",\"\",IF(KontrollTabell[[#This Row],[True/False A4 Enhet - Alt2]]=TRUE,\nIF(ISNUMBER(InputA1A3[[#This Row],[Omräkningsfaktor (A4), (vid behov, värde eller formel)]]),InputA1A3[[#This Row],[Sträcka - totalt '[km'], (tur och retur, alla transporter)]]*InputA1A3[[#This Row],[(Bränsle-) Förbrukning per km]]/InputA1A3[[#This Row],[Omräkningsfaktor (A4), (vid behov, värde eller formel)]]*InputA1A3[[#This Row],[*EF (A4)\n'[kg CO₂-ekv.']]],\nInputA1A3[[#This Row],[Sträcka - totalt '[km'], (tur och retur, alla transporter)]]*InputA1A3[[#This Row],[(Bränsle-) Förbrukning per km]]*InputA1A3[[#This Row],[*EF (A4)\n'[kg CO₂-ekv.']]]),\"Sen då\")),0)","v":""},{"$f":"SUM(KontrollTabell[[#This Row],[A4 - Resultat alt 1 '[kg']]:[A4 - Alt 2 - beräkning utsläpp]])","v":0},{"$f":"IF(KontrollTabell[[#This Row],[Finns anläggningsdel-namn.]]=FALSE,\"\",IF(ISBLANK(InputA1A3[[#This Row],[EPD - EF A4]]),FALSE,TRUE))","v":""},{"$f":"IFERROR(IF(KontrollTabell[[#This Row],[True/False A5]]=FALSE(),\"Enheter\",IF(ISBLANK(InputA1A3[[#This Row],[Omräkningsfaktor (A5.2) (ange värde), (vid behov)]]),InputA1A3[[#This Row],[Mängd (A5.2)]]*InputA1A3[[#This Row],[*EF (A5.2)\n'[kg CO₂-ekv.']]],InputA1A3[[#This Row],[Mängd (A5.2)]]*InputA1A3[[#This Row],[*EF (A5.2)\n'[kg CO₂-ekv.']]]*InputA1A3[[#This Row],[Omräkningsfaktor (A5.2) (ange värde), (vid behov)]])),0)","v":0},{"$f":"IF(InputA1A3[[#This Row],[*DU/FU (EF A5.2)]]=\"\",\"\",IF(InputA1A3[[#This Row],[Enhet för mängd (A5.2)]]=\"\",\"Värde Behövs\",IF(OR(InputA1A3[[#This Row],[Enhet för mängd (A5.2)]]=InputA1A3[[#This Row],[*DU/FU (EF A5.2)]],AND(InputA1A3[[#This Row],[Enhet för mängd (A5.2)]]<>InputA1A3[[#This Row],[*DU/FU (EF A5.2)]],ISNUMBER(InputA1A3[[#This Row],[Omräkningsfaktor (A5.2) (ange värde), (vid behov)]]))),TRUE,FALSE)))","v":""},{"$f":"IF(OR(KontrollTabell[[#This Row],[Finns anläggningsdel-namn.]]=FALSE,KontrollTabell[[#This Row],[True/False A5]]=\"Värde Behövs\"),\"\",IF(InputA1A3[[#This Row],[Enhet för mängd (A5.2)]] = InputA1A3[[#This Row],[*DU/FU (EF A5.2)]], TRUE, FALSE))","v":""},{"$f":"IF(KontrollTabell[[#This Row],[Finns anläggningsdel-namn.]]=FALSE,\"\",IF(OR(ISBLANK(InputA1A3[[#This Row],[Kategori\n(egen kategorisering)]])=FALSE,ISBLANK(InputA1A3[[#This Row],[Anläggningsdel\n]]))=FALSE,TRUE,FALSE))","v":""},{"$f":"IF(ISBLANK(InputA1A3[[#This Row],[Anläggningsdel\n]]),\"\",IF(KontrollTabell[[#This Row],[TRUE/FALSE om kategori saknas.]] =FALSE,InputA1A3[[#This Row],[Kategori\n(egen kategorisering)]],\"Kategori saknas\"))","v":""}]
[null,null,null,null,null,null,null,null,null,{"$f":"IF(ISBLANK(InputA1A3[[#This Row],[Anläggningsdel\n]]),\"\",IF(OR(KontrollTabell[[#This Row],[True/False A1A3 Enhet]]=TRUE,KontrollTabell[[#This Row],[True/False A1A3 Enhet]]=\"Värde Behövs\",KontrollTabell[[#This Row],[True/False A1A3 Enhet]]=\"\"), \"\", InputA1A3[[#This Row],[FU/DU (EF A1A3)]] & \"/\" & InputA1A3[[#This Row],[Enhet Mängd (A1A3)]]))","v":""},null,null,null,null,{"$f":"IF(ISBLANK(InputA1A3[[#This Row],[EPD - EF A4]]),\"\",InputA1A3[[#This Row],[FU/DU (EF A1A3)]])","v":""},null,null,null,null,{"$f":"IFERROR(INDEX(TabellEFDrivmedel[],MATCH(InputA1A3[[#This Row],[Drivmedel (A4) (endast förval ur lista)]],TabellEFDrivmedel[Drivmedel],0),4),\"\")","v":""},null,null,null,{"$f":"IF(InputA1A3[[#This Row],[*DU/FU (EF A4) för valt drivmedel (schablon)]]=\"\",\"\",IF(OR(InputA1A3[[#This Row],[*DU/FU (EF A4) för valt drivmedel (schablon)]]=InputA1A3[[#This Row],[Enhet (bränsleförbrukning per km)]],KontrollTabell[[#This Row],[True/False A4 - Alt 2]]=\"Värde Behövs\"),\"\",InputA1A3[[#This Row],[Enhet (bränsleförbrukning per km)]]& \"/\" & InputA1A3[[#This Row],[*DU/FU (EF A4) för valt drivmedel (schablon)]]))","v":""},null,null,null,null,null,null,null,{"$f":"IFERROR(INDEX(TabellEFDrivmedel[],MATCH(InputA1A3[[#This Row],[Drivmedel (A5.2)]],TabellEFDrivmedel[Drivmedel],0),2),\"\")","v":""},{"$f":"IFERROR(INDEX(TabellEFDrivmedel[],MATCH(InputA1A3[[#This Row],[Drivmedel (A5.2)]],TabellEFDrivmedel[Drivmedel],0),4),\"\")","v":""},{"$f":"IF(OR(KontrollTabell[[#This Row],[True/False A5 Enhet]]=TRUE,KontrollTabell[[#This Row],[True/False A5 Enhet]]=\"\"), \"\", InputA1A3[[#This Row],[*DU/FU (EF A5.2)]] & \"/\" & InputA1A3[[#This Row],[Enhet för mängd (A5.2)]])","v":""},null,null,null,null,null,null,null,null,null,null,null,null,null,null,null,null,null,null,null,null,null,null,null,null,null,null,null,null,null,null,null,null,null,null,null,null,null,null,null,null,{"$f":"IF(ISBLANK(InputA1A3[[#This Row],[Anläggningsdel\n]]),FALSE,TRUE)","v":false},{"$f":"IF(ISBLANK(InputA1A3[[#This Row],[Anläggningsdel\n]]),\"\",IF(ISBLANK(InputA1A3[[#This Row],[Enhet Mängd (A1A3)]]),\"\",IF(ISBLANK(InputA1A3[[#This Row],[FU/DU (EF A1A3)]]),\"Värde Behövs\",IF(InputA1A3[[#This Row],[Enhet Mängd (A1A3)]] = InputA1A3[[#This Row],[FU/DU (EF A1A3)]], TRUE, FALSE))))","v":""},{"$f":"IF(KontrollTabell[[#This Row],[Finns anläggningsdel-namn.]]=FALSE,\"\",(IF(KontrollTabell[[#This Row],[True/False A1A3 Enhet]]=TRUE,TRUE,IF(OR(KontrollTabell[[#This Row],[True/False A1A3 Enhet]]=\"Värde Behövs\",(KontrollTabell[[#This Row],[True/False A1A3 Enhet]]=\"\")),\"\",IF(ISBLANK(InputA1A3[[#This Row],[Omräkning till FU/DU (Skriv in värde, ej formel)]]),FALSE,TRUE)))))","v":""},{"$f":"IF(KontrollTabell[[#This Row],[Finns anläggningsdel-namn.]]=FALSE,,IF(KontrollTabell[[#This Row],[True/False A1A3 Enhet]]=TRUE,InputA1A3[[#This Row],[Mängd A1A3]]*InputA1A3[[#This Row],[EF A1A3 '[kg CO₂-ekv.']]],IF(KontrollTabell[[#This Row],[True/False A1A3 om A1A3 kan beräknas]]=TRUE,InputA1A3[[#This Row],[Mängd A1A3]]*InputA1A3[[#This Row],[EF A1A3 '[kg CO₂-ekv.']]]*InputA1A3[[#This Row],[Omräkning till FU/DU (Skriv in värde, ej formel)]],0)))","v":0},{"$f":"IF(ISBLANK(InputA1A3[[#This Row],[Anläggningsdel\n]]),\"\",IF(ISBLANK(InputA1A3[[#This Row],[EPD - EF A4]]),FALSE,TRUE))","v":""},{"$f":"IF(InputA1A3[[#This Row],[*DU/FU (EF A4) för valt drivmedel (schablon)]]=\"\",\"\",IF(InputA1A3[[#This Row],[Enhet (bränsleförbrukning per km)]]=\"\",\"Värde Behövs\",IF(OR(InputA1A3[[#This Row],[Enhet (bränsleförbrukning per km)]]=InputA1A3[[#This Row],[*DU/FU (EF A4) för valt drivmedel (schablon)]],AND(InputA1A3[[#This Row],[Enhet (bränsleförbrukning per km)]]<>InputA1A3[[#This Row],[*DU/FU (EF A4) för valt drivmedel (schablon)]],ISNUMBER(InputA1A3[[#This Row],[Omräkningsfaktor (A4), (vid behov, värde eller formel)]]))),TRUE(),FALSE())))","v":""},{"$f":"IF(KontrollTabell[[#This Row],[Finns anläggningsdel-namn.]]=FALSE,\"\",(IF(InputA1A3[[#This Row],[Enhet (bränsleförbrukning per km)]] =InputA1A3[[#This Row],[*DU/FU (EF A4) för valt drivmedel (schablon)]],TRUE,IF(KontrollTabell[[#This Row],[True/False A4 - Alt 2]]=\"Värde Behövs\",\"\",IF(ISBLANK(InputA1A3[[#This Row],[Omräkningsfaktor (A4), (vid behov, värde eller formel)]]),FALSE,TRUE)))))","v":""},{"$f":"IF(ISBLANK(InputA1A3[[#This Row],[EPD - EF A4]]),\"\",IF(ISBLANK(InputA1A3[[#This Row],[Omräkning till FU/DU (Skriv in värde, ej formel)]]),InputA1A3[[#This Row],[EPD - EF A4]]*InputA1A3[[#This Row],[Mängd A1A3]],InputA1A3[[#This Row],[Mängd A1A3]]*InputA1A3[[#This Row],[Omräkning till FU/DU (Skriv in värde, ej formel)]]*InputA1A3[[#This Row],[EPD - EF A4]]))","v":""},{"$f":"IFERROR(IF(KontrollTabell[[#This Row],[True/False A4 - Alt 2]]=\"\",\"\",IF(KontrollTabell[[#This Row],[True/False A4 Enhet - Alt2]]=TRUE,\nIF(ISNUMBER(InputA1A3[[#This Row],[Omräkningsfaktor (A4), (vid behov, värde eller formel)]]),InputA1A3[[#This Row],[Sträcka - totalt '[km'], (tur och retur, alla transporter)]]*InputA1A3[[#This Row],[(Bränsle-) Förbrukning per km]]/InputA1A3[[#This Row],[Omräkningsfaktor (A4), (vid behov, värde eller formel)]]*InputA1A3[[#This Row],[*EF (A4)\n'[kg CO₂-ekv.']]],\nInputA1A3[[#This Row],[Sträcka - totalt '[km'], (tur och retur, alla transporter)]]*InputA1A3[[#This Row],[(Bränsle-) Förbrukning per km]]*InputA1A3[[#This Row],[*EF (A4)\n'[kg CO₂-ekv.']]]),\"Sen då\")),0)","v":""},{"$f":"SUM(KontrollTabell[[#This Row],[A4 - Resultat alt 1 '[kg']]:[A4 - Alt 2 - beräkning utsläpp]])","v":0},{"$f":"IF(KontrollTabell[[#This Row],[Finns anläggningsdel-namn.]]=FALSE,\"\",IF(ISBLANK(InputA1A3[[#This Row],[EPD - EF A4]]),FALSE,TRUE))","v":""},{"$f":"IFERROR(IF(KontrollTabell[[#This Row],[True/False A5]]=FALSE(),\"Enheter\",IF(ISBLANK(InputA1A3[[#This Row],[Omräkningsfaktor (A5.2) (ange värde), (vid behov)]]),InputA1A3[[#This Row],[Mängd (A5.2)]]*InputA1A3[[#This Row],[*EF (A5.2)\n'[kg CO₂-ekv.']]],InputA1A3[[#This Row],[Mängd (A5.2)]]*InputA1A3[[#This Row],[*EF (A5.2)\n'[kg CO₂-ekv.']]]*InputA1A3[[#This Row],[Omräkningsfaktor (A5.2) (ange värde), (vid behov)]])),0)","v":0},{"$f":"IF(InputA1A3[[#This Row],[*DU/FU (EF A5.2)]]=\"\",\"\",IF(InputA1A3[[#This Row],[Enhet för mängd (A5.2)]]=\"\",\"Värde Behövs\",IF(OR(InputA1A3[[#This Row],[Enhet för mängd (A5.2)]]=InputA1A3[[#This Row],[*DU/FU (EF A5.2)]],AND(InputA1A3[[#This Row],[Enhet för mängd (A5.2)]]<>InputA1A3[[#This Row],[*DU/FU (EF A5.2)]],ISNUMBER(InputA1A3[[#This Row],[Omräkningsfaktor (A5.2) (ange värde), (vid behov)]]))),TRUE,FALSE)))","v":""},{"$f":"IF(OR(KontrollTabell[[#This Row],[Finns anläggningsdel-namn.]]=FALSE,KontrollTabell[[#This Row],[True/False A5]]=\"Värde Behövs\"),\"\",IF(InputA1A3[[#This Row],[Enhet för mängd (A5.2)]] = InputA1A3[[#This Row],[*DU/FU (EF A5.2)]], TRUE, FALSE))","v":""},{"$f":"IF(KontrollTabell[[#This Row],[Finns anläggningsdel-namn.]]=FALSE,\"\",IF(OR(ISBLANK(InputA1A3[[#This Row],[Kategori\n(egen kategorisering)]])=FALSE,ISBLANK(InputA1A3[[#This Row],[Anläggningsdel\n]]))=FALSE,TRUE,FALSE))","v":""},{"$f":"IF(ISBLANK(InputA1A3[[#This Row],[Anläggningsdel\n]]),\"\",IF(KontrollTabell[[#This Row],[TRUE/FALSE om kategori saknas.]] =FALSE,InputA1A3[[#This Row],[Kategori\n(egen kategorisering)]],\"Kategori saknas\"))","v":""}]
[null,null,null,null,null,null,null,null,null,{"$f":"IF(ISBLANK(InputA1A3[[#This Row],[Anläggningsdel\n]]),\"\",IF(OR(KontrollTabell[[#This Row],[True/False A1A3 Enhet]]=TRUE,KontrollTabell[[#This Row],[True/False A1A3 Enhet]]=\"Värde Behövs\",KontrollTabell[[#This Row],[True/False A1A3 Enhet]]=\"\"), \"\", InputA1A3[[#This Row],[FU/DU (EF A1A3)]] & \"/\" & InputA1A3[[#This Row],[Enhet Mängd (A1A3)]]))","v":""},null,null,null,null,{"$f":"IF(ISBLANK(InputA1A3[[#This Row],[EPD - EF A4]]),\"\",InputA1A3[[#This Row],[FU/DU (EF A1A3)]])","v":""},null,null,null,null,{"$f":"IFERROR(INDEX(TabellEFDrivmedel[],MATCH(InputA1A3[[#This Row],[Drivmedel (A4) (endast förval ur lista)]],TabellEFDrivmedel[Drivmedel],0),4),\"\")","v":""},null,null,null,{"$f":"IF(InputA1A3[[#This Row],[*DU/FU (EF A4) för valt drivmedel (schablon)]]=\"\",\"\",IF(OR(InputA1A3[[#This Row],[*DU/FU (EF A4) för valt drivmedel (schablon)]]=InputA1A3[[#This Row],[Enhet (bränsleförbrukning per km)]],KontrollTabell[[#This Row],[True/False A4 - Alt 2]]=\"Värde Behövs\"),\"\",InputA1A3[[#This Row],[Enhet (bränsleförbrukning per km)]]& \"/\" & InputA1A3[[#This Row],[*DU/FU (EF A4) för valt drivmedel (schablon)]]))","v":""},null,null,null,null,null,null,null,{"$f":"IFERROR(INDEX(TabellEFDrivmedel[],MATCH(InputA1A3[[#This Row],[Drivmedel (A5.2)]],TabellEFDrivmedel[Drivmedel],0),2),\"\")","v":""},{"$f":"IFERROR(INDEX(TabellEFDrivmedel[],MATCH(InputA1A3[[#This Row],[Drivmedel (A5.2)]],TabellEFDrivmedel[Drivmedel],0),4),\"\")","v":""},{"$f":"IF(OR(KontrollTabell[[#This Row],[True/False A5 Enhet]]=TRUE,KontrollTabell[[#This Row],[True/False A5 Enhet]]=\"\"), \"\", InputA1A3[[#This Row],[*DU/FU (EF A5.2)]] & \"/\" & InputA1A3[[#This Row],[Enhet för mängd (A5.2)]])","v":""},null,null,null,null,null,null,null,null,null,null,null,null,null,null,null,null,null,null,null,null,null,null,null,null,null,null,null,null,null,null,null,null,null,null,null,null,null,null,null,null,{"$f":"IF(ISBLANK(InputA1A3[[#This Row],[Anläggningsdel\n]]),FALSE,TRUE)","v":false},{"$f":"IF(ISBLANK(InputA1A3[[#This Row],[Anläggningsdel\n]]),\"\",IF(ISBLANK(InputA1A3[[#This Row],[Enhet Mängd (A1A3)]]),\"\",IF(ISBLANK(InputA1A3[[#This Row],[FU/DU (EF A1A3)]]),\"Värde Behövs\",IF(InputA1A3[[#This Row],[Enhet Mängd (A1A3)]] = InputA1A3[[#This Row],[FU/DU (EF A1A3)]], TRUE, FALSE))))","v":""},{"$f":"IF(KontrollTabell[[#This Row],[Finns anläggningsdel-namn.]]=FALSE,\"\",(IF(KontrollTabell[[#This Row],[True/False A1A3 Enhet]]=TRUE,TRUE,IF(OR(KontrollTabell[[#This Row],[True/False A1A3 Enhet]]=\"Värde Behövs\",(KontrollTabell[[#This Row],[True/False A1A3 Enhet]]=\"\")),\"\",IF(ISBLANK(InputA1A3[[#This Row],[Omräkning till FU/DU (Skriv in värde, ej formel)]]),FALSE,TRUE)))))","v":""},{"$f":"IF(KontrollTabell[[#This Row],[Finns anläggningsdel-namn.]]=FALSE,,IF(KontrollTabell[[#This Row],[True/False A1A3 Enhet]]=TRUE,InputA1A3[[#This Row],[Mängd A1A3]]*InputA1A3[[#This Row],[EF A1A3 '[kg CO₂-ekv.']]],IF(KontrollTabell[[#This Row],[True/False A1A3 om A1A3 kan beräknas]]=TRUE,InputA1A3[[#This Row],[Mängd A1A3]]*InputA1A3[[#This Row],[EF A1A3 '[kg CO₂-ekv.']]]*InputA1A3[[#This Row],[Omräkning till FU/DU (Skriv in värde, ej formel)]],0)))","v":0},{"$f":"IF(ISBLANK(InputA1A3[[#This Row],[Anläggningsdel\n]]),\"\",IF(ISBLANK(InputA1A3[[#This Row],[EPD - EF A4]]),FALSE,TRUE))","v":""},{"$f":"IF(InputA1A3[[#This Row],[*DU/FU (EF A4) för valt drivmedel (schablon)]]=\"\",\"\",IF(InputA1A3[[#This Row],[Enhet (bränsleförbrukning per km)]]=\"\",\"Värde Behövs\",IF(OR(InputA1A3[[#This Row],[Enhet (bränsleförbrukning per km)]]=InputA1A3[[#This Row],[*DU/FU (EF A4) för valt drivmedel (schablon)]],AND(InputA1A3[[#This Row],[Enhet (bränsleförbrukning per km)]]<>InputA1A3[[#This Row],[*DU/FU (EF A4) för valt drivmedel (schablon)]],ISNUMBER(InputA1A3[[#This Row],[Omräkningsfaktor (A4), (vid behov, värde eller formel)]]))),TRUE(),FALSE())))","v":""},{"$f":"IF(KontrollTabell[[#This Row],[Finns anläggningsdel-namn.]]=FALSE,\"\",(IF(InputA1A3[[#This Row],[Enhet (bränsleförbrukning per km)]] =InputA1A3[[#This Row],[*DU/FU (EF A4) för valt drivmedel (schablon)]],TRUE,IF(KontrollTabell[[#This Row],[True/False A4 - Alt 2]]=\"Värde Behövs\",\"\",IF(ISBLANK(InputA1A3[[#This Row],[Omräkningsfaktor (A4), (vid behov, värde eller formel)]]),FALSE,TRUE)))))","v":""},{"$f":"IF(ISBLANK(InputA1A3[[#This Row],[EPD - EF A4]]),\"\",IF(ISBLANK(InputA1A3[[#This Row],[Omräkning till FU/DU (Skriv in värde, ej formel)]]),InputA1A3[[#This Row],[EPD - EF A4]]*InputA1A3[[#This Row],[Mängd A1A3]],InputA1A3[[#This Row],[Mängd A1A3]]*InputA1A3[[#This Row],[Omräkning till FU/DU (Skriv in värde, ej formel)]]*InputA1A3[[#This Row],[EPD - EF A4]]))","v":""},{"$f":"IFERROR(IF(KontrollTabell[[#This Row],[True/False A4 - Alt 2]]=\"\",\"\",IF(KontrollTabell[[#This Row],[True/False A4 Enhet - Alt2]]=TRUE,\nIF(ISNUMBER(InputA1A3[[#This Row],[Omräkningsfaktor (A4), (vid behov, värde eller formel)]]),InputA1A3[[#This Row],[Sträcka - totalt '[km'], (tur och retur, alla transporter)]]*InputA1A3[[#This Row],[(Bränsle-) Förbrukning per km]]/InputA1A3[[#This Row],[Omräkningsfaktor (A4), (vid behov, värde eller formel)]]*InputA1A3[[#This Row],[*EF (A4)\n'[kg CO₂-ekv.']]],\nInputA1A3[[#This Row],[Sträcka - totalt '[km'], (tur och retur, alla transporter)]]*InputA1A3[[#This Row],[(Bränsle-) Förbrukning per km]]*InputA1A3[[#This Row],[*EF (A4)\n'[kg CO₂-ekv.']]]),\"Sen då\")),0)","v":""},{"$f":"SUM(KontrollTabell[[#This Row],[A4 - Resultat alt 1 '[kg']]:[A4 - Alt 2 - beräkning utsläpp]])","v":0},{"$f":"IF(KontrollTabell[[#This Row],[Finns anläggningsdel-namn.]]=FALSE,\"\",IF(ISBLANK(InputA1A3[[#This Row],[EPD - EF A4]]),FALSE,TRUE))","v":""},{"$f":"IFERROR(IF(KontrollTabell[[#This Row],[True/False A5]]=FALSE(),\"Enheter\",IF(ISBLANK(InputA1A3[[#This Row],[Omräkningsfaktor (A5.2) (ange värde), (vid behov)]]),InputA1A3[[#This Row],[Mängd (A5.2)]]*InputA1A3[[#This Row],[*EF (A5.2)\n'[kg CO₂-ekv.']]],InputA1A3[[#This Row],[Mängd (A5.2)]]*InputA1A3[[#This Row],[*EF (A5.2)\n'[kg CO₂-ekv.']]]*InputA1A3[[#This Row],[Omräkningsfaktor (A5.2) (ange värde), (vid behov)]])),0)","v":0},{"$f":"IF(InputA1A3[[#This Row],[*DU/FU (EF A5.2)]]=\"\",\"\",IF(InputA1A3[[#This Row],[Enhet för mängd (A5.2)]]=\"\",\"Värde Behövs\",IF(OR(InputA1A3[[#This Row],[Enhet för mängd (A5.2)]]=InputA1A3[[#This Row],[*DU/FU (EF A5.2)]],AND(InputA1A3[[#This Row],[Enhet för mängd (A5.2)]]<>InputA1A3[[#This Row],[*DU/FU (EF A5.2)]],ISNUMBER(InputA1A3[[#This Row],[Omräkningsfaktor (A5.2) (ange värde), (vid behov)]]))),TRUE,FALSE)))","v":""},{"$f":"IF(OR(KontrollTabell[[#This Row],[Finns anläggningsdel-namn.]]=FALSE,KontrollTabell[[#This Row],[True/False A5]]=\"Värde Behövs\"),\"\",IF(InputA1A3[[#This Row],[Enhet för mängd (A5.2)]] = InputA1A3[[#This Row],[*DU/FU (EF A5.2)]], TRUE, FALSE))","v":""},{"$f":"IF(KontrollTabell[[#This Row],[Finns anläggningsdel-namn.]]=FALSE,\"\",IF(OR(ISBLANK(InputA1A3[[#This Row],[Kategori\n(egen kategorisering)]])=FALSE,ISBLANK(InputA1A3[[#This Row],[Anläggningsdel\n]]))=FALSE,TRUE,FALSE))","v":""},{"$f":"IF(ISBLANK(InputA1A3[[#This Row],[Anläggningsdel\n]]),\"\",IF(KontrollTabell[[#This Row],[TRUE/FALSE om kategori saknas.]] =FALSE,InputA1A3[[#This Row],[Kategori\n(egen kategorisering)]],\"Kategori saknas\"))","v":""}]
[null,null,null,null,null,null,null,null,null,{"$f":"IF(ISBLANK(InputA1A3[[#This Row],[Anläggningsdel\n]]),\"\",IF(OR(KontrollTabell[[#This Row],[True/False A1A3 Enhet]]=TRUE,KontrollTabell[[#This Row],[True/False A1A3 Enhet]]=\"Värde Behövs\",KontrollTabell[[#This Row],[True/False A1A3 Enhet]]=\"\"), \"\", InputA1A3[[#This Row],[FU/DU (EF A1A3)]] & \"/\" & InputA1A3[[#This Row],[Enhet Mängd (A1A3)]]))","v":""},null,null,null,null,{"$f":"IF(ISBLANK(InputA1A3[[#This Row],[EPD - EF A4]]),\"\",InputA1A3[[#This Row],[FU/DU (EF A1A3)]])","v":""},null,null,null,null,{"$f":"IFERROR(INDEX(TabellEFDrivmedel[],MATCH(InputA1A3[[#This Row],[Drivmedel (A4) (endast förval ur lista)]],TabellEFDrivmedel[Drivmedel],0),4),\"\")","v":""},null,null,null,{"$f":"IF(InputA1A3[[#This Row],[*DU/FU (EF A4) för valt drivmedel (schablon)]]=\"\",\"\",IF(OR(InputA1A3[[#This Row],[*DU/FU (EF A4) för valt drivmedel (schablon)]]=InputA1A3[[#This Row],[Enhet (bränsleförbrukning per km)]],KontrollTabell[[#This Row],[True/False A4 - Alt 2]]=\"Värde Behövs\"),\"\",InputA1A3[[#This Row],[Enhet (bränsleförbrukning per km)]]& \"/\" & InputA1A3[[#This Row],[*DU/FU (EF A4) för valt drivmedel (schablon)]]))","v":""},null,null,null,null,null,null,null,{"$f":"IFERROR(INDEX(TabellEFDrivmedel[],MATCH(InputA1A3[[#This Row],[Drivmedel (A5.2)]],TabellEFDrivmedel[Drivmedel],0),2),\"\")","v":""},{"$f":"IFERROR(INDEX(TabellEFDrivmedel[],MATCH(InputA1A3[[#This Row],[Drivmedel (A5.2)]],TabellEFDrivmedel[Drivmedel],0),4),\"\")","v":""},{"$f":"IF(OR(KontrollTabell[[#This Row],[True/False A5 Enhet]]=TRUE,KontrollTabell[[#This Row],[True/False A5 Enhet]]=\"\"), \"\", InputA1A3[[#This Row],[*DU/FU (EF A5.2)]] & \"/\" & InputA1A3[[#This Row],[Enhet för mängd (A5.2)]])","v":""},null,null,null,null,null,null,null,null,null,null,null,null,null,null,null,null,null,null,null,null,null,null,null,null,null,null,null,null,null,null,null,null,null,null,null,null,null,null,null,null,{"$f":"IF(ISBLANK(InputA1A3[[#This Row],[Anläggningsdel\n]]),FALSE,TRUE)","v":false},{"$f":"IF(ISBLANK(InputA1A3[[#This Row],[Anläggningsdel\n]]),\"\",IF(ISBLANK(InputA1A3[[#This Row],[Enhet Mängd (A1A3)]]),\"\",IF(ISBLANK(InputA1A3[[#This Row],[FU/DU (EF A1A3)]]),\"Värde Behövs\",IF(InputA1A3[[#This Row],[Enhet Mängd (A1A3)]] = InputA1A3[[#This Row],[FU/DU (EF A1A3)]], TRUE, FALSE))))","v":""},{"$f":"IF(KontrollTabell[[#This Row],[Finns anläggningsdel-namn.]]=FALSE,\"\",(IF(KontrollTabell[[#This Row],[True/False A1A3 Enhet]]=TRUE,TRUE,IF(OR(KontrollTabell[[#This Row],[True/False A1A3 Enhet]]=\"Värde Behövs\",(KontrollTabell[[#This Row],[True/False A1A3 Enhet]]=\"\")),\"\",IF(ISBLANK(InputA1A3[[#This Row],[Omräkning till FU/DU (Skriv in värde, ej formel)]]),FALSE,TRUE)))))","v":""},{"$f":"IF(KontrollTabell[[#This Row],[Finns anläggningsdel-namn.]]=FALSE,,IF(KontrollTabell[[#This Row],[True/False A1A3 Enhet]]=TRUE,InputA1A3[[#This Row],[Mängd A1A3]]*InputA1A3[[#This Row],[EF A1A3 '[kg CO₂-ekv.']]],IF(KontrollTabell[[#This Row],[True/False A1A3 om A1A3 kan beräknas]]=TRUE,InputA1A3[[#This Row],[Mängd A1A3]]*InputA1A3[[#This Row],[EF A1A3 '[kg CO₂-ekv.']]]*InputA1A3[[#This Row],[Omräkning till FU/DU (Skriv in värde, ej formel)]],0)))","v":0},{"$f":"IF(ISBLANK(InputA1A3[[#This Row],[Anläggningsdel\n]]),\"\",IF(ISBLANK(InputA1A3[[#This Row],[EPD - EF A4]]),FALSE,TRUE))","v":""},{"$f":"IF(InputA1A3[[#This Row],[*DU/FU (EF A4) för valt drivmedel (schablon)]]=\"\",\"\",IF(InputA1A3[[#This Row],[Enhet (bränsleförbrukning per km)]]=\"\",\"Värde Behövs\",IF(OR(InputA1A3[[#This Row],[Enhet (bränsleförbrukning per km)]]=InputA1A3[[#This Row],[*DU/FU (EF A4) för valt drivmedel (schablon)]],AND(InputA1A3[[#This Row],[Enhet (bränsleförbrukning per km)]]<>InputA1A3[[#This Row],[*DU/FU (EF A4) för valt drivmedel (schablon)]],ISNUMBER(InputA1A3[[#This Row],[Omräkningsfaktor (A4), (vid behov, värde eller formel)]]))),TRUE(),FALSE())))","v":""},{"$f":"IF(KontrollTabell[[#This Row],[Finns anläggningsdel-namn.]]=FALSE,\"\",(IF(InputA1A3[[#This Row],[Enhet (bränsleförbrukning per km)]] =InputA1A3[[#This Row],[*DU/FU (EF A4) för valt drivmedel (schablon)]],TRUE,IF(KontrollTabell[[#This Row],[True/False A4 - Alt 2]]=\"Värde Behövs\",\"\",IF(ISBLANK(InputA1A3[[#This Row],[Omräkningsfaktor (A4), (vid behov, värde eller formel)]]),FALSE,TRUE)))))","v":""},{"$f":"IF(ISBLANK(InputA1A3[[#This Row],[EPD - EF A4]]),\"\",IF(ISBLANK(InputA1A3[[#This Row],[Omräkning till FU/DU (Skriv in värde, ej formel)]]),InputA1A3[[#This Row],[EPD - EF A4]]*InputA1A3[[#This Row],[Mängd A1A3]],InputA1A3[[#This Row],[Mängd A1A3]]*InputA1A3[[#This Row],[Omräkning till FU/DU (Skriv in värde, ej formel)]]*InputA1A3[[#This Row],[EPD - EF A4]]))","v":""},{"$f":"IFERROR(IF(KontrollTabell[[#This Row],[True/False A4 - Alt 2]]=\"\",\"\",IF(KontrollTabell[[#This Row],[True/False A4 Enhet - Alt2]]=TRUE,\nIF(ISNUMBER(InputA1A3[[#This Row],[Omräkningsfaktor (A4), (vid behov, värde eller formel)]]),InputA1A3[[#This Row],[Sträcka - totalt '[km'], (tur och retur, alla transporter)]]*InputA1A3[[#This Row],[(Bränsle-) Förbrukning per km]]/InputA1A3[[#This Row],[Omräkningsfaktor (A4), (vid behov, värde eller formel)]]*InputA1A3[[#This Row],[*EF (A4)\n'[kg CO₂-ekv.']]],\nInputA1A3[[#This Row],[Sträcka - totalt '[km'], (tur och retur, alla transporter)]]*InputA1A3[[#This Row],[(Bränsle-) Förbrukning per km]]*InputA1A3[[#This Row],[*EF (A4)\n'[kg CO₂-ekv.']]]),\"Sen då\")),0)","v":""},{"$f":"SUM(KontrollTabell[[#This Row],[A4 - Resultat alt 1 '[kg']]:[A4 - Alt 2 - beräkning utsläpp]])","v":0},{"$f":"IF(KontrollTabell[[#This Row],[Finns anläggningsdel-namn.]]=FALSE,\"\",IF(ISBLANK(InputA1A3[[#This Row],[EPD - EF A4]]),FALSE,TRUE))","v":""},{"$f":"IFERROR(IF(KontrollTabell[[#This Row],[True/False A5]]=FALSE(),\"Enheter\",IF(ISBLANK(InputA1A3[[#This Row],[Omräkningsfaktor (A5.2) (ange värde), (vid behov)]]),InputA1A3[[#This Row],[Mängd (A5.2)]]*InputA1A3[[#This Row],[*EF (A5.2)\n'[kg CO₂-ekv.']]],InputA1A3[[#This Row],[Mängd (A5.2)]]*InputA1A3[[#This Row],[*EF (A5.2)\n'[kg CO₂-ekv.']]]*InputA1A3[[#This Row],[Omräkningsfaktor (A5.2) (ange värde), (vid behov)]])),0)","v":0},{"$f":"IF(InputA1A3[[#This Row],[*DU/FU (EF A5.2)]]=\"\",\"\",IF(InputA1A3[[#This Row],[Enhet för mängd (A5.2)]]=\"\",\"Värde Behövs\",IF(OR(InputA1A3[[#This Row],[Enhet för mängd (A5.2)]]=InputA1A3[[#This Row],[*DU/FU (EF A5.2)]],AND(InputA1A3[[#This Row],[Enhet för mängd (A5.2)]]<>InputA1A3[[#This Row],[*DU/FU (EF A5.2)]],ISNUMBER(InputA1A3[[#This Row],[Omräkningsfaktor (A5.2) (ange värde), (vid behov)]]))),TRUE,FALSE)))","v":""},{"$f":"IF(OR(KontrollTabell[[#This Row],[Finns anläggningsdel-namn.]]=FALSE,KontrollTabell[[#This Row],[True/False A5]]=\"Värde Behövs\"),\"\",IF(InputA1A3[[#This Row],[Enhet för mängd (A5.2)]] = InputA1A3[[#This Row],[*DU/FU (EF A5.2)]], TRUE, FALSE))","v":""},{"$f":"IF(KontrollTabell[[#This Row],[Finns anläggningsdel-namn.]]=FALSE,\"\",IF(OR(ISBLANK(InputA1A3[[#This Row],[Kategori\n(egen kategorisering)]])=FALSE,ISBLANK(InputA1A3[[#This Row],[Anläggningsdel\n]]))=FALSE,TRUE,FALSE))","v":""},{"$f":"IF(ISBLANK(InputA1A3[[#This Row],[Anläggningsdel\n]]),\"\",IF(KontrollTabell[[#This Row],[TRUE/FALSE om kategori saknas.]] =FALSE,InputA1A3[[#This Row],[Kategori\n(egen kategorisering)]],\"Kategori saknas\"))","v":""}]
[null,null,null,null,null,null,null,null,null,{"$f":"IF(ISBLANK(InputA1A3[[#This Row],[Anläggningsdel\n]]),\"\",IF(OR(KontrollTabell[[#This Row],[True/False A1A3 Enhet]]=TRUE,KontrollTabell[[#This Row],[True/False A1A3 Enhet]]=\"Värde Behövs\",KontrollTabell[[#This Row],[True/False A1A3 Enhet]]=\"\"), \"\", InputA1A3[[#This Row],[FU/DU (EF A1A3)]] & \"/\" & InputA1A3[[#This Row],[Enhet Mängd (A1A3)]]))","v":""},null,null,null,null,{"$f":"IF(ISBLANK(InputA1A3[[#This Row],[EPD - EF A4]]),\"\",InputA1A3[[#This Row],[FU/DU (EF A1A3)]])","v":""},null,null,null,null,{"$f":"IFERROR(INDEX(TabellEFDrivmedel[],MATCH(InputA1A3[[#This Row],[Drivmedel (A4) (endast förval ur lista)]],TabellEFDrivmedel[Drivmedel],0),4),\"\")","v":""},null,null,null,{"$f":"IF(InputA1A3[[#This Row],[*DU/FU (EF A4) för valt drivmedel (schablon)]]=\"\",\"\",IF(OR(InputA1A3[[#This Row],[*DU/FU (EF A4) för valt drivmedel (schablon)]]=InputA1A3[[#This Row],[Enhet (bränsleförbrukning per km)]],KontrollTabell[[#This Row],[True/False A4 - Alt 2]]=\"Värde Behövs\"),\"\",InputA1A3[[#This Row],[Enhet (bränsleförbrukning per km)]]& \"/\" & InputA1A3[[#This Row],[*DU/FU (EF A4) för valt drivmedel (schablon)]]))","v":""},null,null,null,null,null,null,null,{"$f":"IFERROR(INDEX(TabellEFDrivmedel[],MATCH(InputA1A3[[#This Row],[Drivmedel (A5.2)]],TabellEFDrivmedel[Drivmedel],0),2),\"\")","v":""},{"$f":"IFERROR(INDEX(TabellEFDrivmedel[],MATCH(InputA1A3[[#This Row],[Drivmedel (A5.2)]],TabellEFDrivmedel[Drivmedel],0),4),\"\")","v":""},{"$f":"IF(OR(KontrollTabell[[#This Row],[True/False A5 Enhet]]=TRUE,KontrollTabell[[#This Row],[True/False A5 Enhet]]=\"\"), \"\", InputA1A3[[#This Row],[*DU/FU (EF A5.2)]] & \"/\" & InputA1A3[[#This Row],[Enhet för mängd (A5.2)]])","v":""},null,null,null,null,null,null,null,null,null,null,null,null,null,null,null,null,null,null,null,null,null,null,null,null,null,null,null,null,null,null,null,null,null,null,null,null,null,null,null,null,{"$f":"IF(ISBLANK(InputA1A3[[#This Row],[Anläggningsdel\n]]),FALSE,TRUE)","v":false},{"$f":"IF(ISBLANK(InputA1A3[[#This Row],[Anläggningsdel\n]]),\"\",IF(ISBLANK(InputA1A3[[#This Row],[Enhet Mängd (A1A3)]]),\"\",IF(ISBLANK(InputA1A3[[#This Row],[FU/DU (EF A1A3)]]),\"Värde Behövs\",IF(InputA1A3[[#This Row],[Enhet Mängd (A1A3)]] = InputA1A3[[#This Row],[FU/DU (EF A1A3)]], TRUE, FALSE))))","v":""},{"$f":"IF(KontrollTabell[[#This Row],[Finns anläggningsdel-namn.]]=FALSE,\"\",(IF(KontrollTabell[[#This Row],[True/False A1A3 Enhet]]=TRUE,TRUE,IF(OR(KontrollTabell[[#This Row],[True/False A1A3 Enhet]]=\"Värde Behövs\",(KontrollTabell[[#This Row],[True/False A1A3 Enhet]]=\"\")),\"\",IF(ISBLANK(InputA1A3[[#This Row],[Omräkning till FU/DU (Skriv in värde, ej formel)]]),FALSE,TRUE)))))","v":""},{"$f":"IF(KontrollTabell[[#This Row],[Finns anläggningsdel-namn.]]=FALSE,,IF(KontrollTabell[[#This Row],[True/False A1A3 Enhet]]=TRUE,InputA1A3[[#This Row],[Mängd A1A3]]*InputA1A3[[#This Row],[EF A1A3 '[kg CO₂-ekv.']]],IF(KontrollTabell[[#This Row],[True/False A1A3 om A1A3 kan beräknas]]=TRUE,InputA1A3[[#This Row],[Mängd A1A3]]*InputA1A3[[#This Row],[EF A1A3 '[kg CO₂-ekv.']]]*InputA1A3[[#This Row],[Omräkning till FU/DU (Skriv in värde, ej formel)]],0)))","v":0},{"$f":"IF(ISBLANK(InputA1A3[[#This Row],[Anläggningsdel\n]]),\"\",IF(ISBLANK(InputA1A3[[#This Row],[EPD - EF A4]]),FALSE,TRUE))","v":""},{"$f":"IF(InputA1A3[[#This Row],[*DU/FU (EF A4) för valt drivmedel (schablon)]]=\"\",\"\",IF(InputA1A3[[#This Row],[Enhet (bränsleförbrukning per km)]]=\"\",\"Värde Behövs\",IF(OR(InputA1A3[[#This Row],[Enhet (bränsleförbrukning per km)]]=InputA1A3[[#This Row],[*DU/FU (EF A4) för valt drivmedel (schablon)]],AND(InputA1A3[[#This Row],[Enhet (bränsleförbrukning per km)]]<>InputA1A3[[#This Row],[*DU/FU (EF A4) för valt drivmedel (schablon)]],ISNUMBER(InputA1A3[[#This Row],[Omräkningsfaktor (A4), (vid behov, värde eller formel)]]))),TRUE(),FALSE())))","v":""},{"$f":"IF(KontrollTabell[[#This Row],[Finns anläggningsdel-namn.]]=FALSE,\"\",(IF(InputA1A3[[#This Row],[Enhet (bränsleförbrukning per km)]] =InputA1A3[[#This Row],[*DU/FU (EF A4) för valt drivmedel (schablon)]],TRUE,IF(KontrollTabell[[#This Row],[True/False A4 - Alt 2]]=\"Värde Behövs\",\"\",IF(ISBLANK(InputA1A3[[#This Row],[Omräkningsfaktor (A4), (vid behov, värde eller formel)]]),FALSE,TRUE)))))","v":""},{"$f":"IF(ISBLANK(InputA1A3[[#This Row],[EPD - EF A4]]),\"\",IF(ISBLANK(InputA1A3[[#This Row],[Omräkning till FU/DU (Skriv in värde, ej formel)]]),InputA1A3[[#This Row],[EPD - EF A4]]*InputA1A3[[#This Row],[Mängd A1A3]],InputA1A3[[#This Row],[Mängd A1A3]]*InputA1A3[[#This Row],[Omräkning till FU/DU (Skriv in värde, ej formel)]]*InputA1A3[[#This Row],[EPD - EF A4]]))","v":""},{"$f":"IFERROR(IF(KontrollTabell[[#This Row],[True/False A4 - Alt 2]]=\"\",\"\",IF(KontrollTabell[[#This Row],[True/False A4 Enhet - Alt2]]=TRUE,\nIF(ISNUMBER(InputA1A3[[#This Row],[Omräkningsfaktor (A4), (vid behov, värde eller formel)]]),InputA1A3[[#This Row],[Sträcka - totalt '[km'], (tur och retur, alla transporter)]]*InputA1A3[[#This Row],[(Bränsle-) Förbrukning per km]]/InputA1A3[[#This Row],[Omräkningsfaktor (A4), (vid behov, värde eller formel)]]*InputA1A3[[#This Row],[*EF (A4)\n'[kg CO₂-ekv.']]],\nInputA1A3[[#This Row],[Sträcka - totalt '[km'], (tur och retur, alla transporter)]]*InputA1A3[[#This Row],[(Bränsle-) Förbrukning per km]]*InputA1A3[[#This Row],[*EF (A4)\n'[kg CO₂-ekv.']]]),\"Sen då\")),0)","v":""},{"$f":"SUM(KontrollTabell[[#This Row],[A4 - Resultat alt 1 '[kg']]:[A4 - Alt 2 - beräkning utsläpp]])","v":0},{"$f":"IF(KontrollTabell[[#This Row],[Finns anläggningsdel-namn.]]=FALSE,\"\",IF(ISBLANK(InputA1A3[[#This Row],[EPD - EF A4]]),FALSE,TRUE))","v":""},{"$f":"IFERROR(IF(KontrollTabell[[#This Row],[True/False A5]]=FALSE(),\"Enheter\",IF(ISBLANK(InputA1A3[[#This Row],[Omräkningsfaktor (A5.2) (ange värde), (vid behov)]]),InputA1A3[[#This Row],[Mängd (A5.2)]]*InputA1A3[[#This Row],[*EF (A5.2)\n'[kg CO₂-ekv.']]],InputA1A3[[#This Row],[Mängd (A5.2)]]*InputA1A3[[#This Row],[*EF (A5.2)\n'[kg CO₂-ekv.']]]*InputA1A3[[#This Row],[Omräkningsfaktor (A5.2) (ange värde), (vid behov)]])),0)","v":0},{"$f":"IF(InputA1A3[[#This Row],[*DU/FU (EF A5.2)]]=\"\",\"\",IF(InputA1A3[[#This Row],[Enhet för mängd (A5.2)]]=\"\",\"Värde Behövs\",IF(OR(InputA1A3[[#This Row],[Enhet för mängd (A5.2)]]=InputA1A3[[#This Row],[*DU/FU (EF A5.2)]],AND(InputA1A3[[#This Row],[Enhet för mängd (A5.2)]]<>InputA1A3[[#This Row],[*DU/FU (EF A5.2)]],ISNUMBER(InputA1A3[[#This Row],[Omräkningsfaktor (A5.2) (ange värde), (vid behov)]]))),TRUE,FALSE)))","v":""},{"$f":"IF(OR(KontrollTabell[[#This Row],[Finns anläggningsdel-namn.]]=FALSE,KontrollTabell[[#This Row],[True/False A5]]=\"Värde Behövs\"),\"\",IF(InputA1A3[[#This Row],[Enhet för mängd (A5.2)]] = InputA1A3[[#This Row],[*DU/FU (EF A5.2)]], TRUE, FALSE))","v":""},{"$f":"IF(KontrollTabell[[#This Row],[Finns anläggningsdel-namn.]]=FALSE,\"\",IF(OR(ISBLANK(InputA1A3[[#This Row],[Kategori\n(egen kategorisering)]])=FALSE,ISBLANK(InputA1A3[[#This Row],[Anläggningsdel\n]]))=FALSE,TRUE,FALSE))","v":""},{"$f":"IF(ISBLANK(InputA1A3[[#This Row],[Anläggningsdel\n]]),\"\",IF(KontrollTabell[[#This Row],[TRUE/FALSE om kategori saknas.]] =FALSE,InputA1A3[[#This Row],[Kategori\n(egen kategorisering)]],\"Kategori saknas\"))","v":""}]
[null,null,null,null,null,null,null,null,null,{"$f":"IF(ISBLANK(InputA1A3[[#This Row],[Anläggningsdel\n]]),\"\",IF(OR(KontrollTabell[[#This Row],[True/False A1A3 Enhet]]=TRUE,KontrollTabell[[#This Row],[True/False A1A3 Enhet]]=\"Värde Behövs\",KontrollTabell[[#This Row],[True/False A1A3 Enhet]]=\"\"), \"\", InputA1A3[[#This Row],[FU/DU (EF A1A3)]] & \"/\" & InputA1A3[[#This Row],[Enhet Mängd (A1A3)]]))","v":""},null,null,null,null,{"$f":"IF(ISBLANK(InputA1A3[[#This Row],[EPD - EF A4]]),\"\",InputA1A3[[#This Row],[FU/DU (EF A1A3)]])","v":""},null,null,null,null,{"$f":"IFERROR(INDEX(TabellEFDrivmedel[],MATCH(InputA1A3[[#This Row],[Drivmedel (A4) (endast förval ur lista)]],TabellEFDrivmedel[Drivmedel],0),4),\"\")","v":""},null,null,null,{"$f":"IF(InputA1A3[[#This Row],[*DU/FU (EF A4) för valt drivmedel (schablon)]]=\"\",\"\",IF(OR(InputA1A3[[#This Row],[*DU/FU (EF A4) för valt drivmedel (schablon)]]=InputA1A3[[#This Row],[Enhet (bränsleförbrukning per km)]],KontrollTabell[[#This Row],[True/False A4 - Alt 2]]=\"Värde Behövs\"),\"\",InputA1A3[[#This Row],[Enhet (bränsleförbrukning per km)]]& \"/\" & InputA1A3[[#This Row],[*DU/FU (EF A4) för valt drivmedel (schablon)]]))","v":""},null,null,null,null,null,null,null,{"$f":"IFERROR(INDEX(TabellEFDrivmedel[],MATCH(InputA1A3[[#This Row],[Drivmedel (A5.2)]],TabellEFDrivmedel[Drivmedel],0),2),\"\")","v":""},{"$f":"IFERROR(INDEX(TabellEFDrivmedel[],MATCH(InputA1A3[[#This Row],[Drivmedel (A5.2)]],TabellEFDrivmedel[Drivmedel],0),4),\"\")","v":""},{"$f":"IF(OR(KontrollTabell[[#This Row],[True/False A5 Enhet]]=TRUE,KontrollTabell[[#This Row],[True/False A5 Enhet]]=\"\"), \"\", InputA1A3[[#This Row],[*DU/FU (EF A5.2)]] & \"/\" & InputA1A3[[#This Row],[Enhet för mängd (A5.2)]])","v":""},null,null,null,null,null,null,null,null,null,null,null,null,null,null,null,null,null,null,null,null,null,null,null,null,null,null,null,null,null,null,null,null,null,null,null,null,null,null,null,null,{"$f":"IF(ISBLANK(InputA1A3[[#This Row],[Anläggningsdel\n]]),FALSE,TRUE)","v":false},{"$f":"IF(ISBLANK(InputA1A3[[#This Row],[Anläggningsdel\n]]),\"\",IF(ISBLANK(InputA1A3[[#This Row],[Enhet Mängd (A1A3)]]),\"\",IF(ISBLANK(InputA1A3[[#This Row],[FU/DU (EF A1A3)]]),\"Värde Behövs\",IF(InputA1A3[[#This Row],[Enhet Mängd (A1A3)]] = InputA1A3[[#This Row],[FU/DU (EF A1A3)]], TRUE, FALSE))))","v":""},{"$f":"IF(KontrollTabell[[#This Row],[Finns anläggningsdel-namn.]]=FALSE,\"\",(IF(KontrollTabell[[#This Row],[True/False A1A3 Enhet]]=TRUE,TRUE,IF(OR(KontrollTabell[[#This Row],[True/False A1A3 Enhet]]=\"Värde Behövs\",(KontrollTabell[[#This Row],[True/False A1A3 Enhet]]=\"\")),\"\",IF(ISBLANK(InputA1A3[[#This Row],[Omräkning till FU/DU (Skriv in värde, ej formel)]]),FALSE,TRUE)))))","v":""},{"$f":"IF(KontrollTabell[[#This Row],[Finns anläggningsdel-namn.]]=FALSE,,IF(KontrollTabell[[#This Row],[True/False A1A3 Enhet]]=TRUE,InputA1A3[[#This Row],[Mängd A1A3]]*InputA1A3[[#This Row],[EF A1A3 '[kg CO₂-ekv.']]],IF(KontrollTabell[[#This Row],[True/False A1A3 om A1A3 kan beräknas]]=TRUE,InputA1A3[[#This Row],[Mängd A1A3]]*InputA1A3[[#This Row],[EF A1A3 '[kg CO₂-ekv.']]]*InputA1A3[[#This Row],[Omräkning till FU/DU (Skriv in värde, ej formel)]],0)))","v":0},{"$f":"IF(ISBLANK(InputA1A3[[#This Row],[Anläggningsdel\n]]),\"\",IF(ISBLANK(InputA1A3[[#This Row],[EPD - EF A4]]),FALSE,TRUE))","v":""},{"$f":"IF(InputA1A3[[#This Row],[*DU/FU (EF A4) för valt drivmedel (schablon)]]=\"\",\"\",IF(InputA1A3[[#This Row],[Enhet (bränsleförbrukning per km)]]=\"\",\"Värde Behövs\",IF(OR(InputA1A3[[#This Row],[Enhet (bränsleförbrukning per km)]]=InputA1A3[[#This Row],[*DU/FU (EF A4) för valt drivmedel (schablon)]],AND(InputA1A3[[#This Row],[Enhet (bränsleförbrukning per km)]]<>InputA1A3[[#This Row],[*DU/FU (EF A4) för valt drivmedel (schablon)]],ISNUMBER(InputA1A3[[#This Row],[Omräkningsfaktor (A4), (vid behov, värde eller formel)]]))),TRUE(),FALSE())))","v":""},{"$f":"IF(KontrollTabell[[#This Row],[Finns anläggningsdel-namn.]]=FALSE,\"\",(IF(InputA1A3[[#This Row],[Enhet (bränsleförbrukning per km)]] =InputA1A3[[#This Row],[*DU/FU (EF A4) för valt drivmedel (schablon)]],TRUE,IF(KontrollTabell[[#This Row],[True/False A4 - Alt 2]]=\"Värde Behövs\",\"\",IF(ISBLANK(InputA1A3[[#This Row],[Omräkningsfaktor (A4), (vid behov, värde eller formel)]]),FALSE,TRUE)))))","v":""},{"$f":"IF(ISBLANK(InputA1A3[[#This Row],[EPD - EF A4]]),\"\",IF(ISBLANK(InputA1A3[[#This Row],[Omräkning till FU/DU (Skriv in värde, ej formel)]]),InputA1A3[[#This Row],[EPD - EF A4]]*InputA1A3[[#This Row],[Mängd A1A3]],InputA1A3[[#This Row],[Mängd A1A3]]*InputA1A3[[#This Row],[Omräkning till FU/DU (Skriv in värde, ej formel)]]*InputA1A3[[#This Row],[EPD - EF A4]]))","v":""},{"$f":"IFERROR(IF(KontrollTabell[[#This Row],[True/False A4 - Alt 2]]=\"\",\"\",IF(KontrollTabell[[#This Row],[True/False A4 Enhet - Alt2]]=TRUE,\nIF(ISNUMBER(InputA1A3[[#This Row],[Omräkningsfaktor (A4), (vid behov, värde eller formel)]]),InputA1A3[[#This Row],[Sträcka - totalt '[km'], (tur och retur, alla transporter)]]*InputA1A3[[#This Row],[(Bränsle-) Förbrukning per km]]/InputA1A3[[#This Row],[Omräkningsfaktor (A4), (vid behov, värde eller formel)]]*InputA1A3[[#This Row],[*EF (A4)\n'[kg CO₂-ekv.']]],\nInputA1A3[[#This Row],[Sträcka - totalt '[km'], (tur och retur, alla transporter)]]*InputA1A3[[#This Row],[(Bränsle-) Förbrukning per km]]*InputA1A3[[#This Row],[*EF (A4)\n'[kg CO₂-ekv.']]]),\"Sen då\")),0)","v":""},{"$f":"SUM(KontrollTabell[[#This Row],[A4 - Resultat alt 1 '[kg']]:[A4 - Alt 2 - beräkning utsläpp]])","v":0},{"$f":"IF(KontrollTabell[[#This Row],[Finns anläggningsdel-namn.]]=FALSE,\"\",IF(ISBLANK(InputA1A3[[#This Row],[EPD - EF A4]]),FALSE,TRUE))","v":""},{"$f":"IFERROR(IF(KontrollTabell[[#This Row],[True/False A5]]=FALSE(),\"Enheter\",IF(ISBLANK(InputA1A3[[#This Row],[Omräkningsfaktor (A5.2) (ange värde), (vid behov)]]),InputA1A3[[#This Row],[Mängd (A5.2)]]*InputA1A3[[#This Row],[*EF (A5.2)\n'[kg CO₂-ekv.']]],InputA1A3[[#This Row],[Mängd (A5.2)]]*InputA1A3[[#This Row],[*EF (A5.2)\n'[kg CO₂-ekv.']]]*InputA1A3[[#This Row],[Omräkningsfaktor (A5.2) (ange värde), (vid behov)]])),0)","v":0},{"$f":"IF(InputA1A3[[#This Row],[*DU/FU (EF A5.2)]]=\"\",\"\",IF(InputA1A3[[#This Row],[Enhet för mängd (A5.2)]]=\"\",\"Värde Behövs\",IF(OR(InputA1A3[[#This Row],[Enhet för mängd (A5.2)]]=InputA1A3[[#This Row],[*DU/FU (EF A5.2)]],AND(InputA1A3[[#This Row],[Enhet för mängd (A5.2)]]<>InputA1A3[[#This Row],[*DU/FU (EF A5.2)]],ISNUMBER(InputA1A3[[#This Row],[Omräkningsfaktor (A5.2) (ange värde), (vid behov)]]))),TRUE,FALSE)))","v":""},{"$f":"IF(OR(KontrollTabell[[#This Row],[Finns anläggningsdel-namn.]]=FALSE,KontrollTabell[[#This Row],[True/False A5]]=\"Värde Behövs\"),\"\",IF(InputA1A3[[#This Row],[Enhet för mängd (A5.2)]] = InputA1A3[[#This Row],[*DU/FU (EF A5.2)]], TRUE, FALSE))","v":""},{"$f":"IF(KontrollTabell[[#This Row],[Finns anläggningsdel-namn.]]=FALSE,\"\",IF(OR(ISBLANK(InputA1A3[[#This Row],[Kategori\n(egen kategorisering)]])=FALSE,ISBLANK(InputA1A3[[#This Row],[Anläggningsdel\n]]))=FALSE,TRUE,FALSE))","v":""},{"$f":"IF(ISBLANK(InputA1A3[[#This Row],[Anläggningsdel\n]]),\"\",IF(KontrollTabell[[#This Row],[TRUE/FALSE om kategori saknas.]] =FALSE,InputA1A3[[#This Row],[Kategori\n(egen kategorisering)]],\"Kategori saknas\"))","v":""}]
[null,null,null,null,null,null,null,null,null,{"$f":"IF(ISBLANK(InputA1A3[[#This Row],[Anläggningsdel\n]]),\"\",IF(OR(KontrollTabell[[#This Row],[True/False A1A3 Enhet]]=TRUE,KontrollTabell[[#This Row],[True/False A1A3 Enhet]]=\"Värde Behövs\",KontrollTabell[[#This Row],[True/False A1A3 Enhet]]=\"\"), \"\", InputA1A3[[#This Row],[FU/DU (EF A1A3)]] & \"/\" & InputA1A3[[#This Row],[Enhet Mängd (A1A3)]]))","v":""},null,null,null,null,{"$f":"IF(ISBLANK(InputA1A3[[#This Row],[EPD - EF A4]]),\"\",InputA1A3[[#This Row],[FU/DU (EF A1A3)]])","v":""},null,null,null,null,{"$f":"IFERROR(INDEX(TabellEFDrivmedel[],MATCH(InputA1A3[[#This Row],[Drivmedel (A4) (endast förval ur lista)]],TabellEFDrivmedel[Drivmedel],0),4),\"\")","v":""},null,null,null,{"$f":"IF(InputA1A3[[#This Row],[*DU/FU (EF A4) för valt drivmedel (schablon)]]=\"\",\"\",IF(OR(InputA1A3[[#This Row],[*DU/FU (EF A4) för valt drivmedel (schablon)]]=InputA1A3[[#This Row],[Enhet (bränsleförbrukning per km)]],KontrollTabell[[#This Row],[True/False A4 - Alt 2]]=\"Värde Behövs\"),\"\",InputA1A3[[#This Row],[Enhet (bränsleförbrukning per km)]]& \"/\" & InputA1A3[[#This Row],[*DU/FU (EF A4) för valt drivmedel (schablon)]]))","v":""},null,null,null,null,null,null,null,{"$f":"IFERROR(INDEX(TabellEFDrivmedel[],MATCH(InputA1A3[[#This Row],[Drivmedel (A5.2)]],TabellEFDrivmedel[Drivmedel],0),2),\"\")","v":""},{"$f":"IFERROR(INDEX(TabellEFDrivmedel[],MATCH(InputA1A3[[#This Row],[Drivmedel (A5.2)]],TabellEFDrivmedel[Drivmedel],0),4),\"\")","v":""},{"$f":"IF(OR(KontrollTabell[[#This Row],[True/False A5 Enhet]]=TRUE,KontrollTabell[[#This Row],[True/False A5 Enhet]]=\"\"), \"\", InputA1A3[[#This Row],[*DU/FU (EF A5.2)]] & \"/\" & InputA1A3[[#This Row],[Enhet för mängd (A5.2)]])","v":""},null,null,null,null,null,null,null,null,null,null,null,null,null,null,null,null,null,null,null,null,null,null,null,null,null,null,null,null,null,null,null,null,null,null,null,null,null,null,null,null,{"$f":"IF(ISBLANK(InputA1A3[[#This Row],[Anläggningsdel\n]]),FALSE,TRUE)","v":false},{"$f":"IF(ISBLANK(InputA1A3[[#This Row],[Anläggningsdel\n]]),\"\",IF(ISBLANK(InputA1A3[[#This Row],[Enhet Mängd (A1A3)]]),\"\",IF(ISBLANK(InputA1A3[[#This Row],[FU/DU (EF A1A3)]]),\"Värde Behövs\",IF(InputA1A3[[#This Row],[Enhet Mängd (A1A3)]] = InputA1A3[[#This Row],[FU/DU (EF A1A3)]], TRUE, FALSE))))","v":""},{"$f":"IF(KontrollTabell[[#This Row],[Finns anläggningsdel-namn.]]=FALSE,\"\",(IF(KontrollTabell[[#This Row],[True/False A1A3 Enhet]]=TRUE,TRUE,IF(OR(KontrollTabell[[#This Row],[True/False A1A3 Enhet]]=\"Värde Behövs\",(KontrollTabell[[#This Row],[True/False A1A3 Enhet]]=\"\")),\"\",IF(ISBLANK(InputA1A3[[#This Row],[Omräkning till FU/DU (Skriv in värde, ej formel)]]),FALSE,TRUE)))))","v":""},{"$f":"IF(KontrollTabell[[#This Row],[Finns anläggningsdel-namn.]]=FALSE,,IF(KontrollTabell[[#This Row],[True/False A1A3 Enhet]]=TRUE,InputA1A3[[#This Row],[Mängd A1A3]]*InputA1A3[[#This Row],[EF A1A3 '[kg CO₂-ekv.']]],IF(KontrollTabell[[#This Row],[True/False A1A3 om A1A3 kan beräknas]]=TRUE,InputA1A3[[#This Row],[Mängd A1A3]]*InputA1A3[[#This Row],[EF A1A3 '[kg CO₂-ekv.']]]*InputA1A3[[#This Row],[Omräkning till FU/DU (Skriv in värde, ej formel)]],0)))","v":0},{"$f":"IF(ISBLANK(InputA1A3[[#This Row],[Anläggningsdel\n]]),\"\",IF(ISBLANK(InputA1A3[[#This Row],[EPD - EF A4]]),FALSE,TRUE))","v":""},{"$f":"IF(InputA1A3[[#This Row],[*DU/FU (EF A4) för valt drivmedel (schablon)]]=\"\",\"\",IF(InputA1A3[[#This Row],[Enhet (bränsleförbrukning per km)]]=\"\",\"Värde Behövs\",IF(OR(InputA1A3[[#This Row],[Enhet (bränsleförbrukning per km)]]=InputA1A3[[#This Row],[*DU/FU (EF A4) för valt drivmedel (schablon)]],AND(InputA1A3[[#This Row],[Enhet (bränsleförbrukning per km)]]<>InputA1A3[[#This Row],[*DU/FU (EF A4) för valt drivmedel (schablon)]],ISNUMBER(InputA1A3[[#This Row],[Omräkningsfaktor (A4), (vid behov, värde eller formel)]]))),TRUE(),FALSE())))","v":""},{"$f":"IF(KontrollTabell[[#This Row],[Finns anläggningsdel-namn.]]=FALSE,\"\",(IF(InputA1A3[[#This Row],[Enhet (bränsleförbrukning per km)]] =InputA1A3[[#This Row],[*DU/FU (EF A4) för valt drivmedel (schablon)]],TRUE,IF(KontrollTabell[[#This Row],[True/False A4 - Alt 2]]=\"Värde Behövs\",\"\",IF(ISBLANK(InputA1A3[[#This Row],[Omräkningsfaktor (A4), (vid behov, värde eller formel)]]),FALSE,TRUE)))))","v":""},{"$f":"IF(ISBLANK(InputA1A3[[#This Row],[EPD - EF A4]]),\"\",IF(ISBLANK(InputA1A3[[#This Row],[Omräkning till FU/DU (Skriv in värde, ej formel)]]),InputA1A3[[#This Row],[EPD - EF A4]]*InputA1A3[[#This Row],[Mängd A1A3]],InputA1A3[[#This Row],[Mängd A1A3]]*InputA1A3[[#This Row],[Omräkning till FU/DU (Skriv in värde, ej formel)]]*InputA1A3[[#This Row],[EPD - EF A4]]))","v":""},{"$f":"IFERROR(IF(KontrollTabell[[#This Row],[True/False A4 - Alt 2]]=\"\",\"\",IF(KontrollTabell[[#This Row],[True/False A4 Enhet - Alt2]]=TRUE,\nIF(ISNUMBER(InputA1A3[[#This Row],[Omräkningsfaktor (A4), (vid behov, värde eller formel)]]),InputA1A3[[#This Row],[Sträcka - totalt '[km'], (tur och retur, alla transporter)]]*InputA1A3[[#This Row],[(Bränsle-) Förbrukning per km]]/InputA1A3[[#This Row],[Omräkningsfaktor (A4), (vid behov, värde eller formel)]]*InputA1A3[[#This Row],[*EF (A4)\n'[kg CO₂-ekv.']]],\nInputA1A3[[#This Row],[Sträcka - totalt '[km'], (tur och retur, alla transporter)]]*InputA1A3[[#This Row],[(Bränsle-) Förbrukning per km]]*InputA1A3[[#This Row],[*EF (A4)\n'[kg CO₂-ekv.']]]),\"Sen då\")),0)","v":""},{"$f":"SUM(KontrollTabell[[#This Row],[A4 - Resultat alt 1 '[kg']]:[A4 - Alt 2 - beräkning utsläpp]])","v":0},{"$f":"IF(KontrollTabell[[#This Row],[Finns anläggningsdel-namn.]]=FALSE,\"\",IF(ISBLANK(InputA1A3[[#This Row],[EPD - EF A4]]),FALSE,TRUE))","v":""},{"$f":"IFERROR(IF(KontrollTabell[[#This Row],[True/False A5]]=FALSE(),\"Enheter\",IF(ISBLANK(InputA1A3[[#This Row],[Omräkningsfaktor (A5.2) (ange värde), (vid behov)]]),InputA1A3[[#This Row],[Mängd (A5.2)]]*InputA1A3[[#This Row],[*EF (A5.2)\n'[kg CO₂-ekv.']]],InputA1A3[[#This Row],[Mängd (A5.2)]]*InputA1A3[[#This Row],[*EF (A5.2)\n'[kg CO₂-ekv.']]]*InputA1A3[[#This Row],[Omräkningsfaktor (A5.2) (ange värde), (vid behov)]])),0)","v":0},{"$f":"IF(InputA1A3[[#This Row],[*DU/FU (EF A5.2)]]=\"\",\"\",IF(InputA1A3[[#This Row],[Enhet för mängd (A5.2)]]=\"\",\"Värde Behövs\",IF(OR(InputA1A3[[#This Row],[Enhet för mängd (A5.2)]]=InputA1A3[[#This Row],[*DU/FU (EF A5.2)]],AND(InputA1A3[[#This Row],[Enhet för mängd (A5.2)]]<>InputA1A3[[#This Row],[*DU/FU (EF A5.2)]],ISNUMBER(InputA1A3[[#This Row],[Omräkningsfaktor (A5.2) (ange värde), (vid behov)]]))),TRUE,FALSE)))","v":""},{"$f":"IF(OR(KontrollTabell[[#This Row],[Finns anläggningsdel-namn.]]=FALSE,KontrollTabell[[#This Row],[True/False A5]]=\"Värde Behövs\"),\"\",IF(InputA1A3[[#This Row],[Enhet för mängd (A5.2)]] = InputA1A3[[#This Row],[*DU/FU (EF A5.2)]], TRUE, FALSE))","v":""},{"$f":"IF(KontrollTabell[[#This Row],[Finns anläggningsdel-namn.]]=FALSE,\"\",IF(OR(ISBLANK(InputA1A3[[#This Row],[Kategori\n(egen kategorisering)]])=FALSE,ISBLANK(InputA1A3[[#This Row],[Anläggningsdel\n]]))=FALSE,TRUE,FALSE))","v":""},{"$f":"IF(ISBLANK(InputA1A3[[#This Row],[Anläggningsdel\n]]),\"\",IF(KontrollTabell[[#This Row],[TRUE/FALSE om kategori saknas.]] =FALSE,InputA1A3[[#This Row],[Kategori\n(egen kategorisering)]],\"Kategori saknas\"))","v":""}]
[null,null,null,null,null,null,null,null,null,{"$f":"IF(ISBLANK(InputA1A3[[#This Row],[Anläggningsdel\n]]),\"\",IF(OR(KontrollTabell[[#This Row],[True/False A1A3 Enhet]]=TRUE,KontrollTabell[[#This Row],[True/False A1A3 Enhet]]=\"Värde Behövs\",KontrollTabell[[#This Row],[True/False A1A3 Enhet]]=\"\"), \"\", InputA1A3[[#This Row],[FU/DU (EF A1A3)]] & \"/\" & InputA1A3[[#This Row],[Enhet Mängd (A1A3)]]))","v":""},null,null,null,null,{"$f":"IF(ISBLANK(InputA1A3[[#This Row],[EPD - EF A4]]),\"\",InputA1A3[[#This Row],[FU/DU (EF A1A3)]])","v":""},null,null,null,null,{"$f":"IFERROR(INDEX(TabellEFDrivmedel[],MATCH(InputA1A3[[#This Row],[Drivmedel (A4) (endast förval ur lista)]],TabellEFDrivmedel[Drivmedel],0),4),\"\")","v":""},null,null,null,{"$f":"IF(InputA1A3[[#This Row],[*DU/FU (EF A4) för valt drivmedel (schablon)]]=\"\",\"\",IF(OR(InputA1A3[[#This Row],[*DU/FU (EF A4) för valt drivmedel (schablon)]]=InputA1A3[[#This Row],[Enhet (bränsleförbrukning per km)]],KontrollTabell[[#This Row],[True/False A4 - Alt 2]]=\"Värde Behövs\"),\"\",InputA1A3[[#This Row],[Enhet (bränsleförbrukning per km)]]& \"/\" & InputA1A3[[#This Row],[*DU/FU (EF A4) för valt drivmedel (schablon)]]))","v":""},null,null,null,null,null,null,null,{"$f":"IFERROR(INDEX(TabellEFDrivmedel[],MATCH(InputA1A3[[#This Row],[Drivmedel (A5.2)]],TabellEFDrivmedel[Drivmedel],0),2),\"\")","v":""},{"$f":"IFERROR(INDEX(TabellEFDrivmedel[],MATCH(InputA1A3[[#This Row],[Drivmedel (A5.2)]],TabellEFDrivmedel[Drivmedel],0),4),\"\")","v":""},{"$f":"IF(OR(KontrollTabell[[#This Row],[True/False A5 Enhet]]=TRUE,KontrollTabell[[#This Row],[True/False A5 Enhet]]=\"\"), \"\", InputA1A3[[#This Row],[*DU/FU (EF A5.2)]] & \"/\" & InputA1A3[[#This Row],[Enhet för mängd (A5.2)]])","v":""},null,null,null,null,null,null,null,null,null,null,null,null,null,null,null,null,null,null,null,null,null,null,null,null,null,null,null,null,null,null,null,null,null,null,null,null,null,null,null,null,{"$f":"IF(ISBLANK(InputA1A3[[#This Row],[Anläggningsdel\n]]),FALSE,TRUE)","v":false},{"$f":"IF(ISBLANK(InputA1A3[[#This Row],[Anläggningsdel\n]]),\"\",IF(ISBLANK(InputA1A3[[#This Row],[Enhet Mängd (A1A3)]]),\"\",IF(ISBLANK(InputA1A3[[#This Row],[FU/DU (EF A1A3)]]),\"Värde Behövs\",IF(InputA1A3[[#This Row],[Enhet Mängd (A1A3)]] = InputA1A3[[#This Row],[FU/DU (EF A1A3)]], TRUE, FALSE))))","v":""},{"$f":"IF(KontrollTabell[[#This Row],[Finns anläggningsdel-namn.]]=FALSE,\"\",(IF(KontrollTabell[[#This Row],[True/False A1A3 Enhet]]=TRUE,TRUE,IF(OR(KontrollTabell[[#This Row],[True/False A1A3 Enhet]]=\"Värde Behövs\",(KontrollTabell[[#This Row],[True/False A1A3 Enhet]]=\"\")),\"\",IF(ISBLANK(InputA1A3[[#This Row],[Omräkning till FU/DU (Skriv in värde, ej formel)]]),FALSE,TRUE)))))","v":""},{"$f":"IF(KontrollTabell[[#This Row],[Finns anläggningsdel-namn.]]=FALSE,,IF(KontrollTabell[[#This Row],[True/False A1A3 Enhet]]=TRUE,InputA1A3[[#This Row],[Mängd A1A3]]*InputA1A3[[#This Row],[EF A1A3 '[kg CO₂-ekv.']]],IF(KontrollTabell[[#This Row],[True/False A1A3 om A1A3 kan beräknas]]=TRUE,InputA1A3[[#This Row],[Mängd A1A3]]*InputA1A3[[#This Row],[EF A1A3 '[kg CO₂-ekv.']]]*InputA1A3[[#This Row],[Omräkning till FU/DU (Skriv in värde, ej formel)]],0)))","v":0},{"$f":"IF(ISBLANK(InputA1A3[[#This Row],[Anläggningsdel\n]]),\"\",IF(ISBLANK(InputA1A3[[#This Row],[EPD - EF A4]]),FALSE,TRUE))","v":""},{"$f":"IF(InputA1A3[[#This Row],[*DU/FU (EF A4) för valt drivmedel (schablon)]]=\"\",\"\",IF(InputA1A3[[#This Row],[Enhet (bränsleförbrukning per km)]]=\"\",\"Värde Behövs\",IF(OR(InputA1A3[[#This Row],[Enhet (bränsleförbrukning per km)]]=InputA1A3[[#This Row],[*DU/FU (EF A4) för valt drivmedel (schablon)]],AND(InputA1A3[[#This Row],[Enhet (bränsleförbrukning per km)]]<>InputA1A3[[#This Row],[*DU/FU (EF A4) för valt drivmedel (schablon)]],ISNUMBER(InputA1A3[[#This Row],[Omräkningsfaktor (A4), (vid behov, värde eller formel)]]))),TRUE(),FALSE())))","v":""},{"$f":"IF(KontrollTabell[[#This Row],[Finns anläggningsdel-namn.]]=FALSE,\"\",(IF(InputA1A3[[#This Row],[Enhet (bränsleförbrukning per km)]] =InputA1A3[[#This Row],[*DU/FU (EF A4) för valt drivmedel (schablon)]],TRUE,IF(KontrollTabell[[#This Row],[True/False A4 - Alt 2]]=\"Värde Behövs\",\"\",IF(ISBLANK(InputA1A3[[#This Row],[Omräkningsfaktor (A4), (vid behov, värde eller formel)]]),FALSE,TRUE)))))","v":""},{"$f":"IF(ISBLANK(InputA1A3[[#This Row],[EPD - EF A4]]),\"\",IF(ISBLANK(InputA1A3[[#This Row],[Omräkning till FU/DU (Skriv in värde, ej formel)]]),InputA1A3[[#This Row],[EPD - EF A4]]*InputA1A3[[#This Row],[Mängd A1A3]],InputA1A3[[#This Row],[Mängd A1A3]]*InputA1A3[[#This Row],[Omräkning till FU/DU (Skriv in värde, ej formel)]]*InputA1A3[[#This Row],[EPD - EF A4]]))","v":""},{"$f":"IFERROR(IF(KontrollTabell[[#This Row],[True/False A4 - Alt 2]]=\"\",\"\",IF(KontrollTabell[[#This Row],[True/False A4 Enhet - Alt2]]=TRUE,\nIF(ISNUMBER(InputA1A3[[#This Row],[Omräkningsfaktor (A4), (vid behov, värde eller formel)]]),InputA1A3[[#This Row],[Sträcka - totalt '[km'], (tur och retur, alla transporter)]]*InputA1A3[[#This Row],[(Bränsle-) Förbrukning per km]]/InputA1A3[[#This Row],[Omräkningsfaktor (A4), (vid behov, värde eller formel)]]*InputA1A3[[#This Row],[*EF (A4)\n'[kg CO₂-ekv.']]],\nInputA1A3[[#This Row],[Sträcka - totalt '[km'], (tur och retur, alla transporter)]]*InputA1A3[[#This Row],[(Bränsle-) Förbrukning per km]]*InputA1A3[[#This Row],[*EF (A4)\n'[kg CO₂-ekv.']]]),\"Sen då\")),0)","v":""},{"$f":"SUM(KontrollTabell[[#This Row],[A4 - Resultat alt 1 '[kg']]:[A4 - Alt 2 - beräkning utsläpp]])","v":0},{"$f":"IF(KontrollTabell[[#This Row],[Finns anläggningsdel-namn.]]=FALSE,\"\",IF(ISBLANK(InputA1A3[[#This Row],[EPD - EF A4]]),FALSE,TRUE))","v":""},{"$f":"IFERROR(IF(KontrollTabell[[#This Row],[True/False A5]]=FALSE(),\"Enheter\",IF(ISBLANK(InputA1A3[[#This Row],[Omräkningsfaktor (A5.2) (ange värde), (vid behov)]]),InputA1A3[[#This Row],[Mängd (A5.2)]]*InputA1A3[[#This Row],[*EF (A5.2)\n'[kg CO₂-ekv.']]],InputA1A3[[#This Row],[Mängd (A5.2)]]*InputA1A3[[#This Row],[*EF (A5.2)\n'[kg CO₂-ekv.']]]*InputA1A3[[#This Row],[Omräkningsfaktor (A5.2) (ange värde), (vid behov)]])),0)","v":0},{"$f":"IF(InputA1A3[[#This Row],[*DU/FU (EF A5.2)]]=\"\",\"\",IF(InputA1A3[[#This Row],[Enhet för mängd (A5.2)]]=\"\",\"Värde Behövs\",IF(OR(InputA1A3[[#This Row],[Enhet för mängd (A5.2)]]=InputA1A3[[#This Row],[*DU/FU (EF A5.2)]],AND(InputA1A3[[#This Row],[Enhet för mängd (A5.2)]]<>InputA1A3[[#This Row],[*DU/FU (EF A5.2)]],ISNUMBER(InputA1A3[[#This Row],[Omräkningsfaktor (A5.2) (ange värde), (vid behov)]]))),TRUE,FALSE)))","v":""},{"$f":"IF(OR(KontrollTabell[[#This Row],[Finns anläggningsdel-namn.]]=FALSE,KontrollTabell[[#This Row],[True/False A5]]=\"Värde Behövs\"),\"\",IF(InputA1A3[[#This Row],[Enhet för mängd (A5.2)]] = InputA1A3[[#This Row],[*DU/FU (EF A5.2)]], TRUE, FALSE))","v":""},{"$f":"IF(KontrollTabell[[#This Row],[Finns anläggningsdel-namn.]]=FALSE,\"\",IF(OR(ISBLANK(InputA1A3[[#This Row],[Kategori\n(egen kategorisering)]])=FALSE,ISBLANK(InputA1A3[[#This Row],[Anläggningsdel\n]]))=FALSE,TRUE,FALSE))","v":""},{"$f":"IF(ISBLANK(InputA1A3[[#This Row],[Anläggningsdel\n]]),\"\",IF(KontrollTabell[[#This Row],[TRUE/FALSE om kategori saknas.]] =FALSE,InputA1A3[[#This Row],[Kategori\n(egen kategorisering)]],\"Kategori saknas\"))","v":""}]
[null,null,null,null,null,null,null,null,null,{"$f":"IF(ISBLANK(InputA1A3[[#This Row],[Anläggningsdel\n]]),\"\",IF(OR(KontrollTabell[[#This Row],[True/False A1A3 Enhet]]=TRUE,KontrollTabell[[#This Row],[True/False A1A3 Enhet]]=\"Värde Behövs\",KontrollTabell[[#This Row],[True/False A1A3 Enhet]]=\"\"), \"\", InputA1A3[[#This Row],[FU/DU (EF A1A3)]] & \"/\" & InputA1A3[[#This Row],[Enhet Mängd (A1A3)]]))","v":""},null,null,null,null,{"$f":"IF(ISBLANK(InputA1A3[[#This Row],[EPD - EF A4]]),\"\",InputA1A3[[#This Row],[FU/DU (EF A1A3)]])","v":""},null,null,null,null,{"$f":"IFERROR(INDEX(TabellEFDrivmedel[],MATCH(InputA1A3[[#This Row],[Drivmedel (A4) (endast förval ur lista)]],TabellEFDrivmedel[Drivmedel],0),4),\"\")","v":""},null,null,null,{"$f":"IF(InputA1A3[[#This Row],[*DU/FU (EF A4) för valt drivmedel (schablon)]]=\"\",\"\",IF(OR(InputA1A3[[#This Row],[*DU/FU (EF A4) för valt drivmedel (schablon)]]=InputA1A3[[#This Row],[Enhet (bränsleförbrukning per km)]],KontrollTabell[[#This Row],[True/False A4 - Alt 2]]=\"Värde Behövs\"),\"\",InputA1A3[[#This Row],[Enhet (bränsleförbrukning per km)]]& \"/\" & InputA1A3[[#This Row],[*DU/FU (EF A4) för valt drivmedel (schablon)]]))","v":""},null,null,null,null,null,null,null,{"$f":"IFERROR(INDEX(TabellEFDrivmedel[],MATCH(InputA1A3[[#This Row],[Drivmedel (A5.2)]],TabellEFDrivmedel[Drivmedel],0),2),\"\")","v":""},{"$f":"IFERROR(INDEX(TabellEFDrivmedel[],MATCH(InputA1A3[[#This Row],[Drivmedel (A5.2)]],TabellEFDrivmedel[Drivmedel],0),4),\"\")","v":""},{"$f":"IF(OR(KontrollTabell[[#This Row],[True/False A5 Enhet]]=TRUE,KontrollTabell[[#This Row],[True/False A5 Enhet]]=\"\"), \"\", InputA1A3[[#This Row],[*DU/FU (EF A5.2)]] & \"/\" & InputA1A3[[#This Row],[Enhet för mängd (A5.2)]])","v":""},null,null,null,null,null,null,null,null,null,null,null,null,null,null,null,null,null,null,null,null,null,null,null,null,null,null,null,null,null,null,null,null,null,null,null,null,null,null,null,null,{"$f":"IF(ISBLANK(InputA1A3[[#This Row],[Anläggningsdel\n]]),FALSE,TRUE)","v":false},{"$f":"IF(ISBLANK(InputA1A3[[#This Row],[Anläggningsdel\n]]),\"\",IF(ISBLANK(InputA1A3[[#This Row],[Enhet Mängd (A1A3)]]),\"\",IF(ISBLANK(InputA1A3[[#This Row],[FU/DU (EF A1A3)]]),\"Värde Behövs\",IF(InputA1A3[[#This Row],[Enhet Mängd (A1A3)]] = InputA1A3[[#This Row],[FU/DU (EF A1A3)]], TRUE, FALSE))))","v":""},{"$f":"IF(KontrollTabell[[#This Row],[Finns anläggningsdel-namn.]]=FALSE,\"\",(IF(KontrollTabell[[#This Row],[True/False A1A3 Enhet]]=TRUE,TRUE,IF(OR(KontrollTabell[[#This Row],[True/False A1A3 Enhet]]=\"Värde Behövs\",(KontrollTabell[[#This Row],[True/False A1A3 Enhet]]=\"\")),\"\",IF(ISBLANK(InputA1A3[[#This Row],[Omräkning till FU/DU (Skriv in värde, ej formel)]]),FALSE,TRUE)))))","v":""},{"$f":"IF(KontrollTabell[[#This Row],[Finns anläggningsdel-namn.]]=FALSE,,IF(KontrollTabell[[#This Row],[True/False A1A3 Enhet]]=TRUE,InputA1A3[[#This Row],[Mängd A1A3]]*InputA1A3[[#This Row],[EF A1A3 '[kg CO₂-ekv.']]],IF(KontrollTabell[[#This Row],[True/False A1A3 om A1A3 kan beräknas]]=TRUE,InputA1A3[[#This Row],[Mängd A1A3]]*InputA1A3[[#This Row],[EF A1A3 '[kg CO₂-ekv.']]]*InputA1A3[[#This Row],[Omräkning till FU/DU (Skriv in värde, ej formel)]],0)))","v":0},{"$f":"IF(ISBLANK(InputA1A3[[#This Row],[Anläggningsdel\n]]),\"\",IF(ISBLANK(InputA1A3[[#This Row],[EPD - EF A4]]),FALSE,TRUE))","v":""},{"$f":"IF(InputA1A3[[#This Row],[*DU/FU (EF A4) för valt drivmedel (schablon)]]=\"\",\"\",IF(InputA1A3[[#This Row],[Enhet (bränsleförbrukning per km)]]=\"\",\"Värde Behövs\",IF(OR(InputA1A3[[#This Row],[Enhet (bränsleförbrukning per km)]]=InputA1A3[[#This Row],[*DU/FU (EF A4) för valt drivmedel (schablon)]],AND(InputA1A3[[#This Row],[Enhet (bränsleförbrukning per km)]]<>InputA1A3[[#This Row],[*DU/FU (EF A4) för valt drivmedel (schablon)]],ISNUMBER(InputA1A3[[#This Row],[Omräkningsfaktor (A4), (vid behov, värde eller formel)]]))),TRUE(),FALSE())))","v":""},{"$f":"IF(KontrollTabell[[#This Row],[Finns anläggningsdel-namn.]]=FALSE,\"\",(IF(InputA1A3[[#This Row],[Enhet (bränsleförbrukning per km)]] =InputA1A3[[#This Row],[*DU/FU (EF A4) för valt drivmedel (schablon)]],TRUE,IF(KontrollTabell[[#This Row],[True/False A4 - Alt 2]]=\"Värde Behövs\",\"\",IF(ISBLANK(InputA1A3[[#This Row],[Omräkningsfaktor (A4), (vid behov, värde eller formel)]]),FALSE,TRUE)))))","v":""},{"$f":"IF(ISBLANK(InputA1A3[[#This Row],[EPD - EF A4]]),\"\",IF(ISBLANK(InputA1A3[[#This Row],[Omräkning till FU/DU (Skriv in värde, ej formel)]]),InputA1A3[[#This Row],[EPD - EF A4]]*InputA1A3[[#This Row],[Mängd A1A3]],InputA1A3[[#This Row],[Mängd A1A3]]*InputA1A3[[#This Row],[Omräkning till FU/DU (Skriv in värde, ej formel)]]*InputA1A3[[#This Row],[EPD - EF A4]]))","v":""},{"$f":"IFERROR(IF(KontrollTabell[[#This Row],[True/False A4 - Alt 2]]=\"\",\"\",IF(KontrollTabell[[#This Row],[True/False A4 Enhet - Alt2]]=TRUE,\nIF(ISNUMBER(InputA1A3[[#This Row],[Omräkningsfaktor (A4), (vid behov, värde eller formel)]]),InputA1A3[[#This Row],[Sträcka - totalt '[km'], (tur och retur, alla transporter)]]*InputA1A3[[#This Row],[(Bränsle-) Förbrukning per km]]/InputA1A3[[#This Row],[Omräkningsfaktor (A4), (vid behov, värde eller formel)]]*InputA1A3[[#This Row],[*EF (A4)\n'[kg CO₂-ekv.']]],\nInputA1A3[[#This Row],[Sträcka - totalt '[km'], (tur och retur, alla transporter)]]*InputA1A3[[#This Row],[(Bränsle-) Förbrukning per km]]*InputA1A3[[#This Row],[*EF (A4)\n'[kg CO₂-ekv.']]]),\"Sen då\")),0)","v":""},{"$f":"SUM(KontrollTabell[[#This Row],[A4 - Resultat alt 1 '[kg']]:[A4 - Alt 2 - beräkning utsläpp]])","v":0},{"$f":"IF(KontrollTabell[[#This Row],[Finns anläggningsdel-namn.]]=FALSE,\"\",IF(ISBLANK(InputA1A3[[#This Row],[EPD - EF A4]]),FALSE,TRUE))","v":""},{"$f":"IFERROR(IF(KontrollTabell[[#This Row],[True/False A5]]=FALSE(),\"Enheter\",IF(ISBLANK(InputA1A3[[#This Row],[Omräkningsfaktor (A5.2) (ange värde), (vid behov)]]),InputA1A3[[#This Row],[Mängd (A5.2)]]*InputA1A3[[#This Row],[*EF (A5.2)\n'[kg CO₂-ekv.']]],InputA1A3[[#This Row],[Mängd (A5.2)]]*InputA1A3[[#This Row],[*EF (A5.2)\n'[kg CO₂-ekv.']]]*InputA1A3[[#This Row],[Omräkningsfaktor (A5.2) (ange värde), (vid behov)]])),0)","v":0},{"$f":"IF(InputA1A3[[#This Row],[*DU/FU (EF A5.2)]]=\"\",\"\",IF(InputA1A3[[#This Row],[Enhet för mängd (A5.2)]]=\"\",\"Värde Behövs\",IF(OR(InputA1A3[[#This Row],[Enhet för mängd (A5.2)]]=InputA1A3[[#This Row],[*DU/FU (EF A5.2)]],AND(InputA1A3[[#This Row],[Enhet för mängd (A5.2)]]<>InputA1A3[[#This Row],[*DU/FU (EF A5.2)]],ISNUMBER(InputA1A3[[#This Row],[Omräkningsfaktor (A5.2) (ange värde), (vid behov)]]))),TRUE,FALSE)))","v":""},{"$f":"IF(OR(KontrollTabell[[#This Row],[Finns anläggningsdel-namn.]]=FALSE,KontrollTabell[[#This Row],[True/False A5]]=\"Värde Behövs\"),\"\",IF(InputA1A3[[#This Row],[Enhet för mängd (A5.2)]] = InputA1A3[[#This Row],[*DU/FU (EF A5.2)]], TRUE, FALSE))","v":""},{"$f":"IF(KontrollTabell[[#This Row],[Finns anläggningsdel-namn.]]=FALSE,\"\",IF(OR(ISBLANK(InputA1A3[[#This Row],[Kategori\n(egen kategorisering)]])=FALSE,ISBLANK(InputA1A3[[#This Row],[Anläggningsdel\n]]))=FALSE,TRUE,FALSE))","v":""},{"$f":"IF(ISBLANK(InputA1A3[[#This Row],[Anläggningsdel\n]]),\"\",IF(KontrollTabell[[#This Row],[TRUE/FALSE om kategori saknas.]] =FALSE,InputA1A3[[#This Row],[Kategori\n(egen kategorisering)]],\"Kategori saknas\"))","v":""}]
[null,null,null,null,null,null,null,null,null,{"$f":"IF(ISBLANK(InputA1A3[[#This Row],[Anläggningsdel\n]]),\"\",IF(OR(KontrollTabell[[#This Row],[True/False A1A3 Enhet]]=TRUE,KontrollTabell[[#This Row],[True/False A1A3 Enhet]]=\"Värde Behövs\",KontrollTabell[[#This Row],[True/False A1A3 Enhet]]=\"\"), \"\", InputA1A3[[#This Row],[FU/DU (EF A1A3)]] & \"/\" & InputA1A3[[#This Row],[Enhet Mängd (A1A3)]]))","v":""},null,null,null,null,{"$f":"IF(ISBLANK(InputA1A3[[#This Row],[EPD - EF A4]]),\"\",InputA1A3[[#This Row],[FU/DU (EF A1A3)]])","v":""},null,null,null,null,{"$f":"IFERROR(INDEX(TabellEFDrivmedel[],MATCH(InputA1A3[[#This Row],[Drivmedel (A4) (endast förval ur lista)]],TabellEFDrivmedel[Drivmedel],0),4),\"\")","v":""},null,null,null,{"$f":"IF(InputA1A3[[#This Row],[*DU/FU (EF A4) för valt drivmedel (schablon)]]=\"\",\"\",IF(OR(InputA1A3[[#This Row],[*DU/FU (EF A4) för valt drivmedel (schablon)]]=InputA1A3[[#This Row],[Enhet (bränsleförbrukning per km)]],KontrollTabell[[#This Row],[True/False A4 - Alt 2]]=\"Värde Behövs\"),\"\",InputA1A3[[#This Row],[Enhet (bränsleförbrukning per km)]]& \"/\" & InputA1A3[[#This Row],[*DU/FU (EF A4) för valt drivmedel (schablon)]]))","v":""},null,null,null,null,null,null,null,{"$f":"IFERROR(INDEX(TabellEFDrivmedel[],MATCH(InputA1A3[[#This Row],[Drivmedel (A5.2)]],TabellEFDrivmedel[Drivmedel],0),2),\"\")","v":""},{"$f":"IFERROR(INDEX(TabellEFDrivmedel[],MATCH(InputA1A3[[#This Row],[Drivmedel (A5.2)]],TabellEFDrivmedel[Drivmedel],0),4),\"\")","v":""},{"$f":"IF(OR(KontrollTabell[[#This Row],[True/False A5 Enhet]]=TRUE,KontrollTabell[[#This Row],[True/False A5 Enhet]]=\"\"), \"\", InputA1A3[[#This Row],[*DU/FU (EF A5.2)]] & \"/\" & InputA1A3[[#This Row],[Enhet för mängd (A5.2)]])","v":""},null,null,null,null,null,null,null,null,null,null,null,null,null,null,null,null,null,null,null,null,null,null,null,null,null,null,null,null,null,null,null,null,null,null,null,null,null,null,null,null,{"$f":"IF(ISBLANK(InputA1A3[[#This Row],[Anläggningsdel\n]]),FALSE,TRUE)","v":false},{"$f":"IF(ISBLANK(InputA1A3[[#This Row],[Anläggningsdel\n]]),\"\",IF(ISBLANK(InputA1A3[[#This Row],[Enhet Mängd (A1A3)]]),\"\",IF(ISBLANK(InputA1A3[[#This Row],[FU/DU (EF A1A3)]]),\"Värde Behövs\",IF(InputA1A3[[#This Row],[Enhet Mängd (A1A3)]] = InputA1A3[[#This Row],[FU/DU (EF A1A3)]], TRUE, FALSE))))","v":""},{"$f":"IF(KontrollTabell[[#This Row],[Finns anläggningsdel-namn.]]=FALSE,\"\",(IF(KontrollTabell[[#This Row],[True/False A1A3 Enhet]]=TRUE,TRUE,IF(OR(KontrollTabell[[#This Row],[True/False A1A3 Enhet]]=\"Värde Behövs\",(KontrollTabell[[#This Row],[True/False A1A3 Enhet]]=\"\")),\"\",IF(ISBLANK(InputA1A3[[#This Row],[Omräkning till FU/DU (Skriv in värde, ej formel)]]),FALSE,TRUE)))))","v":""},{"$f":"IF(KontrollTabell[[#This Row],[Finns anläggningsdel-namn.]]=FALSE,,IF(KontrollTabell[[#This Row],[True/False A1A3 Enhet]]=TRUE,InputA1A3[[#This Row],[Mängd A1A3]]*InputA1A3[[#This Row],[EF A1A3 '[kg CO₂-ekv.']]],IF(KontrollTabell[[#This Row],[True/False A1A3 om A1A3 kan beräknas]]=TRUE,InputA1A3[[#This Row],[Mängd A1A3]]*InputA1A3[[#This Row],[EF A1A3 '[kg CO₂-ekv.']]]*InputA1A3[[#This Row],[Omräkning till FU/DU (Skriv in värde, ej formel)]],0)))","v":0},{"$f":"IF(ISBLANK(InputA1A3[[#This Row],[Anläggningsdel\n]]),\"\",IF(ISBLANK(InputA1A3[[#This Row],[EPD - EF A4]]),FALSE,TRUE))","v":""},{"$f":"IF(InputA1A3[[#This Row],[*DU/FU (EF A4) för valt drivmedel (schablon)]]=\"\",\"\",IF(InputA1A3[[#This Row],[Enhet (bränsleförbrukning per km)]]=\"\",\"Värde Behövs\",IF(OR(InputA1A3[[#This Row],[Enhet (bränsleförbrukning per km)]]=InputA1A3[[#This Row],[*DU/FU (EF A4) för valt drivmedel (schablon)]],AND(InputA1A3[[#This Row],[Enhet (bränsleförbrukning per km)]]<>InputA1A3[[#This Row],[*DU/FU (EF A4) för valt drivmedel (schablon)]],ISNUMBER(InputA1A3[[#This Row],[Omräkningsfaktor (A4), (vid behov, värde eller formel)]]))),TRUE(),FALSE())))","v":""},{"$f":"IF(KontrollTabell[[#This Row],[Finns anläggningsdel-namn.]]=FALSE,\"\",(IF(InputA1A3[[#This Row],[Enhet (bränsleförbrukning per km)]] =InputA1A3[[#This Row],[*DU/FU (EF A4) för valt drivmedel (schablon)]],TRUE,IF(KontrollTabell[[#This Row],[True/False A4 - Alt 2]]=\"Värde Behövs\",\"\",IF(ISBLANK(InputA1A3[[#This Row],[Omräkningsfaktor (A4), (vid behov, värde eller formel)]]),FALSE,TRUE)))))","v":""},{"$f":"IF(ISBLANK(InputA1A3[[#This Row],[EPD - EF A4]]),\"\",IF(ISBLANK(InputA1A3[[#This Row],[Omräkning till FU/DU (Skriv in värde, ej formel)]]),InputA1A3[[#This Row],[EPD - EF A4]]*InputA1A3[[#This Row],[Mängd A1A3]],InputA1A3[[#This Row],[Mängd A1A3]]*InputA1A3[[#This Row],[Omräkning till FU/DU (Skriv in värde, ej formel)]]*InputA1A3[[#This Row],[EPD - EF A4]]))","v":""},{"$f":"IFERROR(IF(KontrollTabell[[#This Row],[True/False A4 - Alt 2]]=\"\",\"\",IF(KontrollTabell[[#This Row],[True/False A4 Enhet - Alt2]]=TRUE,\nIF(ISNUMBER(InputA1A3[[#This Row],[Omräkningsfaktor (A4), (vid behov, värde eller formel)]]),InputA1A3[[#This Row],[Sträcka - totalt '[km'], (tur och retur, alla transporter)]]*InputA1A3[[#This Row],[(Bränsle-) Förbrukning per km]]/InputA1A3[[#This Row],[Omräkningsfaktor (A4), (vid behov, värde eller formel)]]*InputA1A3[[#This Row],[*EF (A4)\n'[kg CO₂-ekv.']]],\nInputA1A3[[#This Row],[Sträcka - totalt '[km'], (tur och retur, alla transporter)]]*InputA1A3[[#This Row],[(Bränsle-) Förbrukning per km]]*InputA1A3[[#This Row],[*EF (A4)\n'[kg CO₂-ekv.']]]),\"Sen då\")),0)","v":""},{"$f":"SUM(KontrollTabell[[#This Row],[A4 - Resultat alt 1 '[kg']]:[A4 - Alt 2 - beräkning utsläpp]])","v":0},{"$f":"IF(KontrollTabell[[#This Row],[Finns anläggningsdel-namn.]]=FALSE,\"\",IF(ISBLANK(InputA1A3[[#This Row],[EPD - EF A4]]),FALSE,TRUE))","v":""},{"$f":"IFERROR(IF(KontrollTabell[[#This Row],[True/False A5]]=FALSE(),\"Enheter\",IF(ISBLANK(InputA1A3[[#This Row],[Omräkningsfaktor (A5.2) (ange värde), (vid behov)]]),InputA1A3[[#This Row],[Mängd (A5.2)]]*InputA1A3[[#This Row],[*EF (A5.2)\n'[kg CO₂-ekv.']]],InputA1A3[[#This Row],[Mängd (A5.2)]]*InputA1A3[[#This Row],[*EF (A5.2)\n'[kg CO₂-ekv.']]]*InputA1A3[[#This Row],[Omräkningsfaktor (A5.2) (ange värde), (vid behov)]])),0)","v":0},{"$f":"IF(InputA1A3[[#This Row],[*DU/FU (EF A5.2)]]=\"\",\"\",IF(InputA1A3[[#This Row],[Enhet för mängd (A5.2)]]=\"\",\"Värde Behövs\",IF(OR(InputA1A3[[#This Row],[Enhet för mängd (A5.2)]]=InputA1A3[[#This Row],[*DU/FU (EF A5.2)]],AND(InputA1A3[[#This Row],[Enhet för mängd (A5.2)]]<>InputA1A3[[#This Row],[*DU/FU (EF A5.2)]],ISNUMBER(InputA1A3[[#This Row],[Omräkningsfaktor (A5.2) (ange värde), (vid behov)]]))),TRUE,FALSE)))","v":""},{"$f":"IF(OR(KontrollTabell[[#This Row],[Finns anläggningsdel-namn.]]=FALSE,KontrollTabell[[#This Row],[True/False A5]]=\"Värde Behövs\"),\"\",IF(InputA1A3[[#This Row],[Enhet för mängd (A5.2)]] = InputA1A3[[#This Row],[*DU/FU (EF A5.2)]], TRUE, FALSE))","v":""},{"$f":"IF(KontrollTabell[[#This Row],[Finns anläggningsdel-namn.]]=FALSE,\"\",IF(OR(ISBLANK(InputA1A3[[#This Row],[Kategori\n(egen kategorisering)]])=FALSE,ISBLANK(InputA1A3[[#This Row],[Anläggningsdel\n]]))=FALSE,TRUE,FALSE))","v":""},{"$f":"IF(ISBLANK(InputA1A3[[#This Row],[Anläggningsdel\n]]),\"\",IF(KontrollTabell[[#This Row],[TRUE/FALSE om kategori saknas.]] =FALSE,InputA1A3[[#This Row],[Kategori\n(egen kategorisering)]],\"Kategori saknas\"))","v":""}]
[null,null,null,null,null,null,null,null,null,null,null,null,null,null,null,null,null,null,null,null,null,null,null,null,null,null,null,null,null,null,null,{"$f":"IFERROR(INDEX(TabellEFDrivmedel[],MATCH(InputA1A3[[#This Row],[Drivmedel (A5.2)]],TabellEFDrivmedel[Drivmedel],0),2),\"\")","v":""},{"$f":"IFERROR(INDEX(TabellEFDrivmedel[],MATCH(InputA1A3[[#This Row],[Drivmedel (A5.2)]],TabellEFDrivmedel[Drivmedel],0),4),\"\")","v":""}]
[]
[]
[]
[]
[]
[null,null,null,null,null,null,null,null,null,null,null,null,null,null,null,null,null,{"$f":"IFERROR(INDEX(TabellEFDrivmedel[],MATCH(InputA1A3[[#This Row],[Drivmedel (A4) (endast förval ur lista)]],TabellEFDrivmedel[Drivmedel],0),2),\"\")","v":""}]
[null,null,null,null,null,null,null,null,null,null,null,null,null,null,null,null,null,{"$f":"IFERROR(INDEX(TabellEFDrivmedel[],MATCH(InputA1A3[[#This Row],[Drivmedel (A4) (endast förval ur lista)]],TabellEFDrivmedel[Drivmedel],0),2),\"\")","v":""}]
[null,null,null,null,null,null,null,null,null,null,null,null,null,null,null,null,null,{"$f":"IFERROR(INDEX(TabellEFDrivmedel[],MATCH(InputA1A3[[#This Row],[Drivmedel (A4) (endast förval ur lista)]],TabellEFDrivmedel[Drivmedel],0),2),\"\")","v":""}]

{"sheet":"Underlag rörmaterial","index":2,"n_rows":36,"n_cols":14,"rows_kept":36,"cut":false,"hidden":false,"merged":[[9,0,9,6]]}
[]
["Rörmaterial","Genomsnittlig emissionsfaktor (EF)\nA1-A3 [kg CO₂-ekv./kg]"]
["Plast (PE)",{"$f":"AVERAGEIF(C:C,Table6[[#This Row],[Rörmaterial]],G:G)","v":2.0525000000000002}]
["Plast (PP)",{"$f":"AVERAGEIF(C:C,Table6[[#This Row],[Rörmaterial]],G:G)","v":2.1025}]
["Plast (PVC)",{"$f":"AVERAGEIF(C:C,Table6[[#This Row],[Rörmaterial]],G:G)","v":2.0800917174034916}]
["Stål",{"$f":"AVERAGEIF(C:C,Table6[[#This Row],[Rörmaterial]],G:G)","v":2.6239999999999997}]
["Segjärn",{"$f":"AVERAGEIF(C:C,Table6[[#This Row],[Rörmaterial]],G:G)","v":1.3281666666666665}]
["Betong",{"$f":"AVERAGEIF(C:C,Table6[[#This Row],[Rörmaterial]],G:G)","v":0.13835088951017538}]
[]
["De genomsnittliga emissionsfaktorerna som redovisas ovan är baserade på nedan angivna EPD:er. Vänligen notera att emissionsfaktor (EF) enligt EPD (kolumn E) inte är angiven per kg för alla produkterna. I vissa fall har därför en omräkning behövts för att redovisa EF i kg CO₂-ekv/kg (kolumn G). "]
["Produktnamn","Tillverkare","Typ av rörmaterial","EPD nr.","EF enligt EPD\nA1-A3 [kg CO₂-ekv.]","FU/DU enligt EPD\n(EF A1A3)","EF A1-A3\n[kg CO₂-ekv./kg]","Materials","Notes","EPD valid to","Density\n[kg/m³]","EF A1A3\n[kg CO₂-ekv./m3]","Unit conversion","Conversion factor"]
["PE 100-RC Pressure pipe","HALLINGPLAST","Plast (PE)","NEPD-6384-5640",2.15,"[kg]",{"$f":"E12","v":2.15},"HDPE",null,"04.04.2029",960,{"$f":"N12*G12","v":2064},"[m³/kg]",960]
["PE100 RC Pressure Sewage pipes SDR 11","Pipelife","Plast (PE)","NEPD-4474-3731-EN",2.23,"[kg]",{"$f":"Table16[[#This Row],[EF enligt EPD\nA1-A3 '[kg CO₂-ekv.']]]","v":2.23},"Polyethylene (HDPE) 100%",null,"15.05.2028"]
["Weholite PLUS","Uponor","Plast (PE)","EPDHUB-0103",1.82,"[kg]",{"$f":"Table16[[#This Row],[EF enligt EPD\nA1-A3 '[kg CO₂-ekv.']]]","v":1.82},"PE",null,"08.09.2027"]
["PE100 Pipes","Externa","Plast (PE)","S-P-13318",2.0099999999999998,"[kg]",{"$f":"Table16[[#This Row],[EF enligt EPD\nA1-A3 '[kg CO₂-ekv.']]]","v":2.0099999999999998},"HDPE",null,"09.04.2029"]
["PP Nordic Pipe","Pipelife Sverige","Plast (PP)","NEPD-4322-3559",2.25,"[kg]",{"$f":"E16","v":2.25},"PP 99.20%","FU: The unit is with socket included.\nDensity: 905 kg/m3","03.04.2028",905,null,"[m³/kg]",905]
["INFRA Sewage pipes","Pipelife Sverige","Plast (PP)","NEPD-4434-3699",2.0299999999999998,"[kg]",{"$f":"E17","v":2.0299999999999998},"Polypropylene (PP) 90%\nPigments 10%","FU: The unit is with socket included.","05.05.2028"]
["IQ STORM WATER PIPE ","UPONOR CORPORATION","Plast (PP)","RTS_100_21",2.06,"[kg]",{"$f":"E18","v":2.06},"PP 99%","RANGE ID (INNER DIAMETER) 150 – 1200 mm","01.03.2026",900]
["Ultra Rib 2","Uponor Corporation","Plast (PP)","HUB-0039",2.0699999999999998,"[kg]",{"$f":"E19","v":2.0699999999999998},"unplasticized poly(vinyl chloride) (PVC-U), polypropylene (PP) and polyethylene (PE).",null,"23.05.2027"]
["PVC Sewage pipe 160x4,7 SN8 6m","Pipelife Sverige","Plast (PVC)","NEPD-2871-1565",4.7,"[m]",{"$f":"E20/3.67","v":1.2806539509536785},"Polyvinylchloride (PVC) 81.59%\nFiller 16.36%","FU: The unit is with socket included (one socket/6m)\nResults are per declared unit = 1m\nWeight: 3.67 kg (3.76 kg with packaging)\nPVC density: 1400 kg/m3","03.06.2026",1400]
["PVC Sewage pipe 200x5,9 SN8 1m","Pipelife Sverige","Plast (PVC)","NEPD-3001-1676",8.4,"[m]",{"$f":"E21/6.27","v":1.3397129186602872},"Polyvinylchloride (PVC) 80.35%\nFiller 16.12%","FU: The unit is with socket included (one socket/1m)\nResults are per declared unit = 1m\nWeight: 6.27 kg (6.72 kg with packaging)\nPVC density: 1400 kg/m3","12.08.2026",1400]
["Uponor PVC Sewer pipes","Uponor Corporation","Plast (PVC)","EPDHUB-1576",3.04,"[kg]",{"$f":"Table16[[#This Row],[EF enligt EPD\nA1-A3 '[kg CO₂-ekv.']]]","v":3.04},"unplasticized polyvinyl chloride (PVC-U) ",null,"30.06.2029"]
["Uponor PVC Storm water pipes","Uponor Corporation","Plast (PVC)","EPDHUB-1575",2.66,"[kg]",{"$f":"Table16[[#This Row],[EF enligt EPD\nA1-A3 '[kg CO₂-ekv.']]]","v":2.66},"unplasticized polyvinyl chloride (PVC-U) ",null,"30.06.2029"]
["Pressure pipes","SSAB","Stål","EPD S-P-05437",2300,"[ton]",{"$f":"E24/1000","v":2.2999999999999998},"Uncoated: Hot rolled steel 100%\nCoated: Hot rolled steel 80%\nConcrete 16.5%\nPE 2.8%",null,"12.11.2026"]
["Steel Pipe","ERCIYAS","Stål","EPD-ERC-20200034-IBC1-EN",{"$f":"2900+15.2+32.8","v":2948},"[ton]",{"$f":"E25/1000","v":2.948},"Hot-rolled coils >94%",null,"02.12.2025"]
["Pipe system Natural DN1200","Saint-Gobain PAM","Segjärn","S-P-06964",970,"[m]",{"$f":"E26/465.6","v":2.083333333333333},"Ductile iron 87%\nBlast furnace cement mortar 11.6%","Mass: 465.6 kg / FU","09.09.2027"]
["Ferdig produkt av seigjern fra Furnes Jernstøperi AS.","Furnes Jernstøperi AS","Segjärn","NEPD-2706-1309-NO",573,"[ton]",{"$f":"E27/1000","v":0.57299999999999995},"Skrapjern 92.2%",null,"08.03.2026"]
["DC Bantrumma ø800-1800","Dahlgrens Cementgjuteri AB","Betong","NEPD-6216-5480_SE",200,"[ton]",0.2,"Ballast 66.8%\nBascement 22.7%","Results for an average product (across different diameters)","04.03.2029"]
["Water- and Sewage system concrete pipes without reinforcement: KANMAX PG","S:t Eriks AB","Betong","S-P-02093",116,"[ton]",0.11600000000000001,"Gravel, crushed <40%\nGravel, natural round <40%\nCement <17%",null,"18.08.2025"]
["Water- and Sewage system concrete pipes withreinforcement: GERMAX PG","S:t Eriks AB","Betong","S-P-02092",131,"[ton]",0.13100000000000001,"Gravel, crushed <45%\nGravel, natural round <35%\nCement <17%",null,"18.08.2025"]
["Betonrør Ø300-Ø1600","CRH Concrete A/S","Betong","NEPD-6301-5561 ",{"$f":"141+16.7+8.45","v":166.14999999999998},"[ton]",0.16614999999999996,"Aggregate 45%\nSand 33%\nCement 14%",null,"21.03.2029"]
["IG-rør Ø800-1600","Gammelrand Beton","Betong","NEPD-7373-6764-DK",{"$f":"94.4+1.86+10.6","v":106.86},"[ton]",0.10686,"Aggregate 44%\nSand 35%\nCement 13%",null," 02.09.2029"]
["IG-rør Ø500-700","Gammelrand Beton","Betong","NEPD-7174-6582-DK",{"$f":"92.5+1.84+10.6","v":104.94},"[ton]",0.10493999999999999,"Aggregate 41.5%\nSand 38%\nCement 13%",null," 06.08.2029"]
["Betonrør med diameter 400mm","Dansk Beton","Betong","MD-20020-DA_rev1",38.6,"[m]",{"$f":"E34/266","v":0.14511278195488722},"Aggregate 36-48%\nSand 32-44%\nCement 14-15%","266 kg/m","20.07.2025"]
["Betonrør med diameter 1000mm","Dansk Beton","Betong","MD-20020-DA_rev1",229,"[m]",{"$f":"E35/1545","v":0.14822006472491908},"Aggregate 36-48%\nSand 32-44%\nCement 14-15%","1545 kg/m","20.07.2025"]
["Betonrør med diameter 1600mm","Dansk Beton","Betong","MD-20020-DA_rev1",499,"[m]",{"$f":"E36/3933","v":0.12687515891177217},"Aggregate 36-48%\nSand 32-44%\nCement 14-15%","3933 kg/m","20.07.2025"]

{"sheet":"Kommentarer","index":3,"n_rows":12,"n_cols":6,"rows_kept":12,"cut":false,"hidden":false,"merged":[[2,1,2,3]]}
[null,null,{"$f":"IF(ISBLANK(ProjektNamn), \"Du har inte angett ett namn för projekt\",IF(ISBLANK(ScenarioNamn),\"Du har inte angett ett namn för scenariot\",\"Komentarer \"&ProjektNamn & \" \" &ScenarioNamn))","v":"Du har inte angett ett namn för projekt"}]
[]
[null,"Här kan ange mer utförliggare kommentarer till anläggningsdelarna"]
[]
[null,"Färgförklaringar:","Text med denna färg autofylls från input-fliken - ändra den inte."]
[]
[null,"Anläggningsdel","Kommentar","Uförlig kommentar","Kommentar ang omräkningsfaktorer","Kommentar ang emissionsfaktorer som används, t ex källa, m.m."]
[null,{"$f":"IF(INDEX(InputA1A3[Anläggningsdel\n],ROW()-ROW(TblKommentar[#Headers]))=\"\",\"\",INDEX(InputA1A3[Anläggningsdel\n], ROW()-ROW(TblKommentar[#Headers])))","v":""},{"$f":"IF(INDEX(InputA1A3[Kommentar],ROW()-ROW(TblKommentar[#Headers]))=\"\",\"\",INDEX(InputA1A3[Kommentar], ROW()-ROW(TblKommentar[#Headers])))","v":""}]
[null,{"$f":"IF(INDEX(InputA1A3[Anläggningsdel\n],ROW()-ROW(TblKommentar[#Headers]))=\"\",\"\",INDEX(InputA1A3[Anläggningsdel\n], ROW()-ROW(TblKommentar[#Headers])))","v":""},{"$f":"IF(INDEX(InputA1A3[Kommentar],ROW()-ROW(TblKommentar[#Headers]))=\"\",\"\",INDEX(InputA1A3[Kommentar], ROW()-ROW(TblKommentar[#Headers])))","v":""}]
[null,{"$f":"IF(INDEX(InputA1A3[Anläggningsdel\n],ROW()-ROW(TblKommentar[#Headers]))=\"\",\"\",INDEX(InputA1A3[Anläggningsdel\n], ROW()-ROW(TblKommentar[#Headers])))","v":""},{"$f":"IF(INDEX(InputA1A3[Kommentar],ROW()-ROW(TblKommentar[#Headers]))=\"\",\"\",INDEX(InputA1A3[Kommentar], ROW()-ROW(TblKommentar[#Headers])))","v":""}]
[null,{"$f":"IF(INDEX(InputA1A3[Anläggningsdel\n],ROW()-ROW(TblKommentar[#Headers]))=\"\",\"\",INDEX(InputA1A3[Anläggningsdel\n], ROW()-ROW(TblKommentar[#Headers])))","v":""},{"$f":"IF(INDEX(InputA1A3[Kommentar],ROW()-ROW(TblKommentar[#Headers]))=\"\",\"\",INDEX(InputA1A3[Kommentar], ROW()-ROW(TblKommentar[#Headers])))","v":""}]
[null,{"$f":"IF(INDEX(InputA1A3[Anläggningsdel\n],ROW()-ROW(TblKommentar[#Headers]))=\"\",\"\",INDEX(InputA1A3[Anläggningsdel\n], ROW()-ROW(TblKommentar[#Headers])))","v":""},{"$f":"IF(INDEX(InputA1A3[Kommentar],ROW()-ROW(TblKommentar[#Headers]))=\"\",\"\",INDEX(InputA1A3[Kommentar], ROW()-ROW(TblKommentar[#Headers])))","v":""}]

{"sheet":"Resultat - enskilt scenario","index":4,"n_rows":13,"n_cols":9,"rows_kept":13,"cut":false,"hidden":false,"merged":[[5,4,5,7],[1,1,1,8]]}
[]
[null,"Här presenteras resultatet, utsläppen av växthusgaser per anläggningsdel, i tabellen nedan."]
[]
[null,{"$f":"IF(ISBLANK(ProjektNamn), \"Du har inte angett ett namn för projekt\",IF(ISBLANK(ScenarioNamn),\"Du har inte angett ett namn för scenariot\",\"Resultat \"&ProjektNamn&\" \" &ScenarioNamn))","v":"Du har inte angett ett namn för projekt"}]
[null,{"$f":"'Instruktion och Projektinfo'!O5","v":0},{"$f":"'Instruktion och Projektinfo'!N3:O3","v":"Organisation:"},0]
[null,{"$f":"'Instruktion och Projektinfo'!M5","v":"202X-XX-XX"},{"$f":"'Instruktion och Projektinfo'!P3:Q3","v":"Kontaktperson:"},0,"Utsläpp [ton CO₂-ekv.]"]
[null,"Anläggningsdel","Kategorisering","Kommentar","A1-A3","A4","A5","Totalt","Procentandel av totala utsläppen"]
[null,{"$f":"IF(INDEX(InputA1A3[Anläggningsdel\n],ROW()-ROW(OutputScenario[#Headers]))=\"\",\"\",INDEX(InputA1A3[Anläggningsdel\n], ROW()-ROW(OutputScenario[#Headers])))","v":""},{"$f":"IF(INDEX(KontrollTabell[Kategorier],ROW()-ROW(OutputScenario[#Headers]))=\"\",\"\",INDEX(KontrollTabell[Kategorier], ROW()-ROW(OutputScenario[#Headers])))","v":""},{"$f":"IF(INDEX(InputA1A3[Kommentar],ROW()-ROW(OutputScenario[#Headers]))=\"\",\"\",INDEX(InputA1A3[Kommentar], ROW()-ROW(OutputScenario[#Headers])))","v":""},{"$f":"KontrollTabell[[#This Row],[Utsläpp A1A3 '[kg']]]/1000","v":0},{"$f":"KontrollTabell[[#This Row],[Utsläpp A2 '[kg'] (alt1 och alt2)]]/1000","v":0},{"$f":"KontrollTabell[[#This Row],[Utsläpp A5'[kg']]]/1000","v":0},{"$f":"SUM(OutputScenario[[#This Row],[A1-A3]:[A5]])","v":0},{"$f":"OutputScenario[[#This Row],[Totalt]]/OutputScenario[[#Totals],[Totalt]]","v":{"$error":"#DIV/0!"}}]
[null,{"$f":"IF(INDEX(InputA1A3[Anläggningsdel\n],ROW()-ROW(OutputScenario[#Headers]))=\"\",\"\",INDEX(InputA1A3[Anläggningsdel\n], ROW()-ROW(OutputScenario[#Headers])))","v":""},{"$f":"IF(INDEX(KontrollTabell[Kategorier],ROW()-ROW(OutputScenario[#Headers]))=\"\",\"\",INDEX(KontrollTabell[Kategorier], ROW()-ROW(OutputScenario[#Headers])))","v":""},{"$f":"IF(INDEX(InputA1A3[Kommentar],ROW()-ROW(OutputScenario[#Headers]))=\"\",\"\",INDEX(InputA1A3[Kommentar], ROW()-ROW(OutputScenario[#Headers])))","v":""},{"$f":"KontrollTabell[[#This Row],[Utsläpp A1A3 '[kg']]]/1000","v":0},{"$f":"KontrollTabell[[#This Row],[Utsläpp A2 '[kg'] (alt1 och alt2)]]/1000","v":0},{"$f":"KontrollTabell[[#This Row],[Utsläpp A5'[kg']]]/1000","v":0},{"$f":"SUM(OutputScenario[[#This Row],[A1-A3]:[A5]])","v":0},{"$f":"OutputScenario[[#This Row],[Totalt]]/OutputScenario[[#Totals],[Totalt]]","v":{"$error":"#DIV/0!"}}]
[null,{"$f":"IF(INDEX(InputA1A3[Anläggningsdel\n],ROW()-ROW(OutputScenario[#Headers]))=\"\",\"\",INDEX(InputA1A3[Anläggningsdel\n], ROW()-ROW(OutputScenario[#Headers])))","v":""},{"$f":"IF(INDEX(KontrollTabell[Kategorier],ROW()-ROW(OutputScenario[#Headers]))=\"\",\"\",INDEX(KontrollTabell[Kategorier], ROW()-ROW(OutputScenario[#Headers])))","v":""},{"$f":"IF(INDEX(InputA1A3[Kommentar],ROW()-ROW(OutputScenario[#Headers]))=\"\",\"\",INDEX(InputA1A3[Kommentar], ROW()-ROW(OutputScenario[#Headers])))","v":""},{"$f":"KontrollTabell[[#This Row],[Utsläpp A1A3 '[kg']]]/1000","v":0},{"$f":"KontrollTabell[[#This Row],[Utsläpp A2 '[kg'] (alt1 och alt2)]]/1000","v":0},{"$f":"KontrollTabell[[#This Row],[Utsläpp A5'[kg']]]/1000","v":0},{"$f":"SUM(OutputScenario[[#This Row],[A1-A3]:[A5]])","v":0},{"$f":"OutputScenario[[#This Row],[Totalt]]/OutputScenario[[#Totals],[Totalt]]","v":{"$error":"#DIV/0!"}}]
[null,{"$f":"IF(INDEX(InputA1A3[Anläggningsdel\n],ROW()-ROW(OutputScenario[#Headers]))=\"\",\"\",INDEX(InputA1A3[Anläggningsdel\n], ROW()-ROW(OutputScenario[#Headers])))","v":""},{"$f":"IF(INDEX(KontrollTabell[Kategorier],ROW()-ROW(OutputScenario[#Headers]))=\"\",\"\",INDEX(KontrollTabell[Kategorier], ROW()-ROW(OutputScenario[#Headers])))","v":""},{"$f":"IF(INDEX(InputA1A3[Kommentar],ROW()-ROW(OutputScenario[#Headers]))=\"\",\"\",INDEX(InputA1A3[Kommentar], ROW()-ROW(OutputScenario[#Headers])))","v":""},{"$f":"KontrollTabell[[#This Row],[Utsläpp A1A3 '[kg']]]/1000","v":0},{"$f":"KontrollTabell[[#This Row],[Utsläpp A2 '[kg'] (alt1 och alt2)]]/1000","v":0},{"$f":"KontrollTabell[[#This Row],[Utsläpp A5'[kg']]]/1000","v":0},{"$f":"SUM(OutputScenario[[#This Row],[A1-A3]:[A5]])","v":0},{"$f":"OutputScenario[[#This Row],[Totalt]]/OutputScenario[[#Totals],[Totalt]]","v":{"$error":"#DIV/0!"}}]
[null,{"$f":"IF(INDEX(InputA1A3[Anläggningsdel\n],ROW()-ROW(OutputScenario[#Headers]))=\"\",\"\",INDEX(InputA1A3[Anläggningsdel\n], ROW()-ROW(OutputScenario[#Headers])))","v":""},{"$f":"IF(INDEX(KontrollTabell[Kategorier],ROW()-ROW(OutputScenario[#Headers]))=\"\",\"\",INDEX(KontrollTabell[Kategorier], ROW()-ROW(OutputScenario[#Headers])))","v":""},{"$f":"IF(INDEX(InputA1A3[Kommentar],ROW()-ROW(OutputScenario[#Headers]))=\"\",\"\",INDEX(InputA1A3[Kommentar], ROW()-ROW(OutputScenario[#Headers])))","v":""},{"$f":"KontrollTabell[[#This Row],[Utsläpp A1A3 '[kg']]]/1000","v":0},{"$f":"KontrollTabell[[#This Row],[Utsläpp A2 '[kg'] (alt1 och alt2)]]/1000","v":0},{"$f":"KontrollTabell[[#This Row],[Utsläpp A5'[kg']]]/1000","v":0},{"$f":"SUM(OutputScenario[[#This Row],[A1-A3]:[A5]])","v":0},{"$f":"OutputScenario[[#This Row],[Totalt]]/OutputScenario[[#Totals],[Totalt]]","v":{"$error":"#DIV/0!"}}]
[null,"Total",null,null,{"$f":"SUBTOTAL(109,OutputScenario[A1-A3])","v":0},{"$f":"SUBTOTAL(109,OutputScenario[A4])","v":0},{"$f":"SUBTOTAL(109,OutputScenario[A5])","v":0},{"$f":"SUBTOTAL(109,OutputScenario[Totalt])","v":0}]

{"sheet":"Stödtabeller","index":5,"n_rows":16,"n_cols":15,"rows_kept":16,"cut":false,"hidden":true,"merged":[]}
["Rör, justera eller ändra inget i denna flik, även lägg inte till rader eller kolumner."]
[null,null,null,null,null,null,null,null,null,null,"Rött - beräknade från flik \"Emissionsfaktorer - rör ej cellerna"]
[null,null,null,null,null,null,null,null,"Här behöver scenarionamn sparas för de scenarion som sparas, och tas bort när de raderas - även från Excel NameManager!!!"]
[]
["Enheter","Enhet för omräkningsfaktor",null,"FU/DU","Bränsleförbrukning","Scenarier","Fordon","Fordon/Arbetsmaskiner",null,null,"Drivmedel","Emissionsfaktor","Emissionsfaktor - Enhet","DU/FU","Källa"]
["kg","[kg/m³]",null,"[kg]","[Liter (l)]","Referensscenario",null,"Hjullastare",null,null,"Bensin MK1",{"$f":"Emissionsfaktorer!F10*Emissionsfaktorer!G10","v":2.72376},"[kg CO₂-ekv./liter]","[Liter (l)]","Boverkets klimatdatabas"]
["Liter (l)","[kg/Liter (l)]",null,"[ton]","[MJ]",null,null,"Grävlastare",null,null,"Diesel MK1",{"$f":"Emissionsfaktorer!F8*Emissionsfaktorer!G8","v":3.2184199999999996},"[kg CO₂-ekv./liter]","[Liter (l)]","Boverkets klimatdatabas"]
["m","[kg/m]",null,"[m]","[kWh]",null,null,"Bandgrävningsmaskin",null,null,"E85 Etanol",{"$f":"INDEX(TabellBoverketsKDB[],MATCH(TabellEFDrivmedel[[#This Row],[Drivmedel]],TabellBoverketsKDB[Produktnamn],0),6)*INDEX(TabellBoverketsKDB[],MATCH(TabellEFDrivmedel[[#This Row],[Drivmedel]],TabellBoverketsKDB[Produktnamn],0),7)","v":1.0764},"[kg CO₂-ekv./liter]","[Liter (l)]","Boverkets klimatdatabas"]
["m²","[kg/m²]",null,"[m²]","[m³]",null,null,"Dumper",null,null,"ED95",{"$f":"INDEX(TabellBoverketsKDB[],MATCH(TabellEFDrivmedel[[#This Row],[Drivmedel]],TabellBoverketsKDB[Produktnamn],0),6)*INDEX(TabellBoverketsKDB[],MATCH(TabellEFDrivmedel[[#This Row],[Drivmedel]],TabellBoverketsKDB[Produktnamn],0),7)","v":0.39431999999999995},"[kg CO₂-ekv./liter]","[Liter (l)]","Boverkets klimatdatabas"]
["m³","[kg/m³]",null,"[m³]","[kg]",null,null,"Hjulgrävsmaskin",null,null,"El - nordisk mix",{"$f":"93.2/1000","v":9.3200000000000005E-2},"[kg CO₂-ekv./kWh]","[kWh]","SMED Rapport nr 4, 2021"]
["st","[kg/st]",null,"[MJ]",null,null,null,"Kompaktlastare",null,null,"El - nordisk residualmix",{"$f":"468/1000","v":0.46800000000000003},"kg CO₂/kWh]","[kWh]","Miljövärdering 2023, Energiföretagen - OBS, ej ekvivalenter"]
["ton","[kg/ton]",null,"[kWh]",null,null,null,"Gruvtruck/Tipptruck",null,null,"El - svensk elmix",{"$f":"INDEX(TabellBoverketsKDB[],MATCH(TabellEFDrivmedel[[#This Row],[Drivmedel]],TabellBoverketsKDB[Produktnamn],0),6)*INDEX(TabellBoverketsKDB[],MATCH(TabellEFDrivmedel[[#This Row],[Drivmedel]],TabellBoverketsKDB[Produktnamn],0),7)","v":3.6999999999999998E-2},"[kg CO₂-ekv./kWh]","[kWh]","Boverkets klimatdatabas"]
["MJ","[kg/MJ]",null,"[Liter (l)]",null,null,null,"Mobilkran",null,null,"FAME100",{"$f":"INDEX(TabellBoverketsKDB[],MATCH(TabellEFDrivmedel[[#This Row],[Drivmedel]],TabellBoverketsKDB[Produktnamn],0),6)*INDEX(TabellBoverketsKDB[],MATCH(TabellEFDrivmedel[[#This Row],[Drivmedel]],TabellBoverketsKDB[Produktnamn],0),7)","v":1.1582999999999999},"[kg CO₂-ekv./MJ]","[MJ]","Boverkets klimatdatabas"]
["kWh","[kg/kWh]",null,"[st]",null,null,null,"Truck",null,null,"Fordonsgas",{"$f":"INDEX(TabellBoverketsKDB[],MATCH(TabellEFDrivmedel[[#This Row],[Drivmedel]],TabellBoverketsKDB[Produktnamn],0),6)*INDEX(TabellBoverketsKDB[],MATCH(TabellEFDrivmedel[[#This Row],[Drivmedel]],TabellBoverketsKDB[Produktnamn],0),7)","v":3.388E-2},"[kg CO₂-ekv./kg]","[kg]","Boverkets klimatdatabas"]
[null,null,null,"[km]",null,null,null,null,null,null,"HVO100",{"$f":"INDEX(TabellBoverketsKDB[],MATCH(TabellEFDrivmedel[[#This Row],[Drivmedel]],TabellBoverketsKDB[Produktnamn],0),6)*INDEX(TabellBoverketsKDB[],MATCH(TabellEFDrivmedel[[#This Row],[Drivmedel]],TabellBoverketsKDB[Produktnamn],0),7)","v":0.54560000000000008},"[kg CO₂-ekv./liter]","[Liter (l)]","Boverkets klimatdatabas"]
[null,null,null,null,null,null,null,null,null,null,"El - grön el",1.1999999999999999E-3,"[kg CO₂-ekv./kWh]","[kWh]","Trafikverkets Klimakalkyl v.8"]

{"sheet":"Emissionsfaktorer","index":6,"n_rows":16,"n_cols":12,"rows_kept":16,"cut":false,"hidden":true,"merged":[]}
["Rör, justera eller ändra inget i denna flik, även lägg inte till rader eller kolumner."]
[]
[]
["Emissionsfaktorer - Drivmedel",null,"Källa:","Boverkets klimatdatabas v. 02.07.000 (2026-01-21)"]
[]
["ResursId","Produktnamn","Kategori","Uppdaterad","Enhet för klimatpåverkan","Energislagets klimatpåverkan GWP-GHG, typiskt värde","Omräkningsfaktor","Enhet för omräkningsfaktor","Produktstandard","Komponentkod enligt BK04","Komponentnamn enligt BK04","Produktens användningsområde"]
[6000000008,"El - svensk elmix","Energi och bränsle","2026-01-21","kg CO₂e/kWh",3.6999999999999998E-2,1,"kWh","EN 15804 A1",195,"Elektricitet","El köps från elnätet för flera olika ändamål."]
[6000000010,"Diesel, reduktionsplikt (2024)","Energi och bränsle","2026-01-21","kg CO₂e/MJ",8.9899999999999994E-2,35.799999999999997,"MJ/Liter","EN 15804 A1",19201,"Bränsle","Diesel köps och förbränns i olika maskiner och fordon, dvs omfattar WtW (Well to Wheel)"]
[6000000011,"Diesel, fossil","Energi och bränsle","2026-01-21","kg CO₂e/MJ",9.5100000000000004E-2,35.9,"MJ/Liter","EN 15804 A1",19201,"Bränsle","Diesel köps och förbränns i olika maskiner och fordon, dvs omfattar WtW (Well to Wheel)."]
[6000000012,"Bensin, reduktionsplikt (2024)","Energi och bränsle","2026-01-21","kg CO₂e/MJ",8.7300000000000003E-2,31.2,"MJ/Liter","EN 15804 A1",19201,"Bränsle","Diesel köps och förbränns i olika maskiner och fordon, dvs omfattar WtW (Well to Wheel)."]
[6000000013,"Bensin, fossil","Energi och bränsle","2026-01-21","kg CO₂e/MJ",9.3299999999999994E-2,32.200000000000003,"MJ/Liter","EN 15804 A1",19201,"Bränsle","Bensin köps och förbränns i olika maskiner och fordon, dvs omfattar WtW (Well to Wheel)"]
[6000000017,"HVO100","Energi och bränsle","2026-01-21","kg CO₂e/MJ",1.6E-2,34.1,"MJ/Liter","EN 15804 A1",19201,"Bränsle","HVO100 köps och förbränns i olika maskiner och fordon, dvs omfattar WtW (Well to Wheel)."]
[6100000002,"E85 etanol","Energi och bränsle","2026-01-21","kg CO₂e/MJ",4.6800000000000001E-2,23,"MJ/Liter","SS-EN 15293:2018",19201,"Bränsle","E85 etanol köps och förbränns i olika maskiner och fordon, dvs omfattar WtW (Well to Wheel)."]
[6100000003,"Fordonsgas","Energi och bränsle","2026-01-21","kg CO₂e/MJ",6.9999999999999999E-4,48.4,"MJ/kg","SS-EN 16723-2:2017",19201,"Bränsle","Fordonsgas köps och förbränns i olika maskiner och fordon."]
[6100000006,"FAME100","Energi och bränsle","2026-01-21","kg CO₂e/MJ",3.5099999999999999E-2,33,"MJ/Liter","SS-EN 14214:2012+A2:2019",19201,"Bränsle","FAME100 köps och förbränns i olika maskiner och fordon, dvs omfattar WtW (Well to Wheel)."]
[6100000007,"ED95","Energi och bränsle","2026-01-21","kg CO₂e/MJ",1.8599999999999998E-2,21.2,"MJ/Liter","SS 155437-1:2023",19201,"Bränsle","Klimatdata är representativt för ED95 som köps i Sverige."]

{"sheet":"Hjalpflik","index":7,"n_rows":12,"n_cols":42,"rows_kept":12,"cut":false,"hidden":true,"merged":[]}
["Rör, justera eller ändra inget i denna flik, även lägg inte till rader eller kolumner."]
[]
[{"$f":"IF(ISBLANK(ProjektNamn), \"Du har inte angett ett namn för projekt\",IF(ISBLANK(ScenarioNamn),\"Du har inte angett ett namn för scenariot\",\"Hjalpflik \"&ProjektNamn & \" \" &ScenarioNamn))","v":"Du har inte angett ett namn för projekt"}]
[null,null,null,null,null,null,null,null,null,null,null,null,null,null,null,null,null,null,"Tabell för stacked kolumn-diagram anläggningsdel/MODUL",null,null,null,null,null,null,"Tabell för stacked-kolumn-diagram för kategror/MODUL",null,null,null,null,null,"Tabell för paj-diagram per anläggningsdel",null,null,null,null,"Tabell för paj-diagram - kategori",null,null,null,"Tabell för pajdiagram - MODUL"]
["Huvudtabell - skapar nödvändiga tabeller för diagrammen utifrån denna"]
[]
["Anläggningsdel","Kategorisering","A1-A3","A4","A5","Totalt",null,null,null,"Anläggningsdel","A1-A3","A4","A5","Totalt",null,null,null,null,"Anläggningsdel","A1-A3","A4","A5","Totalt",null,null,"Kategorisering","A1-A3","A4","A5","Totalt",null,"Anläggningsdel","Totalt",null,null,"Kategorisering","Totalt",null,null,null,"Modul","Totalt"]
["concrete","Kategori saknas",54,2.8965779999999999E-3,0,54.002896577999998,null,null,null,"Övriga anläggningsdelar",0.1545,3.3855904000000001E-3,0.28965779999999997,0.44754339039999996,null,null,null,null,"concrete",54,2.8965779999999999E-3,0,54.002896577999998,null,null,"Kategori saknas",54.149500000000003,6.2721684E-3,0.28965779999999997,54.445429968399999,null,"Övriga anläggningsdelar",0.44754339039999996,null,null,"Kategori saknas",54.445429968399999,null,null,null,"A4","142"]
["pvc pipe","Kategori saknas",0.14949999999999999,3.3755904000000001E-3,0.28965779999999997,0.44253339039999995,null,null,null,"concrete",54,2.8965779999999999E-3,0,54.002896577999998,null,null,null,null,"pvc pipe",0.14949999999999999,3.3755904000000001E-3,0.28965779999999997,0.44253339039999995,null,null,"fence",88.295000000000002,2.0591666666666668E-2,0,88.315591666666677,null,"concrete",54.002896577999998,null,null,"fence",88.315591666666677,null,null,null,"A4","0"]
["wood","fence",88.29,2.0581666666666668E-2,0,88.310581666666678,null,null,null,"wood",88.29,2.0581666666666668E-2,0,88.310581666666678,null,null,null,null,"wood",88.29,2.0581666666666668E-2,0,88.310581666666678,null,null,null,"142","0","0","143",null,"wood",88.310581666666678,null,null,null,{"$f":"SUBTOTAL(109,TblChartPieKat[Totalt])","v":142.76102163506667},null,null,null,"A5","0"]
["iron","fence",5.0000000000000001E-3,1.0000000000000001E-5,0,5.0099999999999997E-3,null,null,null,"Total",{"$f":"SUBTOTAL(109,TblChartHuvud2[A1-A3])","v":142.44450000000001},{"$f":"SUBTOTAL(109,TblChartHuvud2[A4])","v":2.6863835066666668E-2},{"$f":"SUBTOTAL(109,TblChartHuvud2[A5])","v":0.28965779999999997},{"$f":"SUBTOTAL(109,TblChartHuvud2[Totalt])","v":142.76102163506667},null,null,null,null,"iron",5.0000000000000001E-3,1.0000000000000001E-5,0,5.0099999999999997E-3,null,null,null,null,null,null,null,null,"Total",{"$f":"SUBTOTAL(109,TblChartPie[Totalt])","v":142.76102163506667}]
["Total",null,{"$f":"SUBTOTAL(109,TblChartHuvud[A1-A3])","v":142.44450000000001},{"$f":"SUBTOTAL(109,TblChartHuvud[A4])","v":2.6863835066666668E-2},{"$f":"SUBTOTAL(109,TblChartHuvud[A5])","v":0.28965779999999997},{"$f":"SUBTOTAL(109,TblChartHuvud[Totalt])","v":142.76102163506667},null,null,null,null,null,null,null,null,null,null,null,null,"Total",{"$f":"SUBTOTAL(109,TblChartKolumn[A1-A3])","v":142.44450000000001},{"$f":"SUBTOTAL(109,TblChartKolumn[A4])","v":2.6863835066666668E-2},{"$f":"SUBTOTAL(109,TblChartKolumn[A5])","v":0.28965779999999997},{"$f":"SUBTOTAL(109,TblChartKolumn[Totalt])","v":142.76102163506667}]

{"sheet":"Versionshistorik","index":8,"n_rows":18,"n_cols":3,"rows_kept":18,"cut":false,"hidden":false,"merged":[[16,1,16,10],[12,2,12,10],[13,2,13,10],[7,2,7,10],[1,1,1,10],[5,1,5,10],[6,1,6,11],[8,2,8,10],[9,2,9,10],[10,2,10,10],[11,2,11,10]]}
[]
[null,"Versionshistorik"]
[]
[]
[]
[null,"Version 2 (Maj 2026)"]
[null,"Genomförda ändringar och uppdateringar inkluderar bland annat:"]
[null,"-","Justering av beräkningsfunktionen för A4 (Transporter) - alternativ 2 då beräkningarna i tidigare version inte blev korrekta."]
[null,"-","Uppdatering av emissionsfaktorer för drivmedel."]
[null,"-","Tillägg av funktion för att spara scenario för att underlätta för de användare som önskar göra olika beräkningsscenarion för samma projekt."]
[null,"-","Tillägg av flik Underlag rörmaterial där förslag på emissionsfaktorer för olika typer av rörmaterial presenteras (inkl. de EPDer som använts för emissionsfaktorerna)."]
[null,"-","Uppdatering av grafer i resultat-fliken, som nu skapas automatiskt när nya data läggs till i fliken Input Mängder A1-A3, A4 och A5 (tidigare knapp för att uppdatera grafer är borttagen)."]
[null,"-","Uppdatering och justering av föreslagna schabloner, bland annat avseende transport av massor."]
[null,"-","Mindre justeringar avseende layout och förtydligande av instruktioner för användaren."]
[]
[]
[null,"Version 1 (januari 2025)"]
[null,"Lansering av verktyget i januari 2025"]